Workbook

Sheet 11-1 SAT JUNREL-lex
B1: BEGIN | C1: UNPAID | D1: PAYMENT | E1: END | F1: CASH ADVANCE
A2: C.A APRIL ARENDAIN | B2: =+'10-31 FRI JUNREL-HAZEL'!E2 -> 1850 | E2: =B2+C2-D2 -> 1850 | P2: ENTER NUMER W/POSITIVE SIGN IF increase
A3: TIYO NOY | B3: =+'10-31 FRI JUNREL-HAZEL'!E3 -> 500 | E3: 500
A4: C.A COCOY | B4: =+'10-31 FRI JUNREL-HAZEL'!E4 -> 3615 | D4: 2,000 | E4: 1615 | P4: ENTER NUMER W/NEGATIVE SIGN IF decrease
A5: DAVE BONA | B5: =+'10-31 FRI JUNREL-HAZEL'!E5 -> 4000 | E5: 4000
A6: C.A JOMARI CORTES | B6: =+'10-31 FRI JUNREL-HAZEL'!E6 -> 40928 | E6: 40928
A7: C.A JUNREL MALIPOT | B7: =+'10-31 FRI JUNREL-HAZEL'!E7 -> 9800 | E7: 9800
A8: C.A NATHANIEL | B8: =+'10-31 FRI JUNREL-HAZEL'!E8 -> 600 | E8: 600
A9: C.A MANANGAT CHRISTIAN | B9: =+'10-31 FRI JUNREL-HAZEL'!E9 -> 3548 | E9: 3548 | S9: =-S11*1 -> 1.300
A10: C.A SINADJAN, RAMIL | B10: =+'10-31 FRI JUNREL-HAZEL'!E10 -> 1100 | E10: 1100 | R10: 11kilos | S10: 11.000
A11: C.A VESTER | B11: =+'10-31 FRI JUNREL-HAZEL'!E11 -> 9782 | E11: 9782 | R11: ENTER NUMBER (-/+) | S11: -1.300
A12: IRENE | B12: =+'10-31 FRI JUNREL-HAZEL'!E12 -> 2000 | E12: 2000 | R12: TOTAL CHANGE | S12: =+S10*S9 -> 14.300
A13: ARTURO PARAGAS | B13: =+'10-31 FRI JUNREL-HAZEL'!E13 -> 6700 | E13: 6700 | R13: VAT | S13: =+S12*0.12 -> 1.716
A14: DONNA LUIS | B14: =+'10-31 FRI JUNREL-HAZEL'!E14 -> 3300 | E14: 3300 | R14: VAT + TOTAL CHANGE | S14: =+S12+S13 -> 16.016
A15: RULEY GREPALDIO | B15: =+'10-31 FRI JUNREL-HAZEL'!E15 -> 1076 | E15: 1076 | R15: ENTER OLD PRICE | S15: 1,076.000
A16: JULIAN | B16: =+'10-31 FRI JUNREL-HAZEL'!E16 -> 5100 | E16: 5100 | F16: JULLIAN DUMALAG | R16: NEW PRICE | S16: =+S15-S14 -> 1,059.984
A17: CA HAZEL 8/21 | B17: =+'10-31 FRI JUNREL-HAZEL'!E17 -> 1600 | E17: 1600
A18: SABIANO BERAL | B18: =+'10-31 FRI JUNREL-HAZEL'!E18 -> 5000 | E18: 5000 | S18: =-S20*1 -> 0.000
A19: LABOR ADVANCE | B19: =+'10-31 FRI JUNREL-HAZEL'!E19 -> 1000 | D19: 1,000 | E19: 0 | R19: 50KG | S19: 50.000
A20: NATHANIEL | B20: =+'10-31 FRI JUNREL-HAZEL'!E20 -> 3500 | E20: 3500 | R20: ENTER NUMBER (-/+) | S20: =+P6 -> 0.000
A21: RJ DUMANGAS | B21: =+'10-31 FRI JUNREL-HAZEL'!E21 -> 1000 | E21: 1000 | R21: TOTAL CHANGE | S21: =+S19*S18 -> 0.000
A22: REGULAR | B22: =+'10-31 FRI JUNREL-HAZEL'!E22 -> 0 | E22: 0 | F22: REGULAR | R22: VAT | S22: =+S21*0.12 -> 0.000
A23: ABOYS | B23: =+'10-31 FRI JUNREL-HAZEL'!E23 -> 769 | E23: 769 | R23: VAT + TOTAL CHANGE | S23: =+S21+S22 -> 0.000
A24: ABSALON LOLITA | B24: =+'10-31 FRI JUNREL-HAZEL'!E24 -> 1000 | E24: 1000 | R24: ENTER OLD PRICE | S24: 4,719.000
A25: ALBAO, ELMER | B25: =+'10-31 FRI JUNREL-HAZEL'!E25 -> 834 | E25: 834 | R25: NEW PRICE | S25: =+S24-S23 -> 4,719.000
A26: ALOVERA ROSEMARIE | B26: =+'10-31 FRI JUNREL-HAZEL'!E26 -> 25 | E26: 25
A27: ANDAYA NELLY | B27: =+'10-31 FRI JUNREL-HAZEL'!E27 -> 1071 | E27: 1071 | S27: =-S29*1 -> 0.000
A28: AYESHA BAKERY | B28: =+'10-31 FRI JUNREL-HAZEL'!E28 -> 2105 | E28: 2105 | R28: 1.4KG | S28: 1.400
A29: BANTAYAN MINDA | B29: =+'10-31 FRI JUNREL-HAZEL'!E29 -> 168 | E29: 168 | R29: ENTER NUMBER (-/+) | S29: =+P6 -> 0.000
A30: BEGGS BAKERY | B30: =+'10-31 FRI JUNREL-HAZEL'!E30 -> 7936 | E30: 7936 | R30: TOTAL CHANGE | S30: =+S28*S27 -> 0.000
A31: BINOLIRAO, JOY | B31: =+'10-31 FRI JUNREL-HAZEL'!E31 -> 5432 | E31: 5432 | R31: VAT | S31: =+S30*0.12 -> 0.000
A32: CAFÉ KRISTINA | B32: =+'10-31 FRI JUNREL-HAZEL'!E32 -> 4226 | E32: 4226 | R32: VAT + TOTAL CHANGE | S32: =+S30+S31 -> 0.000
A33: CANTUBA PORTIA | B33: =+'10-31 FRI JUNREL-HAZEL'!E33 -> 1076 | E33: 1076 | R33: ENTER OLD PRICE | S33: 199.000
A34: CAPELLAN EMILY | B34: =+'10-31 FRI JUNREL-HAZEL'!E34 -> 588 | E34: 588 | R34: NEW PRICE | S34: =+S33-S32 -> 199.000
A35: CAPELLAN SONY | B35: =+'10-31 FRI JUNREL-HAZEL'!E35 -> 500 | E35: 500
A36: CHEPIE/SAMSON JINKY | B36: =+'10-31 FRI JUNREL-HAZEL'!E36 -> 0 | E36: 0
A37: CITY VICE OLD | B37: =+'10-31 FRI JUNREL-HAZEL'!E37 -> 6121 | E37: 6121
A38: CORTES BABYJANE LESS 200 | B38: =+'10-31 FRI JUNREL-HAZEL'!E38 -> 2128 | E38: 2128
A39: COSTALES, ERNESTO | B39: =+'10-31 FRI JUNREL-HAZEL'!E39 -> 25 | E39: 25
A40: DALANON, LUZ | B40: =+'10-31 FRI JUNREL-HAZEL'!E40 -> 1160 | E40: 1160
A41: DESAMERO JESS | B41: =+'10-31 FRI JUNREL-HAZEL'!E41 -> 1033 | E41: 1033
A42: DESPE, ARTUR | B42: =+'10-31 FRI JUNREL-HAZEL'!E42 -> 997 | E42: 997
A43: DIOCADO JOHNWIL ONLOAN | B43: =+'10-31 FRI JUNREL-HAZEL'!E43 -> 900 | E43: 900
A44: EMR/PANES FREDDIE / | B44: =+'10-31 FRI JUNREL-HAZEL'!E44 -> 2050 | C44: 995 | D44: 1,006 | E44: 2039
A45: EPONG CARENDERIA | B45: =+'10-31 FRI JUNREL-HAZEL'!E45 -> 1131 | E45: 1131
A46: ESPARZA ANACITA | B46: =+'10-31 FRI JUNREL-HAZEL'!E46 -> 2165 | E46: 2165
A47: ESPINAS ROLANDO | B47: =+'10-31 FRI JUNREL-HAZEL'!E47 -> 1056 | E47: 1056
A48: EVANGELISTA, JOHN | B48: =+'10-31 FRI JUNREL-HAZEL'!E48 -> 1207 | E48: 1207
A49: FLORES HELEN | B49: =+'10-31 FRI JUNREL-HAZEL'!E49 -> 1647 | E49: 1647
A50: GARBO RADFORD | B50: =+'10-31 FRI JUNREL-HAZEL'!E50 -> 1624 | E50: 1624
A51: GARBO RAYMUND | B51: =+'10-31 FRI JUNREL-HAZEL'!E51 -> 1103 | E51: 1103
A52: GONZAGA, ANITA | B52: =+'10-31 FRI JUNREL-HAZEL'!E52 -> 1191 | E52: 1191 | F52: APRIL
A53: HARLEY CLEOFE | B53: =+'10-31 FRI JUNREL-HAZEL'!E53 -> 0 | E53: 0
A54: JANZMILE | B54: =+'10-31 FRI JUNREL-HAZEL'!E54 -> 2331 | E54: 2331
A55: JODAN EATERY | B55: =+'10-31 FRI JUNREL-HAZEL'!E55 -> 50 | E55: 50
A56: LALAGUNA FAITH | B56: =+'10-31 FRI JUNREL-HAZEL'!E56 -> 0 | E56: 0
A57: LAURENO SUSIE | B57: =+'10-31 FRI JUNREL-HAZEL'!E57 -> 2274 | E57: 2274
A58: LAWODNON | B58: =+'10-31 FRI JUNREL-HAZEL'!E58 -> 10360 | E58: 10360
A59: LIBERTY BAKERY | B59: =+'10-31 FRI JUNREL-HAZEL'!E59 -> 0 | E59: 0
A60: LOLO JOFAX (2160) UNPAID | B60: =+'10-31 FRI JUNREL-HAZEL'!E60 -> 500 | E60: 500
A61: MANALO, CHITA | B61: =+'10-31 FRI JUNREL-HAZEL'!E61 -> 2120 | E61: 2120
A62: MANGUBAT-CAWAYAN | B62: =+'10-31 FRI JUNREL-HAZEL'!E62 -> 1121 | E62: 1121
A63: MARABE, GUENTER | B63: =+'10-31 FRI JUNREL-HAZEL'!E63 -> 1014 | E63: 1014
A64: MARISTELA, EMERALD | B64: =+'10-31 FRI JUNREL-HAZEL'!E64 -> 7907 | E64: 7907
A65: MIEKOYS PIZZA | B65: =+'10-31 FRI JUNREL-HAZEL'!E65 -> 0 | E65: 0
A66: MIGGYS BAKERY | B66: =+'10-31 FRI JUNREL-HAZEL'!E66 -> 765 | E66: =B66+C66-D66 -> 765
A67: MORAN ANALY | B67: =+'10-31 FRI JUNREL-HAZEL'!E67 -> 0 | E67: 0
A68: MORAN JACKILYN | B68: =+'10-31 FRI JUNREL-HAZEL'!E68 -> 1068 | E68: 1068
A69: NARIDO RAFAEL REG | B69: =+'10-31 FRI JUNREL-HAZEL'!E69 -> 475 | E69: 475
A70: NARIDO, REYNALDO | B70: =+'10-31 FRI JUNREL-HAZEL'!E70 -> 475 | E70: 475
A71: NUNEZ, PERPETUA | B71: =+'10-31 FRI JUNREL-HAZEL'!E71 -> 3831 | E71: 3831
A72: OLIVA, CELSO | B72: =+'10-31 FRI JUNREL-HAZEL'!E72 -> 168 | E72: 168
A73: OLIVA, DOREEN | B73: =+'10-31 FRI JUNREL-HAZEL'!E73 -> 474 | E73: 474
A74: ORBISO LIZA/NUNU | B74: =+'10-31 FRI JUNREL-HAZEL'!E74 -> 2405 | E74: 2405
A75: ORBISO, KEILLI | B75: =+'10-31 FRI JUNREL-HAZEL'!E75 -> 474 | E75: 474
A76: PASION VENUS | B76: =+'10-31 FRI JUNREL-HAZEL'!E76 -> 1014 | E76: 1014
A77: PERALTA LYNDON | B77: =+'10-31 FRI JUNREL-HAZEL'!E77 -> 40 | E77: 40
A78: PHO | B78: =+'10-31 FRI JUNREL-HAZEL'!E78 -> 0 | E78: 0
A79: RESUENA | B79: =+'10-31 FRI JUNREL-HAZEL'!E79 -> 4226 | E79: 4226
A80: RUELAN RONALD | B80: =+'10-31 FRI JUNREL-HAZEL'!E80 -> 1083 | E80: 1083
A81: SALADAS SHERLY | B81: =+'10-31 FRI JUNREL-HAZEL'!E81 -> 674 | E81: 674
A82: BANTAYAN MINDA | B82: =+'10-31 FRI JUNREL-HAZEL'!E82 -> 0 | E82: 0
A83: SANDRA SAN JUAN | B83: =+'10-31 FRI JUNREL-HAZEL'!E83 -> 1300 | E83: 1300
A84: TATA/NUEVO MARILOU | B84: =+'10-31 FRI JUNREL-HAZEL'!E84 -> 0 | C84: 10,100 | E84: 10100
A85: TENORIA, MARRAH | B85: =+'10-31 FRI JUNREL-HAZEL'!E85 -> 130 | E85: 130
A86: VILLAMOR, MARILOU (MOM) | B86: =+'10-31 FRI JUNREL-HAZEL'!E86 -> 0 | E86: 0
A87: VILLAMOR, MARILOU (SON) | B87: =+'10-31 FRI JUNREL-HAZEL'!E87 -> 2308 | E87: 2308
A88: VILLOCILLO JESUS | B88: =+'10-31 FRI JUNREL-HAZEL'!E88 -> 0 | E88: 0
A89: YBANEZ ROBERTO (1115) UNPAID | B89: =+'10-31 FRI JUNREL-HAZEL'!E89 -> 1014 | E89: 1014
A90: YKAY/NUEVO ELENA | B90: =+'10-31 FRI JUNREL-HAZEL'!E90 -> 60890 | E90: 60890
A91: TWIN PEAK | B91: =+'10-31 FRI JUNREL-HAZEL'!E91 -> 1084 | E91: 1084
A92: COLLANTES | B92: =+'10-31 FRI JUNREL-HAZEL'!E92 -> 0 | E92: 0
A93: MARYJANE CORTES | B93: =+'10-31 FRI JUNREL-HAZEL'!E93 -> 45 | E93: 45
A94: HAPPY ROASTER | B94: =+'10-31 FRI JUNREL-HAZEL'!E94 -> 6456 | E94: 6456
A95: JOHNRICK PACHECO | B95: =+'10-31 FRI JUNREL-HAZEL'!E95 -> 800 | E95: 800
A96: CHARO'S CAFÉ | B96: =+'10-31 FRI JUNREL-HAZEL'!E96 -> 25 | E96: 25
A97: LOCILLO AILYN | B97: =+'10-31 FRI JUNREL-HAZEL'!E97 -> 0 | E97: 0
A98: OVERTYM | B98: =+'10-31 FRI JUNREL-HAZEL'!E98 -> 0 | E98: 0
A99: HARLEY CLEOFE | B99: =+'10-31 FRI JUNREL-HAZEL'!E99 -> 0 | E99: 0
A100: PAPILLERA M 3000 from lex | B100: =+'10-31 FRI JUNREL-HAZEL'!E100 -> 3114 | E100: 3114
A101: BANTAYAN MINDA | B101: =+'10-31 FRI JUNREL-HAZEL'!E101 -> 1064 | E101: 1064
A102: CITY TREASURY | B102: =+'10-31 FRI JUNREL-HAZEL'!E102 -> 4550 | E102: 4550
A103: AMY DELA PISA | B103: =+'10-31 FRI JUNREL-HAZEL'!E103 -> 0 | E103: 0
A104: GERARDO PRESADO | B104: =+'10-31 FRI JUNREL-HAZEL'!E104 -> 0 | E104: 0
A105: BERNARD CARPIO | B105: =+'10-31 FRI JUNREL-HAZEL'!E105 -> 1132 | E105: 1132
A106: CHONA MESA | B106: =+'10-31 FRI JUNREL-HAZEL'!E106 -> 2298 | E106: 2298
A107: PASTORA VIE | B107: =+'10-31 FRI JUNREL-HAZEL'!E107 -> 600 | E107: 600
A108: EVELYN CONRADO | B108: =+'10-31 FRI JUNREL-HAZEL'!E108 -> 400 | E108: 400
B109: =+'10-31 FRI JUNREL-HAZEL'!E109 -> 0 | E109: 0
A110: NENETH REYES | B110: =+'10-31 FRI JUNREL-HAZEL'!E110 -> 693 | E110: 693
A111: JUREXEN VERDIDA | B111: =+'10-31 FRI JUNREL-HAZEL'!E111 -> 3001 | E111: 3001
A112: VILLARANTE RENZEL | B112: =+'10-31 FRI JUNREL-HAZEL'!E112 -> 646 | E112: 646
A113: ALMARIO MOBO BGACAY | B113: =+'10-31 FRI JUNREL-HAZEL'!E113 -> 143 | E113: 143
A114: ALFARO | B114: =+'10-31 FRI JUNREL-HAZEL'!E114 -> 1147 | E114: 1147
A115: JOSE CUELLO 4/24 TRADE IN | B115: =+'10-31 FRI JUNREL-HAZEL'!E115 -> 1071 | E115: 1071
B116: =+'10-31 FRI JUNREL-HAZEL'!E116 -> 0 | E116: 0
A117: MANLAPAZ | B117: =+'10-31 FRI JUNREL-HAZEL'!E117 -> 1084 | E117: 1084
A118: CITY VICE NEW GAZUL | B118: =+'10-31 FRI JUNREL-HAZEL'!E118 -> 1103 | E118: 1103
A119: EVA VERANO | B119: =+'10-31 FRI JUNREL-HAZEL'!E119 -> 576 | E119: 576
B120: =+'10-31 FRI JUNREL-HAZEL'!E120 -> 0 | E120: 0
A121: HAPPY ROASTER | B121: =+'10-31 FRI JUNREL-HAZEL'!E121 -> 4276 | E121: 4276
B122: =+'10-31 FRI JUNREL-HAZEL'!E122 -> 0 | E122: 0
B123: =+'10-31 FRI JUNREL-HAZEL'!E123 -> 0 | E123: 0
A124: CITY VICE | B124: =+'10-31 FRI JUNREL-HAZEL'!E124 -> 1076 | E124: 1076
A125: JEREMY SAMSON | B125: =+'10-31 FRI JUNREL-HAZEL'!E125 -> 18800 | E125: 18800
A126: VILLANUEVA GLENDA | B126: =+'10-31 FRI JUNREL-HAZEL'!E126 -> 1749 | E126: 1749
A127: GALLETO DOREEN | B127: =+'10-31 FRI JUNREL-HAZEL'!E127 -> 0 | E127: 0
A128: CITIBUILDER | B128: =+'10-31 FRI JUNREL-HAZEL'!E128 -> 1114 | E128: 1114
A129: 50kg ACCOUNT | B129: =+'10-31 FRI JUNREL-HAZEL'!E129 -> 0 | E129: 0 | F129: 50kg ACCOUNT
A130: ABAN, JULIUS | B130: =+'10-31 FRI JUNREL-HAZEL'!E130 -> 0 | E130: =B130+C130-D130 -> 0
A131: AVEGAIL LAUNDRY | B131: =+'10-31 FRI JUNREL-HAZEL'!E131 -> 6538 | E131: 6538
A132: BACKYARD EDIBLE GARDEN | B132: =+'10-31 FRI JUNREL-HAZEL'!E132 -> 844 | E132: 844
A133: CARIS HOTEL | B133: =+'10-31 FRI JUNREL-HAZEL'!E133 -> 4314 | E133: 4314 | R133: ATTENDANCE AND PAYMENT | X133: =+Z155+Z161 -> 13454
A134: TEABOX | B134: =+'10-31 FRI JUNREL-HAZEL'!E134 -> 0 | E134: 0
A135: CHAROS CAFÉ AND RESTO | B135: =+'10-31 FRI JUNREL-HAZEL'!E135 -> 0 | E135: 0 | R135: NAMES | S135: AM | U135: PM | W135: AM HOURS | X135: PM HOURS | Y135: TOTAL HOURS | Z135: PAID | AA135: REMARKS
A136: CHERISH RESORT | B136: =+'10-31 FRI JUNREL-HAZEL'!E136 -> 0 | E136: 0 | P136: DAYOFF | S136: IN | T136: OUT | U136: IN | V136: OUT
A137: CLORES TRESURE ISLAND | B137: =+'10-31 FRI JUNREL-HAZEL'!E137 -> 7 | E137: 7 | P137: SATURDAY | R137: JOMARI CORTES | W137: =+(T137-S137)*24 -> 0.0 | X137: =+(V137-U137)*24 -> 0.0 | AA137: off
A138: CONRADO / NOEL BAKERY | B138: =+'10-31 FRI JUNREL-HAZEL'!E138 -> 10428 | E138: 10428 | P138: SUNDAY | R138: JUNREL MALIPOT | S138: 07:35:00 | W138: =+(T138-S138)*24 -> -7.6 | X138: =+(V138-U138)*24 -> 0.0
A139: CRISPY KING CROSSING | B139: =+'10-31 FRI JUNREL-HAZEL'!E139 -> 60 | E139: 60 | K139: CP# | O139: DRIVER | P139: SUNDAY | R139: APRIL ARENDAIN | W139: =+(T139-S139)*24 -> 0.0 | X139: =+(V146-U146)*24 -> 0.0 | AA139: absent
A140: CRISPY KING IBANEZ | B140: =+'10-31 FRI JUNREL-HAZEL'!E140 -> 0 | E140: 0 | K140: CP# | O140: DRIVER | R140: DIONESITO BLAZO 9301238381 | W140: =+(T141-S140)*24 -> 0.0 | X140: =+(V141-U141)*24 -> 0.0 | Z140: 700 | AA140: 200 LABOR AROROY
A141: CRISPY KING MARKET | B141: =+'10-31 FRI JUNREL-HAZEL'!E141 -> 0 | E141: 0 | P141: SUNDAY | R141: RULEY GREPALDEO | W141: =+(T142-S141)*24 -> 0.0 | X141: =+(V142-U142)*24 -> 0.0
A142: CRISPY KING MOBO | B142: =+'10-31 FRI JUNREL-HAZEL'!E142 -> 0 | E142: 0 | W142: 0.0 | X142: =+(V142-U142)*24 -> 0.0
A143: CRISPY KING CAWAYAN | B143: =+'10-31 FRI JUNREL-HAZEL'!E143 -> 0 | E143: 0 | W143: 0.0 | X143: =+(V143-U143)*24 -> 0.0
A144: EZ CAFÉ W/CYLINDER | B144: =+'10-31 FRI JUNREL-HAZEL'!E144 -> 0 | E144: 0 | W144: 0.0 | X144: =+(V144-U144)*24 -> 0.0
A145: FRANCE LAUNDRY | B145: =+'10-31 FRI JUNREL-HAZEL'!E145 -> 860 | E145: 860 | W145: =+(T145-S145)*24 -> 0.0 | X145: =+(V145-U145)*24 -> 0.0
A146: JUAN HOUR LAUNDRY | B146: =+'10-31 FRI JUNREL-HAZEL'!E146 -> 0 | E146: 0 | R146: CHARISSE ANN A. BELARMINO | S146: 07:00:00 | W146: =+(T146-S146)*24 -> -7.0 | X146: =+(V146-U146)*24 -> 0.0
A147: KATES LAUNDRY SHOP | B147: =+'10-31 FRI JUNREL-HAZEL'!E147 -> 0 | E147: 0 | R147: NATHANIEL ALERTA | W147: 0.0 | X147: 0.0 | AA147: off
A148: MARKY RESTAURANT | B148: =+'10-31 FRI JUNREL-HAZEL'!E148 -> 4001 | E148: 4001 | P148: SATURDAY | R148: ARNOLD PEPITO | S148: 07:00:00 | W148: -7.0 | X148: 0.0
A149: MASBATE LAUNDRY SHOP | B149: =+'10-31 FRI JUNREL-HAZEL'!E149 -> 0 | E149: 0 | K149: CP# | O149: DRIVER | P149: WEDNESDAY | R149: EVANGELISTA ROMULO | S149: 07:00:00 | W149: -7.0 | X149: 0.0
A150: DAMPA besmonte | B150: =+'10-31 FRI JUNREL-HAZEL'!E150 -> 4314 | E150: 4314 | R150: HAZEL | W150: 0.0 | X150: 0.0 | AA150: absent
A151: PINOY SIOPAO | B151: =+'10-31 FRI JUNREL-HAZEL'!E151 -> 17056 | E151: 17056 | P151: SUNDAY | R151: LIZET DANAO | W151: 0.0 | X151: 0.0 | AA151: off
A152: REMS LAUNDRY | B152: =+'10-31 FRI JUNREL-HAZEL'!E152 -> 6144 | E152: 6144 | K152: CP# | O152: DRIVER | P152: FRIDAY | R152: ARTURO PARAGAS | W152: 0.0 | X152: 0.0 | AA152: off
A153: REYJOHN BAKERY | B153: =+'10-31 FRI JUNREL-HAZEL'!E153 -> 0 | E153: 0 | P153: SATURDAY | R153: LEO MARCOS | S153: 07:00:00 | W153: -7.0 | X153: 0.0
A154: ROBERTO AND ROWE | B154: =+'10-31 FRI JUNREL-HAZEL'!E154 -> 15707 | E154: 15707 | K154: CP# | O154: DRIVER | P154: THURSDAY | R154: JULIAN DUMALAG | S154: 07:00:00 | W154: -7.0 | X154: 0.0
A155: ROLLING BUBBLES | B155: =+'10-31 FRI JUNREL-HAZEL'!E155 -> 0 | E155: 0 | M155: BNNNNNNNNNNNNNNNNNNNNNNNNNNNNNNNNNNNNNNNNNNNNNNNNNNNNNNN | R155: SALARY TOTAL | Z155: =SUM(Z137:Z154) -> 700 | AG155: SAKTO
A156: ROSEMARY EVENTS | B156: =+'10-31 FRI JUNREL-HAZEL'!E156 -> 0 | E156: 0 | R156: LABOR | Z156: 3954
A157: ROWEES AROROY | B157: =+'10-31 FRI JUNREL-HAZEL'!E157 -> 0 | E157: 0 | R157: HAULING | Z157: 4500 | AJ157: 7 | AL157: 87
A158: PALMA SHERYL/avegail laundry | B158: =+'10-31 FRI JUNREL-HAZEL'!E158 -> 4614 | E158: 4614 | R158: DRIVER | Z158: 4000
A159: WENABETH JOHN BAKERY MALINTA | B159: =+'10-31 FRI JUNREL-HAZEL'!E159 -> 4469 | E159: 4469 | F159: KULANG 100 FOR COLLCTION COCOY | R159: MCDO | Z159: 300
A160: CRISPY KING PIER | B160: =+'10-31 FRI JUNREL-HAZEL'!E160 -> 0 | E160: 0
A161: CRISPY KING OSMENA | B161: =+'10-31 FRI JUNREL-HAZEL'!E161 -> 3814 | E161: 3814 | R161: EXTRA EXPENSES TOTAL | Z161: =+SUM(Z156:Z160) -> 12754
A162: TUMBAGA SINALONGAN | B162: =+'10-31 FRI JUNREL-HAZEL'!E162 -> 10756 | E162: 10756 | F162: PAID 17148 THI10/30
A163: OUTLET'S | B163: =+'10-31 FRI JUNREL-HAZEL'!E163 -> 0 | E163: 0 | F163: OUTLET'S
A164: ABANO, MICHAEL | B164: =+'10-31 FRI JUNREL-HAZEL'!E164 -> 16314 | E164: 16314 | V164: COMMERCIAL ACCOUNT | AE164: REMINDERS
A165: ALVAREZ JENILLYN | B165: =+'10-31 FRI JUNREL-HAZEL'!E165 -> 18750 | E165: 18750
A166: ALVAREZ, RICO 1.4 | B166: =+'10-31 FRI JUNREL-HAZEL'!E166 -> 1330 | E166: 1330 | V166: CUSTOMER NAME | AB166: DICS | AC166: DELIVER | AE166: 9499357775 AMERA 50KG Leah Orubla Villaraiz | AM166: ALOVERA ROSEMARIE | AQ166: 20 | AR166: 15
A167: ALVAREZ, RICO A/S | B167: =+'10-31 FRI JUNREL-HAZEL'!E167 -> 6800 | E167: 6800 | V167: 8 ALL YOU CAN/RIMONTE JOHN AUBREN | AB167: 400 | AC167: 50 | AM167: BANTAYAN MINDA | AQ167: 20 | AR167: 15
A168: BANTAYAN, LENIE | B168: =+'10-31 FRI JUNREL-HAZEL'!E168 -> 12802 | E168: 12802 | V168: ABAN LAUNDRY / ABAN JULIUS | AB168: 300 | AC168: 50 | AM168: CORTES BABY JEAN | AQ168: 20 | AR168: 15
A169: BULALAQUE, NATHANIEL | B169: =+'10-31 FRI JUNREL-HAZEL'!E169 -> 5095 | E169: 5095 | V169: AVEGAIL S LAUNDRY | AB169: 300 | AC169: 50 | AE169: LAWRENCE SESE 0902014314 LAND BANK | AM169: MILDRED TORRES | AQ169: 20
A170: CDJ/CHISA BARRUGA | B170: =+'10-31 FRI JUNREL-HAZEL'!E170 -> 5315 | E170: 5315 | V170: BACKYARD EDIBLE GARDEN | AB170: 300 | AC170: 50
A171: COCOY SOLANE ACCOUNT | B171: =+'10-31 FRI JUNREL-HAZEL'!E171 -> 6232 | E171: 6232 | V171: CARIS HOTEL | AB171: 300 | AC171: 50 | AM171: ESPARZA ANACITA TWIN PEAK | AQ171: 20 | AR171: 15
A172: ELMA BUNGCARAS | B172: =+'10-31 FRI JUNREL-HAZEL'!E172 -> 10680 | E172: 10680 | V172: CHAROS CAFÉ AND RESTO (MOBO RIVER SIDE) | AB172: 0 | AC172: 50 | AE172: LAWRENCE SESE 013568000813 BDO | AM172: ESPINAS ROLANDO | AQ172: 20 | AR172: 15
A173: GADER RENATO | B173: =+'10-31 FRI JUNREL-HAZEL'!E173 -> 16920 | E173: 16920 | J173: SENIOR DISCOUNT | P173: 15 | V173: CHERISH MOMENT RESORT | AB173: 900 | AC173: 50
A174: LOCMAYON BEGA10 (2) | B174: =+'10-31 FRI JUNREL-HAZEL'!E174 -> 0 | E174: 0 | V174: CRISPY KING / DJJM FOOD HUB/ IBANEZ/CROSSING | AB174: 800 | AC174: 50 | AM174: FAZENDA MILAGROS | AQ174: 20 | AR174: 15
A175: SOLON VANGIE AS | B175: =+'10-31 FRI JUNREL-HAZEL'!E175 -> 0 | E175: 0 | J175: 50KG | M175: QTY | N175: AMOUNT | P175: DISCOUNT | R175: DELIVERY CHARGE | V175: CRISPY KING / DJJM FOOD HUB/ MOBO | AB175: 700 | AC175: 50 | AE175: KUA DUTAY 09307207044
A176: ORBISO PHOEBE | B176: =+'10-31 FRI JUNREL-HAZEL'!E176 -> 2112 | E176: 2112 | V176: CRYSPY KING / DJA CATERING SERVICES/PATING | AB176: 800 | AC176: 50
A177: ORBISO, EFILDA | B177: =+'10-31 FRI JUNREL-HAZEL'!E177 -> 0 | E177: 0 | J177: 4541 | N177: =+M177*J177 -> 0 | P177: 700 | V177: CRISPY KING / DJJM FOOD HUB/ OSMENA NOY BIGOL | AB177: 800 | AC177: 50
A178: PAWA VERNA MENDOZA | B178: =+'10-31 FRI JUNREL-HAZEL'!E178 -> 1250 | E178: 1250 | S178: + | V178: CRISPY KING / DJJM FOOD HUB/ PIER NOY BIGOL | W178: =+W222 -> 0 | AB178: 800 | AC178: 50 | AE178: GMS ACCOUNT
A179: ELMA BUNCARAS | B179: =+'10-31 FRI JUNREL-HAZEL'!E179 -> 14630 | E179: 14630 | P179: =+M177*P177 -> 0 | R179: =+M177*R177 -> 0 | V179: / DJJM CRISPY KING NOY BIGOL | AB179: 700 | AC179: 100
A180: SAMPAGA BIDA | B180: =+'10-31 FRI JUNREL-HAZEL'!E180 -> 3816 | E180: 3816 | J180: 11KG | M180: QTY | N180: AMOUNT | P180: DISCOUNT | R180: DELIVERY CHARGE | V180: DAMPA RESTO BAR /BESMONTE MARICAR | AB180: 300 | AC180: 50
A181: SESE, ROSALIA | B181: =+'10-31 FRI JUNREL-HAZEL'!E181 -> 34480 | E181: 34480 | V181: DR. CHESTER LEE | AB181: 900 | AC181: P/U
A182: STAR OIL RECEIVABLE | B182: =+'10-31 FRI JUNREL-HAZEL'!E182 -> 0 | E182: 0 | J182: 1065 | M182: 1 | N182: =+M182*J182 -> 1065 | P182: 70 | S182: TY | V182: EZ CAFÉ | AB182: 300 | AC182: 50
A183: TAYAM IRISH | B183: =+'10-31 FRI JUNREL-HAZEL'!E183 -> 0 | E183: 0 | V183: FRANCE LAUNDRY | AB183: 700 | AC183: 50
A184: YBANEZ, NESSAR | B184: =+'10-31 FRI JUNREL-HAZEL'!E184 -> 27376 | E184: 27376 | P184: =+M182*P182 -> 70 | R184: =+M182*R182 -> 0 | V184: GACT CONSTRUCTION AND SUPPLY /TAYAM IRISH | AB184: 200 | AC184: 50
A185: ZUNIGA MELCHOR | B185: =+'10-31 FRI JUNREL-HAZEL'!E185 -> 0 | E185: 0 | J185: 1.4KG | M185: QTY | N185: AMOUNT | P185: DISCOUNT | R185: DELIVERY CHARGE | V185: HIGHN'DRY LAUNDRY SERVCES | AB185: 0 | AC185: 50
A186: JENELIN ALVAREZ | B186: =+'10-31 FRI JUNREL-HAZEL'!E186 -> 0 | E186: 0 | V186: JUAN HOUR LAUNDRY - STAIRWAY & IBANEZ | AB186: 900 | AC186: 50 | AE186: DELA PENA ANALYN/OSTED | AI186: 70 | AJ186: 9 | AM186: rey john | AQ186: 20 | AR186: 15
A187: EJJ EVANGELYN M NUGAS | B187: =+'10-31 FRI JUNREL-HAZEL'!E187 -> 0 | E187: 0 | J187: 193 | N187: =+M187*J187 -> 0 | V187: KARAON SA 18TH GRILL AND RESTO | AB187: 300 | AC187: 50 | AI187: 70 | AJ187: 15 | AM187: ROBERTO ROWIE & ROBI FOOD OPC | AQ187: 50 | AR187: 15
A188: VANGIE SOLON 1.4 | B188: =+'10-31 FRI JUNREL-HAZEL'!E188 -> 0 | E188: 0 | F188: MAY JULY P N FOR PAYMENT | V188: KATES LAUNDRYSHOP/ GUILLERMO ALINSOOT MANACILLO 11 | AB188: 700 | AC188: 50 | AM188: ROBERTO YBANEZ | AQ188: 70 | AR188: 15
A189: TICAO ACCOUNT | B189: =+'10-31 FRI JUNREL-HAZEL'!E189 -> 0 | E189: 0 | F189: TICAO ACCOUNT | L189: =+O185*I185 -> 0 | N189: =+Q185*K185 -> 0 | O189: =+R187*M187 -> 0 | P189: =+M187*P187 -> 0 | V189: MARKY BICOL RESTAURANT | AB189: 900 | AC189: 50 | AM189: SUCUANO LORETO | AQ189: 70 | AR189: 15
A190: BAMBOO PLACE WITH 3 REGULS | B190: =+'10-31 FRI JUNREL-HAZEL'!E190 -> 4181 | E190: 4181 | F190: ALL UNPAID | J190: CASH | M190: CHANGE | Q190: SRP FOR NOV | V190: MASBATE LAUNDRY CENTER MEDINA ST. MASBATE | AB190: 700 | AC190: 50 | AM190: TATA FRIED CHICKEN | AQ190: 70 | AR190: 15
A191: BARREDO EDGAR | B191: =+'10-31 FRI JUNREL-HAZEL'!E191 -> 0 | E191: 0 | V191: MNV FOODHUB (CHIKICHOW) | AB191: 500 | AC191: 50 | AE191: WINWIN FRIED CHICKEN | AI191: 70 | AM191: VENUS PASION | AQ191: 70 | AR191: 15
A192: DRAGAS 6/21 | B192: =+'10-31 FRI JUNREL-HAZEL'!E192 -> 0 | E192: 0 | F192: 3342TRANSFER TO OCGAS | J192: 2000 | M192: =J192-M201 -> 1005 | Q192: 50 KG | S192: 4541 | V192: MR. LAUNDRY - IBINGAY & CROSSING | AB192: 900 | AC192: 50 | AE192: GIGANTE ROQUE VARGAS | AI192: 70 | AJ192: 15 | AL192: TO FOLLOW | AM192: VILLAMOR MARILOU | AQ192: 70 | AR192: 15
A193: GRACE RANGEL 1.4 | B193: =+'10-31 FRI JUNREL-HAZEL'!E193 -> 9614 | E193: 9614 | V193: MSA - DECS | AB193: 0 | AE193: GONZAGA ANITA | AI193: 70 | AJ193: 15 | AM193: WOW INASAL | AQ193: 70 | AR193: 15
A194: GRACE RANGEL AS | B194: =+'10-31 FRI JUNREL-HAZEL'!E194 -> 19056 | E194: =B194+C194-D194 -> 19056 | F194: 1AS 1 DB PAID 5/29 | J194: ;. | L194: . | Q194: 11 KG | S194: 1065 | V194: NESSAR YBANEZ | AB194: 900 | AC194: 100 | AE194: JODAN EATERY | AI194: 70 | AJ194: 15 | AM194: YKAY FRIED CHICKEN | AQ194: 70 | AR194: 15
A195: LIA SESE | B195: =+'10-31 FRI JUNREL-HAZEL'!E195 -> 11275 | E195: 11275 | F195: KULANG STOVE 4544 | J195: DELIVERY | M195: =+R189+R184+R179 -> 0 | V195: NOEL BAKERY / ANALYN CONRADO | AB195: 300 | AC195: 50 | AE195: LAWODNON | AI195: 70 | AJ195: 15 | AM195: PALMA SHERYL | AQ195: 70 | AR195: 15
A196: OC GAS ALVAREZ | B196: =+'10-31 FRI JUNREL-HAZEL'!E196 -> 7588 | E196: 7588 | F196: =+B194+B193 -> 28670 | Q196: 1.4 KG | S196: 193 | V196: PAN DE MASBATE | AB196: 300 | AC196: 50 | AE196: LOCILLO AILLYN | AI196: 70 | AJ196: 15 | AM196: ROYO BORROW AS REGUL FOR POL TANK TIGBAO 09517207893 JEEP BABY GRACE REYMOND LEGAL
A197: OCHEA FAMILY PANDESAL | B197: =+'10-31 FRI JUNREL-HAZEL'!E197 -> 16884 | E197: 16884 | F197: 1AS REPLACEMENT NO CHRGE FOR RETUN FILLED | J197: DISCOUNT | M197: TOTAL | V197: PINOY SIOPAO | AB197: 300 | AC197: 50 | AJ197: 15
A198: PARK N GO | B198: =+'10-31 FRI JUNREL-HAZEL'!E198 -> 0 | E198: 0 | V198: REMS LAUNDRY / SANDRA MEDINA | AB198: 300 | AC198: 50 | AE198: MARISTELA EMERALD | AI198: 70 | AJ198: 15
A199: THEO PANDESAL | B199: =+'10-31 FRI JUNREL-HAZEL'!E199 -> 5063 | E199: 5063 | F199: REGUL NOT PAID | J199: =+P179+P184+P189 -> 70 | M199: =+N177+N182+N187-J199 -> 995 | V199: REYJOHN BAKERY / RHEA DELA CRUZ OBOG | AB199: 700 | AC199: 50 | AE199: MIEKOYS PIZZA | AI199: 70 | AJ199: 15
A200: ZANDRA BEACH RESORT | B200: =+'10-31 FRI JUNREL-HAZEL'!E200 -> 12606 | E200: 12606 | Q200: OTHER AMOUNT HERE | V200: ROLLING BUBBLES - DANAO | AB200: 700 | AC200: 50 | AE200: MIGGYS BAKERY | AI200: 70 | AJ200: 15
... 175 more rows

Sheet 10-31 FRI JUNREL-HAZEL
B1: BEGIN | C1: UNPAID | D1: PAYMENT | E1: END | F1: CASH ADVANCE
A2: C.A APRIL ARENDAIN | B2: =+'10-30 THU LEX-SHAN-3262'!E2 -> 1950 | D2: 100 | E2: =B2+C2-D2 -> 1850 | P2: ENTER NUMER W/POSITIVE SIGN IF increase
A3: TIYO NOY | B3: =+'10-30 THU LEX-SHAN-3262'!E3 -> 500 | E3: 500
A4: C.A COCOY | B4: =+'10-30 THU LEX-SHAN-3262'!E4 -> 3615 | E4: 3615 | P4: ENTER NUMER W/NEGATIVE SIGN IF decrease
A5: DAVE BONA | B5: =+'10-30 THU LEX-SHAN-3262'!E5 -> 4000 | E5: 4000
A6: C.A JOMARI CORTES | B6: =+'10-30 THU LEX-SHAN-3262'!E6 -> 40928 | E6: 40928
A7: C.A JUNREL MALIPOT | B7: =+'10-30 THU LEX-SHAN-3262'!E7 -> 10000 | D7: 200 | E7: 9800
A8: C.A NATHANIEL | B8: =+'10-30 THU LEX-SHAN-3262'!E8 -> 600 | E8: 600
A9: C.A MANANGAT CHRISTIAN | B9: =+'10-30 THU LEX-SHAN-3262'!E9 -> 3548 | E9: 3548 | S9: =-S11*1 -> 1.300
A10: C.A SINADJAN, RAMIL | B10: =+'10-30 THU LEX-SHAN-3262'!E10 -> 1100 | E10: 1100 | R10: 11kilos | S10: 11.000
A11: C.A VESTER | B11: =+'10-30 THU LEX-SHAN-3262'!E11 -> 9782 | E11: 9782 | R11: ENTER NUMBER (-/+) | S11: -1.300
A12: IRENE | B12: =+'10-30 THU LEX-SHAN-3262'!E12 -> 2000 | E12: 2000 | R12: TOTAL CHANGE | S12: =+S10*S9 -> 14.300
A13: ARTURO PARAGAS | B13: =+'10-30 THU LEX-SHAN-3262'!E13 -> 6800 | D13: 100 | E13: 6700 | R13: VAT | S13: =+S12*0.12 -> 1.716
A14: DONNA LUIS | B14: =+'10-30 THU LEX-SHAN-3262'!E14 -> 3300 | E14: 3300 | R14: VAT + TOTAL CHANGE | S14: =+S12+S13 -> 16.016
A15: RULEY GREPALDIO | B15: =+'10-30 THU LEX-SHAN-3262'!E15 -> 1076 | E15: 1076 | R15: ENTER OLD PRICE | S15: 1,076.000
A16: JULIAN | B16: =+'10-30 THU LEX-SHAN-3262'!E16 -> 5100 | E16: 5100 | F16: JULLIAN DUMALAG | R16: NEW PRICE | S16: =+S15-S14 -> 1,059.984
A17: CA HAZEL 8/21 | B17: =+'10-30 THU LEX-SHAN-3262'!E17 -> 1600 | E17: 1600
A18: SABIANO BERAL | B18: =+'10-30 THU LEX-SHAN-3262'!E18 -> 5000 | E18: 5000 | S18: =-S20*1 -> 0.000
A19: LABOR ADVANCE | B19: =+'10-30 THU LEX-SHAN-3262'!E19 -> 1000 | E19: 1000 | R19: 50KG | S19: 50.000
A20: NATHANIEL | B20: =+'10-30 THU LEX-SHAN-3262'!E20 -> 3500 | E20: 3500 | R20: ENTER NUMBER (-/+) | S20: =+P6 -> 0.000
A21: RJ DUMANGAS | B21: =+'10-30 THU LEX-SHAN-3262'!E21 -> 1000 | E21: 1000 | R21: TOTAL CHANGE | S21: =+S19*S18 -> 0.000
A22: REGULAR | B22: =+'10-30 THU LEX-SHAN-3262'!E22 -> 0 | E22: 0 | F22: REGULAR | R22: VAT | S22: =+S21*0.12 -> 0.000
A23: ABOYS | B23: =+'10-30 THU LEX-SHAN-3262'!E23 -> 769 | E23: 769 | R23: VAT + TOTAL CHANGE | S23: =+S21+S22 -> 0.000
A24: ABSALON LOLITA | B24: =+'10-30 THU LEX-SHAN-3262'!E24 -> 1000 | E24: 1000 | R24: ENTER OLD PRICE | S24: 4,719.000
A25: ALBAO, ELMER | B25: =+'10-30 THU LEX-SHAN-3262'!E25 -> 834 | E25: 834 | R25: NEW PRICE | S25: =+S24-S23 -> 4,719.000
A26: ALOVERA ROSEMARIE | B26: =+'10-30 THU LEX-SHAN-3262'!E26 -> 25 | E26: 25
A27: ANDAYA NELLY | B27: =+'10-30 THU LEX-SHAN-3262'!E27 -> 1071 | E27: 1071 | S27: =-S29*1 -> 0.000
A28: AYESHA BAKERY | B28: =+'10-30 THU LEX-SHAN-3262'!E28 -> 2105 | E28: 2105 | R28: 1.4KG | S28: 1.400
A29: BANTAYAN MINDA | B29: =+'10-30 THU LEX-SHAN-3262'!E29 -> 168 | E29: 168 | R29: ENTER NUMBER (-/+) | S29: =+P6 -> 0.000
A30: BEGGS BAKERY | B30: =+'10-30 THU LEX-SHAN-3262'!E30 -> 7936 | E30: 7936 | R30: TOTAL CHANGE | S30: =+S28*S27 -> 0.000
A31: BINOLIRAO, JOY | B31: =+'10-30 THU LEX-SHAN-3262'!E31 -> 5432 | E31: 5432 | R31: VAT | S31: =+S30*0.12 -> 0.000
A32: CAFÉ KRISTINA | B32: =+'10-30 THU LEX-SHAN-3262'!E32 -> 4226 | E32: 4226 | R32: VAT + TOTAL CHANGE | S32: =+S30+S31 -> 0.000
A33: CANTUBA PORTIA | B33: =+'10-30 THU LEX-SHAN-3262'!E33 -> 1076 | E33: 1076 | R33: ENTER OLD PRICE | S33: 199.000
A34: CAPELLAN EMILY | B34: =+'10-30 THU LEX-SHAN-3262'!E34 -> 588 | E34: 588 | R34: NEW PRICE | S34: =+S33-S32 -> 199.000
A35: CAPELLAN SONY | B35: =+'10-30 THU LEX-SHAN-3262'!E35 -> 500 | E35: 500
A36: CHEPIE/SAMSON JINKY | B36: =+'10-30 THU LEX-SHAN-3262'!E36 -> 0 | E36: 0
A37: CITY VICE OLD | B37: =+'10-30 THU LEX-SHAN-3262'!E37 -> 6121 | E37: 6121
A38: CORTES BABYJANE LESS 200 | B38: =+'10-30 THU LEX-SHAN-3262'!E38 -> 2128 | E38: 2128
A39: COSTALES, ERNESTO | B39: =+'10-30 THU LEX-SHAN-3262'!E39 -> 25 | E39: 25
A40: DALANON, LUZ | B40: =+'10-30 THU LEX-SHAN-3262'!E40 -> 1160 | E40: 1160
A41: DESAMERO JESS | B41: =+'10-30 THU LEX-SHAN-3262'!E41 -> 1033 | E41: 1033
A42: DESPE, ARTUR | B42: =+'10-30 THU LEX-SHAN-3262'!E42 -> 997 | E42: 997
A43: DIOCADO JOHNWIL ONLOAN | B43: =+'10-30 THU LEX-SHAN-3262'!E43 -> 900 | E43: 900
A44: EMR/PANES FREDDIE / | B44: =+'10-30 THU LEX-SHAN-3262'!E44 -> 2050 | E44: 2050
A45: EPONG CARENDERIA | B45: =+'10-30 THU LEX-SHAN-3262'!E45 -> 1131 | E45: 1131
A46: ESPARZA ANACITA | B46: =+'10-30 THU LEX-SHAN-3262'!E46 -> 2165 | E46: 2165
A47: ESPINAS ROLANDO | B47: =+'10-30 THU LEX-SHAN-3262'!E47 -> 1056 | E47: 1056
A48: EVANGELISTA, JOHN | B48: =+'10-30 THU LEX-SHAN-3262'!E48 -> 1207 | E48: 1207
A49: FLORES HELEN | B49: =+'10-30 THU LEX-SHAN-3262'!E49 -> 1647 | E49: 1647
A50: GARBO RADFORD | B50: =+'10-30 THU LEX-SHAN-3262'!E50 -> 1624 | E50: 1624
A51: GARBO RAYMUND | B51: =+'10-30 THU LEX-SHAN-3262'!E51 -> 1103 | E51: 1103
A52: GONZAGA, ANITA | B52: =+'10-30 THU LEX-SHAN-3262'!E52 -> 1191 | E52: 1191 | F52: APRIL
A53: HARLEY CLEOFE | B53: =+'10-30 THU LEX-SHAN-3262'!E53 -> 0 | E53: 0
A54: JANZMILE | B54: =+'10-30 THU LEX-SHAN-3262'!E54 -> 2331 | E54: 2331
A55: JODAN EATERY | B55: =+'10-30 THU LEX-SHAN-3262'!E55 -> 50 | E55: 50
A56: LALAGUNA FAITH | B56: =+'10-30 THU LEX-SHAN-3262'!E56 -> 0 | E56: 0
A57: LAURENO SUSIE | B57: =+'10-30 THU LEX-SHAN-3262'!E57 -> 2274 | E57: 2274
A58: LAWODNON | B58: =+'10-30 THU LEX-SHAN-3262'!E58 -> 8332 | C58: 2,028 | E58: 10360
A59: LIBERTY BAKERY | B59: =+'10-30 THU LEX-SHAN-3262'!E59 -> 0 | E59: 0
A60: LOLO JOFAX (2160) UNPAID | B60: =+'10-30 THU LEX-SHAN-3262'!E60 -> 500 | E60: 500
A61: MANALO, CHITA | B61: =+'10-30 THU LEX-SHAN-3262'!E61 -> 2120 | E61: 2120
A62: MANGUBAT-CAWAYAN | B62: =+'10-30 THU LEX-SHAN-3262'!E62 -> 1121 | E62: 1121
A63: MARABE, GUENTER | B63: =+'10-30 THU LEX-SHAN-3262'!E63 -> 1014 | E63: 1014
A64: MARISTELA, EMERALD | B64: =+'10-30 THU LEX-SHAN-3262'!E64 -> 7907 | E64: 7907
A65: MIEKOYS PIZZA | B65: =+'10-30 THU LEX-SHAN-3262'!E65 -> 0 | E65: 0
A66: MIGGYS BAKERY | B66: =+'10-30 THU LEX-SHAN-3262'!E66 -> 765 | E66: =B66+C66-D66 -> 765
A67: MORAN ANALY | B67: =+'10-30 THU LEX-SHAN-3262'!E67 -> 0 | E67: 0
A68: MORAN JACKILYN | B68: =+'10-30 THU LEX-SHAN-3262'!E68 -> 1068 | E68: 1068
A69: NARIDO RAFAEL REG | B69: =+'10-30 THU LEX-SHAN-3262'!E69 -> 475 | E69: 475
A70: NARIDO, REYNALDO | B70: =+'10-30 THU LEX-SHAN-3262'!E70 -> 475 | E70: 475
A71: NUNEZ, PERPETUA | B71: =+'10-30 THU LEX-SHAN-3262'!E71 -> 3831 | E71: 3831
A72: OLIVA, CELSO | B72: =+'10-30 THU LEX-SHAN-3262'!E72 -> 168 | E72: 168
A73: OLIVA, DOREEN | B73: =+'10-30 THU LEX-SHAN-3262'!E73 -> 474 | E73: 474
A74: ORBISO LIZA/NUNU | B74: =+'10-30 THU LEX-SHAN-3262'!E74 -> 2405 | E74: 2405
A75: ORBISO, KEILLI | B75: =+'10-30 THU LEX-SHAN-3262'!E75 -> 474 | E75: 474
A76: PASION VENUS | B76: =+'10-30 THU LEX-SHAN-3262'!E76 -> 1014 | E76: 1014
A77: PERALTA LYNDON | B77: =+'10-30 THU LEX-SHAN-3262'!E77 -> 40 | E77: 40
A78: PHO | B78: =+'10-30 THU LEX-SHAN-3262'!E78 -> 0 | E78: 0
A79: RESUENA | B79: =+'10-30 THU LEX-SHAN-3262'!E79 -> 4226 | E79: 4226
A80: RUELAN RONALD | B80: =+'10-30 THU LEX-SHAN-3262'!E80 -> 1083 | E80: 1083
A81: SALADAS SHERLY | B81: =+'10-30 THU LEX-SHAN-3262'!E81 -> 674 | E81: 674
A82: BANTAYAN MINDA | B82: =+'10-30 THU LEX-SHAN-3262'!E82 -> 0 | E82: 0
A83: SANDRA SAN JUAN | B83: =+'10-30 THU LEX-SHAN-3262'!E83 -> 1300 | E83: 1300
A84: TATA/NUEVO MARILOU | B84: =+'10-30 THU LEX-SHAN-3262'!E84 -> 0 | E84: 0
A85: TENORIA, MARRAH | B85: =+'10-30 THU LEX-SHAN-3262'!E85 -> 130 | E85: 130
A86: VILLAMOR, MARILOU (MOM) | B86: =+'10-30 THU LEX-SHAN-3262'!E86 -> 0 | E86: 0
A87: VILLAMOR, MARILOU (SON) | B87: =+'10-30 THU LEX-SHAN-3262'!E87 -> 2308 | E87: 2308
A88: VILLOCILLO JESUS | B88: =+'10-30 THU LEX-SHAN-3262'!E88 -> 0 | E88: 0
A89: YBANEZ ROBERTO (1115) UNPAID | B89: =+'10-30 THU LEX-SHAN-3262'!E89 -> 1014 | E89: 1014
A90: YKAY/NUEVO ELENA | B90: =+'10-30 THU LEX-SHAN-3262'!E90 -> 60890 | E90: 60890
A91: TWIN PEAK | B91: =+'10-30 THU LEX-SHAN-3262'!E91 -> 1084 | E91: 1084
A92: COLLANTES | B92: =+'10-30 THU LEX-SHAN-3262'!E92 -> 0 | E92: 0
A93: MARYJANE CORTES | B93: =+'10-30 THU LEX-SHAN-3262'!E93 -> 45 | E93: 45
A94: HAPPY ROASTER | B94: =+'10-30 THU LEX-SHAN-3262'!E94 -> 6456 | E94: 6456
A95: JOHNRICK PACHECO | B95: =+'10-30 THU LEX-SHAN-3262'!E95 -> 800 | E95: 800
A96: CHARO'S CAFÉ | B96: =+'10-30 THU LEX-SHAN-3262'!E96 -> 25 | E96: 25
A97: LOCILLO AILYN | B97: =+'10-30 THU LEX-SHAN-3262'!E97 -> 0 | E97: 0
A98: OVERTYM | B98: =+'10-30 THU LEX-SHAN-3262'!E98 -> 0 | E98: 0
A99: HARLEY CLEOFE | B99: =+'10-30 THU LEX-SHAN-3262'!E99 -> 0 | E99: 0
A100: PAPILLERA M 3000 from lex | B100: =+'10-30 THU LEX-SHAN-3262'!E100 -> 3114 | E100: 3114
A101: BANTAYAN MINDA | B101: =+'10-30 THU LEX-SHAN-3262'!E101 -> 1064 | E101: 1064
A102: CITY TREASURY | B102: =+'10-30 THU LEX-SHAN-3262'!E102 -> 4550 | E102: 4550
A103: AMY DELA PISA | B103: =+'10-30 THU LEX-SHAN-3262'!E103 -> 0 | E103: 0
A104: GERARDO PRESADO | B104: =+'10-30 THU LEX-SHAN-3262'!E104 -> 0 | E104: 0
A105: BERNARD CARPIO | B105: =+'10-30 THU LEX-SHAN-3262'!E105 -> 1132 | E105: 1132
A106: CHONA MESA | B106: =+'10-30 THU LEX-SHAN-3262'!E106 -> 2298 | E106: 2298
A107: PASTORA VIE | B107: =+'10-30 THU LEX-SHAN-3262'!E107 -> 600 | E107: 600
A108: EVELYN CONRADO | B108: =+'10-30 THU LEX-SHAN-3262'!E108 -> 400 | E108: 400
B109: =+'10-30 THU LEX-SHAN-3262'!E109 -> 0 | E109: 0
A110: NENETH REYES | B110: =+'10-30 THU LEX-SHAN-3262'!E110 -> 693 | E110: 693
A111: JUREXEN VERDIDA | B111: =+'10-30 THU LEX-SHAN-3262'!E111 -> 3001 | E111: 3001
A112: VILLARANTE RENZEL | B112: =+'10-30 THU LEX-SHAN-3262'!E112 -> 646 | E112: 646
A113: ALMARIO MOBO BGACAY | B113: =+'10-30 THU LEX-SHAN-3262'!E113 -> 143 | E113: 143
A114: ALFARO | B114: =+'10-30 THU LEX-SHAN-3262'!E114 -> 1147 | E114: 1147
A115: JOSE CUELLO 4/24 TRADE IN | B115: =+'10-30 THU LEX-SHAN-3262'!E115 -> 1071 | E115: 1071
B116: =+'10-30 THU LEX-SHAN-3262'!E116 -> 0 | E116: 0
A117: MANLAPAZ | B117: =+'10-30 THU LEX-SHAN-3262'!E117 -> 1084 | E117: 1084
A118: CITY VICE NEW GAZUL | B118: =+'10-30 THU LEX-SHAN-3262'!E118 -> 1103 | E118: 1103
A119: EVA VERANO | B119: =+'10-30 THU LEX-SHAN-3262'!E119 -> 576 | E119: 576
B120: =+'10-30 THU LEX-SHAN-3262'!E120 -> 0 | E120: 0
A121: HAPPY ROASTER | B121: =+'10-30 THU LEX-SHAN-3262'!E121 -> 4276 | E121: 4276
B122: =+'10-30 THU LEX-SHAN-3262'!E122 -> 0 | E122: 0
B123: =+'10-30 THU LEX-SHAN-3262'!E123 -> 0 | E123: 0
A124: CITY VICE | B124: =+'10-30 THU LEX-SHAN-3262'!E124 -> 1076 | E124: 1076
A125: JEREMY SAMSON | B125: =+'10-30 THU LEX-SHAN-3262'!E125 -> 18800 | E125: 18800
A126: VILLANUEVA GLENDA | B126: =+'10-30 THU LEX-SHAN-3262'!E126 -> 1749 | E126: 1749
A127: GALLETO DOREEN | B127: =+'10-30 THU LEX-SHAN-3262'!E127 -> 0 | E127: 0
A128: CITIBUILDER | B128: =+'10-30 THU LEX-SHAN-3262'!E128 -> 1114 | E128: 1114
A129: 50kg ACCOUNT | B129: =+'10-30 THU LEX-SHAN-3262'!E129 -> 0 | E129: 0 | F129: 50kg ACCOUNT
A130: ABAN, JULIUS | B130: =+'10-30 THU LEX-SHAN-3262'!E130 -> 0 | E130: =B130+C130-D130 -> 0
A131: AVEGAIL LAUNDRY | B131: =+'10-30 THU LEX-SHAN-3262'!E131 -> 6538 | E131: 6538
A132: BACKYARD EDIBLE GARDEN | B132: =+'10-30 THU LEX-SHAN-3262'!E132 -> 844 | E132: 844
A133: CARIS HOTEL | B133: =+'10-30 THU LEX-SHAN-3262'!E133 -> 4314 | E133: 4314 | R133: ATTENDANCE AND PAYMENT | X133: =+Z155+Z161 -> 7050
A134: TEABOX | B134: =+'10-30 THU LEX-SHAN-3262'!E134 -> 0 | E134: 0
A135: CHAROS CAFÉ AND RESTO | B135: =+'10-30 THU LEX-SHAN-3262'!E135 -> 0 | E135: 0 | R135: NAMES | S135: AM | U135: PM | W135: AM HOURS | X135: PM HOURS | Y135: TOTAL HOURS | Z135: PAID | AA135: REMARKS
A136: CHERISH RESORT | B136: =+'10-30 THU LEX-SHAN-3262'!E136 -> 0 | E136: 0 | P136: DAYOFF | S136: IN | T136: OUT | U136: IN | V136: OUT
A137: CLORES TRESURE ISLAND | B137: =+'10-30 THU LEX-SHAN-3262'!E137 -> 7 | E137: 7 | P137: SATURDAY | R137: JOMARI CORTES | S137: 07:57:00 | T137: 12:00:00 | U137: 01:00:00 | V137: 06:00:00 | W137: =+(T137-S137)*24 -> 4.1 | X137: =+(V137-U137)*24 -> 5.0 | Z137: 750 | AA137: 250 YESTERDAY SALARY
A138: CONRADO / NOEL BAKERY | B138: =+'10-30 THU LEX-SHAN-3262'!E138 -> 10428 | E138: 10428 | P138: SUNDAY | R138: JUNREL MALIPOT | S138: 07:35:00 | T138: 12:00:00 | U138: 01:00:00 | V138: 06:00:00 | W138: =+(T138-S138)*24 -> 4.4 | X138: =+(V138-U138)*24 -> 5.0 | Z138: 500
A139: CRISPY KING CROSSING | B139: =+'10-30 THU LEX-SHAN-3262'!E139 -> 60 | E139: 60 | K139: CP# | O139: DRIVER | P139: SUNDAY | R139: APRIL ARENDAIN | S139: 07:28:00 | T139: 12:00:00 | U139: 01:00:00 | V139: 06:00:00 | W139: =+(T139-S139)*24 -> 4.5 | X139: =+(V146-U146)*24 -> 0.0 | Z139: 500
A140: CRISPY KING IBANEZ | B140: =+'10-30 THU LEX-SHAN-3262'!E140 -> 0 | E140: 0 | K140: CP# | O140: DRIVER | R140: DIONESITO BLAZO 9301238381 | W140: =+(T141-S140)*24 -> 12.0 | X140: =+(V141-U141)*24 -> 4.5
A141: CRISPY KING MARKET | B141: =+'10-30 THU LEX-SHAN-3262'!E141 -> 0 | E141: 0 | P141: SUNDAY | R141: RULEY GREPALDEO | S141: 08:30:00 | T141: 12:00:00 | U141: 01:00:00 | V141: 05:30:00 | W141: =+(T142-S141)*24 -> -8.5 | X141: =+(V142-U142)*24 -> 0.0 | Z141: 400
A142: CRISPY KING MOBO | B142: =+'10-30 THU LEX-SHAN-3262'!E142 -> 0 | E142: 0 | W142: 0.0 | X142: =+(V142-U142)*24 -> 0.0
A143: CRISPY KING CAWAYAN | B143: =+'10-30 THU LEX-SHAN-3262'!E143 -> 0 | E143: 0 | W143: 0.0 | X143: =+(V143-U143)*24 -> 0.0
A144: EZ CAFÉ W/CYLINDER | B144: =+'10-30 THU LEX-SHAN-3262'!E144 -> 0 | E144: 0 | W144: 0.0 | X144: =+(V144-U144)*24 -> 0.0
A145: FRANCE LAUNDRY | B145: =+'10-30 THU LEX-SHAN-3262'!E145 -> 860 | E145: 860 | W145: =+(T145-S145)*24 -> 0.0 | X145: =+(V145-U145)*24 -> 0.0
A146: JUAN HOUR LAUNDRY | B146: =+'10-30 THU LEX-SHAN-3262'!E146 -> 0 | E146: 0 | R146: SHANNAH | W146: =+(T146-S146)*24 -> 0.0 | X146: =+(V146-U146)*24 -> 0.0
A147: KATES LAUNDRY SHOP | B147: =+'10-30 THU LEX-SHAN-3262'!E147 -> 0 | E147: 0 | R147: NATHANIEL ALERTA | S147: 07:00:00 | T147: 12:00:00 | U147: 01:00:00 | V147: 06:00:00 | W147: 5.0 | X147: 5.0 | Z147: 500
A148: MARKY RESTAURANT | B148: =+'10-30 THU LEX-SHAN-3262'!E148 -> 4001 | E148: 4001 | P148: SATURDAY | R148: ARNOLD PEPITO | S148: 07:00:00 | T148: 12:00:00 | U148: 01:00:00 | V148: 06:00:00 | W148: 5.0 | X148: 5.0 | Z148: 500
A149: MASBATE LAUNDRY SHOP | B149: =+'10-30 THU LEX-SHAN-3262'!E149 -> 0 | E149: 0 | K149: CP# | O149: DRIVER | P149: WEDNESDAY | R149: EVANGELISTA ROMULO | W149: 0.0 | X149: 0.0 | AA149: OFF
A150: DAMPA | B150: =+'10-30 THU LEX-SHAN-3262'!E150 -> 0 | C150: 4,314 | E150: 4314 | R150: HAZEL | S150: 07:00:00 | T150: 12:00:00 | U150: 01:00:00 | V150: 06:00:00 | W150: 5.0 | X150: 5.0 | Z150: 500
A151: PINOY SIOPAO | B151: =+'10-30 THU LEX-SHAN-3262'!E151 -> 17056 | E151: 17056 | P151: SUNDAY | R151: LIZET DANAO | S151: 07:00:00 | T151: 12:00:00 | U151: 01:00:00 | V151: 06:00:00 | W151: 5.0 | X151: 5.0 | Z151: 500
A152: REMS LAUNDRY | B152: =+'10-30 THU LEX-SHAN-3262'!E152 -> 6144 | E152: 6144 | K152: CP# | O152: DRIVER | P152: FRIDAY | R152: ARTURO PARAGAS | S152: 09:00:00 | T152: 12:00:00 | U152: 01:00:00 | V152: 06:00:00 | W152: 3.0 | X152: 5.0 | Z152: 400
A153: REYJOHN BAKERY | B153: =+'10-30 THU LEX-SHAN-3262'!E153 -> 0 | E153: 0 | P153: SATURDAY | R153: LEO MARCOS | W153: 0.0 | X153: 0.0 | AA153: OFF
A154: ROBERTO AND ROWE | B154: =+'10-30 THU LEX-SHAN-3262'!E154 -> 15707 | E154: 15707 | K154: CP# | O154: DRIVER | P154: THURSDAY | R154: JULIAN DUMALAG | S154: 07:00:00 | T154: 12:00:00 | U154: 01:00:00 | V154: 06:00:00 | W154: 5.0 | X154: 5.0 | Z154: 500
A155: ROLLING BUBBLES | B155: =+'10-30 THU LEX-SHAN-3262'!E155 -> 0 | E155: 0 | M155: BNNNNNNNNNNNNNNNNNNNNNNNNNNNNNNNNNNNNNNNNNNNNNNNNNNNNNNN | R155: SALARY TOTAL | Z155: =SUM(Z137:Z154) -> 5050 | AG155: SAKTO
A156: ROSEMARY EVENTS | B156: =+'10-30 THU LEX-SHAN-3262'!E156 -> 0 | E156: 0 | R156: CHINCHIN SALARY FOR THE MONTH OF OCT. | Z156: 2000
A157: ROWEES AROROY | B157: =+'10-30 THU LEX-SHAN-3262'!E157 -> 0 | E157: 0 | AJ157: 7 | AL157: 87
A158: PALMA SHERYL/avegail laundry | B158: =+'10-30 THU LEX-SHAN-3262'!E158 -> 4614 | E158: 4614
A159: WENABETH JOHN BAKERY MALINTA | B159: =+'10-30 THU LEX-SHAN-3262'!E159 -> 4469 | E159: 4469 | F159: KULANG 100 FOR COLLCTION COCOY
A160: CRISPY KING PIER | B160: =+'10-30 THU LEX-SHAN-3262'!E160 -> 0 | E160: 0
A161: CRISPY KING OSMENA | B161: =+'10-30 THU LEX-SHAN-3262'!E161 -> 3814 | E161: 3814 | R161: EXTRA EXPENSES TOTAL | Z161: =+SUM(Z156:Z160) -> 2000
A162: TUMBAGA SINALONGAN | B162: =+'10-30 THU LEX-SHAN-3262'!E162 -> 10756 | E162: 10756 | F162: PAID 17148 THI10/30
A163: OUTLET'S | B163: =+'10-30 THU LEX-SHAN-3262'!E163 -> 0 | E163: 0 | F163: OUTLET'S
A164: ABANO, MICHAEL | B164: =+'10-30 THU LEX-SHAN-3262'!E164 -> 11380 | C164: =+W254 -> 6,174 | D164: 1,240 | E164: 16314 | V164: COMMERCIAL ACCOUNT | AE164: REMINDERS
A165: ALVAREZ JENILLYN | B165: =+'10-30 THU LEX-SHAN-3262'!E165 -> 18750 | E165: 18750
A166: ALVAREZ, RICO 1.4 | B166: =+'10-30 THU LEX-SHAN-3262'!E166 -> 1330 | E166: 1330 | V166: CUSTOMER NAME | AB166: DICS | AC166: DELIVER | AE166: 9499357775 AMERA 50KG Leah Orubla Villaraiz | AM166: ALOVERA ROSEMARIE | AQ166: 20 | AR166: 15
A167: ALVAREZ, RICO A/S | B167: =+'10-30 THU LEX-SHAN-3262'!E167 -> 6800 | E167: 6800 | V167: 8 ALL YOU CAN/RIMONTE JOHN AUBREN | AB167: 400 | AC167: 50 | AM167: BANTAYAN MINDA | AQ167: 20 | AR167: 15
A168: BANTAYAN, LENIE | B168: =+'10-30 THU LEX-SHAN-3262'!E168 -> 12802 | E168: 12802 | V168: ABAN LAUNDRY / ABAN JULIUS | AB168: 300 | AC168: 50 | AM168: CORTES BABY JEAN | AQ168: 20 | AR168: 15
A169: BULALAQUE, NATHANIEL | B169: =+'10-30 THU LEX-SHAN-3262'!E169 -> 5095 | E169: 5095 | V169: AVEGAIL S LAUNDRY | AB169: 300 | AC169: 50 | AE169: LAWRENCE SESE 0902014314 LAND BANK | AM169: MILDRED TORRES | AQ169: 20
A170: CDJ/CHISA BARRUGA | B170: =+'10-30 THU LEX-SHAN-3262'!E170 -> 5315 | E170: 5315 | V170: BACKYARD EDIBLE GARDEN | AB170: 300 | AC170: 50
A171: COCOY SOLANE ACCOUNT | B171: =+'10-30 THU LEX-SHAN-3262'!E171 -> 6232 | E171: 6232 | V171: CARIS HOTEL | AB171: 300 | AC171: 50 | AM171: ESPARZA ANACITA TWIN PEAK | AQ171: 20 | AR171: 15
A172: ELMA BUNGCARAS | B172: =+'10-30 THU LEX-SHAN-3262'!E172 -> 10680 | E172: 10680 | V172: CHAROS CAFÉ AND RESTO (MOBO RIVER SIDE) | AB172: 0 | AC172: 50 | AE172: LAWRENCE SESE 013568000813 BDO | AM172: ESPINAS ROLANDO | AQ172: 20 | AR172: 15
A173: GADER RENATO | B173: =+'10-30 THU LEX-SHAN-3262'!E173 -> 16920 | E173: 16920 | J173: SENIOR DISCOUNT | P173: 15 | V173: CHERISH MOMENT RESORT | AB173: 900 | AC173: 50
A174: LOCMAYON BEGA10 (2) | B174: =+'10-30 THU LEX-SHAN-3262'!E174 -> 0 | E174: 0 | V174: CRISPY KING / DJJM FOOD HUB/ IBANEZ/CROSSING | AB174: 800 | AC174: 50 | AM174: FAZENDA MILAGROS | AQ174: 20 | AR174: 15
A175: SOLON VANGIE AS | B175: =+'10-30 THU LEX-SHAN-3262'!E175 -> 0 | E175: 0 | J175: 50KG | M175: QTY | N175: AMOUNT | P175: DISCOUNT | R175: DELIVERY CHARGE | V175: CRISPY KING / DJJM FOOD HUB/ MOBO | AB175: 700 | AC175: 50 | AE175: KUA DUTAY 09307207044
A176: ORBISO PHOEBE | B176: =+'10-30 THU LEX-SHAN-3262'!E176 -> 2112 | E176: 2112 | V176: CRYSPY KING / DJA CATERING SERVICES/PATING | AB176: 800 | AC176: 50
A177: ORBISO, EFILDA | B177: =+'10-30 THU LEX-SHAN-3262'!E177 -> 0 | E177: 0 | J177: 4564 | N177: =+M177*J177 -> 0 | V177: CRISPY KING / DJJM FOOD HUB/ OSMENA NOY BIGOL | AB177: 800 | AC177: 50
A178: PAWA VERNA MENDOZA | B178: =+'10-30 THU LEX-SHAN-3262'!E178 -> 1250 | E178: 1250 | S178: + | V178: CRISPY KING / DJJM FOOD HUB/ PIER NOY BIGOL | W178: =+W222 -> 0 | AB178: 800 | AC178: 50 | AE178: GMS ACCOUNT
A179: ELMA BUNCARAS | B179: =+'10-30 THU LEX-SHAN-3262'!E179 -> 14630 | E179: 14630 | P179: =+M177*P177 -> 0 | R179: =+M177*R177 -> 0 | V179: / DJJM CRISPY KING NOY BIGOL | AB179: 700 | AC179: 100
A180: SAMPAGA BIDA | B180: =+'10-30 THU LEX-SHAN-3262'!E180 -> 3816 | E180: 3816 | J180: 11KG | M180: QTY | N180: AMOUNT | P180: DISCOUNT | R180: DELIVERY CHARGE | V180: DAMPA RESTO BAR /BESMONTE MARICAR | AB180: 300 | AC180: 50
A181: SESE, ROSALIA | B181: =+'10-30 THU LEX-SHAN-3262'!E181 -> 34480 | E181: 34480 | V181: DR. CHESTER LEE | AB181: 900 | AC181: P/U
A182: STAR OIL RECEIVABLE | B182: =+'10-30 THU LEX-SHAN-3262'!E182 -> 0 | E182: 0 | J182: 1069 | M182: 1 | N182: =+M182*J182 -> 1069 | V182: EZ CAFÉ | AB182: 300 | AC182: 50
A183: TAYAM IRISH | B183: =+'10-30 THU LEX-SHAN-3262'!E183 -> 0 | E183: 0 | V183: FRANCE LAUNDRY | AB183: 700 | AC183: 50
A184: YBANEZ, NESSAR | B184: =+'10-30 THU LEX-SHAN-3262'!E184 -> 27376 | E184: 27376 | P184: =+M182*P182 -> 0 | R184: =+M182*R182 -> 0 | V184: GACT CONSTRUCTION AND SUPPLY /TAYAM IRISH | AB184: 200 | AC184: 50
A185: ZUNIGA MELCHOR | B185: =+'10-30 THU LEX-SHAN-3262'!E185 -> 0 | E185: 0 | J185: 1.4KG | M185: QTY | N185: AMOUNT | P185: DISCOUNT | R185: DELIVERY CHARGE | V185: HIGHN'DRY LAUNDRY SERVCES | AB185: 0 | AC185: 50
A186: JENELIN ALVAREZ | B186: =+'10-30 THU LEX-SHAN-3262'!E186 -> 0 | E186: 0 | V186: JUAN HOUR LAUNDRY - STAIRWAY & IBANEZ | AB186: 900 | AC186: 50 | AE186: DELA PENA ANALYN/OSTED | AI186: 70 | AJ186: 9 | AM186: rey john | AQ186: 20 | AR186: 15
A187: EJJ EVANGELYN M NUGAS | B187: =+'10-30 THU LEX-SHAN-3262'!E187 -> 0 | E187: 0 | J187: 195 | N187: =+M187*J187 -> 0 | V187: KARAON SA 18TH GRILL AND RESTO | AB187: 300 | AC187: 50 | AI187: 70 | AJ187: 15 | AM187: ROBERTO ROWIE & ROBI FOOD OPC | AQ187: 50 | AR187: 15
A188: VANGIE SOLON 1.4 | B188: =+'10-30 THU LEX-SHAN-3262'!E188 -> 0 | E188: 0 | F188: MAY JULY P N FOR PAYMENT | V188: KATES LAUNDRYSHOP/ GUILLERMO ALINSOOT MANACILLO 11 | AB188: 700 | AC188: 50 | AM188: ROBERTO YBANEZ | AQ188: 70 | AR188: 15
A189: TICAO ACCOUNT | B189: =+'10-30 THU LEX-SHAN-3262'!E189 -> 0 | E189: 0 | F189: TICAO ACCOUNT | L189: =+O185*I185 -> 0 | N189: =+Q185*K185 -> 0 | O189: =+R187*M187 -> 0 | P189: =+M187*P187 -> 0 | V189: MARKY BICOL RESTAURANT | AB189: 900 | AC189: 50 | AM189: SUCUANO LORETO | AQ189: 70 | AR189: 15
A190: BAMBOO PLACE WITH 3 REGULS | B190: =+'10-30 THU LEX-SHAN-3262'!E190 -> 4181 | E190: 4181 | F190: ALL UNPAID | J190: CASH | M190: CHANGE | Q190: SRP FOR OCT | V190: MASBATE LAUNDRY CENTER MEDINA ST. MASBATE | AB190: 700 | AC190: 50 | AM190: TATA FRIED CHICKEN | AQ190: 70 | AR190: 15
A191: BARREDO EDGAR | B191: =+'10-30 THU LEX-SHAN-3262'!E191 -> 0 | E191: 0 | V191: MNV FOODHUB (CHIKICHOW) | AB191: 500 | AC191: 50 | AE191: WINWIN FRIED CHICKEN | AI191: 70 | AM191: VENUS PASION | AQ191: 70 | AR191: 15
A192: DRAGAS 6/21 | B192: =+'10-30 THU LEX-SHAN-3262'!E192 -> 0 | E192: 0 | F192: 3342TRANSFER TO OCGAS | J192: 2000 | M192: =J192-M201 -> 931 | Q192: 50 KG | S192: 4564 | V192: MR. LAUNDRY - IBINGAY & CROSSING | AB192: 900 | AC192: 50 | AE192: GIGANTE ROQUE VARGAS | AI192: 70 | AJ192: 15 | AL192: TO FOLLOW | AM192: VILLAMOR MARILOU | AQ192: 70 | AR192: 15
A193: GRACE RANGEL 1.4 | B193: =+'10-30 THU LEX-SHAN-3262'!E193 -> 9614 | E193: 9614 | V193: MSA - DECS | AB193: 0 | AE193: GONZAGA ANITA | AI193: 70 | AJ193: 15 | AM193: WOW INASAL | AQ193: 70 | AR193: 15
A194: GRACE RANGEL AS | B194: =+'10-30 THU LEX-SHAN-3262'!E194 -> 18471 | C194: =+W280 -> 585 | E194: =B194+C194-D194 -> 19056 | F194: 1AS 1 DB PAID 5/29 | J194: ;. | L194: . | Q194: 11 KG | S194: 1069 | V194: NESSAR YBANEZ | AB194: 900 | AC194: 100 | AE194: JODAN EATERY | AI194: 70 | AJ194: 15 | AM194: YKAY FRIED CHICKEN | AQ194: 70 | AR194: 15
A195: LIA SESE | B195: =+'10-30 THU LEX-SHAN-3262'!E195 -> 11275 | E195: 11275 | F195: KULANG STOVE 4544 | J195: DELIVERY | M195: =+R189+R184+R179 -> 0 | V195: NOEL BAKERY / ANALYN CONRADO | AB195: 300 | AC195: 50 | AE195: LAWODNON | AI195: 70 | AJ195: 15 | AM195: PALMA SHERYL | AQ195: 70 | AR195: 15
A196: OC GAS ALVAREZ | B196: =+'10-30 THU LEX-SHAN-3262'!E196 -> 7588 | E196: 7588 | F196: =+B194+B193 -> 28085 | Q196: 1.4 KG | S196: 195 | V196: PAN DE MASBATE | AB196: 300 | AC196: 50 | AE196: LOCILLO AILLYN | AI196: 70 | AJ196: 15 | AM196: ROYO BORROW AS REGUL FOR POL TANK TIGBAO 09517207893 JEEP BABY GRACE REYMOND LEGAL
A197: OCHEA FAMILY PANDESAL | B197: =+'10-30 THU LEX-SHAN-3262'!E197 -> 14746 | C197: =+W277 -> 2,138 | E197: 16884 | F197: 1AS REPLACEMENT NO CHRGE FOR RETUN FILLED | J197: DISCOUNT | M197: TOTAL | V197: PINOY SIOPAO | AB197: 300 | AC197: 50 | AJ197: 15
A198: PARK N GO | B198: =+'10-30 THU LEX-SHAN-3262'!E198 -> 0 | E198: 0 | V198: REMS LAUNDRY / SANDRA MEDINA | AB198: 300 | AC198: 50 | AE198: MARISTELA EMERALD | AI198: 70 | AJ198: 15
A199: THEO PANDESAL | B199: =+'10-30 THU LEX-SHAN-3262'!E199 -> 5063 | E199: 5063 | F199: REGUL NOT PAID | J199: =+P179+P184+P189 -> 0 | M199: =+N177+N182+N187-J199 -> 1069 | V199: REYJOHN BAKERY / RHEA DELA CRUZ OBOG | AB199: 700 | AC199: 50 | AE199: MIEKOYS PIZZA | AI199: 70 | AJ199: 15
A200: ZANDRA BEACH RESORT | B200: =+'10-30 THU LEX-SHAN-3262'!E200 -> 12606 | E200: 12606 | Q200: OTHER AMOUNT HERE | V200: ROLLING BUBBLES - DANAO | AB200: 700 | AC200: 50 | AE200: MIGGYS BAKERY | AI200: 70 | AJ200: 15
... 175 more rows

Sheet 10-30 THU LEX-SHAN-3262
B1: BEGIN | C1: UNPAID | D1: PAYMENT | E1: END | F1: CASH ADVANCE
A2: C.A APRIL ARENDAIN | B2: =+'10-29 WED LEX-SHAH'!E2 -> 2050 | D2: 100 | E2: =B2+C2-D2 -> 1950 | P2: ENTER NUMER W/POSITIVE SIGN IF increase
A3: TIYO NOY | B3: =+'10-29 WED LEX-SHAH'!E3 -> 500 | E3: 500
A4: C.A COCOY | B4: =+'10-29 WED LEX-SHAH'!E4 -> 615 | C4: 3,000 | E4: 3615 | P4: ENTER NUMER W/NEGATIVE SIGN IF decrease
A5: DAVE BONA | B5: =+'10-29 WED LEX-SHAH'!E5 -> 4000 | E5: 4000
A6: C.A JOMARI CORTES | B6: =+'10-29 WED LEX-SHAH'!E6 -> 40928 | E6: 40928
A7: C.A JUNREL MALIPOT | B7: =+'10-29 WED LEX-SHAH'!E7 -> 10269 | D7: 269 | E7: 10000
A8: C.A NATHANIEL | B8: =+'10-29 WED LEX-SHAH'!E8 -> 600 | E8: 600
A9: C.A MANANGAT CHRISTIAN | B9: =+'10-29 WED LEX-SHAH'!E9 -> 3548 | E9: 3548 | S9: =-S11*1 -> 1.300
A10: C.A SINADJAN, RAMIL | B10: =+'10-29 WED LEX-SHAH'!E10 -> 1100 | E10: 1100 | R10: 11kilos | S10: 11.000
A11: C.A VESTER | B11: =+'10-29 WED LEX-SHAH'!E11 -> 9782 | E11: 9782 | R11: ENTER NUMBER (-/+) | S11: -1.300
A12: IRENE | B12: =+'10-29 WED LEX-SHAH'!E12 -> 2000 | E12: 2000 | R12: TOTAL CHANGE | S12: =+S10*S9 -> 14.300
A13: ARTURO PARAGAS | B13: =+'10-29 WED LEX-SHAH'!E13 -> 6800 | E13: 6800 | R13: VAT | S13: =+S12*0.12 -> 1.716
A14: DONNA LUIS | B14: =+'10-29 WED LEX-SHAH'!E14 -> 3300 | E14: 3300 | R14: VAT + TOTAL CHANGE | S14: =+S12+S13 -> 16.016
A15: RULEY GREPALDIO | B15: =+'10-29 WED LEX-SHAH'!E15 -> 1076 | E15: 1076 | R15: ENTER OLD PRICE | S15: 1,076.000
A16: JULIAN | B16: =+'10-29 WED LEX-SHAH'!E16 -> 5200 | D16: 100 | E16: 5100 | F16: JULLIAN DUMALAG | R16: NEW PRICE | S16: =+S15-S14 -> 1,059.984
A17: CA HAZEL 8/21 | B17: =+'10-29 WED LEX-SHAH'!E17 -> 1600 | E17: 1600
A18: SABIANO BERAL | B18: =+'10-29 WED LEX-SHAH'!E18 -> 5000 | E18: 5000 | S18: =-S20*1 -> 0.000
A19: LABOR ADVANCE | B19: =+'10-29 WED LEX-SHAH'!E19 -> 0 | C19: 1,000 | E19: 1000 | R19: 50KG | S19: 50.000
A20: NATHANIEL | B20: =+'10-29 WED LEX-SHAH'!E20 -> 3500 | E20: 3500 | R20: ENTER NUMBER (-/+) | S20: =+P6 -> 0.000
A21: RJ DUMANGAS | B21: =+'10-29 WED LEX-SHAH'!E21 -> 1000 | E21: 1000 | R21: TOTAL CHANGE | S21: =+S19*S18 -> 0.000
A22: REGULAR | B22: =+'10-29 WED LEX-SHAH'!E22 -> 0 | E22: 0 | F22: REGULAR | R22: VAT | S22: =+S21*0.12 -> 0.000
A23: ABOYS | B23: =+'10-29 WED LEX-SHAH'!E23 -> 769 | E23: 769 | R23: VAT + TOTAL CHANGE | S23: =+S21+S22 -> 0.000
A24: ABSALON LOLITA | B24: =+'10-29 WED LEX-SHAH'!E24 -> 1000 | E24: 1000 | R24: ENTER OLD PRICE | S24: 4,719.000
A25: ALBAO, ELMER | B25: =+'10-29 WED LEX-SHAH'!E25 -> 834 | E25: 834 | R25: NEW PRICE | S25: =+S24-S23 -> 4,719.000
A26: ALOVERA ROSEMARIE | B26: =+'10-29 WED LEX-SHAH'!E26 -> 25 | E26: 25
A27: ANDAYA NELLY | B27: =+'10-29 WED LEX-SHAH'!E27 -> 1071 | E27: 1071 | S27: =-S29*1 -> 0.000
A28: AYESHA BAKERY | B28: =+'10-29 WED LEX-SHAH'!E28 -> 2105 | E28: 2105 | R28: 1.4KG | S28: 1.400
A29: BANTAYAN MINDA | B29: =+'10-29 WED LEX-SHAH'!E29 -> 168 | E29: 168 | R29: ENTER NUMBER (-/+) | S29: =+P6 -> 0.000
A30: BEGGS BAKERY | B30: =+'10-29 WED LEX-SHAH'!E30 -> 7936 | E30: 7936 | R30: TOTAL CHANGE | S30: =+S28*S27 -> 0.000
A31: BINOLIRAO, JOY | B31: =+'10-29 WED LEX-SHAH'!E31 -> 5432 | E31: 5432 | R31: VAT | S31: =+S30*0.12 -> 0.000
A32: CAFÉ KRISTINA | B32: =+'10-29 WED LEX-SHAH'!E32 -> 4226 | E32: 4226 | R32: VAT + TOTAL CHANGE | S32: =+S30+S31 -> 0.000
A33: CANTUBA PORTIA | B33: =+'10-29 WED LEX-SHAH'!E33 -> 1076 | E33: 1076 | R33: ENTER OLD PRICE | S33: 199.000
A34: CAPELLAN EMILY | B34: =+'10-29 WED LEX-SHAH'!E34 -> 588 | E34: 588 | R34: NEW PRICE | S34: =+S33-S32 -> 199.000
A35: CAPELLAN SONY | B35: =+'10-29 WED LEX-SHAH'!E35 -> 500 | E35: 500
A36: CHEPIE/SAMSON JINKY | B36: =+'10-29 WED LEX-SHAH'!E36 -> 18660 | D36: 18,660 | E36: 0
A37: CITY VICE OLD | B37: =+'10-29 WED LEX-SHAH'!E37 -> 6121 | E37: 6121
A38: CORTES BABYJANE LESS 200 | B38: =+'10-29 WED LEX-SHAH'!E38 -> 2128 | E38: 2128
A39: COSTALES, ERNESTO | B39: =+'10-29 WED LEX-SHAH'!E39 -> 25 | E39: 25
A40: DALANON, LUZ | B40: =+'10-29 WED LEX-SHAH'!E40 -> 1160 | E40: 1160
A41: DESAMERO JESS | B41: =+'10-29 WED LEX-SHAH'!E41 -> 1033 | E41: 1033
A42: DESPE, ARTUR | B42: =+'10-29 WED LEX-SHAH'!E42 -> 997 | E42: 997
A43: DIOCADO JOHNWIL ONLOAN | B43: =+'10-29 WED LEX-SHAH'!E43 -> 900 | E43: 900
A44: EMR/PANES FREDDIE / | B44: =+'10-29 WED LEX-SHAH'!E44 -> 2050 | E44: 2050
A45: EPONG CARENDERIA | B45: =+'10-29 WED LEX-SHAH'!E45 -> 1131 | E45: 1131
A46: ESPARZA ANACITA | B46: =+'10-29 WED LEX-SHAH'!E46 -> 1101 | C46: 1,064 | E46: 2165
A47: ESPINAS ROLANDO | B47: =+'10-29 WED LEX-SHAH'!E47 -> 1056 | E47: 1056
A48: EVANGELISTA, JOHN | B48: =+'10-29 WED LEX-SHAH'!E48 -> 1207 | E48: 1207
A49: FLORES HELEN | B49: =+'10-29 WED LEX-SHAH'!E49 -> 1647 | E49: 1647
A50: GARBO RADFORD | B50: =+'10-29 WED LEX-SHAH'!E50 -> 1624 | E50: 1624
A51: GARBO RAYMUND | B51: =+'10-29 WED LEX-SHAH'!E51 -> 1103 | E51: 1103
A52: GONZAGA, ANITA | B52: =+'10-29 WED LEX-SHAH'!E52 -> 1191 | E52: 1191 | F52: APRIL
A53: HARLEY CLEOFE | B53: =+'10-29 WED LEX-SHAH'!E53 -> 0 | E53: 0
A54: JANZMILE | B54: =+'10-29 WED LEX-SHAH'!E54 -> 2331 | E54: 2331
A55: JODAN EATERY | B55: =+'10-29 WED LEX-SHAH'!E55 -> 50 | E55: 50
A56: LALAGUNA FAITH | B56: =+'10-29 WED LEX-SHAH'!E56 -> 0 | E56: 0
A57: LAURENO SUSIE | B57: =+'10-29 WED LEX-SHAH'!E57 -> 2274 | E57: 2274
A58: LAWODNON | B58: =+'10-29 WED LEX-SHAH'!E58 -> 8332 | E58: 8332
A59: LIBERTY BAKERY | B59: =+'10-29 WED LEX-SHAH'!E59 -> 0 | E59: 0
A60: LOLO JOFAX (2160) UNPAID | B60: =+'10-29 WED LEX-SHAH'!E60 -> 500 | E60: 500
A61: MANALO, CHITA | B61: =+'10-29 WED LEX-SHAH'!E61 -> 2120 | E61: 2120
A62: MANGUBAT-CAWAYAN | B62: =+'10-29 WED LEX-SHAH'!E62 -> 1121 | E62: 1121
A63: MARABE, GUENTER | B63: =+'10-29 WED LEX-SHAH'!E63 -> 1014 | E63: 1014
A64: MARISTELA, EMERALD | B64: =+'10-29 WED LEX-SHAH'!E64 -> 7907 | E64: 7907
A65: MIEKOYS PIZZA | B65: =+'10-29 WED LEX-SHAH'!E65 -> 0 | E65: 0
A66: MIGGYS BAKERY | B66: =+'10-29 WED LEX-SHAH'!E66 -> 765 | E66: =B66+C66-D66 -> 765
A67: MORAN ANALY | B67: =+'10-29 WED LEX-SHAH'!E67 -> 0 | E67: 0
A68: MORAN JACKILYN | B68: =+'10-29 WED LEX-SHAH'!E68 -> 1068 | E68: 1068
A69: NARIDO RAFAEL REG | B69: =+'10-29 WED LEX-SHAH'!E69 -> 475 | E69: 475
A70: NARIDO, REYNALDO | B70: =+'10-29 WED LEX-SHAH'!E70 -> 475 | E70: 475
A71: NUNEZ, PERPETUA | B71: =+'10-29 WED LEX-SHAH'!E71 -> 3831 | E71: 3831
A72: OLIVA, CELSO | B72: =+'10-29 WED LEX-SHAH'!E72 -> 168 | E72: 168
A73: OLIVA, DOREEN | B73: =+'10-29 WED LEX-SHAH'!E73 -> 474 | E73: 474
A74: ORBISO LIZA/NUNU | B74: =+'10-29 WED LEX-SHAH'!E74 -> 2405 | E74: 2405
A75: ORBISO, KEILLI | B75: =+'10-29 WED LEX-SHAH'!E75 -> 474 | E75: 474
A76: PASION VENUS | B76: =+'10-29 WED LEX-SHAH'!E76 -> 1014 | E76: 1014
A77: PERALTA LYNDON | B77: =+'10-29 WED LEX-SHAH'!E77 -> 40 | E77: 40
A78: PHO | B78: =+'10-29 WED LEX-SHAH'!E78 -> 0 | E78: 0
A79: RESUENA | B79: =+'10-29 WED LEX-SHAH'!E79 -> 4226 | E79: 4226
A80: RUELAN RONALD | B80: =+'10-29 WED LEX-SHAH'!E80 -> 1083 | E80: 1083
A81: SALADAS SHERLY | B81: =+'10-29 WED LEX-SHAH'!E81 -> 674 | E81: 674
A82: BANTAYAN MINDA | B82: =+'10-29 WED LEX-SHAH'!E82 -> 0 | E82: 0
A83: SANDRA SAN JUAN | B83: =+'10-29 WED LEX-SHAH'!E83 -> 1300 | E83: 1300
A84: TATA/NUEVO MARILOU | B84: =+'10-29 WED LEX-SHAH'!E84 -> 10125 | D84: 10,125 | E84: 0
A85: TENORIA, MARRAH | B85: =+'10-29 WED LEX-SHAH'!E85 -> 130 | E85: 130
A86: VILLAMOR, MARILOU (MOM) | B86: =+'10-29 WED LEX-SHAH'!E86 -> 0 | E86: 0
A87: VILLAMOR, MARILOU (SON) | B87: =+'10-29 WED LEX-SHAH'!E87 -> 2308 | E87: 2308
A88: VILLOCILLO JESUS | B88: =+'10-29 WED LEX-SHAH'!E88 -> 0 | E88: 0
A89: YBANEZ ROBERTO (1115) UNPAID | B89: =+'10-29 WED LEX-SHAH'!E89 -> 1014 | E89: 1014
A90: YKAY/NUEVO ELENA | B90: =+'10-29 WED LEX-SHAH'!E90 -> 60890 | C90: 10,140 | D90: 10,140 | E90: 60890
A91: TWIN PEAK | B91: =+'10-29 WED LEX-SHAH'!E91 -> 1084 | E91: 1084
A92: COLLANTES | B92: =+'10-29 WED LEX-SHAH'!E92 -> 0 | E92: 0
A93: MARYJANE CORTES | B93: =+'10-29 WED LEX-SHAH'!E93 -> 45 | E93: 45
A94: HAPPY ROASTER | B94: =+'10-29 WED LEX-SHAH'!E94 -> 6456 | E94: 6456
A95: JOHNRICK PACHECO | B95: =+'10-29 WED LEX-SHAH'!E95 -> 800 | E95: 800
A96: CHARO'S CAFÉ | B96: =+'10-29 WED LEX-SHAH'!E96 -> 25 | E96: 25
A97: LOCILLO AILYN | B97: =+'10-29 WED LEX-SHAH'!E97 -> 0 | E97: 0
A98: OVERTYM | B98: =+'10-29 WED LEX-SHAH'!E98 -> 0 | E98: 0
A99: HARLEY CLEOFE | B99: =+'10-29 WED LEX-SHAH'!E99 -> 0 | E99: 0
A100: PAPILLERA M 3000 from lex | B100: =+'10-29 WED LEX-SHAH'!E100 -> 3114 | E100: 3114
A101: BANTAYAN MINDA | B101: =+'10-29 WED LEX-SHAH'!E101 -> 0 | C101: 1,064 | E101: 1064
A102: CITY TREASURY | B102: =+'10-29 WED LEX-SHAH'!E102 -> 4550 | E102: 4550
A103: AMY DELA PISA | B103: =+'10-29 WED LEX-SHAH'!E103 -> 0 | E103: 0
A104: GERARDO PRESADO | B104: =+'10-29 WED LEX-SHAH'!E104 -> 0 | E104: 0
A105: BERNARD CARPIO | B105: =+'10-29 WED LEX-SHAH'!E105 -> 1132 | E105: 1132
A106: CHONA MESA | B106: =+'10-29 WED LEX-SHAH'!E106 -> 2298 | E106: 2298
A107: PASTORA VIE | B107: =+'10-29 WED LEX-SHAH'!E107 -> 600 | E107: 600
A108: EVELYN CONRADO | B108: =+'10-29 WED LEX-SHAH'!E108 -> 400 | E108: 400
B109: =+'10-29 WED LEX-SHAH'!E109 -> 0 | E109: 0
A110: NENETH REYES | B110: =+'10-29 WED LEX-SHAH'!E110 -> 693 | E110: 693
A111: JUREXEN VERDIDA | B111: =+'10-29 WED LEX-SHAH'!E111 -> 3001 | E111: 3001
A112: VILLARANTE RENZEL | B112: =+'10-29 WED LEX-SHAH'!E112 -> 646 | E112: 646
A113: ALMARIO MOBO BGACAY | B113: =+'10-29 WED LEX-SHAH'!E113 -> 143 | E113: 143
A114: ALFARO | B114: =+'10-29 WED LEX-SHAH'!E114 -> 1147 | E114: 1147
A115: JOSE CUELLO 4/24 TRADE IN | B115: =+'10-29 WED LEX-SHAH'!E115 -> 1071 | E115: 1071
B116: =+'10-29 WED LEX-SHAH'!E116 -> 0 | E116: 0
A117: MANLAPAZ | B117: =+'10-29 WED LEX-SHAH'!E117 -> 1084 | E117: 1084
A118: CITY VICE NEW GAZUL | B118: =+'10-29 WED LEX-SHAH'!E118 -> 1103 | E118: 1103
A119: EVA VERANO | B119: =+'10-29 WED LEX-SHAH'!E119 -> 576 | E119: 576
B120: =+'10-29 WED LEX-SHAH'!E120 -> 0 | E120: 0
A121: HAPPY ROASTER | B121: =+'10-29 WED LEX-SHAH'!E121 -> 4276 | E121: 4276
B122: =+'10-29 WED LEX-SHAH'!E122 -> 0 | E122: 0
B123: =+'10-29 WED LEX-SHAH'!E123 -> 0 | E123: 0
A124: CITY VICE | B124: =+'10-29 WED LEX-SHAH'!E124 -> 1076 | E124: 1076
A125: JEREMY SAMSON | B125: =+'10-29 WED LEX-SHAH'!E125 -> 18800 | E125: 18800
A126: VILLANUEVA GLENDA | B126: =+'10-29 WED LEX-SHAH'!E126 -> 1749 | E126: 1749
A127: GALLETO DOREEN | B127: =+'10-29 WED LEX-SHAH'!E127 -> 0 | E127: 0
A128: CITIBUILDER | B128: =+'10-29 WED LEX-SHAH'!E128 -> 1114 | E128: 1114
A129: 50kg ACCOUNT | B129: =+'10-29 WED LEX-SHAH'!E129 -> 0 | E129: 0 | F129: 50kg ACCOUNT
A130: ABAN, JULIUS | B130: =+'10-29 WED LEX-SHAH'!E130 -> 8660 | D130: 8,660 | E130: =B130+C130-D130 -> 0
A131: AVEGAIL LAUNDRY | B131: =+'10-29 WED LEX-SHAH'!E131 -> 6538 | E131: 6538
A132: BACKYARD EDIBLE GARDEN | B132: =+'10-29 WED LEX-SHAH'!E132 -> 844 | E132: 844
A133: CARIS HOTEL | B133: =+'10-29 WED LEX-SHAH'!E133 -> 4314 | E133: 4314 | R133: ATTENDANCE AND PAYMENT | X133: =+Z155+Z161 -> 7900
A134: TEABOX | B134: =+'10-29 WED LEX-SHAH'!E134 -> 0 | E134: 0
A135: CHAROS CAFÉ AND RESTO | B135: =+'10-29 WED LEX-SHAH'!E135 -> 0 | E135: 0 | R135: NAMES | S135: AM | U135: PM | W135: AM HOURS | X135: PM HOURS | Y135: TOTAL HOURS | Z135: PAID | AA135: REMARKS
A136: CHERISH RESORT | B136: =+'10-29 WED LEX-SHAH'!E136 -> 0 | E136: 0 | P136: DAYOFF | S136: IN | T136: OUT | U136: IN | V136: OUT
A137: CLORES TRESURE ISLAND | B137: =+'10-29 WED LEX-SHAH'!E137 -> 7 | E137: 7 | P137: SATURDAY | R137: JOMARI CORTES | S137: 08:30:00 | T137: 12:00:00 | W137: =+(T137-S137)*24 -> 3.5 | X137: =+(V137-U137)*24 -> 0.0 | AA137: NO SALARY RECEIVED
A138: CONRADO / NOEL BAKERY | B138: =+'10-29 WED LEX-SHAH'!E138 -> 10428 | E138: 10428 | P138: SUNDAY | R138: JUNREL MALIPOT | S138: 07:40:00 | T138: 12:11:00 | U138: 01:43:00 | W138: =+(T138-S138)*24 -> 4.5 | X138: =+(V138-U138)*24 -> -1.7 | Z138: 500 | AA138: 303
A139: CRISPY KING CROSSING | B139: =+'10-29 WED LEX-SHAH'!E139 -> 60 | E139: 60 | K139: CP# | O139: DRIVER | P139: SUNDAY | R139: APRIL ARENDAIN | S139: 07:35:00 | T139: 12:30:00 | U139: 01:49:00 | W139: =+(T139-S139)*24 -> 4.9 | X139: =+(V146-U146)*24 -> -12.5 | Z139: 500 | AA139: 400
A140: CRISPY KING IBANEZ | B140: =+'10-29 WED LEX-SHAH'!E140 -> 0 | E140: 0 | K140: CP# | O140: DRIVER | R140: DIONESITO BLAZO 9301238381 | W140: =+(T141-S140)*24 -> 0.0 | X140: =+(V141-U141)*24 -> 0.0
A141: CRISPY KING MARKET | B141: =+'10-29 WED LEX-SHAH'!E141 -> 0 | E141: 0 | P141: SUNDAY | R141: RULEY GREPALDEO | W141: =+(T142-S141)*24 -> 0.0 | X141: =+(V142-U142)*24 -> 0.0
A142: CRISPY KING MOBO | B142: =+'10-29 WED LEX-SHAH'!E142 -> 0 | E142: 0 | W142: 0.0 | X142: =+(V142-U142)*24 -> 0.0
A143: CRISPY KING CAWAYAN | B143: =+'10-29 WED LEX-SHAH'!E143 -> 0 | E143: 0 | W143: 0.0 | X143: =+(V143-U143)*24 -> 0.0
A144: EZ CAFÉ W/CYLINDER | B144: =+'10-29 WED LEX-SHAH'!E144 -> 0 | E144: 0 | W144: 0.0 | X144: =+(V144-U144)*24 -> 0.0
A145: FRANCE LAUNDRY | B145: =+'10-29 WED LEX-SHAH'!E145 -> 2860 | D145: 2,000 | E145: 860 | W145: =+(T145-S145)*24 -> 0.0 | X145: =+(V145-U145)*24 -> 0.0
A146: JUAN HOUR LAUNDRY | B146: =+'10-29 WED LEX-SHAH'!E146 -> 0 | E146: 0 | R146: SHANNAH | S146: 07:00:00 | T146: 12:00:00 | U146: 12:30:00 | W146: =+(T146-S146)*24 -> 5.0 | X146: =+(V146-U146)*24 -> -12.5
A147: KATES LAUNDRY SHOP | B147: =+'10-29 WED LEX-SHAH'!E147 -> 0 | E147: 0 | R147: NATHANIEL ALERTA | W147: 0.0 | X147: 0.0 | AA147: OFF
A148: MARKY RESTAURANT | B148: =+'10-29 WED LEX-SHAH'!E148 -> 4001 | E148: 4001 | P148: SATURDAY | R148: ARNOLD PEPITO | S148: 07:00:00 | T148: 12:00:00 | U148: 01:00:00 | V148: 06:00:00 | W148: 5.0 | X148: 5.0 | Z148: 500
A149: MASBATE LAUNDRY SHOP | B149: =+'10-29 WED LEX-SHAH'!E149 -> 0 | E149: 0 | K149: CP# | O149: DRIVER | P149: WEDNESDAY | R149: EVANGELISTA ROMULO | W149: 0.0 | X149: 0.0 | AA149: OFF
A150: DAMPA | B150: =+'10-29 WED LEX-SHAH'!E150 -> 0 | E150: 0 | R150: HAZEL | W150: 0.0 | X150: 0.0 | AA150: OFF
A151: PINOY SIOPAO | B151: =+'10-29 WED LEX-SHAH'!E151 -> 0 | C151: 17,056 | E151: 17056 | P151: SUNDAY | R151: LIZET DANAO | S151: 07:00:00 | T151: 12:00:00 | U151: 01:00:00 | V151: 06:00:00 | W151: 5.0 | X151: 5.0 | Z151: 550
A152: REMS LAUNDRY | B152: =+'10-29 WED LEX-SHAH'!E152 -> 6144 | E152: 6144 | K152: CP# | O152: DRIVER | P152: FRIDAY | R152: ARTURO PARAGAS | S152: 07:00:00 | T152: 12:00:00 | U152: 01:00:00 | V152: 06:00:00 | W152: 5.0 | X152: 5.0 | Z152: 550 | AA152: 495
A153: REYJOHN BAKERY | B153: =+'10-29 WED LEX-SHAH'!E153 -> 0 | E153: 0 | P153: SATURDAY | R153: LEO MARCOS | S153: 07:00:00 | T153: 12:00:00 | U153: 01:00:00 | V153: 06:00:00 | W153: 5.0 | X153: 5.0 | Z153: 500
A154: ROBERTO AND ROWE | B154: =+'10-29 WED LEX-SHAH'!E154 -> 15707 | E154: 15707 | K154: CP# | O154: DRIVER | P154: THURSDAY | R154: JULIAN DUMALAG | S154: 07:00:00 | T154: 12:00:00 | U154: 01:00:00 | V154: 06:00:00 | W154: 5.0 | X154: 5.0 | Z154: 500 | AA154: 400
A155: ROLLING BUBBLES | B155: =+'10-29 WED LEX-SHAH'!E155 -> 0 | E155: 0 | M155: BNNNNNNNNNNNNNNNNNNNNNNNNNNNNNNNNNNNNNNNNNNNNNNNNNNNNNNN | R155: SALARY TOTAL | Z155: =SUM(Z137:Z154) -> 3600 | AG155: SAKTO
A156: ROSEMARY EVENTS | B156: =+'10-29 WED LEX-SHAH'!E156 -> 0 | E156: 0 | R156: CA LABOR | Z156: 1300
A157: ROWEES AROROY | B157: =+'10-29 WED LEX-SHAH'!E157 -> 0 | E157: 0 | R157: CA COCOY | Z157: 3000 | AJ157: 7 | AL157: 87
A158: PALMA SHERYL/avegail laundry | B158: =+'10-29 WED LEX-SHAH'!E158 -> 4614 | E158: 4614
A159: WENABETH JOHN BAKERY MALINTA | B159: =+'10-29 WED LEX-SHAH'!E159 -> 4469 | E159: 4469 | F159: KULANG 100 FOR COLLCTION COCOY
A160: CRISPY KING PIER | B160: =+'10-29 WED LEX-SHAH'!E160 -> 0 | E160: 0
A161: CRISPY KING OSMENA | B161: =+'10-29 WED LEX-SHAH'!E161 -> 3814 | E161: 3814 | R161: EXTRA EXPENSES TOTAL | Z161: =+SUM(Z156:Z160) -> 4300
A162: TUMBAGA SINALONGAN | B162: =+'10-29 WED LEX-SHAH'!E162 -> 27904 | D162: 17,148 | E162: 10756 | F162: PAID 17148 THI10/30
A163: OUTLET'S | B163: =+'10-29 WED LEX-SHAH'!E163 -> 0 | E163: 0 | F163: OUTLET'S
A164: ABANO, MICHAEL | B164: =+'10-29 WED LEX-SHAH'!E164 -> 11380 | E164: 11380 | V164: COMMERCIAL ACCOUNT | AE164: REMINDERS
A165: ALVAREZ JENILLYN | B165: =+'10-29 WED LEX-SHAH'!E165 -> 18750 | E165: 18750
A166: ALVAREZ, RICO 1.4 | B166: =+'10-29 WED LEX-SHAH'!E166 -> 1330 | E166: 1330 | V166: CUSTOMER NAME | AB166: DICS | AC166: DELIVER | AE166: 9499357775 AMERA 50KG Leah Orubla Villaraiz | AM166: ALOVERA ROSEMARIE | AQ166: 20 | AR166: 15
A167: ALVAREZ, RICO A/S | B167: =+'10-29 WED LEX-SHAH'!E167 -> 6800 | E167: 6800 | V167: 8 ALL YOU CAN/RIMONTE JOHN AUBREN | AB167: 400 | AC167: 50 | AM167: BANTAYAN MINDA | AQ167: 20 | AR167: 15
A168: BANTAYAN, LENIE | B168: =+'10-29 WED LEX-SHAH'!E168 -> 12802 | E168: 12802 | V168: ABAN LAUNDRY / ABAN JULIUS | AB168: 300 | AC168: 50 | AM168: CORTES BABY JEAN | AQ168: 20 | AR168: 15
A169: BULALAQUE, NATHANIEL | B169: =+'10-29 WED LEX-SHAH'!E169 -> 5095 | E169: 5095 | V169: AVEGAIL S LAUNDRY | AB169: 300 | AC169: 50 | AE169: LAWRENCE SESE 0902014314 LAND BANK
A170: CDJ/CHISA BARRUGA | B170: =+'10-29 WED LEX-SHAH'!E170 -> 5315 | E170: 5315 | V170: BACKYARD EDIBLE GARDEN | AB170: 300 | AC170: 50
A171: COCOY SOLANE ACCOUNT | B171: =+'10-29 WED LEX-SHAH'!E171 -> 6232 | E171: 6232 | V171: CARIS HOTEL | AB171: 300 | AC171: 50 | AM171: ESPARZA ANACITA TWIN PEAK | AQ171: 20 | AR171: 15
A172: ELMA BUNGCARAS | B172: =+'10-29 WED LEX-SHAH'!E172 -> 10680 | E172: 10680 | V172: CHAROS CAFÉ AND RESTO (MOBO RIVER SIDE) | AB172: 0 | AC172: 50 | AE172: LAWRENCE SESE 013568000813 BDO | AM172: ESPINAS ROLANDO | AQ172: 20 | AR172: 15
A173: GADER RENATO | B173: =+'10-29 WED LEX-SHAH'!E173 -> 16920 | E173: 16920 | J173: SENIOR DISCOUNT | P173: 15 | V173: CHERISH MOMENT RESORT | AB173: 900 | AC173: 50
A174: LOCMAYON BEGA10 (2) | B174: =+'10-29 WED LEX-SHAH'!E174 -> 0 | E174: 0 | V174: CRISPY KING / DJJM FOOD HUB/ IBANEZ/CROSSING | AB174: 800 | AC174: 50 | AM174: FAZENDA MILAGROS | AQ174: 20 | AR174: 15
A175: SOLON VANGIE AS | B175: =+'10-29 WED LEX-SHAH'!E175 -> 8670 | D175: 8,670 | E175: 0 | J175: 50KG | M175: QTY | N175: AMOUNT | P175: DISCOUNT | R175: DELIVERY CHARGE | V175: CRISPY KING / DJJM FOOD HUB/ MOBO | AB175: 700 | AC175: 50 | AE175: KUA DUTAY 09307207044
A176: ORBISO PHOEBE | B176: =+'10-29 WED LEX-SHAH'!E176 -> 2112 | E176: 2112 | V176: CRYSPY KING / DJA CATERING SERVICES/PATING | AB176: 800 | AC176: 50
A177: ORBISO, EFILDA | B177: =+'10-29 WED LEX-SHAH'!E177 -> 0 | E177: 0 | J177: 4564 | M177: 1 | N177: =+M177*J177 -> 4564 | P177: 900 | R177: 50 | V177: CRISPY KING / DJJM FOOD HUB/ OSMENA NOY BIGOL | AB177: 800 | AC177: 50
A178: PAWA VERNA MENDOZA | B178: =+'10-29 WED LEX-SHAH'!E178 -> 1250 | E178: 1250 | S178: + | V178: CRISPY KING / DJJM FOOD HUB/ PIER NOY BIGOL | W178: =+W222 -> 0 | AB178: 800 | AC178: 50 | AE178: GMS ACCOUNT
A179: ELMA BUNCARAS | B179: =+'10-29 WED LEX-SHAH'!E179 -> 14630 | E179: 14630 | P179: =+M177*P177 -> 900 | R179: =+M177*R177 -> 50 | V179: / DJJM CRISPY KING NOY BIGOL | AB179: 700 | AC179: 100
A180: SAMPAGA BIDA | B180: =+'10-29 WED LEX-SHAH'!E180 -> 3816 | E180: 3816 | J180: 11KG | M180: QTY | N180: AMOUNT | P180: DISCOUNT | R180: DELIVERY CHARGE | V180: DAMPA RESTO BAR /BESMONTE MARICAR | AB180: 300 | AC180: 50
A181: SESE, ROSALIA | B181: =+'10-29 WED LEX-SHAH'!E181 -> 34480 | E181: 34480 | V181: DR. CHESTER LEE | AB181: 900 | AC181: P/U
A182: STAR OIL RECEIVABLE | B182: =+'10-29 WED LEX-SHAH'!E182 -> 0 | E182: 0 | J182: 1069 | N182: =+M182*J182 -> 0 | P182: 50 | R182: 15 | V182: EZ CAFÉ | AB182: 300 | AC182: 50
A183: TAYAM IRISH | B183: =+'10-29 WED LEX-SHAH'!E183 -> 0 | E183: 0 | V183: FRANCE LAUNDRY | AB183: 700 | AC183: 50
A184: YBANEZ, NESSAR | B184: =+'10-29 WED LEX-SHAH'!E184 -> 27376 | E184: 27376 | P184: =+M182*P182 -> 0 | R184: =+M182*R182 -> 0 | V184: GACT CONSTRUCTION AND SUPPLY /TAYAM IRISH | AB184: 200 | AC184: 50
A185: ZUNIGA MELCHOR | B185: =+'10-29 WED LEX-SHAH'!E185 -> 0 | E185: 0 | J185: 1.4KG | M185: QTY | N185: AMOUNT | P185: DISCOUNT | R185: DELIVERY CHARGE | V185: HIGHN'DRY LAUNDRY SERVCES | AB185: 0 | AC185: 50
A186: JENELIN ALVAREZ | B186: =+'10-29 WED LEX-SHAH'!E186 -> 0 | E186: 0 | V186: JUAN HOUR LAUNDRY - STAIRWAY & IBANEZ | AB186: 900 | AC186: 50 | AE186: DELA PENA ANALYN/OSTED | AI186: 70 | AJ186: 9 | AM186: rey john | AQ186: 20 | AR186: 15
A187: EJJ EVANGELYN M NUGAS | B187: =+'10-29 WED LEX-SHAH'!E187 -> 0 | E187: 0 | J187: 195 | N187: =+M187*J187 -> 0 | R187: 3 | V187: KARAON SA 18TH GRILL AND RESTO | AB187: 300 | AC187: 50 | AI187: 70 | AJ187: 15 | AM187: ROBERTO ROWIE & ROBI FOOD OPC | AQ187: 50 | AR187: 15
A188: VANGIE SOLON 1.4 | B188: =+'10-29 WED LEX-SHAH'!E188 -> 0 | E188: 0 | F188: MAY JULY P N FOR PAYMENT | V188: KATES LAUNDRYSHOP/ GUILLERMO ALINSOOT MANACILLO 11 | AB188: 700 | AC188: 50 | AM188: ROBERTO YBANEZ | AQ188: 70 | AR188: 15
A189: TICAO ACCOUNT | B189: =+'10-29 WED LEX-SHAH'!E189 -> 0 | E189: 0 | F189: TICAO ACCOUNT | L189: =+O185*I185 -> 0 | N189: =+Q185*K185 -> 0 | O189: =+R187*M187 -> 0 | P189: =+M187*P187 -> 0 | V189: MARKY BICOL RESTAURANT | AB189: 900 | AC189: 50 | AM189: SUCUANO LORETO | AQ189: 70 | AR189: 15
A190: BAMBOO PLACE WITH 3 REGULS | B190: =+'10-29 WED LEX-SHAH'!E190 -> 4181 | E190: 4181 | F190: ALL UNPAID | J190: CASH | M190: CHANGE | Q190: SRP FOR OCT | V190: MASBATE LAUNDRY CENTER MEDINA ST. MASBATE | AB190: 700 | AC190: 50 | AM190: TATA FRIED CHICKEN | AQ190: 70 | AR190: 15
A191: BARREDO EDGAR | B191: =+'10-29 WED LEX-SHAH'!E191 -> 0 | E191: 0 | V191: MNV FOODHUB (CHIKICHOW) | AB191: 500 | AC191: 50 | AE191: WINWIN FRIED CHICKEN | AI191: 70 | AM191: VENUS PASION | AQ191: 70 | AR191: 15
A192: DRAGAS 6/21 | B192: =+'10-29 WED LEX-SHAH'!E192 -> 0 | E192: 0 | F192: 3342TRANSFER TO OCGAS | J192: 10000 | M192: =J192-M201 -> 6286 | Q192: 50 KG | S192: 4564 | V192: MR. LAUNDRY - IBINGAY & CROSSING | AB192: 900 | AC192: 50 | AE192: GIGANTE ROQUE VARGAS | AI192: 70 | AJ192: 15 | AL192: TO FOLLOW | AM192: VILLAMOR MARILOU | AQ192: 70 | AR192: 15
A193: GRACE RANGEL 1.4 | B193: =+'10-29 WED LEX-SHAH'!E193 -> 9614 | E193: 9614 | V193: MSA - DECS | AB193: 0 | AE193: GONZAGA ANITA | AI193: 70 | AJ193: 15 | AM193: WOW INASAL | AQ193: 70 | AR193: 15
A194: GRACE RANGEL AS | B194: =+'10-29 WED LEX-SHAH'!E194 -> 18471 | E194: =B194+C194-D194 -> 18471 | F194: 1AS 1 DB PAID 5/29 | J194: ;. | L194: . | Q194: 11 KG | S194: 1069 | V194: NESSAR YBANEZ | AB194: 900 | AC194: 100 | AE194: JODAN EATERY | AI194: 70 | AJ194: 15 | AM194: YKAY FRIED CHICKEN | AQ194: 70 | AR194: 15
A195: LIA SESE | B195: =+'10-29 WED LEX-SHAH'!E195 -> 11275 | E195: 11275 | F195: KULANG STOVE 4544 | J195: DELIVERY | M195: =+R189+R184+R179 -> 50 | V195: NOEL BAKERY / ANALYN CONRADO | AB195: 300 | AC195: 50 | AE195: LAWODNON | AI195: 70 | AJ195: 15 | AM195: PALMA SHERYL | AQ195: 70 | AR195: 15
A196: OC GAS ALVAREZ | B196: =+'10-29 WED LEX-SHAH'!E196 -> 7588 | E196: 7588 | F196: =+B194+B193 -> 28085 | Q196: 1.4 KG | S196: 195 | V196: PAN DE MASBATE | AB196: 300 | AC196: 50 | AE196: LOCILLO AILLYN | AI196: 70 | AJ196: 15 | AM196: ROYO BORROW AS REGUL FOR POL TANK TIGBAO 09517207893 JEEP BABY GRACE REYMOND LEGAL
A197: OCHEA FAMILY PANDESAL | B197: =+'10-29 WED LEX-SHAH'!E197 -> 14746 | E197: 14746 | F197: 1AS REPLACEMENT NO CHRGE FOR RETUN FILLED | J197: DISCOUNT | M197: TOTAL | V197: PINOY SIOPAO | AB197: 300 | AC197: 50 | AJ197: 15
A198: PARK N GO | B198: =+'10-29 WED LEX-SHAH'!E198 -> 0 | E198: 0 | V198: REMS LAUNDRY / SANDRA MEDINA | AB198: 300 | AC198: 50 | AE198: MARISTELA EMERALD | AI198: 70 | AJ198: 15
A199: THEO PANDESAL | B199: =+'10-29 WED LEX-SHAH'!E199 -> 5063 | E199: 5063 | F199: REGUL NOT PAID | J199: =+P179+P184+P189 -> 900 | M199: =+N177+N182+N187-J199 -> 3664 | V199: REYJOHN BAKERY / RHEA DELA CRUZ OBOG | AB199: 700 | AC199: 50 | AE199: MIEKOYS PIZZA | AI199: 70 | AJ199: 15
A200: ZANDRA BEACH RESORT | B200: =+'10-29 WED LEX-SHAH'!E200 -> 12606 | E200: 12606 | Q200: OTHER AMOUNT HERE | V200: ROLLING BUBBLES - DANAO | AB200: 700 | AC200: 50 | AE200: MIGGYS BAKERY | AI200: 70 | AJ200: 15
... 176 more rows

Sheet 10-29 WED LEX-SHAH
B1: BEGIN | C1: UNPAID | D1: PAYMENT | E1: END | F1: CASH ADVANCE
A2: C.A APRIL ARENDAIN | B2: =+'10-28 TUE LEX-SHAH'!E2 -> 2050 | E2: =B2+C2-D2 -> 2050 | P2: ENTER NUMER W/POSITIVE SIGN IF increase
A3: TIYO NOY | B3: =+'10-28 TUE LEX-SHAH'!E3 -> 500 | E3: 500
A4: C.A COCOY | B4: =+'10-28 TUE LEX-SHAH'!E4 -> 615 | E4: 615 | P4: ENTER NUMER W/NEGATIVE SIGN IF decrease
A5: DAVE BONA | B5: =+'10-28 TUE LEX-SHAH'!E5 -> 4000 | E5: 4000
A6: C.A JOMARI CORTES | B6: =+'10-28 TUE LEX-SHAH'!E6 -> 40928 | E6: 40928
A7: C.A JUNREL MALIPOT | B7: =+'10-28 TUE LEX-SHAH'!E7 -> 10469 | D7: 200 | E7: 10269
A8: C.A NATHANIEL | B8: =+'10-28 TUE LEX-SHAH'!E8 -> 600 | E8: 600
A9: C.A MANANGAT CHRISTIAN | B9: =+'10-28 TUE LEX-SHAH'!E9 -> 3548 | E9: 3548 | S9: =-S11*1 -> 1.300
A10: C.A SINADJAN, RAMIL | B10: =+'10-28 TUE LEX-SHAH'!E10 -> 1100 | E10: 1100 | R10: 11kilos | S10: 11.000
A11: C.A VESTER | B11: =+'10-28 TUE LEX-SHAH'!E11 -> 9782 | E11: 9782 | R11: ENTER NUMBER (-/+) | S11: -1.300
A12: IRENE | B12: =+'10-28 TUE LEX-SHAH'!E12 -> 2000 | E12: 2000 | R12: TOTAL CHANGE | S12: =+S10*S9 -> 14.300
A13: ARTURO PARAGAS | B13: =+'10-28 TUE LEX-SHAH'!E13 -> 6900 | D13: 100 | E13: 6800 | R13: VAT | S13: =+S12*0.12 -> 1.716
A14: DONNA LUIS | B14: =+'10-28 TUE LEX-SHAH'!E14 -> 3300 | E14: 3300 | R14: VAT + TOTAL CHANGE | S14: =+S12+S13 -> 16.016
A15: RULEY GREPALDIO | B15: =+'10-28 TUE LEX-SHAH'!E15 -> 1076 | E15: 1076 | R15: ENTER OLD PRICE | S15: 1,076.000
A16: JULIAN | B16: =+'10-28 TUE LEX-SHAH'!E16 -> 5200 | E16: 5200 | F16: JULLIAN DUMALAG | R16: NEW PRICE | S16: =+S15-S14 -> 1,059.984
A17: CA HAZEL 8/21 | B17: =+'10-28 TUE LEX-SHAH'!E17 -> 1600 | E17: 1600
A18: SABIANO BERAL | B18: =+'10-28 TUE LEX-SHAH'!E18 -> 5000 | E18: 5000 | S18: =-S20*1 -> 0.000
A19: LABOR ADVANCE | B19: =+'10-28 TUE LEX-SHAH'!E19 -> 0 | E19: 0 | R19: 50KG | S19: 50.000
A20: NATHANIEL | B20: =+'10-28 TUE LEX-SHAH'!E20 -> 3500 | E20: 3500 | F20: NAT CA 3500 | R20: ENTER NUMBER (-/+) | S20: =+P6 -> 0.000
A21: RJ DUMANGAS | B21: =+'10-28 TUE LEX-SHAH'!E21 -> 1000 | E21: 1000 | R21: TOTAL CHANGE | S21: =+S19*S18 -> 0.000
A22: REGULAR | B22: =+'10-28 TUE LEX-SHAH'!E22 -> 0 | E22: 0 | F22: REGULAR | R22: VAT | S22: =+S21*0.12 -> 0.000
A23: ABOYS | B23: =+'10-28 TUE LEX-SHAH'!E23 -> 769 | E23: 769 | R23: VAT + TOTAL CHANGE | S23: =+S21+S22 -> 0.000
A24: ABSALON LOLITA | B24: =+'10-28 TUE LEX-SHAH'!E24 -> 1000 | E24: 1000 | R24: ENTER OLD PRICE | S24: 4,719.000
A25: ALBAO, ELMER | B25: =+'10-28 TUE LEX-SHAH'!E25 -> 834 | E25: 834 | R25: NEW PRICE | S25: =+S24-S23 -> 4,719.000
A26: ALOVERA ROSEMARIE | B26: =+'10-28 TUE LEX-SHAH'!E26 -> 25 | E26: 25
A27: ANDAYA NELLY | B27: =+'10-28 TUE LEX-SHAH'!E27 -> 1071 | E27: 1071 | S27: =-S29*1 -> 0.000
A28: AYESHA BAKERY | B28: =+'10-28 TUE LEX-SHAH'!E28 -> 2105 | E28: 2105 | R28: 1.4KG | S28: 1.400
A29: BANTAYAN MINDA | B29: =+'10-28 TUE LEX-SHAH'!E29 -> 168 | E29: 168 | R29: ENTER NUMBER (-/+) | S29: =+P6 -> 0.000
A30: BEGGS BAKERY | B30: =+'10-28 TUE LEX-SHAH'!E30 -> 7936 | E30: 7936 | R30: TOTAL CHANGE | S30: =+S28*S27 -> 0.000
A31: BINOLIRAO, JOY | B31: =+'10-28 TUE LEX-SHAH'!E31 -> 5432 | E31: 5432 | R31: VAT | S31: =+S30*0.12 -> 0.000
A32: CAFÉ KRISTINA | B32: =+'10-28 TUE LEX-SHAH'!E32 -> 4226 | E32: 4226 | R32: VAT + TOTAL CHANGE | S32: =+S30+S31 -> 0.000
A33: CANTUBA PORTIA | B33: =+'10-28 TUE LEX-SHAH'!E33 -> 1076 | E33: 1076 | R33: ENTER OLD PRICE | S33: 199.000
A34: CAPELLAN EMILY | B34: =+'10-28 TUE LEX-SHAH'!E34 -> 588 | E34: 588 | R34: NEW PRICE | S34: =+S33-S32 -> 199.000
A35: CAPELLAN SONY | B35: =+'10-28 TUE LEX-SHAH'!E35 -> 500 | E35: 500
A36: CHEPIE/SAMSON JINKY | B36: =+'10-28 TUE LEX-SHAH'!E36 -> 18660 | E36: 18660 | F36: =6000+3500+816 -> 10316
A37: CITY VICE OLD | B37: =+'10-28 TUE LEX-SHAH'!E37 -> 6121 | E37: 6121
A38: CORTES BABYJANE LESS 200 | B38: =+'10-28 TUE LEX-SHAH'!E38 -> 2128 | E38: 2128
A39: COSTALES, ERNESTO | B39: =+'10-28 TUE LEX-SHAH'!E39 -> 25 | E39: 25
A40: DALANON, LUZ | B40: =+'10-28 TUE LEX-SHAH'!E40 -> 1160 | E40: 1160
A41: DESAMERO JESS | B41: =+'10-28 TUE LEX-SHAH'!E41 -> 1033 | E41: 1033
A42: DESPE, ARTUR | B42: =+'10-28 TUE LEX-SHAH'!E42 -> 997 | E42: 997
A43: DIOCADO JOHNWIL ONLOAN | B43: =+'10-28 TUE LEX-SHAH'!E43 -> 900 | E43: 900
A44: EMR/PANES FREDDIE / | B44: =+'10-28 TUE LEX-SHAH'!E44 -> 2050 | E44: 2050
A45: EPONG CARENDERIA | B45: =+'10-28 TUE LEX-SHAH'!E45 -> 1131 | E45: 1131
A46: ESPARZA ANACITA | B46: =+'10-28 TUE LEX-SHAH'!E46 -> 1101 | E46: 1101
A47: ESPINAS ROLANDO | B47: =+'10-28 TUE LEX-SHAH'!E47 -> 1056 | E47: 1056
A48: EVANGELISTA, JOHN | B48: =+'10-28 TUE LEX-SHAH'!E48 -> 1207 | E48: 1207
A49: FLORES HELEN | B49: =+'10-28 TUE LEX-SHAH'!E49 -> 1647 | E49: 1647
A50: GARBO RADFORD | B50: =+'10-28 TUE LEX-SHAH'!E50 -> 1624 | E50: 1624
A51: GARBO RAYMUND | B51: =+'10-28 TUE LEX-SHAH'!E51 -> 1103 | E51: 1103
A52: GONZAGA, ANITA | B52: =+'10-28 TUE LEX-SHAH'!E52 -> 1191 | E52: 1191 | F52: APRIL
A53: HARLEY CLEOFE | B53: =+'10-28 TUE LEX-SHAH'!E53 -> 0 | E53: 0
A54: JANZMILE | B54: =+'10-28 TUE LEX-SHAH'!E54 -> 2331 | E54: 2331
A55: JODAN EATERY | B55: =+'10-28 TUE LEX-SHAH'!E55 -> 50 | E55: 50
A56: LALAGUNA FAITH | B56: =+'10-28 TUE LEX-SHAH'!E56 -> 0 | E56: 0
A57: LAURENO SUSIE | B57: =+'10-28 TUE LEX-SHAH'!E57 -> 2274 | E57: 2274
A58: LAWODNON | B58: =+'10-28 TUE LEX-SHAH'!E58 -> 8332 | E58: 8332
A59: LIBERTY BAKERY | B59: =+'10-28 TUE LEX-SHAH'!E59 -> 0 | E59: 0
A60: LOLO JOFAX (2160) UNPAID | B60: =+'10-28 TUE LEX-SHAH'!E60 -> 500 | E60: 500
A61: MANALO, CHITA | B61: =+'10-28 TUE LEX-SHAH'!E61 -> 2120 | E61: 2120
A62: MANGUBAT-CAWAYAN | B62: =+'10-28 TUE LEX-SHAH'!E62 -> 1121 | E62: 1121
A63: MARABE, GUENTER | B63: =+'10-28 TUE LEX-SHAH'!E63 -> 1014 | E63: 1014
A64: MARISTELA, EMERALD | B64: =+'10-28 TUE LEX-SHAH'!E64 -> 7907 | E64: 7907
A65: MIEKOYS PIZZA | B65: =+'10-28 TUE LEX-SHAH'!E65 -> 0 | E65: 0
A66: MIGGYS BAKERY | B66: =+'10-28 TUE LEX-SHAH'!E66 -> 765 | E66: =B66+C66-D66 -> 765
A67: MORAN ANALY | B67: =+'10-28 TUE LEX-SHAH'!E67 -> 0 | E67: 0
A68: MORAN JACKILYN | B68: =+'10-28 TUE LEX-SHAH'!E68 -> 1068 | E68: 1068
A69: NARIDO RAFAEL REG | B69: =+'10-28 TUE LEX-SHAH'!E69 -> 475 | E69: 475
A70: NARIDO, REYNALDO | B70: =+'10-28 TUE LEX-SHAH'!E70 -> 475 | E70: 475
A71: NUNEZ, PERPETUA | B71: =+'10-28 TUE LEX-SHAH'!E71 -> 3831 | E71: 3831
A72: OLIVA, CELSO | B72: =+'10-28 TUE LEX-SHAH'!E72 -> 168 | E72: 168
A73: OLIVA, DOREEN | B73: =+'10-28 TUE LEX-SHAH'!E73 -> 474 | E73: 474
A74: ORBISO LIZA/NUNU | B74: =+'10-28 TUE LEX-SHAH'!E74 -> 2405 | E74: 2405
A75: ORBISO, KEILLI | B75: =+'10-28 TUE LEX-SHAH'!E75 -> 474 | E75: 474
A76: PASION VENUS | B76: =+'10-28 TUE LEX-SHAH'!E76 -> 1014 | E76: 1014
A77: PERALTA LYNDON | B77: =+'10-28 TUE LEX-SHAH'!E77 -> 40 | E77: 40
A78: PHO | B78: =+'10-28 TUE LEX-SHAH'!E78 -> 0 | E78: 0
A79: RESUENA | B79: =+'10-28 TUE LEX-SHAH'!E79 -> 4226 | E79: 4226
A80: RUELAN RONALD | B80: =+'10-28 TUE LEX-SHAH'!E80 -> 1083 | E80: 1083
A81: SALADAS SHERLY | B81: =+'10-28 TUE LEX-SHAH'!E81 -> 674 | E81: 674
A82: BANTAYAN MINDA | B82: =+'10-28 TUE LEX-SHAH'!E82 -> 0 | E82: 0
A83: SANDRA SAN JUAN | B83: =+'10-28 TUE LEX-SHAH'!E83 -> 1300 | E83: 1300
A84: TATA/NUEVO MARILOU | B84: =+'10-28 TUE LEX-SHAH'!E84 -> 10125 | E84: 10125
A85: TENORIA, MARRAH | B85: =+'10-28 TUE LEX-SHAH'!E85 -> 130 | E85: 130
A86: VILLAMOR, MARILOU (MOM) | B86: =+'10-28 TUE LEX-SHAH'!E86 -> 0 | E86: 0
A87: VILLAMOR, MARILOU (SON) | B87: =+'10-28 TUE LEX-SHAH'!E87 -> 2308 | E87: 2308
A88: VILLOCILLO JESUS | B88: =+'10-28 TUE LEX-SHAH'!E88 -> 0 | E88: 0
A89: YBANEZ ROBERTO (1115) UNPAID | B89: =+'10-28 TUE LEX-SHAH'!E89 -> 1014 | E89: 1014
A90: YKAY/NUEVO ELENA | B90: =+'10-28 TUE LEX-SHAH'!E90 -> 60890 | E90: 60890 | F90: 5 receipts 4 missing
A91: TWIN PEAK | B91: =+'10-28 TUE LEX-SHAH'!E91 -> 1084 | E91: 1084 | F91: =61050-10300 -> 50750
A92: COLLANTES | B92: =+'10-28 TUE LEX-SHAH'!E92 -> 0 | E92: 0
A93: MARYJANE CORTES | B93: =+'10-28 TUE LEX-SHAH'!E93 -> 45 | E93: 45
A94: HAPPY ROASTER | B94: =+'10-28 TUE LEX-SHAH'!E94 -> 6456 | E94: 6456
A95: JOHNRICK PACHECO | B95: =+'10-28 TUE LEX-SHAH'!E95 -> 800 | E95: 800
A96: CHARO'S CAFÉ | B96: =+'10-28 TUE LEX-SHAH'!E96 -> 25 | E96: 25
A97: LOCILLO AILYN | B97: =+'10-28 TUE LEX-SHAH'!E97 -> 0 | E97: 0
A98: OVERTYM | B98: =+'10-28 TUE LEX-SHAH'!E98 -> 0 | E98: 0
A99: HARLEY CLEOFE | B99: =+'10-28 TUE LEX-SHAH'!E99 -> 0 | E99: 0
A100: PAPILLERA M 3000 from lex | B100: =+'10-28 TUE LEX-SHAH'!E100 -> 3114 | E100: 3114
A101: BANTAYAN MINDA | B101: 525 | D101: 525 | E101: 0
A102: CITY TREASURY | B102: =+'10-28 TUE LEX-SHAH'!E102 -> 4550 | E102: 4550
A103: AMY DELA PISA | B103: =+'10-28 TUE LEX-SHAH'!E103 -> 0 | E103: 0
A104: GERARDO PRESADO | B104: =+'10-28 TUE LEX-SHAH'!E104 -> 0 | E104: 0
A105: BERNARD CARPIO | B105: =+'10-28 TUE LEX-SHAH'!E105 -> 1132 | E105: 1132
A106: CHONA MESA | B106: =+'10-28 TUE LEX-SHAH'!E106 -> 2298 | E106: 2298
A107: PASTORA VIE | B107: =+'10-28 TUE LEX-SHAH'!E107 -> 600 | E107: 600
A108: EVELYN CONRADO | B108: =+'10-28 TUE LEX-SHAH'!E108 -> 400 | E108: 400
B109: =+'10-28 TUE LEX-SHAH'!E109 -> 0 | E109: 0
A110: NENETH REYES | B110: =+'10-28 TUE LEX-SHAH'!E110 -> 693 | E110: 693
A111: JUREXEN VERDIDA | B111: =+'10-28 TUE LEX-SHAH'!E111 -> 3001 | E111: 3001
A112: VILLARANTE RENZEL | B112: =+'10-28 TUE LEX-SHAH'!E112 -> 646 | E112: 646
A113: ALMARIO MOBO BGACAY | B113: =+'10-28 TUE LEX-SHAH'!E113 -> 143 | E113: 143
A114: ALFARO | B114: =+'10-28 TUE LEX-SHAH'!E114 -> 1147 | E114: 1147
A115: JOSE CUELLO 4/24 TRADE IN | B115: =+'10-28 TUE LEX-SHAH'!E115 -> 1071 | E115: 1071
B116: =+'10-28 TUE LEX-SHAH'!E116 -> 0 | E116: 0
A117: MANLAPAZ | B117: =+'10-28 TUE LEX-SHAH'!E117 -> 1084 | E117: 1084
A118: CITY VICE NEW GAZUL | B118: =+'10-28 TUE LEX-SHAH'!E118 -> 1103 | E118: 1103
A119: EVA VERANO | B119: =+'10-28 TUE LEX-SHAH'!E119 -> 576 | E119: 576
B120: =+'10-28 TUE LEX-SHAH'!E120 -> 0 | E120: 0
A121: HAPPY ROASTER | B121: =+'10-28 TUE LEX-SHAH'!E121 -> 4276 | E121: 4276
B122: =+'10-28 TUE LEX-SHAH'!E122 -> 0 | E122: 0
B123: =+'10-28 TUE LEX-SHAH'!E123 -> 0 | E123: 0
A124: CITY VICE | B124: =+'10-28 TUE LEX-SHAH'!E124 -> 1076 | E124: 1076
A125: JEREMY SAMSON | B125: =+'10-28 TUE LEX-SHAH'!E125 -> 18800 | E125: 18800
A126: VILLANUEVA GLENDA | B126: =+'10-28 TUE LEX-SHAH'!E126 -> 1749 | E126: 1749
A127: GALLETO DOREEN | B127: =+'10-28 TUE LEX-SHAH'!E127 -> 0 | E127: 0
A128: CITIBUILDER | B128: =+'10-28 TUE LEX-SHAH'!E128 -> 1114 | E128: 1114
A129: 50kg ACCOUNT | B129: =+'10-28 TUE LEX-SHAH'!E129 -> 0 | E129: 0 | F129: 50kg ACCOUNT
A130: ABAN, JULIUS | B130: =+'10-28 TUE LEX-SHAH'!E130 -> 8660 | E130: =B130+C130-D130 -> 8660
A131: AVEGAIL LAUNDRY | B131: =+'10-28 TUE LEX-SHAH'!E131 -> 6538 | E131: 6538
A132: BACKYARD EDIBLE GARDEN | B132: =+'10-28 TUE LEX-SHAH'!E132 -> 844 | E132: 844
A133: CARIS HOTEL | B133: =+'10-28 TUE LEX-SHAH'!E133 -> 4314 | E133: 4314 | R133: ATTENDANCE AND PAYMENT | X133: =+Z155+Z161 -> 4500
A134: TEABOX | B134: =+'10-28 TUE LEX-SHAH'!E134 -> 0 | E134: 0
A135: CHAROS CAFÉ AND RESTO | B135: =+'10-28 TUE LEX-SHAH'!E135 -> 0 | E135: 0 | R135: NAMES | S135: AM | U135: PM | W135: AM HOURS | X135: PM HOURS | Y135: TOTAL HOURS | Z135: PAID | AA135: REMARKS
A136: CHERISH RESORT | B136: =+'10-28 TUE LEX-SHAH'!E136 -> 0 | E136: 0 | P136: DAYOFF | S136: IN | T136: OUT | U136: IN | V136: OUT
A137: CLORES TRESURE ISLAND | B137: =+'10-28 TUE LEX-SHAH'!E137 -> 7 | E137: 7 | P137: SATURDAY | R137: JOMARI CORTES | W137: =+(T137-S137)*24 -> 0.0 | X137: =+(V137-U137)*24 -> 0.0
A138: CONRADO / NOEL BAKERY | B138: =+'10-28 TUE LEX-SHAH'!E138 -> 10428 | E138: 10428 | P138: SUNDAY | R138: JUNREL MALIPOT | S138: 07:10:00 | T138: 12:00:00 | U138: 01:00:00 | V138: 07:00:00 | W138: =+(T138-S138)*24 -> 4.8 | X138: =+(V138-U138)*24 -> 6.0 | Z138: 500
A139: CRISPY KING CROSSING | B139: =+'10-28 TUE LEX-SHAH'!E139 -> 60 | E139: 60 | K139: CP# | O139: DRIVER | P139: SUNDAY | R139: APRIL ARENDAIN | S139: 07:10:00 | T139: 12:00:00 | U139: 01:00:00 | V139: 07:00:00 | W139: =+(T139-S139)*24 -> 4.8 | X139: =+(V146-U146)*24 -> 6.0 | Z139: 500
A140: CRISPY KING IBANEZ | B140: =+'10-28 TUE LEX-SHAH'!E140 -> 0 | E140: 0 | K140: CP# | O140: DRIVER | R140: DIONESITO BLAZO 9301238381 | W140: =+(T141-S140)*24 -> 12.0 | X140: =+(V141-U141)*24 -> 1.3 | Z140: 500
A141: CRISPY KING MARKET | B141: =+'10-28 TUE LEX-SHAH'!E141 -> 0 | E141: 0 | P141: SUNDAY | R141: RULEY GREPALDEO | S141: 10:10:00 | T141: 12:00:00 | U141: 04:40:00 | V141: 06:00:00 | W141: =+(T142-S141)*24 -> -10.2 | X141: =+(V142-U142)*24 -> 0.0 | Z141: 400
A142: CRISPY KING MOBO | B142: =+'10-28 TUE LEX-SHAH'!E142 -> 0 | E142: 0 | W142: 0.0 | X142: =+(V142-U142)*24 -> 0.0
A143: CRISPY KING CAWAYAN | B143: =+'10-28 TUE LEX-SHAH'!E143 -> 0 | E143: 0 | W143: 0.0 | X143: =+(V143-U143)*24 -> 0.0
A144: EZ CAFÉ W/CYLINDER | B144: =+'10-28 TUE LEX-SHAH'!E144 -> 0 | E144: 0 | W144: 0.0 | X144: =+(V144-U144)*24 -> 0.0
A145: FRANCE LAUNDRY | B145: =+'10-28 TUE LEX-SHAH'!E145 -> 2860 | E145: 2860 | W145: =+(T145-S145)*24 -> 0.0 | X145: =+(V145-U145)*24 -> 0.0
A146: JUAN HOUR LAUNDRY | B146: =+'10-28 TUE LEX-SHAH'!E146 -> 0 | E146: 0 | R146: SHANNAH | S146: 07:00:00 | T146: 12:00:00 | U146: 01:00:00 | V146: 07:00:00 | W146: =+(T146-S146)*24 -> 5.0 | X146: =+(V146-U146)*24 -> 6.0
A147: KATES LAUNDRY SHOP | B147: =+'10-28 TUE LEX-SHAH'!E147 -> 0 | E147: 0 | R147: NATHANIEL ALERTA | W147: 0.0 | X147: 0.0 | AA147: OFF
A148: MARKY RESTAURANT | B148: =+'10-28 TUE LEX-SHAH'!E148 -> 4001 | E148: 4001 | P148: SATURDAY | R148: ARNOLD PEPITO | S148: 07:00:00 | T148: 12:00:00 | U148: 01:00:00 | V148: 06:00:00 | W148: 5.0 | X148: 5.0 | Z148: 500
A149: MASBATE LAUNDRY SHOP | B149: =+'10-28 TUE LEX-SHAH'!E149 -> 0 | E149: 0 | K149: CP# | O149: DRIVER | P149: WEDNESDAY | R149: EVANGELISTA ROMULO | S149: 07:00:00 | T149: 12:00:00 | W149: 5.0 | X149: 0.0 | Z149: 500
A150: DAMPA | B150: =+'10-28 TUE LEX-SHAH'!E150 -> 0 | E150: 0 | R150: HAZEL | W150: 0.0 | X150: 0.0 | AA150: OFF
A151: PINOY SIOPAO | B151: =+'10-28 TUE LEX-SHAH'!E151 -> 0 | E151: 0 | P151: SUNDAY | R151: LIZET DANAO | S151: 07:00:00 | T151: 12:00:00 | U151: 01:00:00 | V151: 06:00:00 | W151: 5.0 | X151: 5.0 | Z151: 550
A152: REMS LAUNDRY | B152: =+'10-28 TUE LEX-SHAH'!E152 -> 6144 | E152: 6144 | K152: CP# | O152: DRIVER | P152: FRIDAY | R152: ARTURO PARAGAS | S152: 07:00:00 | T152: 12:00:00 | U152: 01:00:00 | V152: 06:00:00 | W152: 5.0 | X152: 5.0 | Z152: 550
A153: REYJOHN BAKERY | B153: =+'10-28 TUE LEX-SHAH'!E153 -> 0 | E153: 0 | P153: SATURDAY | R153: LEO MARCOS | S153: 07:00:00 | T153: 12:00:00 | U153: 01:00:00 | V153: 06:00:00 | W153: 5.0 | X153: 5.0 | Z153: 500
A154: ROBERTO AND ROWE | B154: =+'10-28 TUE LEX-SHAH'!E154 -> 15707 | E154: 15707 | K154: CP# | O154: DRIVER | P154: THURSDAY | R154: JULIAN DUMALAG | W154: 0.0 | X154: 0.0 | AA154: OFF
A155: ROLLING BUBBLES | B155: =+'10-28 TUE LEX-SHAH'!E155 -> 0 | E155: 0 | M155: BNNNNNNNNNNNNNNNNNNNNNNNNNNNNNNNNNNNNNNNNNNNNNNNNNNNNNNN | R155: SALARY TOTAL | Z155: =SUM(Z137:Z154) -> 4500 | AG155: SAKTO
A156: ROSEMARY EVENTS | B156: =+'10-28 TUE LEX-SHAH'!E156 -> 0 | E156: 0
A157: ROWEES AROROY | B157: =+'10-28 TUE LEX-SHAH'!E157 -> 0 | E157: 0 | AJ157: 7 | AL157: 87
A158: PALMA SHERYL/avegail laundry | B158: =+'10-28 TUE LEX-SHAH'!E158 -> 4614 | E158: 4614
A159: WENABETH JOHN BAKERY MALINTA | B159: =+'10-28 TUE LEX-SHAH'!E159 -> 4469 | E159: 4469 | F159: KULANG 100 FOR COLLCTION COCOY
A160: CRISPY KING PIER | B160: =+'10-28 TUE LEX-SHAH'!E160 -> 0 | E160: 0
A161: CRISPY KING OSMENA | B161: =+'10-28 TUE LEX-SHAH'!E161 -> 3814 | E161: 3814 | R161: EXTRA EXPENSES TOTAL | Z161: =+SUM(Z156:Z160) -> 0
A162: TUMBAGA SINALONGAN | B162: 17148 | C162: =8728+2028 -> 10,756 | E162: 27904 | F162: TUESDAY
A163: OUTLET'S | B163: =+'10-28 TUE LEX-SHAH'!E163 -> 0 | E163: 0 | F163: OUTLET'S
A164: ABANO, MICHAEL | B164: =+'10-28 TUE LEX-SHAH'!E164 -> 11380 | E164: 11380 | F164: APRIL | V164: COMMERCIAL ACCOUNT | AE164: REMINDERS
A165: ALVAREZ JENILLYN | B165: =+'10-28 TUE LEX-SHAH'!E165 -> 18750 | E165: 18750
A166: ALVAREZ, RICO 1.4 | B166: =+'10-28 TUE LEX-SHAH'!E166 -> 1330 | E166: 1330 | V166: CUSTOMER NAME | AB166: DICS | AC166: DELIVER | AE166: 9499357775 AMERA 50KG Leah Orubla Villaraiz | AM166: ALOVERA ROSEMARIE | AQ166: 20 | AR166: 15
A167: ALVAREZ, RICO A/S | B167: =+'10-28 TUE LEX-SHAH'!E167 -> 6800 | E167: 6800 | V167: 8 ALL YOU CAN/RIMONTE JOHN AUBREN | AB167: 400 | AC167: 50 | AM167: BANTAYAN MINDA | AQ167: 20 | AR167: 15
A168: BANTAYAN, LENIE | B168: =+'10-28 TUE LEX-SHAH'!E168 -> 12802 | E168: 12802 | F168: =12228-12802 -> -574 | V168: ABAN LAUNDRY / ABAN JULIUS | AB168: 300 | AC168: 50 | AM168: CORTES BABY JEAN | AQ168: 20 | AR168: 15
A169: BULALAQUE, NATHANIEL | B169: =+'10-28 TUE LEX-SHAH'!E169 -> 0 | C169: 5,095 | E169: 5095 | V169: AVEGAIL S LAUNDRY | AB169: 300 | AC169: 50 | AE169: LAWRENCE SESE 0902014314 LAND BANK
A170: CDJ/CHISA BARRUGA | B170: =+'10-28 TUE LEX-SHAH'!E170 -> 5315 | E170: 5315 | V170: BACKYARD EDIBLE GARDEN | AB170: 300 | AC170: 50
A171: COCOY SOLANE ACCOUNT | B171: =+'10-28 TUE LEX-SHAH'!E171 -> 6232 | E171: 6232 | V171: CARIS HOTEL | AB171: 300 | AC171: 50 | AM171: ESPARZA ANACITA TWIN PEAK | AQ171: 20 | AR171: 15
A172: ELMA BUNGCARAS | B172: =+'10-28 TUE LEX-SHAH'!E172 -> 10680 | E172: 10680 | V172: CHAROS CAFÉ AND RESTO (MOBO RIVER SIDE) | AB172: 0 | AC172: 50 | AE172: LAWRENCE SESE 013568000813 BDO | AM172: ESPINAS ROLANDO | AQ172: 20 | AR172: 15
A173: GADER RENATO | B173: =+'10-28 TUE LEX-SHAH'!E173 -> 16920 | E173: 16920 | J173: SENIOR DISCOUNT | P173: 15 | V173: CHERISH MOMENT RESORT | AB173: 900 | AC173: 50
A174: LOCMAYON BEGA10 (2) | B174: =+'10-28 TUE LEX-SHAH'!E174 -> 0 | E174: 0 | V174: CRISPY KING / DJJM FOOD HUB/ IBANEZ/CROSSING | AB174: 800 | AC174: 50 | AM174: FAZENDA MILAGROS | AQ174: 20 | AR174: 15
A175: SOLON VANGIE | B175: =+'10-28 TUE LEX-SHAH'!E175 -> 8670 | E175: 8670 | J175: 50KG | M175: QTY | N175: AMOUNT | P175: DISCOUNT | R175: DELIVERY CHARGE | V175: CRISPY KING / DJJM FOOD HUB/ MOBO | AB175: 700 | AC175: 50 | AE175: KUA DUTAY 09307207044
A176: ORBISO PHOEBE | B176: =+'10-28 TUE LEX-SHAH'!E176 -> 2112 | E176: 2112 | V176: CRYSPY KING / DJA CATERING SERVICES/PATING | AB176: 800 | AC176: 50
A177: ORBISO, EFILDA | B177: =+'10-28 TUE LEX-SHAH'!E177 -> 0 | E177: 0 | F177: 0288402184 DONNY | J177: 4564 | M177: 1 | N177: =+M177*J177 -> 4564 | P177: 700 | R177: 50 | V177: CRISPY KING / DJJM FOOD HUB/ OSMENA NOY BIGOL | AB177: 800 | AC177: 50
A178: PAWA VERNA MENDOZA | B178: =+'10-28 TUE LEX-SHAH'!E178 -> 1250 | E178: 1250 | S178: + | V178: CRISPY KING / DJJM FOOD HUB/ PIER NOY BIGOL | W178: =+W222 -> 0 | AB178: 800 | AC178: 50 | AE178: GMS ACCOUNT
A179: ELMA BUNCARAS | B179: =+'10-28 TUE LEX-SHAH'!E179 -> 14630 | E179: 14630 | P179: =+M177*P177 -> 700 | R179: =+M177*R177 -> 50 | V179: / DJJM CRISPY KING NOY BIGOL | AB179: 700 | AC179: 100
A180: SAMPAGA BIDA | B180: =+'10-28 TUE LEX-SHAH'!E180 -> 3816 | E180: 3816 | J180: 11KG | M180: QTY | N180: AMOUNT | P180: DISCOUNT | R180: DELIVERY CHARGE | V180: DAMPA RESTO BAR /BESMONTE MARICAR | AB180: 300 | AC180: 50
A181: SESE, ROSALIA | B181: =+'10-28 TUE LEX-SHAH'!E181 -> 34480 | E181: 34480 | V181: DR. CHESTER LEE | AB181: 900 | AC181: P/U
A182: STAR OIL RECEIVABLE | B182: =+'10-28 TUE LEX-SHAH'!E182 -> 0 | E182: 0 | J182: 1069 | N182: =+M182*J182 -> 0 | P182: 50 | R182: 15 | V182: EZ CAFÉ | AB182: 300 | AC182: 50
A183: TAYAM IRISH | B183: =+'10-28 TUE LEX-SHAH'!E183 -> 0 | E183: 0 | V183: FRANCE LAUNDRY | AB183: 700 | AC183: 50
A184: YBANEZ, NESSAR | B184: =+'10-28 TUE LEX-SHAH'!E184 -> 30 | C184: =15056+12290 -> 27,346 | E184: 27376 | P184: =+M182*P182 -> 0 | R184: =+M182*R182 -> 0 | V184: GACT CONSTRUCTION AND SUPPLY /TAYAM IRISH | AB184: 200 | AC184: 50
A185: ZUNIGA MELCHOR | B185: =+'10-28 TUE LEX-SHAH'!E185 -> 0 | E185: 0 | J185: 1.4KG | M185: QTY | N185: AMOUNT | P185: DISCOUNT | R185: DELIVERY CHARGE | V185: HIGHN'DRY LAUNDRY SERVCES | AB185: 0 | AC185: 50
A186: JENELIN ALVAREZ | B186: =+'10-28 TUE LEX-SHAH'!E186 -> 0 | E186: 0 | V186: JUAN HOUR LAUNDRY - STAIRWAY & IBANEZ | AB186: 900 | AC186: 50 | AE186: DELA PENA ANALYN/OSTED | AI186: 70 | AJ186: 9 | AM186: rey john | AQ186: 20 | AR186: 15
A187: EJJ EVANGELYN M NUGAS | B187: =+'10-28 TUE LEX-SHAH'!E187 -> 0 | E187: 0 | J187: 195 | N187: =+M187*J187 -> 0 | R187: 3 | V187: KARAON SA 18TH GRILL AND RESTO | AB187: 300 | AC187: 50 | AI187: 70 | AJ187: 15 | AM187: ROBERTO ROWIE & ROBI FOOD OPC | AQ187: 50 | AR187: 15
A188: VANGIE SOLON | B188: =+'10-28 TUE LEX-SHAH'!E188 -> 0 | E188: 0 | F188: MAY JULY P N FOR PAYMENT | V188: KATES LAUNDRYSHOP/ GUILLERMO ALINSOOT MANACILLO 11 | AB188: 700 | AC188: 50 | AM188: ROBERTO YBANEZ | AQ188: 70 | AR188: 15
A189: TICAO ACCOUNT | B189: =+'10-28 TUE LEX-SHAH'!E189 -> 0 | E189: 0 | F189: TICAO ACCOUNT | L189: =+O185*I185 -> 0 | N189: =+Q185*K185 -> 0 | O189: =+R187*M187 -> 0 | P189: =+M187*P187 -> 0 | V189: MARKY BICOL RESTAURANT | AB189: 900 | AC189: 50 | AM189: SUCUANO LORETO | AQ189: 70 | AR189: 15
A190: BAMBOO PLACE WITH 3 REGULS | B190: =+'10-28 TUE LEX-SHAH'!E190 -> 4181 | E190: 4181 | F190: ALL UNPAID | J190: CASH | M190: CHANGE | Q190: SRP FOR OCT | V190: MASBATE LAUNDRY CENTER MEDINA ST. MASBATE | AB190: 700 | AC190: 50 | AM190: TATA FRIED CHICKEN | AQ190: 70 | AR190: 15
A191: BARREDO EDGAR | B191: =+'10-28 TUE LEX-SHAH'!E191 -> 0 | E191: 0 | V191: MNV FOODHUB (CHIKICHOW) | AB191: 500 | AC191: 50 | AE191: WINWIN FRIED CHICKEN | AI191: 70 | AM191: VENUS PASION | AQ191: 70 | AR191: 15
A192: DRAGAS 6/21 | B192: =+'10-28 TUE LEX-SHAH'!E192 -> 0 | E192: 0 | F192: 3342TRANSFER TO OCGAS | J192: 10000 | M192: =J192-M201 -> 6086 | Q192: 50 KG | S192: 4564 | V192: MR. LAUNDRY - IBINGAY & CROSSING | AB192: 900 | AC192: 50 | AE192: GIGANTE ROQUE VARGAS | AI192: 70 | AJ192: 15 | AL192: TO FOLLOW | AM192: VILLAMOR MARILOU | AQ192: 70 | AR192: 15
A193: GRACE RANGEL 1.4 | B193: =+'10-28 TUE LEX-SHAH'!E193 -> 8034 | C193: 1,950 | D193: 370 | E193: 9614 | V193: MSA - DECS | AB193: 0 | AE193: GONZAGA ANITA | AI193: 70 | AJ193: 15 | AM193: WOW INASAL | AQ193: 70 | AR193: 15
A194: GRACE RANGEL AS | B194: =+'10-28 TUE LEX-SHAH'!E194 -> 17402 | C194: 5,345 | D194: =4646-370 -> 4,276 | E194: =B194+C194-D194 -> 18471 | F194: 1AS 1 DB PAID 5/29 | J194: ;. | L194: . | Q194: 11 KG | S194: 1069 | V194: NESSAR YBANEZ | AB194: 900 | AC194: 100 | AE194: JODAN EATERY | AI194: 70 | AJ194: 15 | AM194: YKAY FRIED CHICKEN | AQ194: 70 | AR194: 15
A195: LIA SESE | B195: =+'10-28 TUE LEX-SHAH'!E195 -> 11275 | E195: 11275 | F195: KULANG STOVE 4544 | J195: DELIVERY | M195: =+R189+R184+R179 -> 50 | V195: NOEL BAKERY / ANALYN CONRADO | AB195: 300 | AC195: 50 | AE195: LAWODNON | AI195: 70 | AJ195: 15 | AM195: PALMA SHERYL | AQ195: 70 | AR195: 15
A196: OC GAS ALVAREZ | B196: =+'10-28 TUE LEX-SHAH'!E196 -> 7588 | E196: 7588 | F196: =+B194+B193 -> 25436 | Q196: 1.4 KG | S196: 195 | V196: PAN DE MASBATE | AB196: 300 | AC196: 50 | AE196: LOCILLO AILLYN | AI196: 70 | AJ196: 15 | AM196: ROYO BORROW AS REGUL FOR POL TANK TIGBAO 09517207893 JEEP BABY GRACE REYMOND LEGAL
A197: OCHEA FAMILY PANDESAL | B197: =+'10-28 TUE LEX-SHAH'!E197 -> 9401 | C197: 5,345 | E197: 14746 | F197: 1AS REPLACEMENT NO CHRGE FOR RETUN FILLED | J197: DISCOUNT | M197: TOTAL | V197: PINOY SIOPAO | AB197: 300 | AC197: 50 | AJ197: 15
A198: PARK N GO | B198: =+'10-28 TUE LEX-SHAH'!E198 -> 0 | E198: 0 | V198: REMS LAUNDRY / SANDRA MEDINA | AB198: 300 | AC198: 50 | AE198: MARISTELA EMERALD | AI198: 70 | AJ198: 15
A199: THEO PANDESAL | B199: =+'10-28 TUE LEX-SHAH'!E199 -> 5063 | E199: 5063 | F199: REGUL NOT PAID | J199: =+P179+P184+P189 -> 700 | M199: =+N177+N182+N187-J199 -> 3864 | V199: REYJOHN BAKERY / RHEA DELA CRUZ OBOG | AB199: 700 | AC199: 50 | AE199: MIEKOYS PIZZA | AI199: 70 | AJ199: 15
A200: ZANDRA BEACH RESORT | B200: =+'10-28 TUE LEX-SHAH'!E200 -> 12606 | E200: 12606 | Q200: OTHER AMOUNT HERE | V200: ROLLING BUBBLES - DANAO | AB200: 700 | AC200: 50 | AE200: MIGGYS BAKERY | AI200: 70 | AJ200: 15
... 175 more rows

Sheet 10-28 TUE LEX-SHAH
B1: BEGIN | C1: UNPAID | D1: PAYMENT | E1: END | F1: CASH ADVANCE
A2: C.A APRIL ARENDAIN | B2: =+'10-27 MON LEX-SHAH'!E2 -> 2050 | E2: =B2+C2-D2 -> 2050 | P2: ENTER NUMER W/POSITIVE SIGN IF increase
A3: TIYO NOY | B3: =+'10-27 MON LEX-SHAH'!E3 -> 500 | E3: 500
A4: C.A COCOY | B4: =+'10-27 MON LEX-SHAH'!E4 -> 615 | E4: 615 | P4: ENTER NUMER W/NEGATIVE SIGN IF decrease
A5: DAVE BONA | B5: =+'10-27 MON LEX-SHAH'!E5 -> 4000 | E5: 4000
A6: C.A JOMARI CORTES | B6: =+'10-27 MON LEX-SHAH'!E6 -> 40928 | E6: 40928
A7: C.A JUNREL MALIPOT | B7: =+'10-27 MON LEX-SHAH'!E7 -> 10469 | E7: 10469
A8: C.A NATHANIEL | B8: =+'10-27 MON LEX-SHAH'!E8 -> 600 | E8: 600
A9: C.A MANANGAT CHRISTIAN | B9: =+'10-27 MON LEX-SHAH'!E9 -> 3548 | E9: 3548 | S9: =-S11*1 -> 1.300
A10: C.A SINADJAN, RAMIL | B10: =+'10-27 MON LEX-SHAH'!E10 -> 1100 | E10: 1100 | R10: 11kilos | S10: 11.000
A11: C.A VESTER | B11: =+'10-27 MON LEX-SHAH'!E11 -> 9782 | E11: 9782 | R11: ENTER NUMBER (-/+) | S11: -1.300
A12: IRENE | B12: =+'10-27 MON LEX-SHAH'!E12 -> 2000 | E12: 2000 | R12: TOTAL CHANGE | S12: =+S10*S9 -> 14.300
A13: ARTURO PARAGAS | B13: =+'10-27 MON LEX-SHAH'!E13 -> 6900 | E13: 6900 | R13: VAT | S13: =+S12*0.12 -> 1.716
A14: DONNA LUIS | B14: =+'10-27 MON LEX-SHAH'!E14 -> 3300 | E14: 3300 | R14: VAT + TOTAL CHANGE | S14: =+S12+S13 -> 16.016
A15: RULEY GREPALDIO | B15: =+'10-27 MON LEX-SHAH'!E15 -> 1076 | E15: 1076 | R15: ENTER OLD PRICE | S15: 1,076.000
A16: JULIAN | B16: =+'10-27 MON LEX-SHAH'!E16 -> 5200 | E16: 5200 | F16: JULLIAN DUMALAG | R16: NEW PRICE | S16: =+S15-S14 -> 1,059.984
A17: CA HAZEL 8/21 | B17: =+'10-27 MON LEX-SHAH'!E17 -> 1600 | E17: 1600
A18: SABIANO BERAL | B18: =+'10-27 MON LEX-SHAH'!E18 -> 5000 | E18: 5000 | S18: =-S20*1 -> 0.000
A19: LABOR ADVANCE | B19: =+'10-27 MON LEX-SHAH'!E19 -> 0 | E19: 0 | R19: 50KG | S19: 50.000
A20: NATHANIEL | B20: =+'10-27 MON LEX-SHAH'!E20 -> 3500 | E20: 3500 | F20: NAT CA 3500 | R20: ENTER NUMBER (-/+) | S20: =+P6 -> 0.000
A21: RJ DUMANGAS | B21: =+'10-27 MON LEX-SHAH'!E21 -> 1000 | E21: 1000 | R21: TOTAL CHANGE | S21: =+S19*S18 -> 0.000
A22: REGULAR | B22: =+'10-27 MON LEX-SHAH'!E22 -> 0 | E22: 0 | F22: REGULAR | R22: VAT | S22: =+S21*0.12 -> 0.000
A23: ABOYS | B23: =+'10-27 MON LEX-SHAH'!E23 -> 769 | E23: 769 | R23: VAT + TOTAL CHANGE | S23: =+S21+S22 -> 0.000
A24: ABSALON LOLITA | B24: =+'10-27 MON LEX-SHAH'!E24 -> 1000 | E24: 1000 | R24: ENTER OLD PRICE | S24: 4,719.000
A25: ALBAO, ELMER | B25: =+'10-27 MON LEX-SHAH'!E25 -> 834 | E25: 834 | R25: NEW PRICE | S25: =+S24-S23 -> 4,719.000
A26: ALOVERA ROSEMARIE | B26: =+'10-27 MON LEX-SHAH'!E26 -> 25 | E26: 25
A27: ANDAYA NELLY | B27: =+'10-27 MON LEX-SHAH'!E27 -> 1071 | E27: 1071 | S27: =-S29*1 -> 0.000
A28: AYESHA BAKERY | B28: =+'10-27 MON LEX-SHAH'!E28 -> 2105 | E28: 2105 | R28: 1.4KG | S28: 1.400
A29: BANTAYAN MINDA | B29: =+'10-27 MON LEX-SHAH'!E29 -> 168 | E29: 168 | R29: ENTER NUMBER (-/+) | S29: =+P6 -> 0.000
A30: BEGGS BAKERY | B30: =+'10-27 MON LEX-SHAH'!E30 -> 7936 | E30: 7936 | R30: TOTAL CHANGE | S30: =+S28*S27 -> 0.000
A31: BINOLIRAO, JOY | B31: =+'10-27 MON LEX-SHAH'!E31 -> 5432 | E31: 5432 | R31: VAT | S31: =+S30*0.12 -> 0.000
A32: CAFÉ KRISTINA | B32: =+'10-27 MON LEX-SHAH'!E32 -> 4226 | E32: 4226 | R32: VAT + TOTAL CHANGE | S32: =+S30+S31 -> 0.000
A33: CANTUBA PORTIA | B33: =+'10-27 MON LEX-SHAH'!E33 -> 1076 | E33: 1076 | R33: ENTER OLD PRICE | S33: 199.000
A34: CAPELLAN EMILY | B34: =+'10-27 MON LEX-SHAH'!E34 -> 588 | E34: 588 | R34: NEW PRICE | S34: =+S33-S32 -> 199.000
A35: CAPELLAN SONY | B35: =+'10-27 MON LEX-SHAH'!E35 -> 500 | E35: 500 | F35: APRIL
A36: CHEPIE/SAMSON JINKY | B36: =+'10-27 MON LEX-SHAH'!E36 -> 18660 | E36: 18660 | F36: =6000+3500+816 -> 10316
A37: CITY VICE OLD | B37: =+'10-27 MON LEX-SHAH'!E37 -> 6121 | E37: 6121
A38: CORTES BABYJANE LESS 200 | B38: =+'10-27 MON LEX-SHAH'!E38 -> 2128 | E38: 2128
A39: COSTALES, ERNESTO | B39: =+'10-27 MON LEX-SHAH'!E39 -> 25 | E39: 25
A40: DALANON, LUZ | B40: =+'10-27 MON LEX-SHAH'!E40 -> 1160 | E40: 1160
A41: DESAMERO JESS | B41: =+'10-27 MON LEX-SHAH'!E41 -> 1033 | E41: 1033
A42: DESPE, ARTUR | B42: =+'10-27 MON LEX-SHAH'!E42 -> 997 | E42: 997
A43: DIOCADO JOHNWIL ONLOAN | B43: =+'10-27 MON LEX-SHAH'!E43 -> 900 | E43: 900
A44: EMR/PANES FREDDIE / | B44: =+'10-27 MON LEX-SHAH'!E44 -> 2050 | E44: 2050
A45: EPONG CARENDERIA | B45: =+'10-27 MON LEX-SHAH'!E45 -> 1131 | E45: 1131
A46: ESPARZA ANACITA | B46: =+'10-27 MON LEX-SHAH'!E46 -> 1101 | E46: 1101
A47: ESPINAS ROLANDO | B47: =+'10-27 MON LEX-SHAH'!E47 -> 1056 | E47: 1056
A48: EVANGELISTA, JOHN | B48: =+'10-27 MON LEX-SHAH'!E48 -> 1207 | E48: 1207
A49: FLORES HELEN | B49: =+'10-27 MON LEX-SHAH'!E49 -> 1647 | E49: 1647
A50: GARBO RADFORD | B50: =+'10-27 MON LEX-SHAH'!E50 -> 1624 | E50: 1624
A51: GARBO RAYMUND | B51: =+'10-27 MON LEX-SHAH'!E51 -> 1103 | E51: 1103
A52: GONZAGA, ANITA | B52: =+'10-27 MON LEX-SHAH'!E52 -> 1191 | E52: 1191 | F52: APRIL
A53: HARLEY CLEOFE | B53: =+'10-27 MON LEX-SHAH'!E53 -> 0 | E53: 0
A54: JANZMILE | B54: =+'10-27 MON LEX-SHAH'!E54 -> 2331 | E54: 2331 | F54: APRIL
A55: JODAN EATERY | B55: =+'10-27 MON LEX-SHAH'!E55 -> 50 | E55: 50
A56: LALAGUNA FAITH | B56: =+'10-27 MON LEX-SHAH'!E56 -> 0 | E56: 0
A57: LAURENO SUSIE | B57: =+'10-27 MON LEX-SHAH'!E57 -> 2274 | E57: 2274
A58: LAWODNON | B58: =+'10-27 MON LEX-SHAH'!E58 -> 6304 | C58: 2,028 | E58: 8332
A59: LIBERTY BAKERY | B59: =+'10-27 MON LEX-SHAH'!E59 -> 0 | E59: 0
A60: LOLO JOFAX (2160) UNPAID | B60: =+'10-27 MON LEX-SHAH'!E60 -> 500 | E60: 500
A61: MANALO, CHITA | B61: =+'10-27 MON LEX-SHAH'!E61 -> 2120 | E61: 2120
A62: MANGUBAT-CAWAYAN | B62: =+'10-27 MON LEX-SHAH'!E62 -> 1121 | E62: 1121
A63: MARABE, GUENTER | B63: =+'10-27 MON LEX-SHAH'!E63 -> 1014 | E63: 1014
A64: MARISTELA, EMERALD | B64: =+'10-27 MON LEX-SHAH'!E64 -> 7907 | E64: 7907
A65: MIEKOYS PIZZA | B65: =+'10-27 MON LEX-SHAH'!E65 -> 0 | E65: 0
A66: MIGGYS BAKERY | B66: =+'10-27 MON LEX-SHAH'!E66 -> 765 | E66: =B66+C66-D66 -> 765
A67: MORAN ANALY | B67: =+'10-27 MON LEX-SHAH'!E67 -> 0 | E67: 0
A68: MORAN JACKILYN | B68: =+'10-27 MON LEX-SHAH'!E68 -> 1068 | E68: 1068
A69: NARIDO RAFAEL REG | B69: =+'10-27 MON LEX-SHAH'!E69 -> 475 | E69: 475
A70: NARIDO, REYNALDO | B70: =+'10-27 MON LEX-SHAH'!E70 -> 475 | E70: 475
A71: NUNEZ, PERPETUA | B71: =+'10-27 MON LEX-SHAH'!E71 -> 3831 | E71: 3831
A72: OLIVA, CELSO | B72: =+'10-27 MON LEX-SHAH'!E72 -> 168 | E72: 168
A73: OLIVA, DOREEN | B73: =+'10-27 MON LEX-SHAH'!E73 -> 474 | E73: 474
A74: ORBISO LIZA/NUNU | B74: =+'10-27 MON LEX-SHAH'!E74 -> 2405 | E74: 2405
A75: ORBISO, KEILLI | B75: =+'10-27 MON LEX-SHAH'!E75 -> 474 | E75: 474
A76: PASION VENUS | B76: =+'10-27 MON LEX-SHAH'!E76 -> 1014 | E76: 1014
A77: PERALTA LYNDON | B77: =+'10-27 MON LEX-SHAH'!E77 -> 40 | E77: 40
A78: PHO | B78: =+'10-27 MON LEX-SHAH'!E78 -> 0 | E78: 0
A79: RESUENA | B79: =+'10-27 MON LEX-SHAH'!E79 -> 4226 | E79: 4226
A80: RUELAN RONALD | B80: =+'10-27 MON LEX-SHAH'!E80 -> 1083 | E80: 1083
A81: SALADAS SHERLY | B81: =+'10-27 MON LEX-SHAH'!E81 -> 674 | E81: 674
A82: BANTAYAN MINDA | B82: =+'10-27 MON LEX-SHAH'!E82 -> 0 | E82: 0
A83: SANDRA SAN JUAN | B83: =+'10-27 MON LEX-SHAH'!E83 -> 1300 | E83: 1300
A84: TATA/NUEVO MARILOU | B84: =+'10-27 MON LEX-SHAH'!E84 -> 0 | C84: 10,125 | E84: 10125 | F84: TATA
A85: TENORIA, MARRAH | B85: =+'10-27 MON LEX-SHAH'!E85 -> 130 | E85: 130
A86: VILLAMOR, MARILOU (MOM) | B86: =+'10-27 MON LEX-SHAH'!E86 -> 0 | E86: 0
A87: VILLAMOR, MARILOU (SON) | B87: =+'10-27 MON LEX-SHAH'!E87 -> 2308 | E87: 2308
A88: VILLOCILLO JESUS | B88: =+'10-27 MON LEX-SHAH'!E88 -> 0 | E88: 0
A89: YBANEZ ROBERTO (1115) UNPAID | B89: =+'10-27 MON LEX-SHAH'!E89 -> 1014 | E89: 1014
A90: YKAY/NUEVO ELENA | B90: =+'10-27 MON LEX-SHAH'!E90 -> 60890 | E90: 60890 | F90: 5 receipts 4 missing
A91: TWIN PEAK | B91: =+'10-27 MON LEX-SHAH'!E91 -> 1084 | E91: 1084 | F91: =61050-10300 -> 50750
A92: COLLANTES | B92: =+'10-27 MON LEX-SHAH'!E92 -> 0 | E92: 0
A93: MARYJANE CORTES | B93: =+'10-27 MON LEX-SHAH'!E93 -> 45 | E93: 45
A94: HAPPY ROASTER | B94: =+'10-27 MON LEX-SHAH'!E94 -> 6456 | E94: 6456
A95: JOHNRICK PACHECO | B95: =+'10-27 MON LEX-SHAH'!E95 -> 800 | E95: 800
A96: CHARO'S CAFÉ | B96: =+'10-27 MON LEX-SHAH'!E96 -> 25 | E96: 25
A97: LOCILLO AILYN | B97: =+'10-27 MON LEX-SHAH'!E97 -> 0 | E97: 0
A98: OVERTYM | B98: =+'10-27 MON LEX-SHAH'!E98 -> 0 | E98: 0
A99: HARLEY CLEOFE | B99: =+'10-27 MON LEX-SHAH'!E99 -> 0 | E99: 0
A100: PAPILLERA M 3000 from lex | B100: =+'10-27 MON LEX-SHAH'!E100 -> 3114 | E100: 3114
A101: OVERTYM | B101: =+'10-27 MON LEX-SHAH'!E101 -> 0 | E101: 0
A102: CITY TREASURY | B102: =+'10-27 MON LEX-SHAH'!E102 -> 4550 | E102: 4550
A103: AMY DELA PISA | B103: =+'10-27 MON LEX-SHAH'!E103 -> 0 | E103: 0
A104: GERARDO PRESADO | B104: =+'10-27 MON LEX-SHAH'!E104 -> 0 | E104: 0
A105: BERNARD CARPIO | B105: =+'10-27 MON LEX-SHAH'!E105 -> 1132 | E105: 1132
A106: CHONA MESA | B106: =+'10-27 MON LEX-SHAH'!E106 -> 2298 | E106: 2298
A107: PASTORA VIE | B107: =+'10-27 MON LEX-SHAH'!E107 -> 600 | E107: 600
A108: EVELYN CONRADO | B108: =+'10-27 MON LEX-SHAH'!E108 -> 400 | E108: 400
B109: =+'10-27 MON LEX-SHAH'!E109 -> 0 | E109: 0
A110: NENETH REYES | B110: =+'10-27 MON LEX-SHAH'!E110 -> 693 | E110: 693
A111: JUREXEN VERDIDA | B111: =+'10-27 MON LEX-SHAH'!E111 -> 3001 | E111: 3001
A112: VILLARANTE RENZEL | B112: =+'10-27 MON LEX-SHAH'!E112 -> 646 | E112: 646
A113: ALMARIO MOBO BGACAY | B113: =+'10-27 MON LEX-SHAH'!E113 -> 143 | E113: 143
A114: ALFARO | B114: =+'10-27 MON LEX-SHAH'!E114 -> 1147 | E114: 1147
A115: JOSE CUELLO 4/24 TRADE IN | B115: =+'10-27 MON LEX-SHAH'!E115 -> 1071 | E115: 1071
B116: =+'10-27 MON LEX-SHAH'!E116 -> 0 | E116: 0
A117: MANLAPAZ | B117: =+'10-27 MON LEX-SHAH'!E117 -> 1084 | E117: 1084
A118: CITY VICE NEW GAZUL | B118: =+'10-27 MON LEX-SHAH'!E118 -> 1103 | E118: 1103
A119: EVA VERANO | B119: =+'10-27 MON LEX-SHAH'!E119 -> 576 | E119: 576
B120: =+'10-27 MON LEX-SHAH'!E120 -> 0 | E120: 0
A121: HAPPY ROASTER | B121: =+'10-27 MON LEX-SHAH'!E121 -> 4276 | E121: 4276
B122: =+'10-27 MON LEX-SHAH'!E122 -> 0 | E122: 0
B123: =+'10-27 MON LEX-SHAH'!E123 -> 0 | E123: 0
A124: CITY VICE | B124: =+'10-27 MON LEX-SHAH'!E124 -> 1076 | E124: 1076
A125: JEREMY SAMSON | B125: =+'10-27 MON LEX-SHAH'!E125 -> 18800 | E125: 18800
A126: VILLANUEVA GLENDA | B126: =+'10-27 MON LEX-SHAH'!E126 -> 1749 | E126: 1749
A127: GALLETO DOREEN | B127: =+'10-27 MON LEX-SHAH'!E127 -> 0 | E127: 0
A128: CITIBUILDER | B128: =+'10-27 MON LEX-SHAH'!E128 -> 1114 | E128: 1114
A129: 50kg ACCOUNT | B129: =+'10-27 MON LEX-SHAH'!E129 -> 0 | E129: 0 | F129: 50kg ACCOUNT
A130: ABAN, JULIUS | B130: =+'10-27 MON LEX-SHAH'!E130 -> 8660 | E130: =B130+C130-D130 -> 8660
A131: AVEGAIL LAUNDRY | B131: =+'10-27 MON LEX-SHAH'!E131 -> 6538 | E131: 6538
A132: BACKYARD EDIBLE GARDEN | B132: =+'10-27 MON LEX-SHAH'!E132 -> 844 | E132: 844
A133: CARIS HOTEL | B133: =+'10-27 MON LEX-SHAH'!E133 -> 4314 | E133: 4314 | R133: ATTENDANCE AND PAYMENT | X133: =+Z155+Z161 -> 4100
A134: TEABOX | B134: =+'10-27 MON LEX-SHAH'!E134 -> 0 | E134: 0
A135: CHAROS CAFÉ AND RESTO | B135: =+'10-27 MON LEX-SHAH'!E135 -> 0 | E135: 0 | R135: NAMES | S135: AM | U135: PM | W135: AM HOURS | X135: PM HOURS | Y135: TOTAL HOURS | Z135: PAID | AA135: REMARKS
A136: CHERISH RESORT | B136: =+'10-27 MON LEX-SHAH'!E136 -> 0 | E136: 0 | P136: DAYOFF | S136: IN | T136: OUT | U136: IN | V136: OUT
A137: CLORES TRESURE ISLAND | B137: =+'10-27 MON LEX-SHAH'!E137 -> 7 | E137: 7 | P137: SATURDAY | R137: JOMARI CORTES | W137: =+(T137-S137)*24 -> 0.0 | X137: =+(V137-U137)*24 -> 0.0
A138: CONRADO / NOEL BAKERY | B138: =+'10-27 MON LEX-SHAH'!E138 -> 3601 | C138: =4314+6114 -> 10,428 | D138: 3,601 | E138: 10428 | P138: SUNDAY | R138: JUNREL MALIPOT | S138: 07:14:00 | T138: 11:30:00 | U138: 01:00:00 | V138: 07:00:00 | W138: =+(T138-S138)*24 -> 4.3 | X138: =+(V138-U138)*24 -> 6.0 | Z138: 500
A139: CRISPY KING CROSSING | B139: =+'10-27 MON LEX-SHAH'!E139 -> 60 | E139: 60 | K139: CP# | O139: DRIVER | P139: SUNDAY | R139: APRIL ARENDAIN | S139: 07:34:00 | T139: 11:40:00 | U139: 01:00:00 | V139: 06:00:00 | W139: =+(T139-S139)*24 -> 4.1 | X139: =+(V146-U146)*24 -> 6.0 | Z139: 500
A140: CRISPY KING IBANEZ | B140: =+'10-27 MON LEX-SHAH'!E140 -> 0 | E140: 0 | K140: CP# | O140: DRIVER | R140: DIONESITO BLAZO 9301238381 | W140: =+(T141-S140)*24 -> 0.0 | X140: =+(V141-U141)*24 -> 0.0
A141: CRISPY KING MARKET | B141: =+'10-27 MON LEX-SHAH'!E141 -> 0 | E141: 0 | P141: SUNDAY | R141: RULEY GREPALDEO | W141: =+(T142-S141)*24 -> 0.0 | X141: =+(V142-U142)*24 -> 0.0
A142: CRISPY KING MOBO | B142: =+'10-27 MON LEX-SHAH'!E142 -> 0 | E142: 0 | W142: 0.0 | X142: =+(V142-U142)*24 -> 0.0
A143: CRISPY KING CAWAYAN | B143: =+'10-27 MON LEX-SHAH'!E143 -> 0 | E143: 0 | W143: 0.0 | X143: =+(V143-U143)*24 -> 0.0
A144: EZ CAFÉ W/CYLINDER | B144: =+'10-27 MON LEX-SHAH'!E144 -> 0 | E144: 0 | W144: 0.0 | X144: =+(V144-U144)*24 -> 0.0
A145: FRANCE LAUNDRY | B145: =+'10-27 MON LEX-SHAH'!E145 -> 2860 | E145: 2860 | W145: =+(T145-S145)*24 -> 0.0 | X145: =+(V145-U145)*24 -> 0.0
A146: JUAN HOUR LAUNDRY | B146: =+'10-27 MON LEX-SHAH'!E146 -> 0 | E146: 0 | R146: SHANNAH | S146: 07:00:00 | T146: 12:00:00 | U146: 01:00:00 | V146: 07:00:00 | W146: =+(T146-S146)*24 -> 5.0 | X146: =+(V146-U146)*24 -> 6.0
A147: KATES LAUNDRY SHOP | B147: =+'10-27 MON LEX-SHAH'!E147 -> 0 | E147: 0 | R147: NATHANIEL ALERTA | S147: 07:00:00 | T147: 12:00:00 | U147: 01:00:00 | V147: 06:00:00 | W147: 5.0 | X147: 5.0 | Z147: 500
A148: MARKY RESTAURANT | B148: =+'10-27 MON LEX-SHAH'!E148 -> 4001 | E148: 4001 | P148: SATURDAY | R148: ARNOLD PEPITO | S148: 07:00:00 | T148: 12:00:00 | U148: 01:00:00 | V148: 06:00:00 | W148: 5.0 | X148: 5.0 | Z148: 500
A149: MASBATE LAUNDRY SHOP | B149: =+'10-27 MON LEX-SHAH'!E149 -> 0 | E149: 0 | K149: CP# | O149: DRIVER | P149: WEDNESDAY | R149: EVANGELISTA ROMULO | S149: 07:00:00 | T149: 12:00:00 | U149: 01:00:00 | V149: 06:00:00 | W149: 5.0 | X149: 5.0 | Z149: 500
A150: DAMPA | B150: =+'10-27 MON LEX-SHAH'!E150 -> 0 | E150: 0 | R150: HAZEL | W150: 0.0 | X150: 0.0 | AA150: OFF
A151: PINOY SIOPAO | B151: =+'10-27 MON LEX-SHAH'!E151 -> 0 | E151: 0 | P151: SUNDAY | R151: LIZET DANAO | S151: 07:00:00 | T151: 12:00:00 | U151: 01:00:00 | V151: 06:00:00 | W151: 5.0 | X151: 5.0 | Z151: 550
A152: REMS LAUNDRY | B152: =+'10-27 MON LEX-SHAH'!E152 -> 6144 | E152: 6144 | F152: APRIL | K152: CP# | O152: DRIVER | P152: FRIDAY | R152: ARTURO PARAGAS | S152: 07:00:00 | T152: 11:40:00 | U152: 01:00:00 | V152: 06:00:00 | W152: 4.7 | X152: 5.0 | Z152: 550
A153: REYJOHN BAKERY | B153: =+'10-27 MON LEX-SHAH'!E153 -> 0 | E153: 0 | P153: SATURDAY | R153: LEO MARCOS | S153: 07:00:00 | T153: 12:00:00 | U153: 01:00:00 | V153: 06:00:00 | W153: 5.0 | X153: 5.0 | Z153: 500
A154: ROBERTO AND ROWE | B154: =+'10-27 MON LEX-SHAH'!E154 -> 15707 | E154: 15707 | K154: CP# | O154: DRIVER | P154: THURSDAY | R154: JULIAN DUMALAG | W154: 0.0 | X154: 0.0 | AA154: OFF
A155: ROLLING BUBBLES | B155: =+'10-27 MON LEX-SHAH'!E155 -> 0 | E155: 0 | M155: BNNNNNNNNNNNNNNNNNNNNNNNNNNNNNNNNNNNNNNNNNNNNNNNNNNNNNNN | R155: SALARY TOTAL | Z155: =SUM(Z137:Z154) -> 4100 | AG155: SAKTO
A156: ROSEMARY EVENTS | B156: =+'10-27 MON LEX-SHAH'!E156 -> 0 | E156: 0
A157: ROWEES AROROY | B157: =+'10-27 MON LEX-SHAH'!E157 -> 0 | E157: 0 | AJ157: 7 | AL157: 87
A158: PALMA SHERYL/avegail laundry | B158: =+'10-27 MON LEX-SHAH'!E158 -> 4614 | E158: 4614
A159: WENABETH JOHN BAKERY MALINTA | B159: =+'10-27 MON LEX-SHAH'!E159 -> 4469 | E159: 4469 | F159: KULANG 100 FOR COLLCTION COCOY
A160: CRISPY KING PIER | B160: =+'10-27 MON LEX-SHAH'!E160 -> 0 | E160: 0
A161: CRISPY KING OSMENA | B161: =+'10-27 MON LEX-SHAH'!E161 -> 0 | C161: 3,814 | E161: 3814 | F161: APRIL | R161: EXTRA EXPENSES TOTAL | Z161: =+SUM(Z156:Z160) -> 0
A162: TUMBAGA SINALONGAN | B162: =+'10-27 MON LEX-SHAH'!E162 -> 16896 | E162: 16896 | F162: TUESDAY
A163: OUTLET'S | B163: =+'10-27 MON LEX-SHAH'!E163 -> 0 | E163: 0 | F163: OUTLET'S
A164: ABANO, MICHAEL | B164: =+'10-27 MON LEX-SHAH'!E164 -> 11380 | E164: 11380 | F164: APRIL | V164: COMMERCIAL ACCOUNT | AE164: REMINDERS
A165: ALVAREZ JENILLYN | B165: =+'10-27 MON LEX-SHAH'!E165 -> 18750 | E165: 18750
A166: ALVAREZ, RICO 1.4 | B166: =+'10-27 MON LEX-SHAH'!E166 -> 1330 | E166: 1330 | V166: CUSTOMER NAME | AB166: DICS | AC166: DELIVER | AE166: 9499357775 AMERA 50KG Leah Orubla Villaraiz | AM166: ALOVERA ROSEMARIE | AQ166: 20 | AR166: 15
A167: ALVAREZ, RICO A/S | B167: =+'10-27 MON LEX-SHAH'!E167 -> 6800 | E167: 6800 | V167: 8 ALL YOU CAN/RIMONTE JOHN AUBREN | AB167: 400 | AC167: 50 | AM167: BANTAYAN MINDA | AQ167: 20 | AR167: 15
A168: BANTAYAN, LENIE | B168: =+'10-27 MON LEX-SHAH'!E168 -> 12802 | C168: 12,228 | D168: 12,228 | E168: 12802 | V168: ABAN LAUNDRY / ABAN JULIUS | AB168: 300 | AC168: 50 | AM168: CORTES BABY JEAN | AQ168: 20 | AR168: 15
A169: BULALAQUE, NATHANIEL | B169: =+'10-27 MON LEX-SHAH'!E169 -> 0 | E169: 0 | V169: AVEGAIL S LAUNDRY | AB169: 300 | AC169: 50 | AE169: LAWRENCE SESE 0902014314 LAND BANK
A170: CDJ/CHISA BARRUGA | B170: =+'10-27 MON LEX-SHAH'!E170 -> 5315 | E170: 5315 | V170: BACKYARD EDIBLE GARDEN | AB170: 300 | AC170: 50
A171: COCOY SOLANE ACCOUNT | B171: =+'10-27 MON LEX-SHAH'!E171 -> 6232 | E171: 6232 | V171: CARIS HOTEL | AB171: 300 | AC171: 50 | AM171: ESPARZA ANACITA TWIN PEAK | AQ171: 20 | AR171: 15
A172: ELMA BUNGCARAS | B172: =+'10-27 MON LEX-SHAH'!E172 -> 10680 | E172: 10680 | V172: CHAROS CAFÉ AND RESTO (MOBO RIVER SIDE) | AB172: 0 | AC172: 50 | AE172: LAWRENCE SESE 013568000813 BDO | AM172: ESPINAS ROLANDO | AQ172: 20 | AR172: 15
A173: GADER RENATO | B173: =+'10-27 MON LEX-SHAH'!E173 -> 16920 | E173: 16920 | J173: SENIOR DISCOUNT | P173: 15 | V173: CHERISH MOMENT RESORT | AB173: 900 | AC173: 50
A174: LOCMAYON BEGA10 (2) | B174: =+'10-27 MON LEX-SHAH'!E174 -> 0 | E174: 0 | V174: CRISPY KING / DJJM FOOD HUB/ IBANEZ/CROSSING | AB174: 800 | AC174: 50 | AM174: FAZENDA MILAGROS | AQ174: 20 | AR174: 15
A175: SOLON VANGIE | B175: =+'10-27 MON LEX-SHAH'!E175 -> 8670 | E175: 8670 | J175: 50KG | M175: QTY | N175: AMOUNT | P175: DISCOUNT | R175: DELIVERY CHARGE | V175: CRISPY KING / DJJM FOOD HUB/ MOBO | AB175: 700 | AC175: 50 | AE175: KUA DUTAY 09307207044
A176: ORBISO PHOEBE | B176: =+'10-27 MON LEX-SHAH'!E176 -> 2112 | E176: 2112 | V176: CRYSPY KING / DJA CATERING SERVICES/PATING | AB176: 800 | AC176: 50
A177: ORBISO, EFILDA | B177: =+'10-27 MON LEX-SHAH'!E177 -> 0 | E177: 0 | J177: 4564 | N177: =+M177*J177 -> 0 | P177: 300 | V177: CRISPY KING / DJJM FOOD HUB/ OSMENA NOY BIGOL | AB177: 800 | AC177: 50
A178: PAWA VERNA MENDOZA | B178: =+'10-27 MON LEX-SHAH'!E178 -> 1250 | E178: 1250 | S178: + | V178: CRISPY KING / DJJM FOOD HUB/ PIER NOY BIGOL | W178: =+W222 -> 0 | AB178: 800 | AC178: 50 | AE178: GMS ACCOUNT
A179: ELMA BUNCARAS | B179: =+'10-27 MON LEX-SHAH'!E179 -> 16630 | D179: 2,000 | E179: 14630 | P179: =+M177*P177 -> 0 | R179: =+M177*R177 -> 0 | V179: / DJJM CRISPY KING NOY BIGOL | AB179: 700 | AC179: 100
A180: SAMPAGA BIDA | B180: =+'10-27 MON LEX-SHAH'!E180 -> 3816 | E180: 3816 | J180: 11KG | M180: QTY | N180: AMOUNT | P180: DISCOUNT | R180: DELIVERY CHARGE | V180: DAMPA RESTO BAR /BESMONTE MARICAR | AB180: 300 | AC180: 50
A181: SESE, ROSALIA | B181: =+'10-27 MON LEX-SHAH'!E181 -> 34480 | E181: 34480 | V181: DR. CHESTER LEE | AB181: 900 | AC181: P/U
A182: STAR OIL RECEIVABLE | B182: =+'10-27 MON LEX-SHAH'!E182 -> 0 | E182: 0 | J182: 1076 | M182: 12 | N182: =+M182*J182 -> 12912 | P182: 50 | V182: EZ CAFÉ | AB182: 300 | AC182: 50
A183: TAYAM IRISH | B183: =+'10-27 MON LEX-SHAH'!E183 -> 0 | E183: 0 | V183: FRANCE LAUNDRY | AB183: 700 | AC183: 50
A184: YBANEZ, NESSAR | B184: =+'10-27 MON LEX-SHAH'!E184 -> 30 | E184: 30 | P184: =+M182*P182 -> 600 | R184: =+M182*R182 -> 0 | V184: GACT CONSTRUCTION AND SUPPLY /TAYAM IRISH | AB184: 200 | AC184: 50
A185: ZUNIGA MELCHOR | B185: =+'10-27 MON LEX-SHAH'!E185 -> 0 | E185: 0 | J185: 1.4KG | M185: QTY | N185: AMOUNT | P185: DISCOUNT | R185: DELIVERY CHARGE | V185: HIGHN'DRY LAUNDRY SERVCES | AB185: 0 | AC185: 50
A186: JENELIN ALVAREZ | B186: =+'10-27 MON LEX-SHAH'!E186 -> 0 | E186: 0 | V186: JUAN HOUR LAUNDRY - STAIRWAY & IBANEZ | AB186: 900 | AC186: 50 | AE186: DELA PENA ANALYN/OSTED | AI186: 70 | AJ186: 9 | AM186: rey john | AQ186: 20 | AR186: 15
A187: EJJ EVANGELYN M NUGAS | B187: =+'10-27 MON LEX-SHAH'!E187 -> 0 | E187: 0 | J187: 195 | N187: =+M187*J187 -> 0 | V187: KARAON SA 18TH GRILL AND RESTO | AB187: 300 | AC187: 50 | AI187: 70 | AJ187: 15 | AM187: ROBERTO ROWIE & ROBI FOOD OPC | AQ187: 50 | AR187: 15
A188: VANGIE SOLON | B188: =+'10-27 MON LEX-SHAH'!E188 -> 0 | E188: 0 | F188: MAY JULY P N FOR PAYMENT | V188: KATES LAUNDRYSHOP/ GUILLERMO ALINSOOT MANACILLO 11 | AB188: 700 | AC188: 50 | AM188: ROBERTO YBANEZ | AQ188: 70 | AR188: 15
A189: TICAO ACCOUNT | B189: =+'10-27 MON LEX-SHAH'!E189 -> 0 | E189: 0 | F189: TICAO ACCOUNT | L189: =+O185*I185 -> 0 | N189: =+Q185*K185 -> 0 | O189: =+R187*M187 -> 0 | P189: =+M187*P187 -> 0 | V189: MARKY BICOL RESTAURANT | AB189: 900 | AC189: 50 | AM189: SUCUANO LORETO | AQ189: 70 | AR189: 15
A190: BAMBOO PLACE WITH 3 REGULS | B190: =+'10-27 MON LEX-SHAH'!E190 -> 4181 | E190: 4181 | F190: ALL UNPAID | J190: CASH | M190: CHANGE | Q190: SRP FOR OCT | V190: MASBATE LAUNDRY CENTER MEDINA ST. MASBATE | AB190: 700 | AC190: 50 | AM190: TATA FRIED CHICKEN | AQ190: 70 | AR190: 15
A191: BARREDO EDGAR | B191: =+'10-27 MON LEX-SHAH'!E191 -> 0 | E191: 0 | V191: MNV FOODHUB (CHIKICHOW) | AB191: 500 | AC191: 50 | AE191: WINWIN FRIED CHICKEN | AI191: 70 | AM191: VENUS PASION | AQ191: 70 | AR191: 15
A192: DRAGAS 6/21 | B192: =+'10-27 MON LEX-SHAH'!E192 -> 0 | E192: 0 | F192: 3342TRANSFER TO OCGAS | J192: 10000 | M192: =J192-M201 -> -2312 | Q192: 50 KG | S192: 4564 | V192: MR. LAUNDRY - IBINGAY & CROSSING | AB192: 900 | AC192: 50 | AE192: GIGANTE ROQUE VARGAS | AI192: 70 | AJ192: 15 | AL192: TO FOLLOW | AM192: VILLAMOR MARILOU | AQ192: 70 | AR192: 15
A193: GRACE RANGEL 1.4 | B193: =+'10-27 MON LEX-SHAH'!E193 -> 8034 | E193: 8034 | V193: MSA - DECS | AB193: 0 | AE193: GONZAGA ANITA | AI193: 70 | AJ193: 15 | AM193: WOW INASAL | AQ193: 70 | AR193: 15
A194: GRACE RANGEL AS | B194: =+'10-27 MON LEX-SHAH'!E194 -> 17402 | E194: =B194+C194-D194 -> 17402 | F194: 1AS 1 DB PAID 5/29 | J194: ;. | L194: . | Q194: 11 KG | S194: 1069 | V194: NESSAR YBANEZ | AB194: 900 | AC194: 100 | AE194: JODAN EATERY | AI194: 70 | AJ194: 15 | AM194: YKAY FRIED CHICKEN | AQ194: 70 | AR194: 15
A195: LIA SESE | B195: =+'10-27 MON LEX-SHAH'!E195 -> 11275 | E195: 11275 | F195: KULANG STOVE 4544 | J195: DELIVERY | M195: =+R189+R184+R179 -> 0 | V195: NOEL BAKERY / ANALYN CONRADO | AB195: 300 | AC195: 50 | AE195: LAWODNON | AI195: 70 | AJ195: 15 | AM195: PALMA SHERYL | AQ195: 70 | AR195: 15
A196: OC GAS ALVAREZ | B196: =+'10-27 MON LEX-SHAH'!E196 -> 7588 | E196: 7588 | F196: =+B194+B193 -> 25436 | Q196: 1.4 KG | S196: 195 | V196: PAN DE MASBATE | AB196: 300 | AC196: 50 | AE196: LOCILLO AILLYN | AI196: 70 | AJ196: 15 | AM196: ROYO BORROW AS REGUL FOR POL TANK TIGBAO 09517207893 JEEP BABY GRACE REYMOND LEGAL
A197: OCHEA FAMILY PANDESAL | B197: =+'10-27 MON LEX-SHAH'!E197 -> 9401 | E197: 9401 | F197: 1AS REPLACEMENT NO CHRGE FOR RETUN FILLED | J197: DISCOUNT | M197: TOTAL | V197: PINOY SIOPAO | AB197: 300 | AC197: 50 | AJ197: 15
A198: PARK N GO | B198: =+'10-27 MON LEX-SHAH'!E198 -> 0 | E198: 0 | V198: REMS LAUNDRY / SANDRA MEDINA | AB198: 300 | AC198: 50 | AE198: MARISTELA EMERALD | AI198: 70 | AJ198: 15
A199: THEO PANDESAL | B199: =+'10-27 MON LEX-SHAH'!E199 -> 5063 | E199: 5063 | F199: REGUL NOT PAID | J199: =+P179+P184+P189 -> 600 | M199: =+N177+N182+N187-J199 -> 12312 | V199: REYJOHN BAKERY / RHEA DELA CRUZ OBOG | AB199: 700 | AC199: 50 | AE199: MIEKOYS PIZZA | AI199: 70 | AJ199: 15
A200: ZANDRA BEACH RESORT | B200: =+'10-27 MON LEX-SHAH'!E200 -> 12606 | E200: 12606 | Q200: OTHER AMOUNT HERE | V200: ROLLING BUBBLES - DANAO | AB200: 700 | AC200: 50 | AE200: MIGGYS BAKERY | AI200: 70 | AJ200: 15
... 175 more rows

Sheet 10-27 MON LEX-SHAH
B1: BEGIN | C1: UNPAID | D1: PAYMENT | E1: END | F1: CASH ADVANCE
A2: C.A APRIL ARENDAIN | B2: =+'10-26 SUN LEX-HAZEL OVWE 4559'!E2 -> 2050 | E2: =B2+C2-D2 -> 2050 | P2: ENTER NUMER W/POSITIVE SIGN IF increase
A3: TIYO NOY | B3: =+'10-26 SUN LEX-HAZEL OVWE 4559'!E3 -> 500 | E3: 500
A4: C.A COCOY | B4: =+'10-26 SUN LEX-HAZEL OVWE 4559'!E4 -> 615 | E4: 615 | P4: ENTER NUMER W/NEGATIVE SIGN IF decrease
A5: DAVE BONA | B5: =+'10-26 SUN LEX-HAZEL OVWE 4559'!E5 -> 4000 | E5: 4000
A6: C.A JOMARI CORTES | B6: =+'10-26 SUN LEX-HAZEL OVWE 4559'!E6 -> 40928 | E6: 40928
A7: C.A JUNREL MALIPOT | B7: =+'10-26 SUN LEX-HAZEL OVWE 4559'!E7 -> 10469 | E7: 10469
A8: C.A NATHANIEL | B8: =+'10-26 SUN LEX-HAZEL OVWE 4559'!E8 -> 600 | E8: 600
A9: C.A MANANGAT CHRISTIAN | B9: =+'10-26 SUN LEX-HAZEL OVWE 4559'!E9 -> 3548 | E9: 3548 | S9: =-S11*1 -> 1.300
A10: C.A SINADJAN, RAMIL | B10: =+'10-26 SUN LEX-HAZEL OVWE 4559'!E10 -> 1100 | E10: 1100 | R10: 11kilos | S10: 11.000
A11: C.A VESTER | B11: =+'10-26 SUN LEX-HAZEL OVWE 4559'!E11 -> 9782 | E11: 9782 | R11: ENTER NUMBER (-/+) | S11: -1.300
A12: IRENE | B12: =+'10-26 SUN LEX-HAZEL OVWE 4559'!E12 -> 2000 | E12: 2000 | R12: TOTAL CHANGE | S12: =+S10*S9 -> 14.300
A13: ARTURO PARAGAS | B13: =+'10-26 SUN LEX-HAZEL OVWE 4559'!E13 -> 6900 | E13: 6900 | R13: VAT | S13: =+S12*0.12 -> 1.716
A14: DONNA LUIS | B14: =+'10-26 SUN LEX-HAZEL OVWE 4559'!E14 -> 3300 | E14: 3300 | R14: VAT + TOTAL CHANGE | S14: =+S12+S13 -> 16.016
A15: RULEY GREPALDIO | B15: =+'10-26 SUN LEX-HAZEL OVWE 4559'!E15 -> 1076 | E15: 1076 | R15: ENTER OLD PRICE | S15: 1,076.000
A16: JULIAN | B16: =+'10-26 SUN LEX-HAZEL OVWE 4559'!E16 -> 5200 | E16: 5200 | F16: JULLIAN DUMALAG | R16: NEW PRICE | S16: =+S15-S14 -> 1,059.984
A17: CA HAZEL 8/21 | B17: =+'10-26 SUN LEX-HAZEL OVWE 4559'!E17 -> 1600 | E17: 1600
A18: SABIANO BERAL | B18: =+'10-26 SUN LEX-HAZEL OVWE 4559'!E18 -> 5000 | E18: 5000 | S18: =-S20*1 -> 0.000
A19: LABOR ADVANCE | B19: =+'10-26 SUN LEX-HAZEL OVWE 4559'!E19 -> 0 | E19: 0 | R19: 50KG | S19: 50.000
A20: NATHANIEL | B20: =+'10-26 SUN LEX-HAZEL OVWE 4559'!E20 -> 3500 | E20: 3500 | F20: NAT CA 3500 | R20: ENTER NUMBER (-/+) | S20: =+P6 -> 0.000
A21: RJ DUMANGAS | B21: =+'10-26 SUN LEX-HAZEL OVWE 4559'!E21 -> 1000 | E21: 1000 | R21: TOTAL CHANGE | S21: =+S19*S18 -> 0.000
A22: REGULAR | B22: =+'10-26 SUN LEX-HAZEL OVWE 4559'!E22 -> 0 | E22: 0 | F22: REGULAR | R22: VAT | S22: =+S21*0.12 -> 0.000
A23: ABOYS | B23: =+'10-26 SUN LEX-HAZEL OVWE 4559'!E23 -> 769 | E23: 769 | R23: VAT + TOTAL CHANGE | S23: =+S21+S22 -> 0.000
A24: ABSALON LOLITA | B24: =+'10-26 SUN LEX-HAZEL OVWE 4559'!E24 -> 1000 | E24: 1000 | R24: ENTER OLD PRICE | S24: 4,719.000
A25: ALBAO, ELMER | B25: =+'10-26 SUN LEX-HAZEL OVWE 4559'!E25 -> 834 | E25: 834 | R25: NEW PRICE | S25: =+S24-S23 -> 4,719.000
A26: ALOVERA ROSEMARIE | B26: =+'10-26 SUN LEX-HAZEL OVWE 4559'!E26 -> 25 | E26: 25
A27: ANDAYA NELLY | B27: =+'10-26 SUN LEX-HAZEL OVWE 4559'!E27 -> 1071 | E27: 1071 | S27: =-S29*1 -> 0.000
A28: AYESHA BAKERY | B28: =+'10-26 SUN LEX-HAZEL OVWE 4559'!E28 -> 2105 | E28: 2105 | R28: 1.4KG | S28: 1.400
A29: BANTAYAN MINDA | B29: =+'10-26 SUN LEX-HAZEL OVWE 4559'!E29 -> 168 | E29: 168 | R29: ENTER NUMBER (-/+) | S29: =+P6 -> 0.000
A30: BEGGS BAKERY | B30: =+'10-26 SUN LEX-HAZEL OVWE 4559'!E30 -> 7936 | E30: 7936 | R30: TOTAL CHANGE | S30: =+S28*S27 -> 0.000
A31: BINOLIRAO, JOY | B31: =+'10-26 SUN LEX-HAZEL OVWE 4559'!E31 -> 5432 | E31: 5432 | R31: VAT | S31: =+S30*0.12 -> 0.000
A32: CAFÉ KRISTINA | B32: =+'10-26 SUN LEX-HAZEL OVWE 4559'!E32 -> 4226 | E32: 4226 | R32: VAT + TOTAL CHANGE | S32: =+S30+S31 -> 0.000
A33: CANTUBA PORTIA | B33: =+'10-26 SUN LEX-HAZEL OVWE 4559'!E33 -> 1076 | E33: 1076 | R33: ENTER OLD PRICE | S33: 199.000
A34: CAPELLAN EMILY | B34: =+'10-26 SUN LEX-HAZEL OVWE 4559'!E34 -> 588 | E34: 588 | R34: NEW PRICE | S34: =+S33-S32 -> 199.000
A35: CAPELLAN SONY | B35: =+'10-26 SUN LEX-HAZEL OVWE 4559'!E35 -> 500 | E35: 500
A36: CHEPIE/SAMSON JINKY | B36: =+'10-26 SUN LEX-HAZEL OVWE 4559'!E36 -> 0 | C36: 18,660 | E36: 18660 | F36: =6000+3500+816 -> 10316
A37: CITY VICE OLD | B37: =+'10-26 SUN LEX-HAZEL OVWE 4559'!E37 -> 6121 | E37: 6121
A38: CORTES BABYJANE LESS 200 | B38: =+'10-26 SUN LEX-HAZEL OVWE 4559'!E38 -> 2128 | E38: 2128
A39: COSTALES, ERNESTO | B39: =+'10-26 SUN LEX-HAZEL OVWE 4559'!E39 -> 25 | E39: 25
A40: DALANON, LUZ | B40: =+'10-26 SUN LEX-HAZEL OVWE 4559'!E40 -> 1160 | E40: 1160
A41: DESAMERO JESS | B41: =+'10-26 SUN LEX-HAZEL OVWE 4559'!E41 -> 1033 | E41: 1033
A42: DESPE, ARTUR | B42: =+'10-26 SUN LEX-HAZEL OVWE 4559'!E42 -> 997 | E42: 997
A43: DIOCADO JOHNWIL ONLOAN | B43: =+'10-26 SUN LEX-HAZEL OVWE 4559'!E43 -> 900 | E43: 900
A44: EMR/PANES FREDDIE / | B44: =+'10-26 SUN LEX-HAZEL OVWE 4559'!E44 -> 2050 | E44: 2050
A45: EPONG CARENDERIA | B45: =+'10-26 SUN LEX-HAZEL OVWE 4559'!E45 -> 1131 | E45: 1131
A46: ESPARZA ANACITA | B46: =+'10-26 SUN LEX-HAZEL OVWE 4559'!E46 -> 1101 | E46: 1101
A47: ESPINAS ROLANDO | B47: =+'10-26 SUN LEX-HAZEL OVWE 4559'!E47 -> 1056 | E47: 1056
A48: EVANGELISTA, JOHN | B48: =+'10-26 SUN LEX-HAZEL OVWE 4559'!E48 -> 1207 | E48: 1207
A49: FLORES HELEN | B49: =+'10-26 SUN LEX-HAZEL OVWE 4559'!E49 -> 1647 | E49: 1647
A50: GARBO RADFORD | B50: =+'10-26 SUN LEX-HAZEL OVWE 4559'!E50 -> 1624 | E50: 1624
A51: GARBO RAYMUND | B51: =+'10-26 SUN LEX-HAZEL OVWE 4559'!E51 -> 1103 | E51: 1103
A52: GONZAGA, ANITA | B52: =+'10-26 SUN LEX-HAZEL OVWE 4559'!E52 -> 1191 | E52: 1191 | F52: APRIL
A53: HARLEY CLEOFE | B53: =+'10-26 SUN LEX-HAZEL OVWE 4559'!E53 -> 0 | E53: 0
A54: JANZMILE | B54: =+'10-26 SUN LEX-HAZEL OVWE 4559'!E54 -> 2331 | E54: 2331
A55: JODAN EATERY | B55: =+'10-26 SUN LEX-HAZEL OVWE 4559'!E55 -> 50 | E55: 50
A56: LALAGUNA FAITH | B56: =+'10-26 SUN LEX-HAZEL OVWE 4559'!E56 -> 0 | E56: 0
A57: LAURENO SUSIE | B57: =+'10-26 SUN LEX-HAZEL OVWE 4559'!E57 -> 2274 | E57: 2274
A58: LAWODNON | B58: =+'10-26 SUN LEX-HAZEL OVWE 4559'!E58 -> 6304 | E58: 6304
A59: LIBERTY BAKERY | B59: =+'10-26 SUN LEX-HAZEL OVWE 4559'!E59 -> 0 | E59: 0
A60: LOLO JOFAX (2160) UNPAID | B60: =+'10-26 SUN LEX-HAZEL OVWE 4559'!E60 -> 500 | E60: 500
A61: MANALO, CHITA | B61: =+'10-26 SUN LEX-HAZEL OVWE 4559'!E61 -> 2120 | E61: 2120
A62: MANGUBAT-CAWAYAN | B62: =+'10-26 SUN LEX-HAZEL OVWE 4559'!E62 -> 1121 | E62: 1121
A63: MARABE, GUENTER | B63: =+'10-26 SUN LEX-HAZEL OVWE 4559'!E63 -> 1014 | C63: 1,064 | D63: 1,064 | E63: 1014
A64: MARISTELA, EMERALD | B64: =+'10-26 SUN LEX-HAZEL OVWE 4559'!E64 -> 7907 | E64: 7907
A65: MIEKOYS PIZZA | B65: =+'10-26 SUN LEX-HAZEL OVWE 4559'!E65 -> 0 | E65: 0
A66: MIGGYS BAKERY | B66: =+'10-26 SUN LEX-HAZEL OVWE 4559'!E66 -> 765 | E66: =B66+C66-D66 -> 765
A67: MORAN ANALY | B67: =+'10-26 SUN LEX-HAZEL OVWE 4559'!E67 -> 0 | E67: 0
A68: MORAN JACKILYN | B68: =+'10-26 SUN LEX-HAZEL OVWE 4559'!E68 -> 1068 | E68: 1068
A69: NARIDO RAFAEL REG | B69: =+'10-26 SUN LEX-HAZEL OVWE 4559'!E69 -> 475 | E69: 475
A70: NARIDO, REYNALDO | B70: =+'10-26 SUN LEX-HAZEL OVWE 4559'!E70 -> 475 | E70: 475
A71: NUNEZ, PERPETUA | B71: =+'10-26 SUN LEX-HAZEL OVWE 4559'!E71 -> 3831 | E71: 3831
A72: OLIVA, CELSO | B72: =+'10-26 SUN LEX-HAZEL OVWE 4559'!E72 -> 168 | E72: 168
A73: OLIVA, DOREEN | B73: =+'10-26 SUN LEX-HAZEL OVWE 4559'!E73 -> 474 | E73: 474
A74: ORBISO LIZA/NUNU | B74: =+'10-26 SUN LEX-HAZEL OVWE 4559'!E74 -> 2405 | E74: 2405
A75: ORBISO, KEILLI | B75: =+'10-26 SUN LEX-HAZEL OVWE 4559'!E75 -> 474 | E75: 474
A76: PASION VENUS | B76: =+'10-26 SUN LEX-HAZEL OVWE 4559'!E76 -> 1014 | E76: 1014
A77: PERALTA LYNDON | B77: =+'10-26 SUN LEX-HAZEL OVWE 4559'!E77 -> 40 | E77: 40
A78: PHO | B78: =+'10-26 SUN LEX-HAZEL OVWE 4559'!E78 -> 0 | E78: 0
A79: RESUENA | B79: =+'10-26 SUN LEX-HAZEL OVWE 4559'!E79 -> 4226 | E79: 4226
A80: RUELAN RONALD | B80: =+'10-26 SUN LEX-HAZEL OVWE 4559'!E80 -> 1083 | E80: 1083
A81: SALADAS SHERLY | B81: =+'10-26 SUN LEX-HAZEL OVWE 4559'!E81 -> 674 | E81: 674
A82: BANTAYAN MINDA | B82: =+'10-26 SUN LEX-HAZEL OVWE 4559'!E82 -> 0 | E82: 0
A83: SANDRA SAN JUAN | B83: =+'10-26 SUN LEX-HAZEL OVWE 4559'!E83 -> 1300 | E83: 1300
A84: TATA/NUEVO MARILOU | B84: =+'10-26 SUN LEX-HAZEL OVWE 4559'!E84 -> 0 | E84: 0
A85: TENORIA, MARRAH | B85: =+'10-26 SUN LEX-HAZEL OVWE 4559'!E85 -> 130 | E85: 130
A86: VILLAMOR, MARILOU (MOM) | B86: =+'10-26 SUN LEX-HAZEL OVWE 4559'!E86 -> 0 | E86: 0
A87: VILLAMOR, MARILOU (SON) | B87: =+'10-26 SUN LEX-HAZEL OVWE 4559'!E87 -> 2308 | E87: 2308
A88: VILLOCILLO JESUS | B88: =+'10-26 SUN LEX-HAZEL OVWE 4559'!E88 -> 0 | E88: 0
A89: YBANEZ ROBERTO (1115) UNPAID | B89: =+'10-26 SUN LEX-HAZEL OVWE 4559'!E89 -> 1014 | E89: 1014
A90: YKAY/NUEVO ELENA | B90: =+'10-26 SUN LEX-HAZEL OVWE 4559'!E90 -> 60890 | E90: 60890 | F90: 5 receipts 4 missing
A91: TWIN PEAK | B91: =+'10-26 SUN LEX-HAZEL OVWE 4559'!E91 -> 1084 | E91: 1084 | F91: =61050-10300 -> 50750
A92: COLLANTES | B92: =+'10-26 SUN LEX-HAZEL OVWE 4559'!E92 -> 0 | E92: 0
A93: MARYJANE CORTES | B93: =+'10-26 SUN LEX-HAZEL OVWE 4559'!E93 -> 45 | E93: 45
A94: HAPPY ROASTER | B94: =+'10-26 SUN LEX-HAZEL OVWE 4559'!E94 -> 6456 | E94: 6456
A95: JOHNRICK PACHECO | B95: =+'10-26 SUN LEX-HAZEL OVWE 4559'!E95 -> 800 | E95: 800
A96: CHARO'S CAFÉ | B96: =+'10-26 SUN LEX-HAZEL OVWE 4559'!E96 -> 25 | E96: 25
A97: LOCILLO AILYN | B97: =+'10-26 SUN LEX-HAZEL OVWE 4559'!E97 -> 0 | E97: 0
A98: OVERTYM | B98: =+'10-26 SUN LEX-HAZEL OVWE 4559'!E98 -> 0 | E98: 0
A99: HARLEY CLEOFE | B99: =+'10-26 SUN LEX-HAZEL OVWE 4559'!E99 -> 0 | E99: 0
A100: PAPILLERA M 3000 from lex | B100: =+'10-26 SUN LEX-HAZEL OVWE 4559'!E100 -> 3114 | E100: 3114
A101: OVERTYM | B101: =+'10-26 SUN LEX-HAZEL OVWE 4559'!E101 -> 0 | E101: 0
A102: CITY TREASURY | B102: =+'10-26 SUN LEX-HAZEL OVWE 4559'!E102 -> 4550 | E102: 4550
A103: AMY DELA PISA | B103: =+'10-26 SUN LEX-HAZEL OVWE 4559'!E103 -> 0 | E103: 0
A104: GERARDO PRESADO | B104: =+'10-26 SUN LEX-HAZEL OVWE 4559'!E104 -> 0 | E104: 0
A105: BERNARD CARPIO | B105: =+'10-26 SUN LEX-HAZEL OVWE 4559'!E105 -> 1132 | E105: 1132
A106: CHONA MESA | B106: =+'10-26 SUN LEX-HAZEL OVWE 4559'!E106 -> 2298 | E106: 2298
A107: PASTORA VIE | B107: =+'10-26 SUN LEX-HAZEL OVWE 4559'!E107 -> 600 | E107: 600
A108: EVELYN CONRADO | B108: =+'10-26 SUN LEX-HAZEL OVWE 4559'!E108 -> 400 | E108: 400
B109: =+'10-26 SUN LEX-HAZEL OVWE 4559'!E109 -> 0 | E109: 0
A110: NENETH REYES | B110: =+'10-26 SUN LEX-HAZEL OVWE 4559'!E110 -> 693 | E110: 693
A111: JUREXEN VERDIDA | B111: =+'10-26 SUN LEX-HAZEL OVWE 4559'!E111 -> 3001 | E111: 3001
A112: VILLARANTE RENZEL | B112: =+'10-26 SUN LEX-HAZEL OVWE 4559'!E112 -> 646 | E112: 646
A113: ALMARIO MOBO BGACAY | B113: =+'10-26 SUN LEX-HAZEL OVWE 4559'!E113 -> 143 | E113: 143
A114: ALFARO | B114: =+'10-26 SUN LEX-HAZEL OVWE 4559'!E114 -> 1147 | E114: 1147
A115: JOSE CUELLO 4/24 TRADE IN | B115: =+'10-26 SUN LEX-HAZEL OVWE 4559'!E115 -> 1071 | E115: 1071
B116: =+'10-26 SUN LEX-HAZEL OVWE 4559'!E116 -> 0 | E116: 0
A117: MANLAPAZ | B117: =+'10-26 SUN LEX-HAZEL OVWE 4559'!E117 -> 1084 | E117: 1084
A118: CITY VICE NEW GAZUL | B118: =+'10-26 SUN LEX-HAZEL OVWE 4559'!E118 -> 1103 | E118: 1103
A119: EVA VERANO | B119: =+'10-26 SUN LEX-HAZEL OVWE 4559'!E119 -> 576 | E119: 576
B120: =+'10-26 SUN LEX-HAZEL OVWE 4559'!E120 -> 0 | E120: 0
A121: HAPPY ROASTER | B121: =+'10-26 SUN LEX-HAZEL OVWE 4559'!E121 -> 4276 | E121: 4276
B122: =+'10-26 SUN LEX-HAZEL OVWE 4559'!E122 -> 0 | E122: 0
B123: =+'10-26 SUN LEX-HAZEL OVWE 4559'!E123 -> 0 | E123: 0
A124: CITY VICE | B124: =+'10-26 SUN LEX-HAZEL OVWE 4559'!E124 -> 1076 | E124: 1076
A125: JEREMY SAMSON | B125: =+'10-26 SUN LEX-HAZEL OVWE 4559'!E125 -> 18800 | E125: 18800
A126: VILLANUEVA GLENDA | B126: =+'10-26 SUN LEX-HAZEL OVWE 4559'!E126 -> 1749 | E126: 1749
A127: GALLETO DOREEN | B127: =+'10-26 SUN LEX-HAZEL OVWE 4559'!E127 -> 0 | E127: 0
A128: CITIBUILDER | B128: =+'10-26 SUN LEX-HAZEL OVWE 4559'!E128 -> 1114 | E128: 1114
A129: 50kg ACCOUNT | B129: =+'10-26 SUN LEX-HAZEL OVWE 4559'!E129 -> 0 | E129: 0 | F129: 50kg ACCOUNT
A130: ABAN, JULIUS | B130: =+'10-26 SUN LEX-HAZEL OVWE 4559'!E130 -> 8660 | E130: =B130+C130-D130 -> 8660
A131: AVEGAIL LAUNDRY | B131: =+'10-26 SUN LEX-HAZEL OVWE 4559'!E131 -> 6538 | E131: 6538
A132: BACKYARD EDIBLE GARDEN | B132: =+'10-26 SUN LEX-HAZEL OVWE 4559'!E132 -> 844 | E132: 844
A133: CARIS HOTEL | B133: =+'10-26 SUN LEX-HAZEL OVWE 4559'!E133 -> 4314 | E133: 4314 | R133: ATTENDANCE AND PAYMENT | X133: =+Z155+Z161 -> 5600
A134: TEABOX | B134: =+'10-26 SUN LEX-HAZEL OVWE 4559'!E134 -> 0 | E134: 0
A135: CHAROS CAFÉ AND RESTO | B135: =+'10-26 SUN LEX-HAZEL OVWE 4559'!E135 -> 0 | E135: 0 | R135: NAMES | S135: AM | U135: PM | W135: AM HOURS | X135: PM HOURS | Y135: TOTAL HOURS | Z135: PAID | AA135: REMARKS
A136: CHERISH RESORT | B136: =+'10-26 SUN LEX-HAZEL OVWE 4559'!E136 -> 3681 | D136: 3,681 | E136: 0 | P136: DAYOFF | S136: IN | T136: OUT | U136: IN | V136: OUT
A137: CLORES TRESURE ISLAND | B137: =+'10-26 SUN LEX-HAZEL OVWE 4559'!E137 -> 7 | E137: 7 | P137: SATURDAY | R137: JOMARI CORTES | U137: 12:40:00 | V137: 04:25:00 | W137: =+(T137-S137)*24 -> 0.0 | X137: =+(V137-U137)*24 -> -8.3 | Z137: 200
A138: CONRADO / NOEL BAKERY | B138: =+'10-26 SUN LEX-HAZEL OVWE 4559'!E138 -> 3601 | E138: 3601 | P138: SUNDAY | R138: JUNREL MALIPOT | S138: 08:00:00 | T138: 12:00:00 | U138: 01:00:00 | V138: 06:00:00 | W138: =+(T138-S138)*24 -> 4.0 | X138: =+(V138-U138)*24 -> 5.0 | Z138: 550
A139: CRISPY KING CROSSING | B139: =+'10-26 SUN LEX-HAZEL OVWE 4559'!E139 -> 60 | E139: 60 | K139: CP# | O139: DRIVER | P139: SUNDAY | R139: APRIL ARENDAIN | S139: 07:20:00 | T139: 12:00:00 | U139: 01:00:00 | V139: 06:00:00 | W139: =+(T139-S139)*24 -> 4.7 | X139: =+(V146-U146)*24 -> 5.0 | Z139: 500 | AA139: 250
A140: CRISPY KING IBANEZ | B140: =+'10-26 SUN LEX-HAZEL OVWE 4559'!E140 -> 0 | E140: 0 | K140: CP# | O140: DRIVER | R140: DIONESITO BLAZO 9301238381 | W140: =+(T141-S140)*24 -> 0.0 | X140: =+(V141-U141)*24 -> 0.0 | Z140: 900
A141: CRISPY KING MARKET | B141: =+'10-26 SUN LEX-HAZEL OVWE 4559'!E141 -> 0 | E141: 0 | P141: SUNDAY | R141: RULEY GREPALDEO | W141: =+(T142-S141)*24 -> 0.0 | X141: =+(V142-U142)*24 -> 0.0 | Z141: 400
A142: CRISPY KING MOBO | B142: =+'10-26 SUN LEX-HAZEL OVWE 4559'!E142 -> 0 | E142: 0 | W142: 0.0 | X142: =+(V142-U142)*24 -> 0.0
A143: CRISPY KING CAWAYAN | B143: =+'10-26 SUN LEX-HAZEL OVWE 4559'!E143 -> 0 | E143: 0 | W143: 0.0 | X143: =+(V143-U143)*24 -> 0.0
A144: EZ CAFÉ W/CYLINDER | B144: =+'10-26 SUN LEX-HAZEL OVWE 4559'!E144 -> 0 | E144: 0 | W144: 0.0 | X144: =+(V144-U144)*24 -> 0.0
A145: FRANCE LAUNDRY | B145: =+'10-26 SUN LEX-HAZEL OVWE 4559'!E145 -> 2860 | E145: 2860 | W145: =+(T145-S145)*24 -> 0.0 | X145: =+(V145-U145)*24 -> 0.0
A146: JUAN HOUR LAUNDRY | B146: =+'10-26 SUN LEX-HAZEL OVWE 4559'!E146 -> 0 | E146: 0 | R146: SHANNAH | S146: 07:35:00 | T146: 12:00:00 | U146: 01:00:00 | V146: 06:00:00 | W146: =+(T146-S146)*24 -> 4.4 | X146: =+(V146-U146)*24 -> 5.0
A147: KATES LAUNDRY SHOP | B147: =+'10-26 SUN LEX-HAZEL OVWE 4559'!E147 -> 0 | E147: 0 | R147: NATHANIEL ALERTA | S147: 07:05:00 | T147: 12:00:00 | U147: 01:00:00 | V147: 06:00:00 | W147: 4.9 | X147: 5.0 | Z147: 500
A148: MARKY RESTAURANT | B148: =+'10-26 SUN LEX-HAZEL OVWE 4559'!E148 -> 4001 | E148: 4001 | P148: SATURDAY | R148: ARNOLD PEPITO | W148: 0.0 | X148: 0.0 | AA148: OFF
A149: MASBATE LAUNDRY SHOP | B149: =+'10-26 SUN LEX-HAZEL OVWE 4559'!E149 -> 0 | E149: 0 | K149: CP# | O149: DRIVER | P149: WEDNESDAY | R149: EVANGELISTA ROMULO | S149: 08:04:00 | T149: 12:00:00 | U149: 01:00:00 | V149: 06:00:00 | W149: 3.9 | X149: 5.0 | Z149: 500
A150: DAMPA | B150: =+'10-26 SUN LEX-HAZEL OVWE 4559'!E150 -> 0 | E150: 0 | R150: HAZEL | W150: 0.0 | X150: 0.0 | AA150: OFF
A151: PINOY SIOPAO | B151: =+'10-26 SUN LEX-HAZEL OVWE 4559'!E151 -> 0 | E151: 0 | P151: SUNDAY | R151: LIZET DANAO | S151: 07:00:00 | T151: 12:00:00 | U151: 01:00:00 | V151: 06:00:00 | W151: 5.0 | X151: 5.0 | Z151: 550
A152: REMS LAUNDRY | B152: =+'10-26 SUN LEX-HAZEL OVWE 4559'!E152 -> 6144 | E152: 6144 | K152: CP# | O152: DRIVER | P152: FRIDAY | R152: ARTURO PARAGAS | S152: 07:00:00 | T152: 12:00:00 | U152: 01:00:00 | V152: 06:00:00 | W152: 5.0 | X152: 5.0 | Z152: 500
A153: REYJOHN BAKERY | B153: =+'10-26 SUN LEX-HAZEL OVWE 4559'!E153 -> 0 | E153: 0 | P153: SATURDAY | R153: LEO MARCOS | S153: 07:00:00 | T153: 12:00:00 | U153: 01:00:00 | V153: 06:00:00 | W153: 5.0 | X153: 5.0 | Z153: 500
A154: ROBERTO AND ROWE | B154: =+'10-26 SUN LEX-HAZEL OVWE 4559'!E154 -> 15707 | E154: 15707 | K154: CP# | O154: DRIVER | P154: THURSDAY | R154: JULIAN DUMALAG | S154: 07:00:00 | T154: 12:00:00 | U154: 01:00:00 | V154: 06:00:00 | W154: 5.0 | X154: 5.0 | Z154: 500
A155: ROLLING BUBBLES | B155: =+'10-26 SUN LEX-HAZEL OVWE 4559'!E155 -> 0 | E155: 0 | M155: BNNNNNNNNNNNNNNNNNNNNNNNNNNNNNNNNNNNNNNNNNNNNNNNNNNNNNNN | R155: SALARY TOTAL | Z155: =SUM(Z137:Z154) -> 5600 | AG155: SAKTO
A156: ROSEMARY EVENTS | B156: =+'10-26 SUN LEX-HAZEL OVWE 4559'!E156 -> 0 | E156: 0
A157: ROWEES AROROY | B157: =+'10-26 SUN LEX-HAZEL OVWE 4559'!E157 -> 0 | E157: 0 | AJ157: 7 | AL157: 87
A158: PALMA SHERYL/avegail laundry | B158: =+'10-26 SUN LEX-HAZEL OVWE 4559'!E158 -> 4614 | E158: 4614
A159: WENABETH JOHN BAKERY MALINTA | B159: =+'10-26 SUN LEX-HAZEL OVWE 4559'!E159 -> 4469 | E159: 4469 | F159: KULANG 100 FOR COLLCTION COCOY
A160: CRISPY KING PIER | B160: =+'10-26 SUN LEX-HAZEL OVWE 4559'!E160 -> 0 | E160: 0
A161: CRISPY KING OSMENA | B161: =+'10-26 SUN LEX-HAZEL OVWE 4559'!E161 -> 0 | E161: 0 | R161: EXTRA EXPENSES TOTAL | Z161: =+SUM(Z156:Z160) -> 0
A162: TUMBAGA SINALONGAN | B162: =+'10-26 SUN LEX-HAZEL OVWE 4559'!E162 -> 16896 | E162: 16896 | F162: TUESDAY
A163: OUTLET'S | B163: =+'10-26 SUN LEX-HAZEL OVWE 4559'!E163 -> 0 | E163: 0 | F163: OUTLET'S
A164: ABANO, MICHAEL | B164: =+'10-26 SUN LEX-HAZEL OVWE 4559'!E164 -> 11380 | E164: 11380 | F164: APRIL | V164: COMMERCIAL ACCOUNT | AE164: REMINDERS
A165: ALVAREZ JENILLYN | B165: =+'10-26 SUN LEX-HAZEL OVWE 4559'!E165 -> 18750 | E165: 18750
A166: ALVAREZ, RICO 1.4 | B166: =+'10-26 SUN LEX-HAZEL OVWE 4559'!E166 -> 1330 | C166: 950 | D166: 950 | E166: 1330 | V166: CUSTOMER NAME | AB166: DICS | AC166: DELIVER | AE166: 9499357775 AMERA 50KG Leah Orubla Villaraiz | AM166: ALOVERA ROSEMARIE | AQ166: 20 | AR166: 15
A167: ALVAREZ, RICO A/S | B167: =+'10-26 SUN LEX-HAZEL OVWE 4559'!E167 -> 6800 | E167: 6800 | V167: 8 ALL YOU CAN/RIMONTE JOHN AUBREN | AB167: 400 | AC167: 50 | AM167: BANTAYAN MINDA | AQ167: 20 | AR167: 15
A168: BANTAYAN, LENIE | B168: =+'10-26 SUN LEX-HAZEL OVWE 4559'!E168 -> 12802 | E168: 12802 | V168: ABAN LAUNDRY / ABAN JULIUS | AB168: 300 | AC168: 50 | AM168: CORTES BABY JEAN | AQ168: 20 | AR168: 15
A169: BULALAQUE, NATHANIEL | B169: =+'10-26 SUN LEX-HAZEL OVWE 4559'!E169 -> 0 | E169: 0 | V169: AVEGAIL S LAUNDRY | AB169: 300 | AC169: 50 | AE169: LAWRENCE SESE 0902014314 LAND BANK
A170: CDJ/CHISA BARRUGA | B170: =+'10-26 SUN LEX-HAZEL OVWE 4559'!E170 -> 5315 | E170: 5315 | V170: BACKYARD EDIBLE GARDEN | AB170: 300 | AC170: 50
A171: COCOY SOLANE ACCOUNT | B171: =+'10-26 SUN LEX-HAZEL OVWE 4559'!E171 -> 6232 | E171: 6232 | V171: CARIS HOTEL | AB171: 300 | AC171: 50 | AM171: ESPARZA ANACITA TWIN PEAK | AQ171: 20 | AR171: 15
A172: ELMA BUNGCARAS | B172: =+'10-26 SUN LEX-HAZEL OVWE 4559'!E172 -> 10680 | E172: 10680 | V172: CHAROS CAFÉ AND RESTO (MOBO RIVER SIDE) | AB172: 0 | AC172: 50 | AE172: LAWRENCE SESE 013568000813 BDO | AM172: ESPINAS ROLANDO | AQ172: 20 | AR172: 15
A173: GADER RENATO | B173: =+'10-26 SUN LEX-HAZEL OVWE 4559'!E173 -> 16920 | E173: 16920 | J173: SENIOR DISCOUNT | P173: 15 | V173: CHERISH MOMENT RESORT | AB173: 900 | AC173: 50
A174: LOCMAYON BEGA10 (2) | B174: =+'10-26 SUN LEX-HAZEL OVWE 4559'!E174 -> 0 | E174: 0 | V174: CRISPY KING / DJJM FOOD HUB/ IBANEZ/CROSSING | AB174: 800 | AC174: 50 | AM174: FAZENDA MILAGROS | AQ174: 20 | AR174: 15
A175: SOLON VANGIE | B175: =+'10-26 SUN LEX-HAZEL OVWE 4559'!E175 -> 8670 | E175: 8670 | J175: 50KG | M175: QTY | N175: AMOUNT | P175: DISCOUNT | R175: DELIVERY CHARGE | V175: CRISPY KING / DJJM FOOD HUB/ MOBO | AB175: 700 | AC175: 50 | AE175: KUA DUTAY 09307207044
A176: ORBISO PHOEBE | B176: =+'10-26 SUN LEX-HAZEL OVWE 4559'!E176 -> 2112 | E176: 2112 | V176: CRYSPY KING / DJA CATERING SERVICES/PATING | AB176: 800 | AC176: 50
A177: ORBISO, EFILDA | B177: =+'10-26 SUN LEX-HAZEL OVWE 4559'!E177 -> 0 | E177: 0 | J177: 4564 | N177: =+M177*J177 -> 0 | P177: 300 | R177: 50 | V177: CRISPY KING / DJJM FOOD HUB/ OSMENA NOY BIGOL | AB177: 800 | AC177: 50
A178: PAWA VERNA MENDOZA | B178: =+'10-26 SUN LEX-HAZEL OVWE 4559'!E178 -> 1250 | E178: 1250 | S178: + | V178: CRISPY KING / DJJM FOOD HUB/ PIER NOY BIGOL | W178: =+W222 -> 0 | AB178: 800 | AC178: 50 | AE178: GMS ACCOUNT
A179: ELMA BUNCARAS | B179: =+'10-26 SUN LEX-HAZEL OVWE 4559'!E179 -> 16630 | E179: 16630 | P179: =+M177*P177 -> 0 | R179: =+M177*R177 -> 0 | V179: / DJJM CRISPY KING NOY BIGOL | AB179: 700 | AC179: 100
A180: SAMPAGA BIDA | B180: =+'10-26 SUN LEX-HAZEL OVWE 4559'!E180 -> 3816 | E180: 3816 | J180: 11KG | M180: QTY | N180: AMOUNT | P180: DISCOUNT | R180: DELIVERY CHARGE | V180: DAMPA RESTO BAR /BESMONTE MARICAR | AB180: 300 | AC180: 50
A181: SESE, ROSALIA | B181: =+'10-26 SUN LEX-HAZEL OVWE 4559'!E181 -> 34480 | E181: 34480 | V181: DR. CHESTER LEE | AB181: 900 | AC181: P/U
A182: STAR OIL RECEIVABLE | B182: =+'10-26 SUN LEX-HAZEL OVWE 4559'!E182 -> 0 | E182: 0 | J182: 1069 | M182: 20 | N182: =+M182*J182 -> 21380 | P182: 151 | R182: 15 | V182: EZ CAFÉ | AB182: 300 | AC182: 50
A183: TAYAM IRISH | B183: =+'10-26 SUN LEX-HAZEL OVWE 4559'!E183 -> 0 | E183: 0 | V183: FRANCE LAUNDRY | AB183: 700 | AC183: 50
A184: YBANEZ, NESSAR | B184: =+'10-26 SUN LEX-HAZEL OVWE 4559'!E184 -> 30 | E184: 30 | P184: =+M182*P182 -> 3020 | R184: =+M182*R182 -> 300 | V184: GACT CONSTRUCTION AND SUPPLY /TAYAM IRISH | AB184: 200 | AC184: 50
A185: ZUNIGA MELCHOR | B185: =+'10-26 SUN LEX-HAZEL OVWE 4559'!E185 -> 0 | E185: 0 | J185: 1.4KG | M185: QTY | N185: AMOUNT | P185: DISCOUNT | R185: DELIVERY CHARGE | V185: HIGHN'DRY LAUNDRY SERVCES | AB185: 0 | AC185: 50
A186: JENELIN ALVAREZ | B186: =+'10-26 SUN LEX-HAZEL OVWE 4559'!E186 -> 0 | E186: 0 | V186: JUAN HOUR LAUNDRY - STAIRWAY & IBANEZ | AB186: 900 | AC186: 50 | AE186: DELA PENA ANALYN/OSTED | AI186: 70 | AJ186: 9 | AM186: rey john | AQ186: 20 | AR186: 15
A187: EJJ EVANGELYN M NUGAS | B187: =+'10-26 SUN LEX-HAZEL OVWE 4559'!E187 -> 0 | E187: 0 | J187: 195 | N187: =+M187*J187 -> 0 | V187: KARAON SA 18TH GRILL AND RESTO | AB187: 300 | AC187: 50 | AI187: 70 | AJ187: 15 | AM187: ROBERTO ROWIE & ROBI FOOD OPC | AQ187: 50 | AR187: 15
A188: VANGIE SOLON | B188: =+'10-26 SUN LEX-HAZEL OVWE 4559'!E188 -> 0 | E188: 0 | F188: MAY JULY P N FOR PAYMENT | V188: KATES LAUNDRYSHOP/ GUILLERMO ALINSOOT MANACILLO 11 | AB188: 700 | AC188: 50 | AM188: ROBERTO YBANEZ | AQ188: 70 | AR188: 15
A189: TICAO ACCOUNT | B189: =+'10-26 SUN LEX-HAZEL OVWE 4559'!E189 -> 0 | E189: 0 | F189: TICAO ACCOUNT | L189: =+O185*I185 -> 0 | N189: =+Q185*K185 -> 0 | O189: =+R187*M187 -> 0 | P189: =+M187*P187 -> 0 | V189: MARKY BICOL RESTAURANT | AB189: 900 | AC189: 50 | AM189: SUCUANO LORETO | AQ189: 70 | AR189: 15
A190: BAMBOO PLACE WITH 3 REGULS | B190: =+'10-26 SUN LEX-HAZEL OVWE 4559'!E190 -> 4181 | E190: 4181 | F190: ALL UNPAID | J190: CASH | M190: CHANGE | Q190: SRP FOR OCT | V190: MASBATE LAUNDRY CENTER MEDINA ST. MASBATE | AB190: 700 | AC190: 50 | AM190: TATA FRIED CHICKEN | AQ190: 70 | AR190: 15
A191: BARREDO EDGAR | B191: =+'10-26 SUN LEX-HAZEL OVWE 4559'!E191 -> 0 | E191: 0 | V191: MNV FOODHUB (CHIKICHOW) | AB191: 500 | AC191: 50 | AE191: WINWIN FRIED CHICKEN | AI191: 70 | AM191: VENUS PASION | AQ191: 70 | AR191: 15
A192: DRAGAS 6/21 | B192: =+'10-26 SUN LEX-HAZEL OVWE 4559'!E192 -> 0 | E192: 0 | F192: 3342TRANSFER TO OCGAS | J192: 13000 | M192: =J192-M201 -> -5660 | Q192: 50 KG | S192: 4564 | V192: MR. LAUNDRY - IBINGAY & CROSSING | AB192: 900 | AC192: 50 | AE192: GIGANTE ROQUE VARGAS | AI192: 70 | AJ192: 15 | AL192: TO FOLLOW | AM192: VILLAMOR MARILOU | AQ192: 70 | AR192: 15
A193: GRACE RANGEL 1.4 | B193: =+'10-26 SUN LEX-HAZEL OVWE 4559'!E193 -> 8034 | E193: 8034 | V193: MSA - DECS | AB193: 0 | AE193: GONZAGA ANITA | AI193: 70 | AJ193: 15 | AM193: WOW INASAL | AQ193: 70 | AR193: 15
A194: GRACE RANGEL AS | B194: =+'10-26 SUN LEX-HAZEL OVWE 4559'!E194 -> 17402 | E194: =B194+C194-D194 -> 17402 | F194: 1AS 1 DB PAID 5/29 | J194: ;. | L194: . | Q194: 11 KG | S194: 1069 | V194: NESSAR YBANEZ | AB194: 900 | AC194: 100 | AE194: JODAN EATERY | AI194: 70 | AJ194: 15 | AM194: YKAY FRIED CHICKEN | AQ194: 70 | AR194: 15
A195: LIA SESE | B195: =+'10-26 SUN LEX-HAZEL OVWE 4559'!E195 -> 11275 | E195: 11275 | F195: KULANG STOVE 4544 | J195: DELIVERY | M195: =+R189+R184+R179 -> 300 | V195: NOEL BAKERY / ANALYN CONRADO | AB195: 300 | AC195: 50 | AE195: LAWODNON | AI195: 70 | AJ195: 15 | AM195: PALMA SHERYL | AQ195: 70 | AR195: 15
A196: OC GAS ALVAREZ | B196: =+'10-26 SUN LEX-HAZEL OVWE 4559'!E196 -> 7588 | E196: 7588 | F196: =+B194+B193 -> 25436 | Q196: 1.4 KG | S196: 195 | V196: PAN DE MASBATE | AB196: 300 | AC196: 50 | AE196: LOCILLO AILLYN | AI196: 70 | AJ196: 15 | AM196: ROYO BORROW AS REGUL FOR POL TANK TIGBAO 09517207893 JEEP BABY GRACE REYMOND LEGAL
A197: OCHEA FAMILY PANDESAL | B197: =+'10-26 SUN LEX-HAZEL OVWE 4559'!E197 -> 9401 | E197: 9401 | F197: 1AS REPLACEMENT NO CHRGE FOR RETUN FILLED | J197: DISCOUNT | M197: TOTAL | V197: PINOY SIOPAO | AB197: 300 | AC197: 50 | AJ197: 15
A198: PARK N GO | B198: =+'10-26 SUN LEX-HAZEL OVWE 4559'!E198 -> 0 | E198: 0 | V198: REMS LAUNDRY / SANDRA MEDINA | AB198: 300 | AC198: 50 | AE198: MARISTELA EMERALD | AI198: 70 | AJ198: 15
A199: THEO PANDESAL | B199: =+'10-26 SUN LEX-HAZEL OVWE 4559'!E199 -> 5063 | E199: 5063 | F199: REGUL NOT PAID | J199: =+P179+P184+P189 -> 3020 | M199: =+N177+N182+N187-J199 -> 18360 | V199: REYJOHN BAKERY / RHEA DELA CRUZ OBOG | AB199: 700 | AC199: 50 | AE199: MIEKOYS PIZZA | AI199: 70 | AJ199: 15
A200: ZANDRA BEACH RESORT | B200: =+'10-26 SUN LEX-HAZEL OVWE 4559'!E200 -> 12606 | E200: 12606 | Q200: OTHER AMOUNT HERE | V200: ROLLING BUBBLES - DANAO | AB200: 700 | AC200: 50 | AE200: MIGGYS BAKERY | AI200: 70 | AJ200: 15
... 175 more rows

Sheet 10-26 SUN LEX-HAZEL OVWE 4559
B1: BEGIN | C1: UNPAID | D1: PAYMENT | E1: END | F1: CASH ADVANCE
A2: C.A APRIL ARENDAIN | B2: =+'10-25 SAT LEX-HAZELNEG 1026'!E2 -> 2050 | E2: =B2+C2-D2 -> 2050 | P2: ENTER NUMER W/POSITIVE SIGN IF increase
A3: TIYO NOY | B3: =+'10-25 SAT LEX-HAZELNEG 1026'!E3 -> 500 | E3: 500
A4: C.A COCOY | B4: =+'10-25 SAT LEX-HAZELNEG 1026'!E4 -> 1615 | D4: 1,000 | E4: 615 | P4: ENTER NUMER W/NEGATIVE SIGN IF decrease
A5: DAVE BONA | B5: =+'10-25 SAT LEX-HAZELNEG 1026'!E5 -> 4000 | E5: 4000
A6: C.A JOMARI CORTES | B6: =+'10-25 SAT LEX-HAZELNEG 1026'!E6 -> 40928 | E6: 40928
A7: C.A JUNREL MALIPOT | B7: =+'10-25 SAT LEX-HAZELNEG 1026'!E7 -> 10469 | E7: 10469
A8: C.A NATHANIEL | B8: =+'10-25 SAT LEX-HAZELNEG 1026'!E8 -> 600 | E8: 600
A9: C.A MANANGAT CHRISTIAN | B9: =+'10-25 SAT LEX-HAZELNEG 1026'!E9 -> 3548 | E9: 3548 | S9: =-S11*1 -> 1.300
A10: C.A SINADJAN, RAMIL | B10: =+'10-25 SAT LEX-HAZELNEG 1026'!E10 -> 1100 | E10: 1100 | R10: 11kilos | S10: 11.000
A11: C.A VESTER | B11: =+'10-25 SAT LEX-HAZELNEG 1026'!E11 -> 9782 | E11: 9782 | R11: ENTER NUMBER (-/+) | S11: -1.300
A12: IRENE | B12: =+'10-25 SAT LEX-HAZELNEG 1026'!E12 -> 2000 | E12: 2000 | R12: TOTAL CHANGE | S12: =+S10*S9 -> 14.300
A13: ARTURO PARAGAS | B13: =+'10-25 SAT LEX-HAZELNEG 1026'!E13 -> 6900 | E13: 6900 | R13: VAT | S13: =+S12*0.12 -> 1.716
A14: DONNA LUIS | B14: =+'10-25 SAT LEX-HAZELNEG 1026'!E14 -> 3300 | E14: 3300 | R14: VAT + TOTAL CHANGE | S14: =+S12+S13 -> 16.016
A15: RULEY GREPALDIO | B15: =+'10-25 SAT LEX-HAZELNEG 1026'!E15 -> 1076 | E15: 1076 | R15: ENTER OLD PRICE | S15: 1,076.000
A16: JULIAN | B16: =+'10-25 SAT LEX-HAZELNEG 1026'!E16 -> 5200 | E16: 5200 | F16: JULLIAN DUMALAG | R16: NEW PRICE | S16: =+S15-S14 -> 1,059.984
A17: CA HAZEL 8/21 | B17: =+'10-25 SAT LEX-HAZELNEG 1026'!E17 -> 1600 | E17: 1600
A18: SABIANO BERAL | B18: =+'10-25 SAT LEX-HAZELNEG 1026'!E18 -> 5000 | E18: 5000 | S18: =-S20*1 -> 0.000
A19: LABOR ADVANCE | B19: =+'10-25 SAT LEX-HAZELNEG 1026'!E19 -> 1000 | D19: 1,000 | E19: 0 | R19: 50KG | S19: 50.000
A20: NATHANIEL | B20: =+'10-25 SAT LEX-HAZELNEG 1026'!E20 -> 3500 | E20: 3500 | F20: NAT CA 3500 | R20: ENTER NUMBER (-/+) | S20: =+P6 -> 0.000
A21: RJ DUMANGAS | B21: =+'10-25 SAT LEX-HAZELNEG 1026'!E21 -> 1000 | E21: 1000 | R21: TOTAL CHANGE | S21: =+S19*S18 -> 0.000
A22: REGULAR | B22: =+'10-25 SAT LEX-HAZELNEG 1026'!E22 -> 0 | E22: 0 | F22: REGULAR | R22: VAT | S22: =+S21*0.12 -> 0.000
A23: ABOYS | B23: =+'10-25 SAT LEX-HAZELNEG 1026'!E23 -> 769 | E23: 769 | R23: VAT + TOTAL CHANGE | S23: =+S21+S22 -> 0.000
A24: ABSALON LOLITA | B24: =+'10-25 SAT LEX-HAZELNEG 1026'!E24 -> 1000 | E24: 1000 | R24: ENTER OLD PRICE | S24: 4,719.000
A25: ALBAO, ELMER | B25: =+'10-25 SAT LEX-HAZELNEG 1026'!E25 -> 834 | E25: 834 | R25: NEW PRICE | S25: =+S24-S23 -> 4,719.000
A26: ALOVERA ROSEMARIE | B26: =+'10-25 SAT LEX-HAZELNEG 1026'!E26 -> 25 | E26: 25
A27: ANDAYA NELLY | B27: =+'10-25 SAT LEX-HAZELNEG 1026'!E27 -> 1071 | E27: 1071 | S27: =-S29*1 -> 0.000
A28: AYESHA BAKERY | B28: =+'10-25 SAT LEX-HAZELNEG 1026'!E28 -> 2105 | E28: 2105 | R28: 1.4KG | S28: 1.400
A29: BANTAYAN MINDA | B29: =+'10-25 SAT LEX-HAZELNEG 1026'!E29 -> 168 | E29: 168 | R29: ENTER NUMBER (-/+) | S29: =+P6 -> 0.000
A30: BEGGS BAKERY | B30: =+'10-25 SAT LEX-HAZELNEG 1026'!E30 -> 7936 | E30: 7936 | R30: TOTAL CHANGE | S30: =+S28*S27 -> 0.000
A31: BINOLIRAO, JOY | B31: =+'10-25 SAT LEX-HAZELNEG 1026'!E31 -> 5432 | E31: 5432 | R31: VAT | S31: =+S30*0.12 -> 0.000
A32: CAFÉ KRISTINA | B32: =+'10-25 SAT LEX-HAZELNEG 1026'!E32 -> 4226 | E32: 4226 | R32: VAT + TOTAL CHANGE | S32: =+S30+S31 -> 0.000
A33: CANTUBA PORTIA | B33: =+'10-25 SAT LEX-HAZELNEG 1026'!E33 -> 1076 | E33: 1076 | R33: ENTER OLD PRICE | S33: 199.000
A34: CAPELLAN EMILY | B34: =+'10-25 SAT LEX-HAZELNEG 1026'!E34 -> 588 | E34: 588 | R34: NEW PRICE | S34: =+S33-S32 -> 199.000
A35: CAPELLAN SONY | B35: =+'10-25 SAT LEX-HAZELNEG 1026'!E35 -> 500 | E35: 500
A36: CHEPIE/SAMSON JINKY | B36: =+'10-25 SAT LEX-HAZELNEG 1026'!E36 -> 0 | E36: 0 | F36: =6000+3500+816 -> 10316
A37: CITY VICE OLD | B37: =+'10-25 SAT LEX-HAZELNEG 1026'!E37 -> 6121 | E37: 6121
A38: CORTES BABYJANE LESS 200 | B38: =+'10-25 SAT LEX-HAZELNEG 1026'!E38 -> 2128 | E38: 2128
A39: COSTALES, ERNESTO | B39: =+'10-25 SAT LEX-HAZELNEG 1026'!E39 -> 25 | E39: 25
A40: DALANON, LUZ | B40: =+'10-25 SAT LEX-HAZELNEG 1026'!E40 -> 1160 | E40: 1160
A41: DESAMERO JESS | B41: =+'10-25 SAT LEX-HAZELNEG 1026'!E41 -> 1033 | E41: 1033
A42: DESPE, ARTUR | B42: =+'10-25 SAT LEX-HAZELNEG 1026'!E42 -> 997 | E42: 997
A43: DIOCADO JOHNWIL ONLOAN | B43: =+'10-25 SAT LEX-HAZELNEG 1026'!E43 -> 900 | E43: 900
A44: EMR/PANES FREDDIE / | B44: =+'10-25 SAT LEX-HAZELNEG 1026'!E44 -> 2050 | E44: 2050
A45: EPONG CARENDERIA | B45: =+'10-25 SAT LEX-HAZELNEG 1026'!E45 -> 1131 | E45: 1131
A46: ESPARZA ANACITA | B46: =+'10-25 SAT LEX-HAZELNEG 1026'!E46 -> 1101 | E46: 1101
A47: ESPINAS ROLANDO | B47: =+'10-25 SAT LEX-HAZELNEG 1026'!E47 -> 1056 | E47: 1056
A48: EVANGELISTA, JOHN | B48: =+'10-25 SAT LEX-HAZELNEG 1026'!E48 -> 1207 | E48: 1207
A49: FLORES HELEN | B49: =+'10-25 SAT LEX-HAZELNEG 1026'!E49 -> 1647 | E49: 1647
A50: GARBO RADFORD | B50: =+'10-25 SAT LEX-HAZELNEG 1026'!E50 -> 1624 | E50: 1624
A51: GARBO RAYMUND | B51: =+'10-25 SAT LEX-HAZELNEG 1026'!E51 -> 1103 | E51: 1103
A52: GONZAGA, ANITA | B52: =+'10-25 SAT LEX-HAZELNEG 1026'!E52 -> 1191 | E52: 1191 | F52: APRIL
A53: HARLEY CLEOFE | B53: =+'10-25 SAT LEX-HAZELNEG 1026'!E53 -> 0 | E53: 0
A54: JANZMILE | B54: =+'10-25 SAT LEX-HAZELNEG 1026'!E54 -> 2331 | E54: 2331
A55: JODAN EATERY | B55: =+'10-25 SAT LEX-HAZELNEG 1026'!E55 -> 50 | E55: 50
A56: LALAGUNA FAITH | B56: =+'10-25 SAT LEX-HAZELNEG 1026'!E56 -> 0 | E56: 0
A57: LAURENO SUSIE | B57: =+'10-25 SAT LEX-HAZELNEG 1026'!E57 -> 2274 | E57: 2274
A58: LAWODNON | B58: =+'10-25 SAT LEX-HAZELNEG 1026'!E58 -> 6304 | E58: 6304
A59: LIBERTY BAKERY | B59: =+'10-25 SAT LEX-HAZELNEG 1026'!E59 -> 0 | E59: 0
A60: LOLO JOFAX (2160) UNPAID | B60: =+'10-25 SAT LEX-HAZELNEG 1026'!E60 -> 500 | E60: 500
A61: MANALO, CHITA | B61: =+'10-25 SAT LEX-HAZELNEG 1026'!E61 -> 2120 | E61: 2120
A62: MANGUBAT-CAWAYAN | B62: =+'10-25 SAT LEX-HAZELNEG 1026'!E62 -> 1121 | E62: 1121
A63: MARABE, GUENTER | B63: =+'10-25 SAT LEX-HAZELNEG 1026'!E63 -> 1014 | E63: 1014
A64: MARISTELA, EMERALD | B64: =+'10-25 SAT LEX-HAZELNEG 1026'!E64 -> 7907 | E64: 7907
A65: MIEKOYS PIZZA | B65: =+'10-25 SAT LEX-HAZELNEG 1026'!E65 -> 0 | E65: 0
A66: MIGGYS BAKERY | B66: =+'10-25 SAT LEX-HAZELNEG 1026'!E66 -> 765 | E66: =B66+C66-D66 -> 765
A67: MORAN ANALY | B67: =+'10-25 SAT LEX-HAZELNEG 1026'!E67 -> 0 | E67: 0
A68: MORAN JACKILYN | B68: =+'10-25 SAT LEX-HAZELNEG 1026'!E68 -> 1068 | E68: 1068
A69: NARIDO RAFAEL REG | B69: =+'10-25 SAT LEX-HAZELNEG 1026'!E69 -> 475 | E69: 475
A70: NARIDO, REYNALDO | B70: =+'10-25 SAT LEX-HAZELNEG 1026'!E70 -> 475 | E70: 475
A71: NUNEZ, PERPETUA | B71: =+'10-25 SAT LEX-HAZELNEG 1026'!E71 -> 3831 | E71: 3831
A72: OLIVA, CELSO | B72: =+'10-25 SAT LEX-HAZELNEG 1026'!E72 -> 168 | E72: 168
A73: OLIVA, DOREEN | B73: =+'10-25 SAT LEX-HAZELNEG 1026'!E73 -> 474 | E73: 474
A74: ORBISO LIZA/NUNU | B74: =+'10-25 SAT LEX-HAZELNEG 1026'!E74 -> 2405 | E74: 2405
A75: ORBISO, KEILLI | B75: =+'10-25 SAT LEX-HAZELNEG 1026'!E75 -> 474 | E75: 474
A76: PASION VENUS | B76: =+'10-25 SAT LEX-HAZELNEG 1026'!E76 -> 1014 | C76: 1,014 | D76: 1,014 | E76: 1014
A77: PERALTA LYNDON | B77: =+'10-25 SAT LEX-HAZELNEG 1026'!E77 -> 40 | E77: 40
A78: PHO | B78: =+'10-25 SAT LEX-HAZELNEG 1026'!E78 -> 0 | E78: 0
A79: RESUENA | B79: =+'10-25 SAT LEX-HAZELNEG 1026'!E79 -> 4226 | E79: 4226
A80: RUELAN RONALD | B80: =+'10-25 SAT LEX-HAZELNEG 1026'!E80 -> 1083 | E80: 1083
A81: SALADAS SHERLY | B81: =+'10-25 SAT LEX-HAZELNEG 1026'!E81 -> 674 | E81: 674
A82: BANTAYAN MINDA | B82: =+'10-25 SAT LEX-HAZELNEG 1026'!E82 -> 0 | E82: 0
A83: SANDRA SAN JUAN | B83: =+'10-25 SAT LEX-HAZELNEG 1026'!E83 -> 1300 | E83: 1300
A84: TATA/NUEVO MARILOU | B84: =+'10-25 SAT LEX-HAZELNEG 1026'!E84 -> 0 | E84: 0
A85: TENORIA, MARRAH | B85: =+'10-25 SAT LEX-HAZELNEG 1026'!E85 -> 130 | E85: 130
A86: VILLAMOR, MARILOU (MOM) | B86: =+'10-25 SAT LEX-HAZELNEG 1026'!E86 -> 0 | E86: 0
A87: VILLAMOR, MARILOU (SON) | B87: =+'10-25 SAT LEX-HAZELNEG 1026'!E87 -> 2308 | E87: 2308
A88: VILLOCILLO JESUS | B88: =+'10-25 SAT LEX-HAZELNEG 1026'!E88 -> 0 | E88: 0
A89: YBANEZ ROBERTO (1115) UNPAID | B89: =+'10-25 SAT LEX-HAZELNEG 1026'!E89 -> 2096 | C89: 1,014 | D89: 2,096 | E89: 1014
A90: YKAY/NUEVO ELENA | B90: =+'10-25 SAT LEX-HAZELNEG 1026'!E90 -> 60890 | E90: 60890 | F90: 5 receipts 4 missing
A91: TWIN PEAK | B91: =+'10-25 SAT LEX-HAZELNEG 1026'!E91 -> 1084 | E91: 1084 | F91: =61050-10300 -> 50750
A92: COLLANTES | B92: =+'10-25 SAT LEX-HAZELNEG 1026'!E92 -> 0 | E92: 0
A93: MARYJANE CORTES | B93: =+'10-25 SAT LEX-HAZELNEG 1026'!E93 -> 45 | E93: 45
A94: HAPPY ROASTER | B94: =+'10-25 SAT LEX-HAZELNEG 1026'!E94 -> 6456 | E94: 6456
A95: JOHNRICK PACHECO | B95: =+'10-25 SAT LEX-HAZELNEG 1026'!E95 -> 800 | E95: 800
A96: CHARO'S CAFÉ | B96: =+'10-25 SAT LEX-HAZELNEG 1026'!E96 -> 25 | E96: 25
A97: LOCILLO AILYN | B97: =+'10-25 SAT LEX-HAZELNEG 1026'!E97 -> 0 | E97: 0
A98: OVERTYM | B98: =+'10-25 SAT LEX-HAZELNEG 1026'!E98 -> 0 | E98: 0
A99: HARLEY CLEOFE | B99: =+'10-25 SAT LEX-HAZELNEG 1026'!E99 -> 0 | E99: 0
A100: PAPILLERA M 3000 from lex | B100: =+'10-25 SAT LEX-HAZELNEG 1026'!E100 -> 3114 | E100: 3114
A101: OVERTYM | B101: =+'10-25 SAT LEX-HAZELNEG 1026'!E101 -> 0 | E101: 0
A102: CITY TREASURY | B102: =+'10-25 SAT LEX-HAZELNEG 1026'!E102 -> 4550 | E102: 4550
A103: AMY DELA PISA | B103: =+'10-25 SAT LEX-HAZELNEG 1026'!E103 -> 0 | E103: 0
A104: GERARDO PRESADO | B104: =+'10-25 SAT LEX-HAZELNEG 1026'!E104 -> 0 | E104: 0
A105: BERNARD CARPIO | B105: =+'10-25 SAT LEX-HAZELNEG 1026'!E105 -> 1132 | E105: 1132
A106: CHONA MESA | B106: =+'10-25 SAT LEX-HAZELNEG 1026'!E106 -> 2298 | E106: 2298
A107: PASTORA VIE | B107: =+'10-25 SAT LEX-HAZELNEG 1026'!E107 -> 600 | E107: 600
A108: EVELYN CONRADO | B108: =+'10-25 SAT LEX-HAZELNEG 1026'!E108 -> 400 | E108: 400
B109: =+'10-25 SAT LEX-HAZELNEG 1026'!E109 -> 0 | E109: 0
A110: NENETH REYES | B110: =+'10-25 SAT LEX-HAZELNEG 1026'!E110 -> 693 | E110: 693
A111: JUREXEN VERDIDA | B111: =+'10-25 SAT LEX-HAZELNEG 1026'!E111 -> 3001 | E111: 3001
A112: VILLARANTE RENZEL | B112: =+'10-25 SAT LEX-HAZELNEG 1026'!E112 -> 646 | E112: 646
A113: ALMARIO MOBO BGACAY | B113: =+'10-25 SAT LEX-HAZELNEG 1026'!E113 -> 143 | E113: 143
A114: ALFARO | B114: =+'10-25 SAT LEX-HAZELNEG 1026'!E114 -> 1147 | E114: 1147
A115: JOSE CUELLO 4/24 TRADE IN | B115: =+'10-25 SAT LEX-HAZELNEG 1026'!E115 -> 1071 | E115: 1071
B116: =+'10-25 SAT LEX-HAZELNEG 1026'!E116 -> 0 | E116: 0
A117: MANLAPAZ | B117: =+'10-25 SAT LEX-HAZELNEG 1026'!E117 -> 1084 | E117: 1084
A118: CITY VICE NEW GAZUL | B118: =+'10-25 SAT LEX-HAZELNEG 1026'!E118 -> 1103 | E118: 1103
A119: EVA VERANO | B119: =+'10-25 SAT LEX-HAZELNEG 1026'!E119 -> 576 | E119: 576
B120: =+'10-25 SAT LEX-HAZELNEG 1026'!E120 -> 0 | E120: 0
A121: HAPPY ROASTER | B121: =+'10-25 SAT LEX-HAZELNEG 1026'!E121 -> 4276 | E121: 4276
B122: =+'10-25 SAT LEX-HAZELNEG 1026'!E122 -> 0 | E122: 0
B123: =+'10-25 SAT LEX-HAZELNEG 1026'!E123 -> 0 | E123: 0
A124: CITY VICE | B124: =+'10-25 SAT LEX-HAZELNEG 1026'!E124 -> 1076 | E124: 1076
A125: JEREMY SAMSON | B125: =+'10-25 SAT LEX-HAZELNEG 1026'!E125 -> 18800 | E125: 18800
A126: VILLANUEVA GLENDA | B126: =+'10-25 SAT LEX-HAZELNEG 1026'!E126 -> 1749 | E126: 1749
A127: GALLETO DOREEN | B127: =+'10-25 SAT LEX-HAZELNEG 1026'!E127 -> 0 | E127: 0
A128: CITIBUILDER | B128: =+'10-25 SAT LEX-HAZELNEG 1026'!E128 -> 1114 | E128: 1114
A129: 50kg ACCOUNT | B129: =+'10-25 SAT LEX-HAZELNEG 1026'!E129 -> 0 | E129: 0 | F129: 50kg ACCOUNT
A130: ABAN, JULIUS | B130: =+'10-25 SAT LEX-HAZELNEG 1026'!E130 -> 8660 | E130: =B130+C130-D130 -> 8660
A131: AVEGAIL LAUNDRY | B131: =+'10-25 SAT LEX-HAZELNEG 1026'!E131 -> 6538 | E131: 6538
A132: BACKYARD EDIBLE GARDEN | B132: =+'10-25 SAT LEX-HAZELNEG 1026'!E132 -> 844 | E132: 844
A133: CARIS HOTEL | B133: =+'10-25 SAT LEX-HAZELNEG 1026'!E133 -> 4314 | E133: 4314 | R133: ATTENDANCE AND PAYMENT | X133: =+Z155+Z161 -> 14636
A134: TEABOX | B134: =+'10-25 SAT LEX-HAZELNEG 1026'!E134 -> 0 | E134: 0
A135: CHAROS CAFÉ AND RESTO | B135: =+'10-25 SAT LEX-HAZELNEG 1026'!E135 -> 0 | E135: 0 | R135: NAMES | S135: AM | U135: PM | W135: AM HOURS | X135: PM HOURS | Y135: TOTAL HOURS | Z135: PAID | AA135: REMARKS
A136: CHERISH RESORT | B136: =+'10-25 SAT LEX-HAZELNEG 1026'!E136 -> 3681 | E136: 3681 | P136: DAYOFF | S136: IN | T136: OUT | U136: IN | V136: OUT
A137: CLORES TRESURE ISLAND | B137: =+'10-25 SAT LEX-HAZELNEG 1026'!E137 -> 7 | E137: 7 | P137: SATURDAY | R137: JOMARI CORTES | W137: =+(T137-S137)*24 -> 0.0 | X137: =+(V137-U137)*24 -> 0.0
A138: CONRADO / NOEL BAKERY | B138: =+'10-25 SAT LEX-HAZELNEG 1026'!E138 -> 3601 | E138: 3601 | P138: SUNDAY | R138: JUNREL MALIPOT | W138: =+(T138-S138)*24 -> 0.0 | X138: =+(V138-U138)*24 -> 0.0
A139: CRISPY KING CROSSING | B139: =+'10-25 SAT LEX-HAZELNEG 1026'!E139 -> 60 | E139: 60 | K139: CP# | O139: DRIVER | P139: SUNDAY | R139: APRIL ARENDAIN | W139: =+(T139-S139)*24 -> 0.0 | X139: =+(V146-U146)*24 -> 5.0
A140: CRISPY KING IBANEZ | B140: =+'10-25 SAT LEX-HAZELNEG 1026'!E140 -> 0 | E140: 0 | K140: CP# | O140: DRIVER | R140: DIONESITO BLAZO 9301238381 | W140: =+(T141-S140)*24 -> 0.0 | X140: =+(V141-U141)*24 -> 0.0
A141: CRISPY KING MARKET | B141: =+'10-25 SAT LEX-HAZELNEG 1026'!E141 -> 0 | E141: 0 | P141: SUNDAY | R141: RULEY GREPALDEO | W141: =+(T142-S141)*24 -> 0.0 | X141: =+(V142-U142)*24 -> 0.0
A142: CRISPY KING MOBO | B142: =+'10-25 SAT LEX-HAZELNEG 1026'!E142 -> 0 | E142: 0 | W142: 0.0 | X142: =+(V142-U142)*24 -> 0.0
A143: CRISPY KING CAWAYAN | B143: =+'10-25 SAT LEX-HAZELNEG 1026'!E143 -> 0 | E143: 0 | W143: 0.0 | X143: =+(V143-U143)*24 -> 0.0
A144: EZ CAFÉ W/CYLINDER | B144: =+'10-25 SAT LEX-HAZELNEG 1026'!E144 -> 0 | E144: 0 | W144: 0.0 | X144: =+(V144-U144)*24 -> 0.0
A145: FRANCE LAUNDRY | B145: =+'10-25 SAT LEX-HAZELNEG 1026'!E145 -> 2860 | E145: 2860 | W145: =+(T145-S145)*24 -> 0.0 | X145: =+(V145-U145)*24 -> 0.0
A146: JUAN HOUR LAUNDRY | B146: =+'10-25 SAT LEX-HAZELNEG 1026'!E146 -> 0 | E146: 0 | R146: SHANNAH | S146: 07:00:00 | T146: 12:00:00 | U146: 01:00:00 | V146: 06:00:00 | W146: =+(T146-S146)*24 -> 5.0 | X146: =+(V146-U146)*24 -> 5.0
A147: KATES LAUNDRY SHOP | B147: =+'10-25 SAT LEX-HAZELNEG 1026'!E147 -> 0 | E147: 0 | R147: NATHANIEL ALERTA | S147: 07:00:00 | T147: 12:00:00 | U147: 01:00:00 | V147: 06:00:00 | W147: 5.0 | X147: 5.0 | Z147: 500
A148: MARKY RESTAURANT | B148: =+'10-25 SAT LEX-HAZELNEG 1026'!E148 -> 4001 | E148: 4001 | P148: SATURDAY | R148: ARNOLD PEPITO | S148: 07:00:00 | T148: 12:00:00 | U148: 01:00:00 | V148: 06:00:00 | W148: 5.0 | X148: 5.0 | Z148: 500
A149: MASBATE LAUNDRY SHOP | B149: =+'10-25 SAT LEX-HAZELNEG 1026'!E149 -> 0 | E149: 0 | K149: CP# | O149: DRIVER | P149: WEDNESDAY | R149: EVANGELISTA ROMULO | S149: 07:00:00 | T149: 12:00:00 | U149: 01:00:00 | V149: 06:00:00 | W149: 5.0 | X149: 5.0 | Z149: 500
A150: DAMPA | B150: =+'10-25 SAT LEX-HAZELNEG 1026'!E150 -> 0 | E150: 0 | R150: HAZEL | S150: 07:00:00 | T150: 12:00:00 | U150: 01:00:00 | V150: 06:00:00 | W150: 5.0 | X150: 5.0 | Z150: 500
A151: PINOY SIOPAO | B151: =+'10-25 SAT LEX-HAZELNEG 1026'!E151 -> 0 | E151: 0 | P151: SUNDAY | R151: LIZET DANAO | W151: 0.0 | X151: 0.0
A152: REMS LAUNDRY | B152: =+'10-25 SAT LEX-HAZELNEG 1026'!E152 -> 6144 | E152: 6144 | K152: CP# | O152: DRIVER | P152: FRIDAY | R152: ARTURO PARAGAS | W152: 0.0 | X152: 0.0
A153: REYJOHN BAKERY | B153: =+'10-25 SAT LEX-HAZELNEG 1026'!E153 -> 0 | E153: 0 | P153: SATURDAY | R153: LEO MARCOS | W153: 0.0 | X153: 0.0
A154: ROBERTO AND ROWE | B154: =+'10-25 SAT LEX-HAZELNEG 1026'!E154 -> 15707 | E154: 15707 | K154: CP# | O154: DRIVER | P154: THURSDAY | R154: JULIAN DUMALAG | S154: 07:00:00 | T154: 12:00:00 | U154: 01:00:00 | V154: 06:00:00 | W154: 5.0 | X154: 5.0 | Z154: 500
A155: ROLLING BUBBLES | B155: =+'10-25 SAT LEX-HAZELNEG 1026'!E155 -> 0 | E155: 0 | M155: BNNNNNNNNNNNNNNNNNNNNNNNNNNNNNNNNNNNNNNNNNNNNNNNNNNNNNNN | R155: SALARY TOTAL | Z155: =SUM(Z137:Z154) -> 2500 | AG155: SAKTO
A156: ROSEMARY EVENTS | B156: =+'10-25 SAT LEX-HAZELNEG 1026'!E156 -> 0 | E156: 0 | R156: COY DRIVER | Z156: 4000
A157: ROWEES AROROY | B157: =+'10-25 SAT LEX-HAZELNEG 1026'!E157 -> 0 | E157: 0 | Z157: 4500 | AJ157: 7 | AL157: 87
A158: PALMA SHERYL/avegail laundry | B158: =+'10-25 SAT LEX-HAZELNEG 1026'!E158 -> 4614 | E158: 4614 | Z158: 3636
A159: WENABETH JOHN BAKERY MALINTA | B159: =+'10-25 SAT LEX-HAZELNEG 1026'!E159 -> 4469 | E159: 4469 | F159: KULANG 100 FOR COLLCTION COCOY
A160: CRISPY KING PIER | B160: =+'10-25 SAT LEX-HAZELNEG 1026'!E160 -> 0 | E160: 0
A161: CRISPY KING OSMENA | B161: =+'10-25 SAT LEX-HAZELNEG 1026'!E161 -> 0 | E161: 0 | R161: EXTRA EXPENSES TOTAL | Z161: =+SUM(Z156:Z160) -> 12136
A162: TUMBAGA SINALONGAN | B162: =+'10-25 SAT LEX-HAZELNEG 1026'!E162 -> 16896 | E162: 16896 | F162: TUESDAY
A163: OUTLET'S | B163: =+'10-25 SAT LEX-HAZELNEG 1026'!E163 -> 0 | E163: 0 | F163: OUTLET'S
A164: ABANO, MICHAEL | B164: =+'10-25 SAT LEX-HAZELNEG 1026'!E164 -> 11380 | E164: 11380 | F164: APRIL | V164: COMMERCIAL ACCOUNT | AE164: REMINDERS
A165: ALVAREZ JENILLYN | B165: =+'10-25 SAT LEX-HAZELNEG 1026'!E165 -> 18750 | E165: 18750
A166: ALVAREZ, RICO 1.4 | B166: =+'10-25 SAT LEX-HAZELNEG 1026'!E166 -> 1330 | E166: 1330 | V166: CUSTOMER NAME | AB166: DICS | AC166: DELIVER | AE166: 9499357775 AMERA 50KG Leah Orubla Villaraiz | AM166: ALOVERA ROSEMARIE | AQ166: 20 | AR166: 15
A167: ALVAREZ, RICO A/S | B167: =+'10-25 SAT LEX-HAZELNEG 1026'!E167 -> 6800 | E167: 6800 | V167: 8 ALL YOU CAN/RIMONTE JOHN AUBREN | AB167: 400 | AC167: 50 | AM167: BANTAYAN MINDA | AQ167: 20 | AR167: 15
A168: BANTAYAN, LENIE | B168: =+'10-25 SAT LEX-HAZELNEG 1026'!E168 -> 12802 | E168: 12802 | V168: ABAN LAUNDRY / ABAN JULIUS | AB168: 300 | AC168: 50 | AM168: CORTES BABY JEAN | AQ168: 20 | AR168: 15
A169: BULALAQUE, NATHANIEL | B169: =+'10-25 SAT LEX-HAZELNEG 1026'!E169 -> 0 | E169: 0 | V169: AVEGAIL S LAUNDRY | AB169: 300 | AC169: 50 | AE169: LAWRENCE SESE 0902014314 LAND BANK
A170: CDJ/CHISA BARRUGA | B170: =+'10-25 SAT LEX-HAZELNEG 1026'!E170 -> 5315 | E170: 5315 | V170: BACKYARD EDIBLE GARDEN | AB170: 300 | AC170: 50
A171: COCOY SOLANE ACCOUNT | B171: =+'10-25 SAT LEX-HAZELNEG 1026'!E171 -> 6232 | E171: 6232 | V171: CARIS HOTEL | AB171: 300 | AC171: 50 | AM171: ESPARZA ANACITA TWIN PEAK | AQ171: 20 | AR171: 15
A172: ELMA BUNGCARAS | B172: =+'10-25 SAT LEX-HAZELNEG 1026'!E172 -> 10680 | E172: 10680 | V172: CHAROS CAFÉ AND RESTO (MOBO RIVER SIDE) | AB172: 0 | AC172: 50 | AE172: LAWRENCE SESE 013568000813 BDO | AM172: ESPINAS ROLANDO | AQ172: 20 | AR172: 15
A173: GADER RENATO | B173: =+'10-25 SAT LEX-HAZELNEG 1026'!E173 -> 16920 | E173: 16920 | J173: SENIOR DISCOUNT | P173: 15 | V173: CHERISH MOMENT RESORT | AB173: 900 | AC173: 50
A174: LOCMAYON BEGA10 (2) | B174: =+'10-25 SAT LEX-HAZELNEG 1026'!E174 -> 0 | E174: 0 | V174: CRISPY KING / DJJM FOOD HUB/ IBANEZ/CROSSING | AB174: 800 | AC174: 50 | AM174: FAZENDA MILAGROS | AQ174: 20 | AR174: 15
A175: SOLON VANGIE | B175: =+'10-25 SAT LEX-HAZELNEG 1026'!E175 -> 8670 | E175: 8670 | J175: 50KG | M175: QTY | N175: AMOUNT | P175: DISCOUNT | R175: DELIVERY CHARGE | V175: CRISPY KING / DJJM FOOD HUB/ MOBO | AB175: 700 | AC175: 50 | AE175: KUA DUTAY 09307207044
A176: ORBISO PHOEBE | B176: =+'10-25 SAT LEX-HAZELNEG 1026'!E176 -> 2112 | E176: 2112 | V176: CRYSPY KING / DJA CATERING SERVICES/PATING | AB176: 800 | AC176: 50
A177: ORBISO, EFILDA | B177: =+'10-25 SAT LEX-HAZELNEG 1026'!E177 -> 0 | E177: 0 | J177: 4564 | N177: =+M177*J177 -> 0 | P177: 0 | V177: CRISPY KING / DJJM FOOD HUB/ OSMENA NOY BIGOL | AB177: 800 | AC177: 50
A178: PAWA VERNA MENDOZA | B178: =+'10-25 SAT LEX-HAZELNEG 1026'!E178 -> 1250 | E178: 1250 | S178: + | V178: CRISPY KING / DJJM FOOD HUB/ PIER NOY BIGOL | W178: =+W222 -> 0 | AB178: 800 | AC178: 50 | AE178: GMS ACCOUNT
A179: ELMA BUNCARAS | B179: =+'10-25 SAT LEX-HAZELNEG 1026'!E179 -> 16630 | E179: 16630 | P179: =+M177*P177 -> 0 | R179: =+M177*R177 -> 0 | V179: / DJJM CRISPY KING NOY BIGOL | AB179: 700 | AC179: 100
A180: SAMPAGA BIDA | B180: =+'10-25 SAT LEX-HAZELNEG 1026'!E180 -> 3816 | E180: 3816 | J180: 11KG | M180: QTY | N180: AMOUNT | P180: DISCOUNT | R180: DELIVERY CHARGE | V180: DAMPA RESTO BAR /BESMONTE MARICAR | AB180: 300 | AC180: 50
A181: SESE, ROSALIA | B181: =+'10-25 SAT LEX-HAZELNEG 1026'!E181 -> 34480 | E181: 34480 | V181: DR. CHESTER LEE | AB181: 900 | AC181: P/U
A182: STAR OIL RECEIVABLE | B182: =+'10-25 SAT LEX-HAZELNEG 1026'!E182 -> 0 | E182: 0 | J182: 1069 | M182: 1 | N182: =+M182*J182 -> 1069 | P182: 70 | V182: EZ CAFÉ | AB182: 300 | AC182: 50
A183: TAYAM IRISH | B183: =+'10-25 SAT LEX-HAZELNEG 1026'!E183 -> 0 | E183: 0 | V183: FRANCE LAUNDRY | AB183: 700 | AC183: 50
A184: YBANEZ, NESSAR | B184: =+'10-25 SAT LEX-HAZELNEG 1026'!E184 -> 30 | E184: 30 | P184: =+M182*P182 -> 70 | R184: =+M182*R182 -> 0 | V184: GACT CONSTRUCTION AND SUPPLY /TAYAM IRISH | AB184: 200 | AC184: 50
A185: ZUNIGA MELCHOR | B185: =+'10-25 SAT LEX-HAZELNEG 1026'!E185 -> 0 | E185: 0 | J185: 1.4KG | M185: QTY | N185: AMOUNT | P185: DISCOUNT | R185: DELIVERY CHARGE | V185: HIGHN'DRY LAUNDRY SERVCES | AB185: 0 | AC185: 50
A186: JENELIN ALVAREZ | B186: =+'10-25 SAT LEX-HAZELNEG 1026'!E186 -> 0 | E186: 0 | V186: JUAN HOUR LAUNDRY - STAIRWAY & IBANEZ | AB186: 900 | AC186: 50 | AE186: DELA PENA ANALYN/OSTED | AI186: 70 | AJ186: 9 | AM186: rey john | AQ186: 20 | AR186: 15
A187: EJJ EVANGELYN M NUGAS | B187: =+'10-25 SAT LEX-HAZELNEG 1026'!E187 -> 0 | E187: 0 | J187: 195 | N187: =+M187*J187 -> 0 | V187: KARAON SA 18TH GRILL AND RESTO | AB187: 300 | AC187: 50 | AI187: 70 | AJ187: 15 | AM187: ROBERTO ROWIE & ROBI FOOD OPC | AQ187: 50 | AR187: 15
A188: VANGIE SOLON | B188: =+'10-25 SAT LEX-HAZELNEG 1026'!E188 -> 0 | E188: 0 | F188: MAY JULY P N FOR PAYMENT | V188: KATES LAUNDRYSHOP/ GUILLERMO ALINSOOT MANACILLO 11 | AB188: 700 | AC188: 50 | AM188: ROBERTO YBANEZ | AQ188: 70 | AR188: 15
A189: TICAO ACCOUNT | B189: =+'10-25 SAT LEX-HAZELNEG 1026'!E189 -> 0 | E189: 0 | F189: TICAO ACCOUNT | L189: =+O185*I185 -> 0 | N189: =+Q185*K185 -> 0 | O189: =+R187*M187 -> 0 | P189: =+M187*P187 -> 0 | V189: MARKY BICOL RESTAURANT | AB189: 900 | AC189: 50 | AM189: SUCUANO LORETO | AQ189: 70 | AR189: 15
A190: BAMBOO PLACE WITH 3 REGULS | B190: =+'10-25 SAT LEX-HAZELNEG 1026'!E190 -> 4181 | E190: 4181 | F190: ALL UNPAID | J190: CASH | M190: CHANGE | Q190: SRP FOR OCT | V190: MASBATE LAUNDRY CENTER MEDINA ST. MASBATE | AB190: 700 | AC190: 50 | AM190: TATA FRIED CHICKEN | AQ190: 70 | AR190: 15
A191: BARREDO EDGAR | B191: =+'10-25 SAT LEX-HAZELNEG 1026'!E191 -> 0 | E191: 0 | V191: MNV FOODHUB (CHIKICHOW) | AB191: 500 | AC191: 50 | AE191: WINWIN FRIED CHICKEN | AI191: 70 | AM191: VENUS PASION | AQ191: 70 | AR191: 15
A192: DRAGAS 6/21 | B192: =+'10-25 SAT LEX-HAZELNEG 1026'!E192 -> 0 | E192: 0 | F192: 3342TRANSFER TO OCGAS | J192: 13000 | M192: =J192-M201 -> 12001 | Q192: 50 KG | S192: 4564 | V192: MR. LAUNDRY - IBINGAY & CROSSING | AB192: 900 | AC192: 50 | AE192: GIGANTE ROQUE VARGAS | AI192: 70 | AJ192: 15 | AL192: TO FOLLOW | AM192: VILLAMOR MARILOU | AQ192: 70 | AR192: 15
A193: GRACE RANGEL 1.4 | B193: =+'10-25 SAT LEX-HAZELNEG 1026'!E193 -> 8589 | C193: 1,295 | D193: =185*10 -> 1,850 | E193: 8034 | V193: MSA - DECS | AB193: 0 | AE193: GONZAGA ANITA | AI193: 70 | AJ193: 15 | AM193: WOW INASAL | AQ193: 70 | AR193: 15
A194: GRACE RANGEL AS | B194: =+'10-25 SAT LEX-HAZELNEG 1026'!E194 -> 17401 | C194: 2,139 | D194: =3988-1850 -> 2,138 | E194: =B194+C194-D194 -> 17402 | F194: 1AS 1 DB PAID 5/29 | J194: ;. | L194: . | Q194: 11 KG | S194: 1069 | V194: NESSAR YBANEZ | AB194: 900 | AC194: 100 | AE194: JODAN EATERY | AI194: 70 | AJ194: 15 | AM194: YKAY FRIED CHICKEN | AQ194: 70 | AR194: 15
A195: LIA SESE | B195: =+'10-25 SAT LEX-HAZELNEG 1026'!E195 -> 8942 | C195: 2,333 | E195: 11275 | F195: KULANG STOVE 4544 | J195: DELIVERY | M195: =+R189+R184+R179 -> 0 | V195: NOEL BAKERY / ANALYN CONRADO | AB195: 300 | AC195: 50 | AE195: LAWODNON | AI195: 70 | AJ195: 15 | AM195: PALMA SHERYL | AQ195: 70 | AR195: 15
A196: OC GAS ALVAREZ | B196: =+'10-25 SAT LEX-HAZELNEG 1026'!E196 -> 7588 | E196: 7588 | F196: =+B194+B193 -> 25990 | Q196: 1.4 KG | S196: 195 | V196: PAN DE MASBATE | AB196: 300 | AC196: 50 | AE196: LOCILLO AILLYN | AI196: 70 | AJ196: 15 | AM196: ROYO BORROW AS REGUL FOR POL TANK TIGBAO 09517207893 JEEP BABY GRACE REYMOND LEGAL
A197: OCHEA FAMILY PANDESAL | B197: =+'10-25 SAT LEX-HAZELNEG 1026'!E197 -> 9401 | E197: 9401 | F197: 1AS REPLACEMENT NO CHRGE FOR RETUN FILLED | J197: DISCOUNT | M197: TOTAL | V197: PINOY SIOPAO | AB197: 300 | AC197: 50 | AJ197: 15
A198: PARK N GO | B198: =+'10-25 SAT LEX-HAZELNEG 1026'!E198 -> 0 | E198: 0 | V198: REMS LAUNDRY / SANDRA MEDINA | AB198: 300 | AC198: 50 | AE198: MARISTELA EMERALD | AI198: 70 | AJ198: 15
A199: THEO PANDESAL | B199: =+'10-25 SAT LEX-HAZELNEG 1026'!E199 -> 5063 | E199: 5063 | F199: REGUL NOT PAID | J199: =+P179+P184+P189 -> 70 | M199: =+N177+N182+N187-J199 -> 999 | V199: REYJOHN BAKERY / RHEA DELA CRUZ OBOG | AB199: 700 | AC199: 50 | AE199: MIEKOYS PIZZA | AI199: 70 | AJ199: 15
A200: ZANDRA BEACH RESORT | B200: =+'10-25 SAT LEX-HAZELNEG 1026'!E200 -> 12606 | E200: 12606 | Q200: OTHER AMOUNT HERE | V200: ROLLING BUBBLES - DANAO | AB200: 700 | AC200: 50 | AE200: MIGGYS BAKERY | AI200: 70 | AJ200: 15
... 175 more rows

Sheet 10-25 SAT LEX-HAZELNEG 1026
B1: BEGIN | C1: UNPAID | D1: PAYMENT | E1: END | F1: CASH ADVANCE
A2: C.A APRIL ARENDAIN | B2: =+'10-24 FRI LEX'!E2 -> 2050 | E2: =B2+C2-D2 -> 2050 | P2: ENTER NUMER W/POSITIVE SIGN IF increase
A3: TIYO NOY | B3: =+'10-24 FRI LEX'!E3 -> 500 | E3: 500
A4: C.A COCOY | B4: =+'10-24 FRI LEX'!E4 -> 1615 | E4: 1615 | P4: ENTER NUMER W/NEGATIVE SIGN IF decrease
A5: DAVE BONA | B5: =+'10-24 FRI LEX'!E5 -> 4000 | E5: 4000
A6: C.A JOMARI CORTES | B6: =+'10-24 FRI LEX'!E6 -> 40928 | E6: 40928
A7: C.A JUNREL MALIPOT | B7: =+'10-24 FRI LEX'!E7 -> 10469 | E7: 10469
A8: C.A NATHANIEL | B8: =+'10-24 FRI LEX'!E8 -> 600 | E8: 600
A9: C.A MANANGAT CHRISTIAN | B9: =+'10-24 FRI LEX'!E9 -> 3548 | E9: 3548 | S9: =-S11*1 -> 1.300
A10: C.A SINADJAN, RAMIL | B10: =+'10-24 FRI LEX'!E10 -> 1100 | E10: 1100 | R10: 11kilos | S10: 11.000
A11: C.A VESTER | B11: =+'10-24 FRI LEX'!E11 -> 9782 | E11: 9782 | R11: ENTER NUMBER (-/+) | S11: -1.300
A12: IRENE | B12: =+'10-24 FRI LEX'!E12 -> 2000 | E12: 2000 | R12: TOTAL CHANGE | S12: =+S10*S9 -> 14.300
A13: ARTURO PARAGAS | B13: =+'10-24 FRI LEX'!E13 -> 6900 | E13: 6900 | R13: VAT | S13: =+S12*0.12 -> 1.716
A14: DONNA LUIS | B14: =+'10-24 FRI LEX'!E14 -> 3300 | E14: 3300 | R14: VAT + TOTAL CHANGE | S14: =+S12+S13 -> 16.016
A15: RULEY GREPALDIO | B15: =+'10-24 FRI LEX'!E15 -> 1076 | E15: 1076 | R15: ENTER OLD PRICE | S15: 1,076.000
A16: JULIAN | B16: =+'10-24 FRI LEX'!E16 -> 5200 | E16: 5200 | F16: JULLIAN DUMALAG | R16: NEW PRICE | S16: =+S15-S14 -> 1,059.984
A17: CA HAZEL 8/21 | B17: =+'10-24 FRI LEX'!E17 -> 1600 | E17: 1600
A18: SABIANO BERAL | B18: =+'10-24 FRI LEX'!E18 -> 5000 | E18: 5000 | S18: =-S20*1 -> 0.000
A19: LABOR ADVANCE | B19: =+'10-24 FRI LEX'!E19 -> 1000 | E19: 1000 | R19: 50KG | S19: 50.000
A20: NATHANIEL | B20: =+'10-24 FRI LEX'!E20 -> 3500 | E20: 3500 | F20: NAT CA 3500 | R20: ENTER NUMBER (-/+) | S20: =+P6 -> 0.000
A21: RJ DUMANGAS | B21: =+'10-24 FRI LEX'!E21 -> 1000 | E21: 1000 | R21: TOTAL CHANGE | S21: =+S19*S18 -> 0.000
A22: REGULAR | B22: =+'10-24 FRI LEX'!E22 -> 0 | E22: 0 | F22: REGULAR | R22: VAT | S22: =+S21*0.12 -> 0.000
A23: ABOYS | B23: =+'10-24 FRI LEX'!E23 -> 769 | E23: 769 | R23: VAT + TOTAL CHANGE | S23: =+S21+S22 -> 0.000
A24: ABSALON LOLITA | B24: =+'10-24 FRI LEX'!E24 -> 1000 | E24: 1000 | R24: ENTER OLD PRICE | S24: 4,719.000
A25: ALBAO, ELMER | B25: =+'10-24 FRI LEX'!E25 -> 834 | E25: 834 | R25: NEW PRICE | S25: =+S24-S23 -> 4,719.000
A26: ALOVERA ROSEMARIE | B26: =+'10-24 FRI LEX'!E26 -> 25 | E26: 25
A27: ANDAYA NELLY | B27: =+'10-24 FRI LEX'!E27 -> 1071 | E27: 1071 | S27: =-S29*1 -> 0.000
A28: AYESHA BAKERY | B28: =+'10-24 FRI LEX'!E28 -> 2105 | E28: 2105 | R28: 1.4KG | S28: 1.400
A29: BANTAYAN MINDA | B29: =+'10-24 FRI LEX'!E29 -> 168 | E29: 168 | R29: ENTER NUMBER (-/+) | S29: =+P6 -> 0.000
A30: BEGGS BAKERY | B30: =+'10-24 FRI LEX'!E30 -> 7936 | E30: 7936 | R30: TOTAL CHANGE | S30: =+S28*S27 -> 0.000
A31: BINOLIRAO, JOY | B31: =+'10-24 FRI LEX'!E31 -> 5432 | E31: 5432 | R31: VAT | S31: =+S30*0.12 -> 0.000
A32: CAFÉ KRISTINA | B32: =+'10-24 FRI LEX'!E32 -> 4226 | E32: 4226 | R32: VAT + TOTAL CHANGE | S32: =+S30+S31 -> 0.000
A33: CANTUBA PORTIA | B33: =+'10-24 FRI LEX'!E33 -> 1076 | E33: 1076 | R33: ENTER OLD PRICE | S33: 199.000
A34: CAPELLAN EMILY | B34: =+'10-24 FRI LEX'!E34 -> 588 | E34: 588 | R34: NEW PRICE | S34: =+S33-S32 -> 199.000
A35: CAPELLAN SONY | B35: =+'10-24 FRI LEX'!E35 -> 500 | E35: 500
A36: CHEPIE/SAMSON JINKY | B36: =+'10-24 FRI LEX'!E36 -> 0 | E36: 0 | F36: =6000+3500+816 -> 10316
A37: CITY VICE OLD | B37: =+'10-24 FRI LEX'!E37 -> 6121 | E37: 6121
A38: CORTES BABYJANE LESS 200 | B38: =+'10-24 FRI LEX'!E38 -> 2128 | E38: 2128
A39: COSTALES, ERNESTO | B39: =+'10-24 FRI LEX'!E39 -> 25 | E39: 25
A40: DALANON, LUZ | B40: =+'10-24 FRI LEX'!E40 -> 1160 | E40: 1160
A41: DESAMERO JESS | B41: =+'10-24 FRI LEX'!E41 -> 1033 | E41: 1033
A42: DESPE, ARTUR | B42: =+'10-24 FRI LEX'!E42 -> 997 | E42: 997
A43: DIOCADO JOHNWIL ONLOAN | B43: =+'10-24 FRI LEX'!E43 -> 900 | E43: 900
A44: EMR/PANES FREDDIE / | B44: =+'10-24 FRI LEX'!E44 -> 2050 | E44: 2050
A45: EPONG CARENDERIA | B45: =+'10-24 FRI LEX'!E45 -> 1131 | E45: 1131
A46: ESPARZA ANACITA | B46: =+'10-24 FRI LEX'!E46 -> 2165 | D46: 1,064 | E46: 1101
A47: ESPINAS ROLANDO | B47: =+'10-24 FRI LEX'!E47 -> 1056 | E47: 1056
A48: EVANGELISTA, JOHN | B48: =+'10-24 FRI LEX'!E48 -> 1207 | E48: 1207
A49: FLORES HELEN | B49: =+'10-24 FRI LEX'!E49 -> 1647 | E49: 1647
A50: GARBO RADFORD | B50: =+'10-24 FRI LEX'!E50 -> 1624 | E50: 1624
A51: GARBO RAYMUND | B51: =+'10-24 FRI LEX'!E51 -> 1103 | E51: 1103
A52: GONZAGA, ANITA | B52: =+'10-24 FRI LEX'!E52 -> 1191 | E52: 1191 | F52: APRIL
A53: HARLEY CLEOFE | B53: =+'10-24 FRI LEX'!E53 -> 0 | E53: 0
A54: JANZMILE | B54: =+'10-24 FRI LEX'!E54 -> 2331 | E54: 2331
A55: JODAN EATERY | B55: =+'10-24 FRI LEX'!E55 -> 50 | E55: 50
A56: LALAGUNA FAITH | B56: =+'10-24 FRI LEX'!E56 -> 0 | E56: 0
A57: LAURENO SUSIE | B57: =+'10-24 FRI LEX'!E57 -> 2274 | E57: 2274
A58: LAWODNON | B58: =+'10-24 FRI LEX'!E58 -> 6304 | E58: 6304
A59: LIBERTY BAKERY | B59: =+'10-24 FRI LEX'!E59 -> 0 | E59: 0
A60: LOLO JOFAX (2160) UNPAID | B60: =+'10-24 FRI LEX'!E60 -> 500 | E60: 500
A61: MANALO, CHITA | B61: =+'10-24 FRI LEX'!E61 -> 2120 | E61: 2120
A62: MANGUBAT-CAWAYAN | B62: =+'10-24 FRI LEX'!E62 -> 1121 | E62: 1121
A63: MARABE, GUENTER | B63: =+'10-24 FRI LEX'!E63 -> 1014 | E63: 1014
A64: MARISTELA, EMERALD | B64: =+'10-24 FRI LEX'!E64 -> 7907 | E64: 7907
A65: MIEKOYS PIZZA | B65: =+'10-24 FRI LEX'!E65 -> 0 | E65: 0
A66: MIGGYS BAKERY | B66: =+'10-24 FRI LEX'!E66 -> 765 | E66: =B66+C66-D66 -> 765
A67: MORAN ANALY | B67: =+'10-24 FRI LEX'!E67 -> 0 | E67: 0
A68: MORAN JACKILYN | B68: =+'10-24 FRI LEX'!E68 -> 1068 | E68: 1068
A69: NARIDO RAFAEL REG | B69: =+'10-24 FRI LEX'!E69 -> 475 | E69: 475
A70: NARIDO, REYNALDO | B70: =+'10-24 FRI LEX'!E70 -> 475 | E70: 475
A71: NUNEZ, PERPETUA | B71: =+'10-24 FRI LEX'!E71 -> 3831 | E71: 3831
A72: OLIVA, CELSO | B72: =+'10-24 FRI LEX'!E72 -> 168 | E72: 168
A73: OLIVA, DOREEN | B73: =+'10-24 FRI LEX'!E73 -> 474 | E73: 474
A74: ORBISO LIZA/NUNU | B74: =+'10-24 FRI LEX'!E74 -> 2405 | E74: 2405
A75: ORBISO, KEILLI | B75: =+'10-24 FRI LEX'!E75 -> 474 | E75: 474
A76: PASION VENUS | B76: =+'10-24 FRI LEX'!E76 -> 1014 | E76: 1014
A77: PERALTA LYNDON | B77: =+'10-24 FRI LEX'!E77 -> 40 | E77: 40
A78: PHO | B78: =+'10-24 FRI LEX'!E78 -> 0 | E78: 0
A79: RESUENA | B79: =+'10-24 FRI LEX'!E79 -> 4226 | E79: 4226
A80: RUELAN RONALD | B80: =+'10-24 FRI LEX'!E80 -> 1083 | E80: 1083
A81: SALADAS SHERLY | B81: =+'10-24 FRI LEX'!E81 -> 674 | E81: 674
A82: BANTAYAN MINDA | B82: =+'10-24 FRI LEX'!E82 -> 0 | E82: 0
A83: SANDRA SAN JUAN | B83: =+'10-24 FRI LEX'!E83 -> 1300 | E83: 1300
A84: TATA/NUEVO MARILOU | B84: =+'10-24 FRI LEX'!E84 -> 0 | E84: 0
A85: TENORIA, MARRAH | B85: =+'10-24 FRI LEX'!E85 -> 130 | E85: 130
A86: VILLAMOR, MARILOU (MOM) | B86: =+'10-24 FRI LEX'!E86 -> 0 | E86: 0
A87: VILLAMOR, MARILOU (SON) | B87: =+'10-24 FRI LEX'!E87 -> 2308 | E87: 2308
A88: VILLOCILLO JESUS | B88: =+'10-24 FRI LEX'!E88 -> 0 | E88: 0
A89: YBANEZ ROBERTO (1115) UNPAID | B89: =+'10-24 FRI LEX'!E89 -> 2096 | E89: 2096
A90: YKAY/NUEVO ELENA | B90: =+'10-24 FRI LEX'!E90 -> 60890 | E90: 60890 | F90: 5 receipts 4 missing
A91: TWIN PEAK | B91: =+'10-24 FRI LEX'!E91 -> 1084 | C91: 1,084 | D91: 1,084 | E91: 1084 | F91: =61050-10300 -> 50750
A92: COLLANTES | B92: =+'10-24 FRI LEX'!E92 -> 0 | E92: 0
A93: MARYJANE CORTES | B93: =+'10-24 FRI LEX'!E93 -> 45 | E93: 45
A94: HAPPY ROASTER | B94: =+'10-24 FRI LEX'!E94 -> 6456 | E94: 6456
A95: JOHNRICK PACHECO | B95: =+'10-24 FRI LEX'!E95 -> 800 | E95: 800
A96: CHARO'S CAFÉ | B96: =+'10-24 FRI LEX'!E96 -> 25 | E96: 25
A97: LOCILLO AILYN | B97: =+'10-24 FRI LEX'!E97 -> 0 | E97: 0
A98: OVERTYM | B98: =+'10-24 FRI LEX'!E98 -> 0 | E98: 0
A99: HARLEY CLEOFE | B99: =+'10-24 FRI LEX'!E99 -> 0 | E99: 0
A100: PAPILLERA M 3000 from lex | B100: =+'10-24 FRI LEX'!E100 -> 3114 | E100: 3114
A101: OVERTYM | B101: =+'10-24 FRI LEX'!E101 -> 0 | E101: 0
A102: CITY TREASURY | B102: =+'10-24 FRI LEX'!E102 -> 4550 | E102: 4550
A103: AMY DELA PISA | B103: =+'10-24 FRI LEX'!E103 -> 0 | E103: 0
A104: GERARDO PRESADO | B104: =+'10-24 FRI LEX'!E104 -> 1084 | D104: 1,084 | E104: 0
A105: BERNARD CARPIO | B105: =+'10-24 FRI LEX'!E105 -> 1132 | E105: 1132
A106: CHONA MESA | B106: =+'10-24 FRI LEX'!E106 -> 2298 | E106: 2298
A107: PASTORA VIE | B107: =+'10-24 FRI LEX'!E107 -> 600 | E107: 600
A108: EVELYN CONRADO | B108: =+'10-24 FRI LEX'!E108 -> 400 | E108: 400
B109: =+'10-24 FRI LEX'!E109 -> 0 | E109: 0
A110: NENETH REYES | B110: =+'10-24 FRI LEX'!E110 -> 693 | E110: 693
A111: JUREXEN VERDIDA | B111: =+'10-24 FRI LEX'!E111 -> 3001 | E111: 3001
A112: VILLARANTE RENZEL | B112: =+'10-24 FRI LEX'!E112 -> 646 | E112: 646
A113: ALMARIO MOBO BGACAY | B113: =+'10-24 FRI LEX'!E113 -> 143 | E113: 143
A114: ALFARO | B114: =+'10-24 FRI LEX'!E114 -> 1147 | E114: 1147
A115: JOSE CUELLO 4/24 TRADE IN | B115: =+'10-24 FRI LEX'!E115 -> 1071 | E115: 1071
B116: =+'10-24 FRI LEX'!E116 -> 0 | E116: 0
A117: MANLAPAZ | B117: =+'10-24 FRI LEX'!E117 -> 1084 | E117: 1084
A118: CITY VICE NEW GAZUL | B118: =+'10-24 FRI LEX'!E118 -> 1103 | E118: 1103
A119: EVA VERANO | B119: =+'10-24 FRI LEX'!E119 -> 576 | E119: 576
B120: =+'10-24 FRI LEX'!E120 -> 0 | E120: 0
A121: HAPPY ROASTER | B121: =+'10-24 FRI LEX'!E121 -> 2138 | C121: 2,138 | E121: 4276
B122: =+'10-24 FRI LEX'!E122 -> 0 | E122: 0
B123: =+'10-24 FRI LEX'!E123 -> 0 | E123: 0
A124: CITY VICE | B124: =+'10-24 FRI LEX'!E124 -> 1076 | E124: 1076
A125: JEREMY SAMSON | B125: =+'10-24 FRI LEX'!E125 -> 18800 | E125: 18800
A126: VILLANUEVA GLENDA | B126: =+'10-24 FRI LEX'!E126 -> 1749 | E126: 1749
A127: GALLETO DOREEN | B127: =+'10-24 FRI LEX'!E127 -> 0 | E127: 0
A128: CITIBUILDER | B128: =+'10-24 FRI LEX'!E128 -> 1114 | E128: 1114
A129: 50kg ACCOUNT | B129: =+'10-24 FRI LEX'!E129 -> 0 | E129: 0 | F129: 50kg ACCOUNT
A130: ABAN, JULIUS | B130: =+'10-24 FRI LEX'!E130 -> 8660 | E130: =B130+C130-D130 -> 8660
A131: AVEGAIL LAUNDRY | B131: =+'10-24 FRI LEX'!E131 -> 6538 | E131: 6538
A132: BACKYARD EDIBLE GARDEN | B132: =+'10-24 FRI LEX'!E132 -> 844 | E132: 844
A133: CARIS HOTEL | B133: =+'10-24 FRI LEX'!E133 -> 4314 | E133: 4314 | R133: ATTENDANCE AND PAYMENT | X133: =+Z155+Z161 -> 3050
A134: TEABOX | B134: =+'10-24 FRI LEX'!E134 -> 0 | E134: 0
A135: CHAROS CAFÉ AND RESTO | B135: =+'10-24 FRI LEX'!E135 -> 0 | E135: 0 | R135: NAMES | S135: AM | U135: PM | W135: AM HOURS | X135: PM HOURS | Y135: TOTAL HOURS | Z135: PAID | AA135: REMARKS
A136: CHERISH RESORT | B136: =+'10-24 FRI LEX'!E136 -> 3681 | C136: 3,681 | D136: 3,681 | E136: 3681 | P136: DAYOFF | S136: IN | T136: OUT | U136: IN | V136: OUT
A137: CLORES TRESURE ISLAND | B137: =+'10-24 FRI LEX'!E137 -> 7 | E137: 7 | P137: SATURDAY | R137: JOMARI CORTES | W137: =+(T137-S137)*24 -> 0.0 | X137: =+(V137-U137)*24 -> 0.0
A138: CONRADO / NOEL BAKERY | B138: =+'10-24 FRI LEX'!E138 -> 3601 | E138: 3601 | P138: SUNDAY | R138: JUNREL MALIPOT | W138: =+(T138-S138)*24 -> 0.0 | X138: =+(V138-U138)*24 -> 0.0
A139: CRISPY KING CROSSING | B139: =+'10-24 FRI LEX'!E139 -> 60 | E139: 60 | K139: CP# | O139: DRIVER | P139: SUNDAY | R139: APRIL ARENDAIN | S139: 07:11:00 | T139: 12:00:00 | U139: 01:00:00 | V139: 06:00:00 | W139: =+(T139-S139)*24 -> 4.8 | X139: =+(V146-U146)*24 -> 5.0 | Z139: 550
A140: CRISPY KING IBANEZ | B140: =+'10-24 FRI LEX'!E140 -> 0 | E140: 0 | K140: CP# | O140: DRIVER | R140: DIONESITO BLAZO 9301238381 | W140: =+(T141-S140)*24 -> 0.0 | X140: =+(V141-U141)*24 -> 0.0
A141: CRISPY KING MARKET | B141: =+'10-24 FRI LEX'!E141 -> 0 | E141: 0 | P141: SUNDAY | R141: RULEY GREPALDEO | W141: =+(T142-S141)*24 -> 0.0 | X141: =+(V142-U142)*24 -> 0.0
A142: CRISPY KING MOBO | B142: =+'10-24 FRI LEX'!E142 -> 0 | E142: 0 | W142: 0.0 | X142: =+(V142-U142)*24 -> 0.0
A143: CRISPY KING CAWAYAN | B143: =+'10-24 FRI LEX'!E143 -> 0 | E143: 0 | W143: 0.0 | X143: =+(V143-U143)*24 -> 0.0
A144: EZ CAFÉ W/CYLINDER | B144: =+'10-24 FRI LEX'!E144 -> 0 | E144: 0 | W144: 0.0 | X144: =+(V144-U144)*24 -> 0.0
A145: FRANCE LAUNDRY | B145: =+'10-24 FRI LEX'!E145 -> 2860 | E145: 2860 | W145: =+(T145-S145)*24 -> 0.0 | X145: =+(V145-U145)*24 -> 0.0
A146: JUAN HOUR LAUNDRY | B146: =+'10-24 FRI LEX'!E146 -> 0 | E146: 0 | R146: SHANNAH | S146: 07:00:00 | T146: 12:00:00 | U146: 01:00:00 | V146: 06:00:00 | W146: =+(T146-S146)*24 -> 5.0 | X146: =+(V146-U146)*24 -> 5.0
A147: KATES LAUNDRY SHOP | B147: =+'10-24 FRI LEX'!E147 -> 0 | E147: 0 | R147: NATHANIEL ALERTA | W147: 0.0 | X147: 0.0
A148: MARKY RESTAURANT | B148: =+'10-24 FRI LEX'!E148 -> 4001 | E148: 4001 | P148: SATURDAY | R148: ARNOLD PEPITO | S148: 07:00:00 | T148: 12:00:00 | U148: 01:00:00 | V148: 06:00:00 | W148: 5.0 | X148: 5.0 | Z148: 500
A149: MASBATE LAUNDRY SHOP | B149: =+'10-24 FRI LEX'!E149 -> 0 | E149: 0 | K149: CP# | O149: DRIVER | P149: WEDNESDAY | R149: EVANGELISTA ROMULO | S149: 07:00:00 | T149: 12:00:00 | U149: 01:00:00 | V149: 06:00:00 | W149: 5.0 | X149: 5.0 | Z149: 500
A150: DAMPA | B150: =+'10-24 FRI LEX'!E150 -> 0 | E150: 0 | R150: HAZEL | S150: 07:00:00 | T150: 12:00:00 | U150: 01:00:00 | V150: 06:00:00 | W150: 5.0 | X150: 5.0 | Z150: 500
A151: PINOY SIOPAO | B151: =+'10-24 FRI LEX'!E151 -> 0 | E151: 0 | P151: SUNDAY | R151: LIZET DANAO | W151: 0.0 | X151: 0.0
A152: REMS LAUNDRY | B152: =+'10-24 FRI LEX'!E152 -> 6144 | E152: 6144 | K152: CP# | O152: DRIVER | P152: FRIDAY | R152: ARTURO PARAGAS | W152: 0.0 | X152: 0.0
A153: REYJOHN BAKERY | B153: =+'10-24 FRI LEX'!E153 -> 0 | E153: 0 | P153: SATURDAY | R153: LEO MARCOS | S153: 07:00:00 | T153: 12:00:00 | U153: 01:00:00 | V153: 06:00:00 | W153: 5.0 | X153: 5.0 | Z153: 500
A154: ROBERTO AND ROWE | B154: =+'10-24 FRI LEX'!E154 -> 15707 | E154: 15707 | K154: CP# | O154: DRIVER | P154: THURSDAY | R154: JULIAN DUMALAG | S154: 07:00:00 | T154: 12:00:00 | U154: 01:00:00 | V154: 06:00:00 | W154: 5.0 | X154: 5.0 | Z154: 500
A155: ROLLING BUBBLES | B155: =+'10-24 FRI LEX'!E155 -> 0 | E155: 0 | M155: BNNNNNNNNNNNNNNNNNNNNNNNNNNNNNNNNNNNNNNNNNNNNNNNNNNNNNNN | R155: SALARY TOTAL | Z155: =SUM(Z137:Z154) -> 3050 | AG155: SAKTO
A156: ROSEMARY EVENTS | B156: =+'10-24 FRI LEX'!E156 -> 0 | E156: 0
A157: ROWEES AROROY | B157: =+'10-24 FRI LEX'!E157 -> 0 | E157: 0 | AJ157: 7 | AL157: 87
A158: PALMA SHERYL/avegail laundry | B158: =+'10-24 FRI LEX'!E158 -> 4614 | E158: 4614
A159: WENABETH JOHN BAKERY MALINTA | B159: =+'10-24 FRI LEX'!E159 -> 4469 | E159: 4469 | F159: KULANG 100 FOR COLLCTION COCOY
A160: CRISPY KING PIER | B160: =+'10-24 FRI LEX'!E160 -> 3814 | D160: 3,814 | E160: 0
A161: CRISPY KING OSMENA | B161: =+'10-24 FRI LEX'!E161 -> 0 | E161: 0 | R161: EXTRA EXPENSES TOTAL | Z161: =+SUM(Z156:Z160) -> 0
A162: TUMBAGA SINALONGAN | B162: =+'10-24 FRI LEX'!E162 -> 16896 | E162: 16896 | F162: TUESDAY
A163: OUTLET'S | B163: =+'10-24 FRI LEX'!E163 -> 0 | E163: 0 | F163: OUTLET'S
A164: ABANO, MICHAEL | B164: =+'10-24 FRI LEX'!E164 -> 11380 | E164: 11380 | F164: APRIL | V164: COMMERCIAL ACCOUNT | AE164: REMINDERS
A165: ALVAREZ JENILLYN | B165: =+'10-24 FRI LEX'!E165 -> 18750 | E165: 18750
A166: ALVAREZ, RICO 1.4 | B166: =+'10-24 FRI LEX'!E166 -> 1330 | E166: 1330 | V166: CUSTOMER NAME | AB166: DICS | AC166: DELIVER | AE166: 9499357775 AMERA 50KG Leah Orubla Villaraiz | AM166: ALOVERA ROSEMARIE | AQ166: 20 | AR166: 15
A167: ALVAREZ, RICO A/S | B167: =+'10-24 FRI LEX'!E167 -> 6800 | E167: 6800 | V167: 8 ALL YOU CAN/RIMONTE JOHN AUBREN | AB167: 400 | AC167: 50 | AM167: BANTAYAN MINDA | AQ167: 20 | AR167: 15
A168: BANTAYAN, LENIE | B168: =+'10-24 FRI LEX'!E168 -> 12802 | E168: 12802 | V168: ABAN LAUNDRY / ABAN JULIUS | AB168: 300 | AC168: 50 | AM168: CORTES BABY JEAN | AQ168: 20 | AR168: 15
A169: BULALAQUE, NATHANIEL | B169: =+'10-24 FRI LEX'!E169 -> 0 | E169: 0 | V169: AVEGAIL S LAUNDRY | AB169: 300 | AC169: 50 | AE169: LAWRENCE SESE 0902014314 LAND BANK
A170: CDJ/CHISA BARRUGA | B170: =+'10-24 FRI LEX'!E170 -> 5315 | E170: 5315 | V170: BACKYARD EDIBLE GARDEN | AB170: 300 | AC170: 50
A171: COCOY SOLANE ACCOUNT | B171: =+'10-24 FRI LEX'!E171 -> 6232 | E171: 6232 | V171: CARIS HOTEL | AB171: 300 | AC171: 50 | AM171: ESPARZA ANACITA TWIN PEAK | AQ171: 20 | AR171: 15
A172: ELMA BUNGCARAS | B172: =+'10-24 FRI LEX'!E172 -> 10680 | E172: 10680 | V172: CHAROS CAFÉ AND RESTO (MOBO RIVER SIDE) | AB172: 0 | AC172: 50 | AE172: LAWRENCE SESE 013568000813 BDO | AM172: ESPINAS ROLANDO | AQ172: 20 | AR172: 15
A173: GADER RENATO | B173: =+'10-24 FRI LEX'!E173 -> 16920 | E173: 16920 | J173: SENIOR DISCOUNT | P173: 15 | V173: CHERISH MOMENT RESORT | AB173: 900 | AC173: 50
A174: LOCMAYON BEGA10 (2) | B174: =+'10-24 FRI LEX'!E174 -> 0 | E174: 0 | V174: CRISPY KING / DJJM FOOD HUB/ IBANEZ/CROSSING | AB174: 800 | AC174: 50 | AM174: FAZENDA MILAGROS | AQ174: 20 | AR174: 15
A175: SOLON VANGIE | B175: =+'10-24 FRI LEX'!E175 -> 8670 | E175: 8670 | J175: 50KG | M175: QTY | N175: AMOUNT | P175: DISCOUNT | R175: DELIVERY CHARGE | V175: CRISPY KING / DJJM FOOD HUB/ MOBO | AB175: 700 | AC175: 50 | AE175: KUA DUTAY 09307207044
A176: ORBISO PHOEBE | B176: =+'10-24 FRI LEX'!E176 -> 2112 | E176: 2112 | V176: CRYSPY KING / DJA CATERING SERVICES/PATING | AB176: 800 | AC176: 50
A177: ORBISO, EFILDA | B177: =+'10-24 FRI LEX'!E177 -> 0 | E177: 0 | J177: 4564 | M177: 1 | N177: =+M177*J177 -> 4564 | P177: 900 | R177: 50 | V177: CRISPY KING / DJJM FOOD HUB/ OSMENA NOY BIGOL | AB177: 800 | AC177: 50
A178: PAWA VERNA MENDOZA | B178: =+'10-24 FRI LEX'!E178 -> 1250 | E178: 1250 | S178: + | V178: CRISPY KING / DJJM FOOD HUB/ PIER NOY BIGOL | W178: =+W222 -> 0 | AB178: 800 | AC178: 50 | AE178: GMS ACCOUNT
A179: ELMA BUNCARAS | B179: =+'10-24 FRI LEX'!E179 -> 16630 | E179: 16630 | P179: =+M177*P177 -> 900 | R179: =+M177*R177 -> 50 | V179: / DJJM CRISPY KING NOY BIGOL | AB179: 700 | AC179: 100
A180: SAMPAGA BIDA | B180: =+'10-24 FRI LEX'!E180 -> 3816 | E180: 3816 | J180: 11KG | M180: QTY | N180: AMOUNT | P180: DISCOUNT | R180: DELIVERY CHARGE | V180: DAMPA RESTO BAR /BESMONTE MARICAR | AB180: 300 | AC180: 50
A181: SESE, ROSALIA | B181: =+'10-24 FRI LEX'!E181 -> 34480 | E181: 34480 | V181: DR. CHESTER LEE | AB181: 900 | AC181: P/U
A182: STAR OIL RECEIVABLE | B182: =+'10-24 FRI LEX'!E182 -> 0 | E182: 0 | J182: 1069 | N182: =+M182*J182 -> 0 | R182: 0 | V182: EZ CAFÉ | AB182: 300 | AC182: 50
A183: TAYAM IRISH | B183: =+'10-24 FRI LEX'!E183 -> 0 | E183: 0 | V183: FRANCE LAUNDRY | AB183: 700 | AC183: 50
A184: YBANEZ, NESSAR | B184: =+'10-24 FRI LEX'!E184 -> 30 | E184: 30 | P184: =+M182*P182 -> 0 | R184: =+M182*R182 -> 0 | V184: GACT CONSTRUCTION AND SUPPLY /TAYAM IRISH | AB184: 200 | AC184: 50
A185: ZUNIGA MELCHOR | B185: =+'10-24 FRI LEX'!E185 -> 0 | E185: 0 | J185: 1.4KG | M185: QTY | N185: AMOUNT | P185: DISCOUNT | R185: DELIVERY CHARGE | V185: HIGHN'DRY LAUNDRY SERVCES | AB185: 0 | AC185: 50
A186: JENELIN ALVAREZ | B186: =+'10-24 FRI LEX'!E186 -> 0 | E186: 0 | V186: JUAN HOUR LAUNDRY - STAIRWAY & IBANEZ | AB186: 900 | AC186: 50 | AE186: DELA PENA ANALYN/OSTED | AI186: 70 | AJ186: 9 | AM186: rey john | AQ186: 20 | AR186: 15
A187: EJJ EVANGELYN M NUGAS | B187: =+'10-24 FRI LEX'!E187 -> 0 | E187: 0 | J187: 195 | N187: =+M187*J187 -> 0 | V187: KARAON SA 18TH GRILL AND RESTO | AB187: 300 | AC187: 50 | AI187: 70 | AJ187: 15 | AM187: ROBERTO ROWIE & ROBI FOOD OPC | AQ187: 50 | AR187: 15
A188: VANGIE SOLON | B188: =+'10-24 FRI LEX'!E188 -> 0 | E188: 0 | F188: MAY JULY P N FOR PAYMENT | V188: KATES LAUNDRYSHOP/ GUILLERMO ALINSOOT MANACILLO 11 | AB188: 700 | AC188: 50 | AM188: ROBERTO YBANEZ | AQ188: 70 | AR188: 15
A189: TICAO ACCOUNT | B189: =+'10-24 FRI LEX'!E189 -> 0 | E189: 0 | F189: TICAO ACCOUNT | L189: =+O185*I185 -> 0 | N189: =+Q185*K185 -> 0 | O189: =+R187*M187 -> 0 | P189: =+M187*P187 -> 0 | R189: =+M187*R187 -> 0 | V189: MARKY BICOL RESTAURANT | AB189: 900 | AC189: 50 | AM189: SUCUANO LORETO | AQ189: 70 | AR189: 15
A190: BAMBOO PLACE WITH 3 REGULS | B190: =+'10-24 FRI LEX'!E190 -> 4181 | E190: 4181 | F190: ALL UNPAID | J190: CASH | M190: CHANGE | Q190: SRP FOR OCT | V190: MASBATE LAUNDRY CENTER MEDINA ST. MASBATE | AB190: 700 | AC190: 50 | AM190: TATA FRIED CHICKEN | AQ190: 70 | AR190: 15
A191: BARREDO EDGAR | B191: =+'10-24 FRI LEX'!E191 -> 0 | E191: 0 | V191: MNV FOODHUB (CHIKICHOW) | AB191: 500 | AC191: 50 | AE191: WINWIN FRIED CHICKEN | AI191: 70 | AM191: VENUS PASION | AQ191: 70 | AR191: 15
A192: DRAGAS 6/21 | B192: =+'10-24 FRI LEX'!E192 -> 0 | E192: 0 | F192: 3342TRANSFER TO OCGAS | J192: 13000 | M192: =J192-M201 -> 9286 | Q192: 50 KG | S192: 4564 | V192: MR. LAUNDRY - IBINGAY & CROSSING | AB192: 900 | AC192: 50 | AE192: GIGANTE ROQUE VARGAS | AI192: 70 | AJ192: 15 | AL192: TO FOLLOW | AM192: VILLAMOR MARILOU | AQ192: 70 | AR192: 15
A193: GRACE RANGEL 1.4 | B193: =+'10-24 FRI LEX'!E193 -> 8589 | E193: 8589 | V193: MSA - DECS | AB193: 0 | AE193: GONZAGA ANITA | AI193: 70 | AJ193: 15 | AM193: WOW INASAL | AQ193: 70 | AR193: 15
A194: GRACE RANGEL AS | B194: =+'10-24 FRI LEX'!E194 -> 17401 | E194: =B194+C194-D194 -> 17401 | F194: 1AS 1 DB PAID 5/29 | J194: ;. | L194: . | Q194: 11 KG | S194: 1069 | V194: NESSAR YBANEZ | AB194: 900 | AC194: 100 | AE194: JODAN EATERY | AI194: 70 | AJ194: 15 | AM194: YKAY FRIED CHICKEN | AQ194: 70 | AR194: 15
A195: LIA SESE | B195: =+'10-24 FRI LEX'!E195 -> 8942 | E195: 8942 | F195: KULANG STOVE 4544 | J195: DELIVERY | M195: =+R189+R184+R179 -> 50 | V195: NOEL BAKERY / ANALYN CONRADO | AB195: 300 | AC195: 50 | AE195: LAWODNON | AI195: 70 | AJ195: 15 | AM195: PALMA SHERYL | AQ195: 70 | AR195: 15
A196: OC GAS ALVAREZ | B196: =+'10-24 FRI LEX'!E196 -> 7588 | E196: 7588 | F196: =+B194+B193 -> 25990 | Q196: 1.4 KG | S196: 195 | V196: PAN DE MASBATE | AB196: 300 | AC196: 50 | AE196: LOCILLO AILLYN | AI196: 70 | AJ196: 15 | AM196: ROYO BORROW AS REGUL FOR POL TANK TIGBAO 09517207893 JEEP BABY GRACE REYMOND LEGAL
A197: OCHEA FAMILY PANDESAL | B197: =+'10-24 FRI LEX'!E197 -> 9401 | E197: 9401 | F197: 1AS REPLACEMENT NO CHRGE FOR RETUN FILLED | J197: DISCOUNT | M197: TOTAL | V197: PINOY SIOPAO | AB197: 300 | AC197: 50 | AJ197: 15
A198: PARK N GO | B198: =+'10-24 FRI LEX'!E198 -> 0 | E198: 0 | V198: REMS LAUNDRY / SANDRA MEDINA | AB198: 300 | AC198: 50 | AE198: MARISTELA EMERALD | AI198: 70 | AJ198: 15
A199: THEO PANDESAL | B199: =+'10-24 FRI LEX'!E199 -> 5063 | E199: 5063 | F199: REGUL NOT PAID | J199: =+P179+P184+P189 -> 900 | M199: =+N177+N182+N187-J199 -> 3664 | V199: REYJOHN BAKERY / RHEA DELA CRUZ OBOG | AB199: 700 | AC199: 50 | AE199: MIEKOYS PIZZA | AI199: 70 | AJ199: 15
A200: ZANDRA BEACH RESORT | B200: =+'10-24 FRI LEX'!E200 -> 12606 | E200: 12606 | Q200: OTHER AMOUNT HERE | V200: ROLLING BUBBLES - DANAO | AB200: 700 | AC200: 50 | AE200: MIGGYS BAKERY | AI200: 70 | AJ200: 15
... 175 more rows

Sheet 10-24 FRI LEX
B1: BEGIN | C1: UNPAID | D1: PAYMENT | E1: END | F1: CASH ADVANCE
A2: C.A APRIL ARENDAIN | B2: =+'10-23 THU LEX'!E2 -> 2050 | E2: =B2+C2-D2 -> 2050 | P2: ENTER NUMER W/POSITIVE SIGN IF increase
A3: TIYO NOY | B3: =+'10-23 THU LEX'!E3 -> 500 | E3: 500
A4: C.A COCOY | B4: =+'10-23 THU LEX'!E4 -> 1615 | E4: 1615 | P4: ENTER NUMER W/NEGATIVE SIGN IF decrease
A5: DAVE BONA | B5: =+'10-23 THU LEX'!E5 -> 4000 | E5: 4000
A6: C.A JOMARI CORTES | B6: =+'10-23 THU LEX'!E6 -> 40928 | E6: 40928
A7: C.A JUNREL MALIPOT | B7: =+'10-23 THU LEX'!E7 -> 10469 | E7: 10469
A8: C.A NATHANIEL | B8: =+'10-23 THU LEX'!E8 -> 600 | E8: 600
A9: C.A MANANGAT CHRISTIAN | B9: =+'10-23 THU LEX'!E9 -> 3548 | E9: 3548 | S9: =-S11*1 -> 1.300
A10: C.A SINADJAN, RAMIL | B10: =+'10-23 THU LEX'!E10 -> 1100 | E10: 1100 | R10: 11kilos | S10: 11.000
A11: C.A VESTER | B11: =+'10-23 THU LEX'!E11 -> 9782 | E11: 9782 | R11: ENTER NUMBER (-/+) | S11: -1.300
A12: IRENE | B12: =+'10-23 THU LEX'!E12 -> 2000 | E12: 2000 | R12: TOTAL CHANGE | S12: =+S10*S9 -> 14.300
A13: ARTURO PARAGAS | B13: =+'10-23 THU LEX'!E13 -> 6900 | E13: 6900 | R13: VAT | S13: =+S12*0.12 -> 1.716
A14: DONNA LUIS | B14: =+'10-23 THU LEX'!E14 -> 3300 | E14: 3300 | R14: VAT + TOTAL CHANGE | S14: =+S12+S13 -> 16.016
A15: RULEY GREPALDIO | B15: =+'10-23 THU LEX'!E15 -> 1076 | E15: 1076 | R15: ENTER OLD PRICE | S15: 1,076.000
A16: JULIAN | B16: =+'10-23 THU LEX'!E16 -> 5200 | E16: 5200 | F16: JULLIAN DUMALAG | R16: NEW PRICE | S16: =+S15-S14 -> 1,059.984
A17: CA HAZEL 8/21 | B17: =+'10-23 THU LEX'!E17 -> 1600 | E17: 1600
A18: SABIANO BERAL | B18: =+'10-23 THU LEX'!E18 -> 5000 | E18: 5000 | S18: =-S20*1 -> 0.000
A19: LABOR ADVANCE | B19: =+'10-23 THU LEX'!E19 -> 0 | C19: 1,000 | E19: 1000 | R19: 50KG | S19: 50.000
A20: NATHANIEL | B20: =+'10-23 THU LEX'!E20 -> 3500 | E20: 3500 | F20: NAT CA 3500 | R20: ENTER NUMBER (-/+) | S20: =+P6 -> 0.000
A21: RJ DUMANGAS | B21: =+'10-23 THU LEX'!E21 -> 1000 | E21: 1000 | R21: TOTAL CHANGE | S21: =+S19*S18 -> 0.000
A22: REGULAR | B22: =+'10-23 THU LEX'!E22 -> 0 | E22: 0 | F22: REGULAR | R22: VAT | S22: =+S21*0.12 -> 0.000
A23: ABOYS | B23: =+'10-23 THU LEX'!E23 -> 769 | E23: 769 | R23: VAT + TOTAL CHANGE | S23: =+S21+S22 -> 0.000
A24: ABSALON LOLITA | B24: =+'10-23 THU LEX'!E24 -> 1000 | E24: 1000 | R24: ENTER OLD PRICE | S24: 4,719.000
A25: ALBAO, ELMER | B25: =+'10-23 THU LEX'!E25 -> 834 | E25: 834 | R25: NEW PRICE | S25: =+S24-S23 -> 4,719.000
A26: ALOVERA ROSEMARIE | B26: =+'10-23 THU LEX'!E26 -> 25 | E26: 25
A27: ANDAYA NELLY | B27: =+'10-23 THU LEX'!E27 -> 1071 | E27: 1071 | S27: =-S29*1 -> 0.000
A28: AYESHA BAKERY | B28: =+'10-23 THU LEX'!E28 -> 2105 | E28: 2105 | R28: 1.4KG | S28: 1.400
A29: BANTAYAN MINDA | B29: =+'10-23 THU LEX'!E29 -> 168 | E29: 168 | R29: ENTER NUMBER (-/+) | S29: =+P6 -> 0.000
A30: BEGGS BAKERY | B30: =+'10-23 THU LEX'!E30 -> 7936 | E30: 7936 | R30: TOTAL CHANGE | S30: =+S28*S27 -> 0.000
A31: BINOLIRAO, JOY | B31: =+'10-23 THU LEX'!E31 -> 5432 | E31: 5432 | R31: VAT | S31: =+S30*0.12 -> 0.000
A32: CAFÉ KRISTINA | B32: =+'10-23 THU LEX'!E32 -> 4226 | E32: 4226 | R32: VAT + TOTAL CHANGE | S32: =+S30+S31 -> 0.000
A33: CANTUBA PORTIA | B33: =+'10-23 THU LEX'!E33 -> 1076 | E33: 1076 | R33: ENTER OLD PRICE | S33: 199.000
A34: CAPELLAN EMILY | B34: =+'10-23 THU LEX'!E34 -> 588 | E34: 588 | R34: NEW PRICE | S34: =+S33-S32 -> 199.000
A35: CAPELLAN SONY | B35: =+'10-23 THU LEX'!E35 -> 500 | E35: 500
A36: CHEPIE/SAMSON JINKY | B36: =+'10-23 THU LEX'!E36 -> 18660 | D36: 18,660 | E36: 0 | F36: =6000+3500+816 -> 10316
A37: CITY VICE OLD | B37: =+'10-23 THU LEX'!E37 -> 6121 | E37: 6121
A38: CORTES BABYJANE LESS 200 | B38: =+'10-23 THU LEX'!E38 -> 2128 | E38: 2128
A39: COSTALES, ERNESTO | B39: =+'10-23 THU LEX'!E39 -> 25 | E39: 25
A40: DALANON, LUZ | B40: =+'10-23 THU LEX'!E40 -> 1160 | E40: 1160
A41: DESAMERO JESS | B41: =+'10-23 THU LEX'!E41 -> 1033 | E41: 1033
A42: DESPE, ARTUR | B42: =+'10-23 THU LEX'!E42 -> 997 | E42: 997
A43: DIOCADO JOHNWIL ONLOAN | B43: =+'10-23 THU LEX'!E43 -> 900 | E43: 900
A44: EMR/PANES FREDDIE / | B44: =+'10-23 THU LEX'!E44 -> 2050 | E44: 2050
A45: EPONG CARENDERIA | B45: =+'10-23 THU LEX'!E45 -> 1131 | E45: 1131
A46: ESPARZA ANACITA | B46: =+'10-23 THU LEX'!E46 -> 2165 | E46: 2165
A47: ESPINAS ROLANDO | B47: =+'10-23 THU LEX'!E47 -> 1056 | E47: 1056
A48: EVANGELISTA, JOHN | B48: =+'10-23 THU LEX'!E48 -> 1207 | E48: 1207
A49: FLORES HELEN | B49: =+'10-23 THU LEX'!E49 -> 1647 | E49: 1647
A50: GARBO RADFORD | B50: =+'10-23 THU LEX'!E50 -> 1624 | E50: 1624
A51: GARBO RAYMUND | B51: =+'10-23 THU LEX'!E51 -> 1103 | E51: 1103
A52: GONZAGA, ANITA | B52: =+'10-23 THU LEX'!E52 -> 1191 | E52: 1191 | F52: APRIL
A53: HARLEY CLEOFE | B53: =+'10-23 THU LEX'!E53 -> 0 | E53: 0
A54: JANZMILE | B54: =+'10-23 THU LEX'!E54 -> 2331 | E54: 2331
A55: JODAN EATERY | B55: =+'10-23 THU LEX'!E55 -> 50 | E55: 50
A56: LALAGUNA FAITH | B56: =+'10-23 THU LEX'!E56 -> 0 | E56: 0
A57: LAURENO SUSIE | B57: =+'10-23 THU LEX'!E57 -> 2274 | E57: 2274
A58: LAWODNON | B58: =+'10-23 THU LEX'!E58 -> 4276 | C58: 2,028 | E58: 6304
A59: LIBERTY BAKERY | B59: =+'10-23 THU LEX'!E59 -> 0 | E59: 0
A60: LOLO JOFAX (2160) UNPAID | B60: =+'10-23 THU LEX'!E60 -> 500 | E60: 500
A61: MANALO, CHITA | B61: =+'10-23 THU LEX'!E61 -> 2120 | E61: 2120
A62: MANGUBAT-CAWAYAN | B62: =+'10-23 THU LEX'!E62 -> 1121 | E62: 1121
A63: MARABE, GUENTER | B63: =+'10-23 THU LEX'!E63 -> 1014 | E63: 1014
A64: MARISTELA, EMERALD | B64: =+'10-23 THU LEX'!E64 -> 7907 | E64: 7907
A65: MIEKOYS PIZZA | B65: =+'10-23 THU LEX'!E65 -> 0 | E65: 0
A66: MIGGYS BAKERY | B66: =+'10-23 THU LEX'!E66 -> 765 | E66: =B66+C66-D66 -> 765
A67: MORAN ANALY | B67: =+'10-23 THU LEX'!E67 -> 0 | E67: 0
A68: MORAN JACKILYN | B68: =+'10-23 THU LEX'!E68 -> 1068 | E68: 1068
A69: NARIDO RAFAEL REG | B69: =+'10-23 THU LEX'!E69 -> 475 | E69: 475
A70: NARIDO, REYNALDO | B70: =+'10-23 THU LEX'!E70 -> 475 | E70: 475
A71: NUNEZ, PERPETUA | B71: =+'10-23 THU LEX'!E71 -> 3831 | E71: 3831
A72: OLIVA, CELSO | B72: =+'10-23 THU LEX'!E72 -> 168 | E72: 168
A73: OLIVA, DOREEN | B73: =+'10-23 THU LEX'!E73 -> 474 | E73: 474
A74: ORBISO LIZA/NUNU | B74: =+'10-23 THU LEX'!E74 -> 2405 | E74: 2405
A75: ORBISO, KEILLI | B75: =+'10-23 THU LEX'!E75 -> 474 | E75: 474
A76: PASION VENUS | B76: =+'10-23 THU LEX'!E76 -> 1014 | E76: 1014
A77: PERALTA LYNDON | B77: =+'10-23 THU LEX'!E77 -> 40 | E77: 40
A78: PHO | B78: =+'10-23 THU LEX'!E78 -> 0 | E78: 0
A79: RESUENA | B79: =+'10-23 THU LEX'!E79 -> 4226 | E79: 4226
A80: RUELAN RONALD | B80: =+'10-23 THU LEX'!E80 -> 1083 | E80: 1083
A81: SALADAS SHERLY | B81: =+'10-23 THU LEX'!E81 -> 674 | E81: 674
A82: BANTAYAN MINDA | B82: =+'10-23 THU LEX'!E82 -> 0 | E82: 0
A83: SANDRA SAN JUAN | B83: =+'10-23 THU LEX'!E83 -> 1300 | E83: 1300
A84: TATA/NUEVO MARILOU | B84: =+'10-23 THU LEX'!E84 -> 20220 | D84: =10080+10140 -> 20,220 | E84: 0
A85: TENORIA, MARRAH | B85: =+'10-23 THU LEX'!E85 -> 130 | E85: 130
A86: VILLAMOR, MARILOU (MOM) | B86: =+'10-23 THU LEX'!E86 -> 0 | E86: 0
A87: VILLAMOR, MARILOU (SON) | B87: =+'10-23 THU LEX'!E87 -> 2308 | E87: 2308
A88: VILLOCILLO JESUS | B88: =+'10-23 THU LEX'!E88 -> 0 | E88: 0
A89: YBANEZ ROBERTO (1115) UNPAID | B89: =+'10-23 THU LEX'!E89 -> 2096 | E89: 2096
A90: YKAY/NUEVO ELENA | B90: =+'10-23 THU LEX'!E90 -> 60890 | E90: 60890 | F90: 5 receipts 4 missing
A91: TWIN PEAK | B91: =+'10-23 THU LEX'!E91 -> 1084 | E91: 1084 | F91: =61050-10300 -> 50750
A92: COLLANTES | B92: =+'10-23 THU LEX'!E92 -> 0 | E92: 0
A93: MARYJANE CORTES | B93: =+'10-23 THU LEX'!E93 -> 45 | E93: 45
A94: HAPPY ROASTER | B94: =+'10-23 THU LEX'!E94 -> 6456 | E94: 6456
A95: JOHNRICK PACHECO | B95: =+'10-23 THU LEX'!E95 -> 800 | E95: 800
A96: CHARO'S CAFÉ | B96: =+'10-23 THU LEX'!E96 -> 25 | E96: 25
A97: LOCILLO AILYN | B97: =+'10-23 THU LEX'!E97 -> 0 | E97: 0
A98: OVERTYM | B98: =+'10-23 THU LEX'!E98 -> 0 | E98: 0
A99: HARLEY CLEOFE | B99: =+'10-23 THU LEX'!E99 -> 0 | E99: 0
A100: PAPILLERA M 3000 from lex | B100: =+'10-23 THU LEX'!E100 -> 3114 | E100: 3114
A101: OVERTYM | B101: =+'10-23 THU LEX'!E101 -> 0 | E101: 0
A102: CITY TREASURY | B102: =+'10-23 THU LEX'!E102 -> 4550 | E102: 4550
A103: AMY DELA PISA | B103: =+'10-23 THU LEX'!E103 -> 0 | E103: 0
A104: GERARDO PRESADO | B104: =+'10-23 THU LEX'!E104 -> 1084 | E104: 1084
A105: BERNARD CARPIO | B105: =+'10-23 THU LEX'!E105 -> 1132 | E105: 1132
A106: CHONA MESA | B106: =+'10-23 THU LEX'!E106 -> 2298 | E106: 2298
A107: PASTORA VIE | B107: =+'10-23 THU LEX'!E107 -> 600 | E107: 600
A108: EVELYN CONRADO | B108: =+'10-23 THU LEX'!E108 -> 400 | E108: 400
B109: =+'10-23 THU LEX'!E109 -> 0 | E109: 0
A110: NENETH REYES | B110: =+'10-23 THU LEX'!E110 -> 693 | E110: 693
A111: JUREXEN VERDIDA | B111: =+'10-23 THU LEX'!E111 -> 3001 | E111: 3001
A112: VILLARANTE RENZEL | B112: =+'10-23 THU LEX'!E112 -> 646 | E112: 646
A113: ALMARIO MOBO BGACAY | B113: =+'10-23 THU LEX'!E113 -> 143 | E113: 143
A114: ALFARO | B114: =+'10-23 THU LEX'!E114 -> 1147 | E114: 1147
A115: JOSE CUELLO 4/24 TRADE IN | B115: =+'10-23 THU LEX'!E115 -> 1071 | E115: 1071
B116: =+'10-23 THU LEX'!E116 -> 0 | E116: 0
A117: MANLAPAZ | B117: =+'10-23 THU LEX'!E117 -> 1084 | E117: 1084
A118: CITY VICE NEW GAZUL | B118: =+'10-23 THU LEX'!E118 -> 1103 | E118: 1103
A119: EVA VERANO | B119: =+'10-23 THU LEX'!E119 -> 576 | E119: 576
B120: =+'10-23 THU LEX'!E120 -> 0 | E120: 0
A121: HAPPY ROASTER | B121: =+'10-23 THU LEX'!E121 -> 2138 | E121: 2138
B122: =+'10-23 THU LEX'!E122 -> 0 | E122: 0
B123: =+'10-23 THU LEX'!E123 -> 0 | E123: 0
A124: CITY VICE | B124: =+'10-23 THU LEX'!E124 -> 1076 | E124: 1076
A125: JEREMY SAMSON | B125: =+'10-23 THU LEX'!E125 -> 18800 | E125: 18800
A126: VILLANUEVA GLENDA | B126: =+'10-23 THU LEX'!E126 -> 1749 | E126: 1749
A127: GALLETO DOREEN | B127: =+'10-23 THU LEX'!E127 -> 0 | E127: 0
A128: CITIBUILDER | B128: =+'10-23 THU LEX'!E128 -> 1114 | E128: 1114
A129: 50kg ACCOUNT | B129: =+'10-23 THU LEX'!E129 -> 0 | E129: 0 | F129: 50kg ACCOUNT
A130: ABAN, JULIUS | B130: =+'10-23 THU LEX'!E130 -> 8660 | E130: =B130+C130-D130 -> 8660
A131: AVEGAIL LAUNDRY | B131: =+'10-23 THU LEX'!E131 -> 6538 | E131: 6538
A132: BACKYARD EDIBLE GARDEN | B132: =+'10-23 THU LEX'!E132 -> 844 | E132: 844
A133: CARIS HOTEL | B133: =+'10-23 THU LEX'!E133 -> 4314 | E133: 4314 | R133: ATTENDANCE AND PAYMENT | X133: =+Z155+Z161 -> 5200
A134: TEABOX | B134: =+'10-23 THU LEX'!E134 -> 0 | E134: 0
A135: CHAROS CAFÉ AND RESTO | B135: =+'10-23 THU LEX'!E135 -> 0 | E135: 0 | R135: NAMES | S135: AM | U135: PM | W135: AM HOURS | X135: PM HOURS | Y135: TOTAL HOURS | Z135: PAID | AA135: REMARKS
A136: CHERISH RESORT | B136: =+'10-23 THU LEX'!E136 -> 0 | C136: 3,681 | E136: 3681 | P136: DAYOFF | S136: IN | T136: OUT | U136: IN | V136: OUT
A137: CLORES TRESURE ISLAND | B137: =+'10-23 THU LEX'!E137 -> 7 | E137: 7 | P137: SATURDAY | R137: JOMARI CORTES | S137: 09:00:00 | T137: 12:00:00 | U137: 04:00:00 | V137: 05:00:00 | W137: =+(T137-S137)*24 -> 3.0 | X137: =+(V137-U137)*24 -> 1.0 | Z137: 200 | AA137: OK
A138: CONRADO / NOEL BAKERY | B138: =+'10-23 THU LEX'!E138 -> 3601 | E138: 3601 | P138: SUNDAY | R138: JUNREL MALIPOT | W138: =+(T138-S138)*24 -> 0.0 | X138: =+(V138-U138)*24 -> 0.0
A139: CRISPY KING CROSSING | B139: =+'10-23 THU LEX'!E139 -> 60 | E139: 60 | K139: CP# | O139: DRIVER | P139: SUNDAY | R139: APRIL ARENDAIN | S139: 07:14:00 | T139: 12:00:00 | U139: 01:00:00 | V139: 06:00:00 | W139: =+(T139-S139)*24 -> 4.8 | X139: =+(V146-U146)*24 -> 5.0 | Z139: 550
A140: CRISPY KING IBANEZ | B140: =+'10-23 THU LEX'!E140 -> 0 | E140: 0 | K140: CP# | O140: DRIVER | R140: DIONESITO BLAZO 9301238381 | W140: =+(T141-S140)*24 -> 12.0 | X140: =+(V141-U141)*24 -> 4.0
A141: CRISPY KING MARKET | B141: =+'10-23 THU LEX'!E141 -> 0 | E141: 0 | P141: SUNDAY | R141: RULEY GREPALDEO | S141: 09:10:00 | T141: 12:00:00 | U141: 01:00:00 | V141: 05:00:00 | W141: =+(T142-S141)*24 -> -9.2 | X141: =+(V142-U142)*24 -> 0.0 | Z141: 400 | AA141: OK
A142: CRISPY KING MOBO | B142: =+'10-23 THU LEX'!E142 -> 0 | E142: 0 | W142: 0.0 | X142: =+(V142-U142)*24 -> 0.0
A143: CRISPY KING CAWAYAN | B143: =+'10-23 THU LEX'!E143 -> 0 | E143: 0 | W143: 0.0 | X143: =+(V143-U143)*24 -> 0.0
A144: EZ CAFÉ W/CYLINDER | B144: =+'10-23 THU LEX'!E144 -> 0 | E144: 0 | W144: 0.0 | X144: =+(V144-U144)*24 -> 0.0
A145: FRANCE LAUNDRY | B145: =+'10-23 THU LEX'!E145 -> 2860 | E145: 2860 | W145: =+(T145-S145)*24 -> 0.0 | X145: =+(V145-U145)*24 -> 0.0
A146: JUAN HOUR LAUNDRY | B146: =+'10-23 THU LEX'!E146 -> 0 | E146: 0 | R146: SHANNAH | S146: 09:30:00 | T146: 12:00:00 | U146: 01:00:00 | V146: 06:00:00 | W146: =+(T146-S146)*24 -> 2.5 | X146: =+(V146-U146)*24 -> 5.0 | AA146: CORAL
A147: KATES LAUNDRY SHOP | B147: =+'10-23 THU LEX'!E147 -> 0 | E147: 0 | R147: NATHANIEL ALERTA | S147: 07:05:00 | T147: 12:00:00 | U147: 01:00:00 | V147: 06:00:00 | W147: 4.9 | X147: 5.0 | Z147: 500 | AA147: OK
A148: MARKY RESTAURANT | B148: =+'10-23 THU LEX'!E148 -> 4001 | E148: 4001 | P148: SATURDAY | R148: ARNOLD PEPITO | S148: 07:00:00 | T148: 12:00:00 | U148: 01:00:00 | V148: 06:00:00 | W148: 5.0 | X148: 5.0 | Z148: 500 | AA148: OK
A149: MASBATE LAUNDRY SHOP | B149: =+'10-23 THU LEX'!E149 -> 0 | E149: 0 | K149: CP# | O149: DRIVER | P149: WEDNESDAY | R149: EVANGELISTA ROMULO | W149: 0.0 | X149: 0.0 | AA149: OFF
A150: DAMPA | B150: =+'10-23 THU LEX'!E150 -> 0 | E150: 0 | R150: HAZEL | W150: 0.0 | X150: 0.0 | AA150: OFF
A151: PINOY SIOPAO | B151: =+'10-23 THU LEX'!E151 -> 0 | E151: 0 | P151: SUNDAY | R151: LIZET DANAO | S151: 07:00:00 | T151: 12:00:00 | U151: 01:00:00 | V151: 06:00:00 | W151: 5.0 | X151: 5.0 | Z151: 550 | AA151: OK
A152: REMS LAUNDRY | B152: =+'10-23 THU LEX'!E152 -> 6144 | E152: 6144 | K152: CP# | O152: DRIVER | P152: FRIDAY | R152: ARTURO PARAGAS | S152: 07:11:00 | T152: 12:00:00 | U152: 01:00:00 | V152: 06:00:00 | W152: 4.8 | X152: 5.0 | AA152: 550 FROM LEX
A153: REYJOHN BAKERY | B153: =+'10-23 THU LEX'!E153 -> 0 | E153: 0 | P153: SATURDAY | R153: LEO MARCOS | W153: 0.0 | X153: 0.0 | AA153: OFF
A154: ROBERTO AND ROWE | B154: =+'10-23 THU LEX'!E154 -> 15707 | E154: 15707 | K154: CP# | O154: DRIVER | P154: THURSDAY | R154: JULIAN DUMALAG | S154: 07:00:00 | T154: 12:00:00 | U154: 01:00:00 | V154: 06:00:00 | W154: 5.0 | X154: 5.0 | Z154: 500 | AA154: OK
A155: ROLLING BUBBLES | B155: =+'10-23 THU LEX'!E155 -> 0 | E155: 0 | M155: BNNNNNNNNNNNNNNNNNNNNNNNNNNNNNNNNNNNNNNNNNNNNNNNNNNNNNNN | R155: SALARY TOTAL | Z155: =SUM(Z137:Z154) -> 3200 | AG155: SAKTO
A156: ROSEMARY EVENTS | B156: =+'10-23 THU LEX'!E156 -> 0 | E156: 0 | R156: COY CA LABOR | Z156: 1000
A157: ROWEES AROROY | B157: =+'10-23 THU LEX'!E157 -> 0 | E157: 0 | R157: MCDO COY | Z157: 300 | AJ157: 7 | AL157: 87
A158: PALMA SHERYL/avegail laundry | B158: =+'10-23 THU LEX'!E158 -> 4614 | E158: 4614 | R158: AROROY COY | Z158: 500
A159: WENABETH JOHN BAKERY MALINTA | B159: =+'10-23 THU LEX'!E159 -> 8733 | D159: 4,264 | E159: 4469 | F159: KULANG 100 FOR COLLCTION COCOY | R159: LABOR | Z159: 200
A160: CRISPY KING PIER | B160: =+'10-23 THU LEX'!E160 -> 3814 | E160: 3814
A161: CRISPY KING OSMENA | B161: =+'10-23 THU LEX'!E161 -> 0 | E161: 0 | R161: EXTRA EXPENSES TOTAL | Z161: =+SUM(Z156:Z160) -> 2000
A162: TUMBAGA SINALONGAN | B162: =+'10-23 THU LEX'!E162 -> 16896 | E162: 16896 | F162: TUESDAY
A163: OUTLET'S | B163: =+'10-23 THU LEX'!E163 -> 0 | E163: 0 | F163: OUTLET'S
A164: ABANO, MICHAEL | B164: =+'10-23 THU LEX'!E164 -> 11380 | E164: 11380 | F164: APRIL | V164: COMMERCIAL ACCOUNT | AE164: REMINDERS
A165: ALVAREZ JENILLYN | B165: =+'10-23 THU LEX'!E165 -> 18750 | E165: 18750
A166: ALVAREZ, RICO 1.4 | B166: =+'10-23 THU LEX'!E166 -> 1330 | E166: 1330 | V166: CUSTOMER NAME | AB166: DICS | AC166: DELIVER | AE166: 9499357775 AMERA 50KG Leah Orubla Villaraiz | AM166: ALOVERA ROSEMARIE | AQ166: 20 | AR166: 15
A167: ALVAREZ, RICO A/S | B167: =+'10-23 THU LEX'!E167 -> 6800 | C167: 5,220 | D167: 5,220 | E167: 6800 | V167: 8 ALL YOU CAN/RIMONTE JOHN AUBREN | AB167: 400 | AC167: 50 | AM167: BANTAYAN MINDA | AQ167: 20 | AR167: 15
A168: BANTAYAN, LENIE | B168: =+'10-23 THU LEX'!E168 -> 12802 | E168: 12802 | V168: ABAN LAUNDRY / ABAN JULIUS | AB168: 300 | AC168: 50 | AM168: CORTES BABY JEAN | AQ168: 20 | AR168: 15
A169: BULALAQUE, NATHANIEL | B169: =+'10-23 THU LEX'!E169 -> 0 | E169: 0 | V169: AVEGAIL S LAUNDRY | AB169: 300 | AC169: 50 | AE169: LAWRENCE SESE 0902014314 LAND BANK
A170: CDJ/CHISA BARRUGA | B170: =+'10-23 THU LEX'!E170 -> 5315 | E170: 5315 | V170: BACKYARD EDIBLE GARDEN | AB170: 300 | AC170: 50
A171: COCOY SOLANE ACCOUNT | B171: =+'10-23 THU LEX'!E171 -> 6232 | E171: 6232 | V171: CARIS HOTEL | AB171: 300 | AC171: 50 | AM171: ESPARZA ANACITA TWIN PEAK | AQ171: 20 | AR171: 15
A172: ELMA BUNGCARAS | B172: =+'10-23 THU LEX'!E172 -> 10680 | E172: 10680 | V172: CHAROS CAFÉ AND RESTO (MOBO RIVER SIDE) | AB172: 0 | AC172: 50 | AE172: LAWRENCE SESE 013568000813 BDO | AM172: ESPINAS ROLANDO | AQ172: 20 | AR172: 15
A173: GADER RENATO | B173: =+'10-23 THU LEX'!E173 -> 16920 | E173: 16920 | J173: SENIOR DISCOUNT | P173: =+J182/0.2 -> 5345 | V173: CHERISH RESORT | AB173: 900 | AC173: 50
A174: LOCMAYON BEGA10 (2) | B174: =+'10-23 THU LEX'!E174 -> 0 | E174: 0 | V174: CRISPY KING / DJJM FOOD HUB/ IBANEZ/CROSSING | AB174: 800 | AC174: 50 | AM174: FAZENDA MILAGROS | AQ174: 20 | AR174: 15
A175: SOLON VANGIE | B175: =+'10-23 THU LEX'!E175 -> 8670 | E175: 8670 | J175: 50KG | M175: QTY | N175: AMOUNT | P175: DISCOUNT | R175: DELIVERY CHARGE | V175: CRISPY KING / DJJM FOOD HUB/ MOBO | AB175: 700 | AC175: 50 | AE175: KUA DUTAY 09307207044
A176: ORBISO PHOEBE | B176: =+'10-23 THU LEX'!E176 -> 2112 | E176: 2112 | V176: CRYSPY KING / DJA CATERING SERVICES/PATING | AB176: 800 | AC176: 50
A177: ORBISO, EFILDA | B177: =+'10-23 THU LEX'!E177 -> 0 | E177: 0 | J177: 4564 | N177: =+M177*J177 -> 0 | P177: 400 | V177: CRISPY KING / DJJM FOOD HUB/ OSMENA NOY BIGOL | AB177: 800 | AC177: 50
A178: PAWA VERNA MENDOZA | B178: =+'10-23 THU LEX'!E178 -> 1250 | E178: 1250 | S178: + | V178: CRISPY KING / DJJM FOOD HUB/ PIER NOY BIGOL | W178: =+W222 -> 0 | AB178: 800 | AC178: 50 | AE178: GMS ACCOUNT
A179: ELMA BUNCARAS | B179: =+'10-23 THU LEX'!E179 -> 16630 | E179: 16630 | P179: =+M177*P177 -> 0 | R179: =+M177*R177 -> 0 | V179: / DJJM CRISPY KING NOY BIGOL | AB179: 700 | AC179: 100
A180: SAMPAGA BIDA | B180: =+'10-23 THU LEX'!E180 -> 3816 | E180: 3816 | J180: 11KG | M180: QTY | N180: AMOUNT | P180: DISCOUNT | R180: DELIVERY CHARGE | V180: DAMPA RESTO BAR /BESMONTE MARICAR | AB180: 300 | AC180: 50
A181: SESE, ROSALIA | B181: =+'10-23 THU LEX'!E181 -> 34480 | E181: 34480 | V181: DR. CHESTER LEE | AB181: 900 | AC181: P/U
A182: STAR OIL RECEIVABLE | B182: =+'10-23 THU LEX'!E182 -> 0 | E182: 0 | J182: 1069 | M182: 2 | N182: =+M182*J182 -> 2138 | P182: 70 | R182: 25 | V182: EZ CAFÉ | AB182: 300 | AC182: 50
A183: TAYAM IRISH | B183: =+'10-23 THU LEX'!E183 -> 12857 | D183: 12,857 | E183: 0 | V183: FRANCE LAUNDRY | AB183: 700 | AC183: 50
A184: YBANEZ, NESSAR | B184: =+'10-23 THU LEX'!E184 -> 30 | E184: 30 | P184: =+M182*P182 -> 140 | R184: =+M182*R182 -> 50 | V184: GACT CONSTRUCTION AND SUPPLY /TAYAM IRISH | AB184: 200 | AC184: 50
A185: ZUNIGA MELCHOR | B185: =+'10-23 THU LEX'!E185 -> 0 | E185: 0 | J185: 1.4KG | M185: QTY | N185: AMOUNT | P185: DISCOUNT | R185: DELIVERY CHARGE | V185: HIGHN'DRY LAUNDRY SERVCES | AB185: 0 | AC185: 50
A186: JENELIN ALVAREZ | B186: =+'10-23 THU LEX'!E186 -> 0 | E186: 0 | V186: JUAN HOUR LAUNDRY - STAIRWAY & IBANEZ | AB186: 900 | AC186: 50 | AE186: DELA PENA ANALYN/OSTED | AI186: 70 | AJ186: 9 | AM186: rey john | AQ186: 20 | AR186: 15
A187: EJJ EVANGELYN M NUGAS | B187: =+'10-23 THU LEX'!E187 -> 0 | E187: 0 | J187: 195 | N187: =+M187*J187 -> 0 | V187: KARAON SA 18TH GRILL AND RESTO | AB187: 300 | AC187: 50 | AI187: 70 | AJ187: 15 | AM187: ROBERTO ROWIE & ROBI FOOD OPC | AQ187: 50 | AR187: 15
A188: VANGIE SOLON | B188: =+'10-23 THU LEX'!E188 -> 0 | E188: 0 | F188: MAY JULY P N FOR PAYMENT | V188: KATES LAUNDRYSHOP/ GUILLERMO ALINSOOT MANACILLO 11 | AB188: 700 | AC188: 50 | AM188: ROBERTO YBANEZ | AQ188: 70 | AR188: 15
A189: TICAO ACCOUNT | B189: =+'10-23 THU LEX'!E189 -> 0 | E189: 0 | F189: TICAO ACCOUNT | L189: =+O185*I185 -> 0 | N189: =+Q185*K185 -> 0 | O189: =+R187*M187 -> 0 | P189: =+M187*P187 -> 0 | R189: =+M187*R187 -> 0 | V189: MARKY BICOL RESTAURANT | AB189: 900 | AC189: 50 | AM189: SUCUANO LORETO | AQ189: 70 | AR189: 15
A190: BAMBOO PLACE WITH 3 REGULS | B190: =+'10-23 THU LEX'!E190 -> 4181 | E190: 4181 | F190: ALL UNPAID | J190: CASH | M190: CHANGE | Q190: SRP FOR OCT | V190: MASBATE LAUNDRY CENTER MEDINA ST. MASBATE | AB190: 700 | AC190: 50 | AM190: TATA FRIED CHICKEN | AQ190: 70 | AR190: 15
A191: BARREDO EDGAR | B191: =+'10-23 THU LEX'!E191 -> 0 | E191: 0 | V191: MNV FOODHUB (CHIKICHOW) | AB191: 500 | AC191: 50 | AE191: WINWIN FRIED CHICKEN | AI191: 70 | AM191: VENUS PASION | AQ191: 70 | AR191: 15
A192: DRAGAS 6/21 | B192: =+'10-23 THU LEX'!E192 -> 0 | E192: 0 | F192: 3342TRANSFER TO OCGAS | J192: 13000 | M192: =J192-M201 -> 10952 | Q192: 50 KG | S192: 4564 | V192: MR. LAUNDRY - IBINGAY & CROSSING | AB192: 900 | AC192: 50 | AE192: GIGANTE ROQUE VARGAS | AI192: 70 | AJ192: 15 | AL192: TO FOLLOW | AM192: VILLAMOR MARILOU | AQ192: 70 | AR192: 15
A193: GRACE RANGEL 1.4 | B193: =+'10-23 THU LEX'!E193 -> 8589 | E193: 8589 | V193: MSA - DECS | AB193: 0 | AE193: GONZAGA ANITA | AI193: 70 | AJ193: 15 | AM193: WOW INASAL | AQ193: 70 | AR193: 15
A194: GRACE RANGEL AS | B194: =+'10-23 THU LEX'!E194 -> 17401 | E194: =B194+C194-D194 -> 17401 | F194: 1AS 1 DB PAID 5/29 | J194: ;. | L194: . | Q194: 11 KG | S194: 1069 | V194: NESSAR YBANEZ | AB194: 900 | AC194: 100 | AE194: JODAN EATERY | AI194: 70 | AJ194: 15 | AM194: YKAY FRIED CHICKEN | AQ194: 70 | AR194: 15
A195: LIA SESE | B195: =+'10-23 THU LEX'!E195 -> 8942 | E195: 8942 | F195: KULANG STOVE 4544 | J195: DELIVERY | M195: =+R189+R184+R179 -> 50 | V195: NOEL BAKERY / ANALYN CONRADO | AB195: 300 | AC195: 50 | AE195: LAWODNON | AI195: 70 | AJ195: 15 | AM195: PALMA SHERYL | AQ195: 70 | AR195: 15
A196: OC GAS ALVAREZ | B196: =+'10-23 THU LEX'!E196 -> 7588 | E196: 7588 | F196: =+B194+B193 -> 25990 | Q196: 1.4 KG | S196: 195 | V196: PAN DE MASBATE | AB196: 300 | AC196: 50 | AE196: LOCILLO AILLYN | AI196: 70 | AJ196: 15 | AM196: ROYO BORROW AS REGUL FOR POL TANK TIGBAO 09517207893 JEEP BABY GRACE REYMOND LEGAL
A197: OCHEA FAMILY PANDESAL | B197: =+'10-23 THU LEX'!E197 -> 9401 | E197: 9401 | F197: 1AS REPLACEMENT NO CHRGE FOR RETUN FILLED | J197: DISCOUNT | M197: TOTAL | V197: PINOY SIOPAO | AB197: 300 | AC197: 50 | AJ197: 15
A198: PARK N GO | B198: =+'10-23 THU LEX'!E198 -> 0 | E198: 0 | V198: REMS LAUNDRY / SANDRA MEDINA | AB198: 300 | AC198: 50 | AE198: MARISTELA EMERALD | AI198: 70 | AJ198: 15
A199: THEO PANDESAL | B199: =+'10-23 THU LEX'!E199 -> 5063 | E199: 5063 | F199: REGUL NOT PAID | J199: =+P179+P184+P189 -> 140 | M199: =+N177+N182+N187-J199 -> 1998 | V199: REYJOHN BAKERY / RHEA DELA CRUZ OBOG | AB199: 700 | AC199: 50 | AE199: MIEKOYS PIZZA | AI199: 70 | AJ199: 15
A200: ZANDRA BEACH RESORT | B200: =+'10-23 THU LEX'!E200 -> 12606 | E200: 12606 | Q200: OTHER AMOUNT HERE | V200: ROLLING BUBBLES - DANAO | AB200: 700 | AC200: 50 | AE200: MIGGYS BAKERY | AI200: 70 | AJ200: 15
... 175 more rows

Sheet 10-23 THU LEX
B1: BEGIN | C1: UNPAID | D1: PAYMENT | E1: END | F1: CASH ADVANCE
A2: C.A APRIL ARENDAIN | B2: =+'10-22 WED LEX'!E2 -> 2050 | E2: =B2+C2-D2 -> 2050 | P2: ENTER NUMER W/POSITIVE SIGN IF increase
A3: TIYO NOY | B3: =+'10-22 WED LEX'!E3 -> 500 | E3: 500
A4: C.A COCOY | B4: =+'10-22 WED LEX'!E4 -> 1615 | E4: 1615 | P4: ENTER NUMER W/NEGATIVE SIGN IF decrease
A5: DAVE BONA | B5: =+'10-22 WED LEX'!E5 -> 4000 | E5: 4000
A6: C.A JOMARI CORTES | B6: =+'10-22 WED LEX'!E6 -> 40928 | E6: 40928
A7: C.A JUNREL MALIPOT | B7: =+'10-22 WED LEX'!E7 -> 10469 | E7: 10469
A8: C.A NATHANIEL | B8: =+'10-22 WED LEX'!E8 -> 600 | E8: 600
A9: C.A MANANGAT CHRISTIAN | B9: =+'10-22 WED LEX'!E9 -> 3548 | E9: 3548 | S9: =-S11*1 -> 1.300
A10: C.A SINADJAN, RAMIL | B10: =+'10-22 WED LEX'!E10 -> 1100 | E10: 1100 | R10: 11kilos | S10: 11.000
A11: C.A VESTER | B11: =+'10-22 WED LEX'!E11 -> 9782 | E11: 9782 | R11: ENTER NUMBER (-/+) | S11: -1.300
A12: IRENE | B12: =+'10-22 WED LEX'!E12 -> 2000 | E12: 2000 | R12: TOTAL CHANGE | S12: =+S10*S9 -> 14.300
A13: ARTURO PARAGAS | B13: =+'10-22 WED LEX'!E13 -> 7000 | D13: 100 | E13: 6900 | R13: VAT | S13: =+S12*0.12 -> 1.716
A14: DONNA LUIS | B14: =+'10-22 WED LEX'!E14 -> 3300 | E14: 3300 | R14: VAT + TOTAL CHANGE | S14: =+S12+S13 -> 16.016
A15: RULEY GREPALDIO | B15: =+'10-22 WED LEX'!E15 -> 1076 | E15: 1076 | R15: ENTER OLD PRICE | S15: 1,076.000
A16: JULIAN | B16: =+'10-22 WED LEX'!E16 -> 5300 | D16: 100 | E16: 5200 | F16: JULLIAN DUMALAG | R16: NEW PRICE | S16: =+S15-S14 -> 1,059.984
A17: CA HAZEL 8/21 | B17: =+'10-22 WED LEX'!E17 -> 1600 | E17: 1600
A18: SABIANO BERAL | B18: =+'10-22 WED LEX'!E18 -> 5000 | E18: 5000 | S18: =-S20*1 -> 0.000
A19: LABOR ADVANCE | B19: =+'10-22 WED LEX'!E19 -> 3000 | D19: 3,000 | E19: 0 | R19: 50KG | S19: 50.000
A20: NATHANIEL | B20: =+'10-22 WED LEX'!E20 -> 3500 | E20: 3500 | F20: NAT CA 3500 | R20: ENTER NUMBER (-/+) | S20: =+P6 -> 0.000
A21: RJ DUMANGAS | B21: =+'10-22 WED LEX'!E21 -> 1000 | E21: 1000 | R21: TOTAL CHANGE | S21: =+S19*S18 -> 0.000
A22: REGULAR | B22: =+'10-22 WED LEX'!E22 -> 0 | E22: 0 | F22: REGULAR | R22: VAT | S22: =+S21*0.12 -> 0.000
A23: ABOYS | B23: =+'10-22 WED LEX'!E23 -> 769 | E23: 769 | R23: VAT + TOTAL CHANGE | S23: =+S21+S22 -> 0.000
A24: ABSALON LOLITA | B24: =+'10-22 WED LEX'!E24 -> 1000 | E24: 1000 | R24: ENTER OLD PRICE | S24: 4,719.000
A25: ALBAO, ELMER | B25: =+'10-22 WED LEX'!E25 -> 834 | E25: 834 | R25: NEW PRICE | S25: =+S24-S23 -> 4,719.000
A26: ALOVERA ROSEMARIE | B26: =+'10-22 WED LEX'!E26 -> 25 | E26: 25
A27: ANDAYA NELLY | B27: =+'10-22 WED LEX'!E27 -> 1071 | E27: 1071 | S27: =-S29*1 -> 0.000
A28: AYESHA BAKERY | B28: =+'10-22 WED LEX'!E28 -> 2105 | E28: 2105 | R28: 1.4KG | S28: 1.400
A29: BANTAYAN MINDA | B29: =+'10-22 WED LEX'!E29 -> 168 | E29: 168 | R29: ENTER NUMBER (-/+) | S29: =+P6 -> 0.000
A30: BEGGS BAKERY | B30: =+'10-22 WED LEX'!E30 -> 7936 | E30: 7936 | R30: TOTAL CHANGE | S30: =+S28*S27 -> 0.000
A31: BINOLIRAO, JOY | B31: =+'10-22 WED LEX'!E31 -> 5432 | E31: 5432 | R31: VAT | S31: =+S30*0.12 -> 0.000
A32: CAFÉ KRISTINA | B32: =+'10-22 WED LEX'!E32 -> 4226 | E32: 4226 | R32: VAT + TOTAL CHANGE | S32: =+S30+S31 -> 0.000
A33: CANTUBA PORTIA | B33: =+'10-22 WED LEX'!E33 -> 1076 | E33: 1076 | R33: ENTER OLD PRICE | S33: 199.000
A34: CAPELLAN EMILY | B34: =+'10-22 WED LEX'!E34 -> 588 | E34: 588 | R34: NEW PRICE | S34: =+S33-S32 -> 199.000
A35: CAPELLAN SONY | B35: =+'10-22 WED LEX'!E35 -> 500 | E35: 500
A36: CHEPIE/SAMSON JINKY | B36: =+'10-22 WED LEX'!E36 -> 18660 | E36: 18660 | F36: =6000+3500+816 -> 10316
A37: CITY VICE OLD | B37: =+'10-22 WED LEX'!E37 -> 6121 | E37: 6121
A38: CORTES BABYJANE LESS 200 | B38: =+'10-22 WED LEX'!E38 -> 2128 | E38: 2128
A39: COSTALES, ERNESTO | B39: =+'10-22 WED LEX'!E39 -> 25 | E39: 25
A40: DALANON, LUZ | B40: =+'10-22 WED LEX'!E40 -> 1160 | E40: 1160
A41: DESAMERO JESS | B41: =+'10-22 WED LEX'!E41 -> 1033 | E41: 1033
A42: DESPE, ARTUR | B42: =+'10-22 WED LEX'!E42 -> 997 | E42: 997
A43: DIOCADO JOHNWIL ONLOAN | B43: =+'10-22 WED LEX'!E43 -> 900 | E43: 900
A44: EMR/PANES FREDDIE / | B44: =+'10-22 WED LEX'!E44 -> 2050 | E44: 2050
A45: EPONG CARENDERIA | B45: =+'10-22 WED LEX'!E45 -> 1131 | E45: 1131
A46: ESPARZA ANACITA | B46: =+'10-22 WED LEX'!E46 -> 2165 | E46: 2165
A47: ESPINAS ROLANDO | B47: =+'10-22 WED LEX'!E47 -> 1056 | E47: 1056
A48: EVANGELISTA, JOHN | B48: =+'10-22 WED LEX'!E48 -> 1207 | E48: 1207
A49: FLORES HELEN | B49: =+'10-22 WED LEX'!E49 -> 1647 | E49: 1647
A50: GARBO RADFORD | B50: =+'10-22 WED LEX'!E50 -> 1624 | E50: 1624
A51: GARBO RAYMUND | B51: =+'10-22 WED LEX'!E51 -> 1103 | E51: 1103
A52: GONZAGA, ANITA | B52: =+'10-22 WED LEX'!E52 -> 1191 | E52: 1191 | F52: APRIL
A53: HARLEY CLEOFE | B53: =+'10-22 WED LEX'!E53 -> 0 | E53: 0
A54: JANZMILE | B54: =+'10-22 WED LEX'!E54 -> 2331 | E54: 2331
A55: JODAN EATERY | B55: =+'10-22 WED LEX'!E55 -> 50 | E55: 50
A56: LALAGUNA FAITH | B56: =+'10-22 WED LEX'!E56 -> 0 | E56: 0
A57: LAURENO SUSIE | B57: =+'10-22 WED LEX'!E57 -> 2274 | E57: 2274
A58: LAWODNON | B58: =+'10-22 WED LEX'!E58 -> 4276 | E58: 4276
A59: LIBERTY BAKERY | B59: =+'10-22 WED LEX'!E59 -> 0 | E59: 0
A60: LOLO JOFAX (2160) UNPAID | B60: =+'10-22 WED LEX'!E60 -> 500 | E60: 500
A61: MANALO, CHITA | B61: =+'10-22 WED LEX'!E61 -> 2120 | E61: 2120
A62: MANGUBAT-CAWAYAN | B62: =+'10-22 WED LEX'!E62 -> 1121 | E62: 1121
A63: MARABE, GUENTER | B63: =+'10-22 WED LEX'!E63 -> 1014 | E63: 1014
A64: MARISTELA, EMERALD | B64: =+'10-22 WED LEX'!E64 -> 7907 | E64: 7907
A65: MIEKOYS PIZZA | B65: =+'10-22 WED LEX'!E65 -> 0 | E65: 0
A66: MIGGYS BAKERY | B66: =+'10-22 WED LEX'!E66 -> 765 | E66: =B66+C66-D66 -> 765
A67: MORAN ANALY | B67: 1069 | D67: 1,069 | E67: 0
A68: MORAN JACKILYN | B68: =+'10-22 WED LEX'!E68 -> 1068 | E68: 1068
A69: NARIDO RAFAEL REG | B69: =+'10-22 WED LEX'!E69 -> 475 | E69: 475
A70: NARIDO, REYNALDO | B70: =+'10-22 WED LEX'!E70 -> 475 | E70: 475
A71: NUNEZ, PERPETUA | B71: =+'10-22 WED LEX'!E71 -> 3831 | E71: 3831
A72: OLIVA, CELSO | B72: =+'10-22 WED LEX'!E72 -> 168 | E72: 168
A73: OLIVA, DOREEN | B73: =+'10-22 WED LEX'!E73 -> 474 | E73: 474
A74: ORBISO LIZA/NUNU | B74: =+'10-22 WED LEX'!E74 -> 2405 | E74: 2405
A75: ORBISO, KEILLI | B75: =+'10-22 WED LEX'!E75 -> 474 | E75: 474
A76: PASION VENUS | B76: =+'10-22 WED LEX'!E76 -> 1014 | E76: 1014
A77: PERALTA LYNDON | B77: =+'10-22 WED LEX'!E77 -> 40 | E77: 40
A78: PHO | B78: =+'10-22 WED LEX'!E78 -> 0 | E78: 0
A79: RESUENA | B79: =+'10-22 WED LEX'!E79 -> 4226 | E79: 4226
A80: RUELAN RONALD | B80: =+'10-22 WED LEX'!E80 -> 1083 | E80: 1083
A81: SALADAS SHERLY | B81: =+'10-22 WED LEX'!E81 -> 674 | E81: 674
A82: BANTAYAN MINDA | B82: =+'10-22 WED LEX'!E82 -> 0 | E82: 0
A83: SANDRA SAN JUAN | B83: =+'10-22 WED LEX'!E83 -> 1300 | E83: 1300
A84: TATA/NUEVO MARILOU | B84: =+'10-22 WED LEX'!E84 -> 20220 | E84: 20220
A85: TENORIA, MARRAH | B85: =+'10-22 WED LEX'!E85 -> 130 | E85: 130
A86: VILLAMOR, MARILOU (MOM) | B86: =+'10-22 WED LEX'!E86 -> 0 | E86: 0
A87: VILLAMOR, MARILOU (SON) | B87: =+'10-22 WED LEX'!E87 -> 2308 | E87: 2308
A88: VILLOCILLO JESUS | B88: =+'10-22 WED LEX'!E88 -> 0 | E88: 0
A89: YBANEZ ROBERTO (1115) UNPAID | B89: =+'10-22 WED LEX'!E89 -> 2096 | E89: 2096
A90: YKAY/NUEVO ELENA | B90: =+'10-22 WED LEX'!E90 -> 50750 | C90: =9990+150 -> 10,140 | E90: 60890 | F90: 5 receipts 4 missing
A91: TWIN PEAK | B91: =+'10-22 WED LEX'!E91 -> 1084 | E91: 1084
A92: COLLANTES | B92: =+'10-22 WED LEX'!E92 -> 0 | E92: 0
A93: MARYJANE CORTES | B93: =+'10-22 WED LEX'!E93 -> 45 | E93: 45
A94: HAPPY ROASTER | B94: =+'10-22 WED LEX'!E94 -> 6456 | E94: 6456
A95: JOHNRICK PACHECO | B95: =+'10-22 WED LEX'!E95 -> 800 | E95: 800
A96: CHARO'S CAFÉ | B96: =+'10-22 WED LEX'!E96 -> 25 | E96: 25
A97: LOCILLO AILYN | B97: =+'10-22 WED LEX'!E97 -> 0 | E97: 0
A98: OVERTYM | B98: =+'10-22 WED LEX'!E98 -> 0 | E98: 0
A99: HARLEY CLEOFE | B99: =+'10-22 WED LEX'!E99 -> 0 | E99: 0
A100: PAPILLERA M 3000 from lex | B100: =+'10-22 WED LEX'!E100 -> 3114 | E100: 3114
A101: OVERTYM | B101: =+'10-22 WED LEX'!E101 -> 0 | E101: 0
A102: CITY TREASURY | B102: =+'10-22 WED LEX'!E102 -> 4550 | E102: 4550
A103: AMY DELA PISA | B103: =+'10-22 WED LEX'!E103 -> 1069 | D103: 1,069 | E103: 0
A104: GERARDO PRESADO | B104: =+'10-22 WED LEX'!E104 -> 0 | C104: 1,084 | E104: 1084
A105: BERNARD CARPIO | B105: =+'10-22 WED LEX'!E105 -> 1132 | E105: 1132
A106: CHONA MESA | B106: =+'10-22 WED LEX'!E106 -> 2298 | E106: 2298
A107: PASTORA VIE | B107: =+'10-22 WED LEX'!E107 -> 600 | E107: 600
A108: EVELYN CONRADO | B108: =+'10-22 WED LEX'!E108 -> 400 | E108: 400
B109: =+'10-22 WED LEX'!E109 -> 0 | E109: 0
A110: NENETH REYES | B110: =+'10-22 WED LEX'!E110 -> 693 | E110: 693
A111: JUREXEN VERDIDA | B111: =+'10-22 WED LEX'!E111 -> 3001 | E111: 3001
A112: VILLARANTE RENZEL | B112: =+'10-22 WED LEX'!E112 -> 646 | E112: 646
A113: ALMARIO MOBO BGACAY | B113: =+'10-22 WED LEX'!E113 -> 143 | E113: 143
A114: ALFARO | B114: =+'10-22 WED LEX'!E114 -> 1147 | E114: 1147
A115: JOSE CUELLO 4/24 TRADE IN | B115: =+'10-22 WED LEX'!E115 -> 1071 | E115: 1071
B116: =+'10-22 WED LEX'!E116 -> 0 | E116: 0
A117: MANLAPAZ | B117: =+'10-22 WED LEX'!E117 -> 1084 | E117: 1084
A118: CITY VICE NEW GAZUL | B118: =+'10-22 WED LEX'!E118 -> 1103 | E118: 1103
A119: EVA VERANO | B119: =+'10-22 WED LEX'!E119 -> 576 | E119: 576
B120: =+'10-22 WED LEX'!E120 -> 0 | E120: 0
A121: HAPPY ROASTER | B121: =+'10-22 WED LEX'!E121 -> 2138 | E121: 2138
B122: =+'10-22 WED LEX'!E122 -> 0 | E122: 0
B123: =+'10-22 WED LEX'!E123 -> 0 | E123: 0
A124: CITY VICE | B124: =+'10-22 WED LEX'!E124 -> 1076 | E124: 1076
A125: JEREMY SAMSON | B125: =+'10-22 WED LEX'!E125 -> 18800 | E125: 18800
A126: VILLANUEVA GLENDA | B126: =+'10-22 WED LEX'!E126 -> 1749 | E126: 1749
A127: GALLETO DOREEN | B127: =+'10-22 WED LEX'!E127 -> 0 | E127: 0
A128: CITIBUILDER | B128: =+'10-22 WED LEX'!E128 -> 1114 | E128: 1114
A129: 50kg ACCOUNT | B129: =+'10-22 WED LEX'!E129 -> 0 | E129: 0 | F129: 50kg ACCOUNT
A130: ABAN, JULIUS | B130: =+'10-22 WED LEX'!E130 -> 8660 | E130: =B130+C130-D130 -> 8660
A131: AVEGAIL LAUNDRY | B131: =+'10-22 WED LEX'!E131 -> 6538 | E131: 6538
A132: BACKYARD EDIBLE GARDEN | B132: =+'10-22 WED LEX'!E132 -> 844 | E132: 844
A133: CARIS HOTEL | B133: =+'10-22 WED LEX'!E133 -> 0 | C133: 4,314 | E133: 4314 | R133: ATTENDANCE AND PAYMENT | X133: =+Z155+Z161 -> 19516
A134: TEABOX | B134: =+'10-22 WED LEX'!E134 -> 0 | E134: 0
A135: CHAROS CAFÉ AND RESTO | B135: =+'10-22 WED LEX'!E135 -> 0 | E135: 0 | R135: NAMES | S135: AM | U135: PM | W135: AM HOURS | X135: PM HOURS | Y135: TOTAL HOURS | Z135: PAID | AA135: REMARKS
A136: CHERISH RESORT | B136: =+'10-22 WED LEX'!E136 -> 0 | E136: 0 | P136: DAYOFF | S136: IN | T136: OUT | U136: IN | V136: OUT
A137: CLORES TRESURE ISLAND | B137: =+'10-22 WED LEX'!E137 -> 7 | E137: 7 | P137: SATURDAY | R137: JOMARI CORTES | S137: 08:20:00 | W137: =+(T137-S137)*24 -> -8.3 | X137: =+(V137-U137)*24 -> 0.0 | Z137: 500 | AA137: K
A138: CONRADO / NOEL BAKERY | B138: =+'10-22 WED LEX'!E138 -> 3601 | E138: 3601 | P138: SUNDAY | R138: JUNREL MALIPOT | W138: =+(T138-S138)*24 -> 0.0 | X138: =+(V138-U138)*24 -> 0.0
A139: CRISPY KING CROSSING | B139: =+'10-22 WED LEX'!E139 -> 60 | E139: 60 | K139: CP# | O139: DRIVER | P139: SUNDAY | R139: APRIL ARENDAIN | S139: 06:00:00 | W139: =+(T139-S139)*24 -> -6.0 | X139: =+(V146-U146)*24 -> 0.0 | Z139: 550 | AA139: K
A140: CRISPY KING IBANEZ | B140: =+'10-22 WED LEX'!E140 -> 0 | E140: 0 | K140: CP# | O140: DRIVER | R140: DIONESITO BLAZO 9301238381 | W140: =+(T141-S140)*24 -> 0.0 | X140: =+(V141-U141)*24 -> 0.0
A141: CRISPY KING MARKET | B141: =+'10-22 WED LEX'!E141 -> 0 | E141: 0 | P141: SUNDAY | R141: RULEY GREPALDEO | W141: =+(T142-S141)*24 -> 0.0 | X141: =+(V142-U142)*24 -> 0.0
A142: CRISPY KING MOBO | B142: =+'10-22 WED LEX'!E142 -> 0 | E142: 0 | W142: 0.0 | X142: =+(V142-U142)*24 -> 0.0
A143: CRISPY KING CAWAYAN | B143: =+'10-22 WED LEX'!E143 -> 0 | E143: 0 | W143: 0.0 | X143: =+(V143-U143)*24 -> 0.0
A144: EZ CAFÉ W/CYLINDER | B144: =+'10-22 WED LEX'!E144 -> 0 | E144: 0 | W144: 0.0 | X144: =+(V144-U144)*24 -> 0.0
A145: FRANCE LAUNDRY | B145: =+'10-22 WED LEX'!E145 -> 2860 | E145: 2860 | W145: =+(T145-S145)*24 -> 0.0 | X145: =+(V145-U145)*24 -> 0.0
A146: JUAN HOUR LAUNDRY | B146: =+'10-22 WED LEX'!E146 -> 0 | E146: 0 | R146: SHANNAH | W146: =+(T146-S146)*24 -> 0.0 | X146: =+(V146-U146)*24 -> 0.0 | AA146: OFF
A147: KATES LAUNDRY SHOP | B147: =+'10-22 WED LEX'!E147 -> 0 | E147: 0 | R147: NATHANIEL ALERTA | S147: 07:00:00 | W147: -7.0 | X147: 0.0 | Z147: 550 | AA147: 500 K
A148: MARKY RESTAURANT | B148: =4001+3914 -> 7915 | D148: 3,914 | E148: 4001 | P148: SATURDAY | R148: ARNOLD PEPITO | S148: 07:00:00 | W148: -7.0 | X148: 0.0 | Z148: 550 | AA148: 500 K
A149: MASBATE LAUNDRY SHOP | B149: =+'10-22 WED LEX'!E149 -> 0 | E149: 0 | K149: CP# | O149: DRIVER | P149: WEDNESDAY | R149: EVANGELISTA ROMULO | W149: 0.0 | X149: 0.0 | AA149: OFF
A150: DAMPA | B150: =+'10-22 WED LEX'!E150 -> 0 | E150: 0 | R150: HAZEL | W150: 0.0 | X150: 0.0 | AA150: OFF
A151: PINOY SIOPAO | B151: =+'10-22 WED LEX'!E151 -> 0 | E151: 0 | P151: SUNDAY | R151: LIZET DANAO | S151: 07:00:00 | W151: -7.0 | X151: 0.0 | Z151: 550 | AA151: 550 K
A152: REMS LAUNDRY | B152: =+'10-22 WED LEX'!E152 -> 6144 | E152: 6144 | K152: CP# | O152: DRIVER | P152: FRIDAY | R152: ARTURO PARAGAS | S152: 07:07:00 | W152: -7.1 | X152: 0.0 | Z152: 500 | AA152: 500-100 K
A153: REYJOHN BAKERY | B153: =+'10-22 WED LEX'!E153 -> 0 | E153: 0 | P153: SATURDAY | R153: LEO MARCOS | S153: 07:00:00 | W153: -7.0 | X153: 0.0 | Z153: 500 | AA153: 500 K
A154: ROBERTO AND ROWE | B154: =+'10-22 WED LEX'!E154 -> 15813 | C154: =6264+8428 -> 14,692 | D154: 14,798 | E154: 15707 | K154: CP# | O154: DRIVER | P154: THURSDAY | R154: JULIAN DUMALAG | S154: 07:00:00 | W154: -7.0 | X154: 0.0 | Z154: 500 | AA154: 500-100 K
A155: ROLLING BUBBLES | B155: =+'10-22 WED LEX'!E155 -> 0 | E155: 0 | M155: BNNNNNNNNNNNNNNNNNNNNNNNNNNNNNNNNNNNNNNNNNNNNNNNNNNNNNNN | R155: SALARY TOTAL | Z155: =SUM(Z137:Z154) -> 4200 | AG155: SAKTO
A156: ROSEMARY EVENTS | B156: =+'10-22 WED LEX'!E156 -> 0 | E156: 0 | R156: ca april | Z156: 1000
A157: ROWEES AROROY | B157: =+'10-22 WED LEX'!E157 -> 0 | E157: 0 | R157: COY HAUL DRIVE OCT 19- | Z157: 4500 | AJ157: 7 | AL157: 87
A158: PALMA SHERYL/avegail laundry | B158: =+'10-22 WED LEX'!E158 -> 4614 | E158: 4614 | R158: LABOR | Z158: 6000
A159: WENABETH JOHN BAKERY MALINTA | B159: =+'10-22 WED LEX'!E159 -> 4369 | C159: 4,364 | E159: 8733 | R159: UNLOADING LOADING | Z159: 3816
A160: CRISPY KING PIER | B160: =+'10-22 WED LEX'!E160 -> 3814 | E160: 3814
A161: CRISPY KING OSMENA | B161: =+'10-22 WED LEX'!E161 -> 0 | E161: 0 | R161: EXTRA EXPENSES TOTAL | Z161: =+SUM(Z156:Z160) -> 15316
A162: TUMBAGA SINALONGAN | B162: =+'10-22 WED LEX'!E162 -> 16896 | E162: 16896 | F162: TUESDAY
A163: OUTLET'S | B163: =+'10-22 WED LEX'!E163 -> 0 | E163: 0 | F163: OUTLET'S
A164: ABANO, MICHAEL | B164: =+'10-22 WED LEX'!E164 -> 11380 | E164: 11380 | F164: APRIL | V164: COMMERCIAL ACCOUNT | AE164: REMINDERS
A165: ALVAREZ JENILLYN | B165: =+'10-22 WED LEX'!E165 -> 18750 | E165: 18750
A166: ALVAREZ, RICO 1.4 | B166: =+'10-22 WED LEX'!E166 -> 1330 | E166: 1330 | V166: CUSTOMER NAME | AB166: DICS | AC166: DELIVER | AE166: 9499357775 AMERA 50KG Leah Orubla Villaraiz | AM166: ALOVERA ROSEMARIE | AQ166: 20 | AR166: 15
A167: ALVAREZ, RICO A/S | B167: =+'10-22 WED LEX'!E167 -> 6800 | E167: 6800 | V167: 8 ALL YOU CAN/RIMONTE JOHN AUBREN | AB167: 400 | AC167: 50 | AM167: BANTAYAN MINDA | AQ167: 20 | AR167: 15
A168: BANTAYAN, LENIE | B168: =+'10-22 WED LEX'!E168 -> 12802 | E168: 12802 | V168: ABAN LAUNDRY / ABAN JULIUS | AB168: 300 | AC168: 50 | AM168: CORTES BABY JEAN | AQ168: 20 | AR168: 15
A169: BULALAQUE, NATHANIEL | B169: =+'10-22 WED LEX'!E169 -> 0 | E169: 0 | V169: AVEGAIL S LAUNDRY | AB169: 300 | AC169: 50 | AE169: LAWRENCE SESE 0902014314 LAND BANK
A170: CDJ/CHISA BARRUGA | B170: =+'10-22 WED LEX'!E170 -> 5315 | E170: 5315 | V170: BACKYARD EDIBLE GARDEN | AB170: 300 | AC170: 50
A171: COCOY SOLANE ACCOUNT | B171: =+'10-22 WED LEX'!E171 -> 6232 | E171: 6232 | V171: CARIS HOTEL | AB171: 300 | AC171: 50 | AM171: ESPARZA ANACITA TWIN PEAK | AQ171: 20 | AR171: 15
A172: ELMA BUNGCARAS | B172: =+'10-22 WED LEX'!E172 -> 10680 | E172: 10680 | V172: CHAROS CAFÉ AND RESTO (MOBO RIVER SIDE) | AB172: 0 | AC172: 50 | AE172: LAWRENCE SESE 013568000813 BDO | AM172: ESPINAS ROLANDO | AQ172: 20 | AR172: 15
A173: GADER RENATO | B173: =+'10-22 WED LEX'!E173 -> 16920 | E173: 16920 | J173: SENIOR DISCOUNT | P173: =+J182/0.2 -> 5345 | V173: CHERISH RESORT | AB173: 900 | AC173: 50
A174: LOCMAYON BEGA10 (2) | B174: =+'10-22 WED LEX'!E174 -> 0 | E174: 0 | V174: CRISPY KING / DJJM FOOD HUB/ IBANEZ/CROSSING | AB174: 800 | AC174: 50 | AM174: FAZENDA MILAGROS | AQ174: 20 | AR174: 15
A175: SOLON VANGIE | B175: =+'10-22 WED LEX'!E175 -> 8670 | E175: 8670 | J175: 50KG | M175: QTY | N175: AMOUNT | P175: DISCOUNT | R175: DELIVERY CHARGE | V175: CRISPY KING / DJJM FOOD HUB/ MOBO | AB175: 700 | AC175: 50 | AE175: KUA DUTAY 09307207044
A176: ORBISO PHOEBE | B176: =+'10-22 WED LEX'!E176 -> 2112 | E176: 2112 | V176: CRYSPY KING / DJA CATERING SERVICES/PATING | AB176: 800 | AC176: 50
A177: ORBISO, EFILDA | B177: =+'10-22 WED LEX'!E177 -> 0 | E177: 0 | J177: 4564 | N177: =+M177*J177 -> 0 | P177: 400 | V177: CRISPY KING / DJJM FOOD HUB/ OSMENA NOY BIGOL | AB177: 800 | AC177: 50
A178: PAWA VERNA MENDOZA | B178: =+'10-22 WED LEX'!E178 -> 1250 | E178: 1250 | S178: + | V178: CRISPY KING / DJJM FOOD HUB/ PIER NOY BIGOL | W178: =+W222 -> 0 | AB178: 800 | AC178: 50 | AE178: GMS ACCOUNT
A179: ELMA BUNCARAS | B179: =+'10-22 WED LEX'!E179 -> 16630 | E179: 16630 | P179: =+M177*P177 -> 0 | R179: =+M177*R177 -> 0 | V179: / DJJM CRISPY KING NOY BIGOL | AB179: 700 | AC179: 100
A180: SAMPAGA BIDA | B180: =+'10-22 WED LEX'!E180 -> 3816 | E180: 3816 | J180: 11KG | M180: QTY | N180: AMOUNT | P180: DISCOUNT | R180: DELIVERY CHARGE | V180: DAMPA RESTO BAR /BESMONTE MARICAR | AB180: 300 | AC180: 50
A181: SESE, ROSALIA | B181: =+'10-22 WED LEX'!E181 -> 34480 | E181: 34480 | V181: DR. CHESTER LEE | AB181: 900 | AC181: P/U
A182: STAR OIL RECEIVABLE | B182: =+'10-22 WED LEX'!E182 -> 0 | E182: 0 | J182: 1069 | M182: 1 | N182: =+M182*J182 -> 1069 | V182: EZ CAFÉ | AB182: 300 | AC182: 50
A183: TAYAM IRISH | B183: =+'10-22 WED LEX'!E183 -> 12857 | E183: 12857 | V183: FRANCE LAUNDRY | AB183: 700 | AC183: 50
A184: YBANEZ, NESSAR | B184: =+'10-22 WED LEX'!E184 -> 37716 | D184: =28208+9478 -> 37,686 | E184: 30 | P184: =+M182*P182 -> 0 | R184: =+M182*R182 -> 0 | V184: GACT CONSTRUCTION AND SUPPLY /TAYAM IRISH | AB184: 200 | AC184: 50
A185: ZUNIGA MELCHOR | B185: =+'10-22 WED LEX'!E185 -> 0 | E185: 0 | J185: 1.4KG | M185: QTY | N185: AMOUNT | P185: 3 | R185: DELIVERY CHARGE | V185: HIGHN'DRY LAUNDRY SERVCES | AB185: 0 | AC185: 50
A186: JENELIN ALVAREZ | B186: 1019 | D186: 1,019 | E186: 0 | V186: JUAN HOUR LAUNDRY - STAIRWAY & IBANEZ | AB186: 900 | AC186: 50 | AE186: DELA PENA ANALYN/OSTED | AI186: 70 | AJ186: 9 | AM186: rey john | AQ186: 20 | AR186: 15
A187: EJJ EVANGELYN M NUGAS | B187: =+'10-22 WED LEX'!E187 -> 0 | E187: 0 | J187: 195 | N187: =+M187*J187 -> 0 | V187: KARAON SA 18TH GRILL AND RESTO | AB187: 300 | AC187: 50 | AI187: 70 | AJ187: 15 | AM187: ROBERTO ROWIE & ROBI FOOD OPC | AQ187: 50 | AR187: 15
A188: VANGIE SOLON | B188: =+'10-22 WED LEX'!E188 -> 0 | E188: 0 | F188: MAY JULY P N FOR PAYMENT | V188: KATES LAUNDRYSHOP/ GUILLERMO ALINSOOT MANACILLO 11 | AB188: 700 | AC188: 50 | AM188: ROBERTO YBANEZ | AQ188: 70 | AR188: 15
A189: TICAO ACCOUNT | B189: =+'10-22 WED LEX'!E189 -> 0 | E189: 0 | F189: TICAO ACCOUNT | L189: =+O185*I185 -> 0 | N189: =+Q185*K185 -> 0 | O189: =+R187*M187 -> 0 | P189: =+M187*P187 -> 0 | R189: =+M187*R187 -> 0 | V189: MARKY BICOL RESTAURANT | AB189: 900 | AC189: 50 | AM189: SUCUANO LORETO | AQ189: 70 | AR189: 15
A190: BAMBOO PLACE WITH 3 REGULS | B190: =+'10-22 WED LEX'!E190 -> 4181 | E190: 4181 | F190: ALL UNPAID | J190: CASH | M190: CHANGE | Q190: SRP FOR OCT | V190: MASBATE LAUNDRY CENTER MEDINA ST. MASBATE | AB190: 700 | AC190: 50 | AM190: TATA FRIED CHICKEN | AQ190: 70 | AR190: 15
A191: BARREDO EDGAR | B191: =+'10-22 WED LEX'!E191 -> 0 | E191: 0 | V191: MNV FOODHUB (CHIKICHOW) | AB191: 500 | AC191: 50 | AE191: WINWIN FRIED CHICKEN | AI191: 70 | AM191: VENUS PASION | AQ191: 70 | AR191: 15
A192: DRAGAS 6/21 | B192: =+'10-22 WED LEX'!E192 -> 0 | E192: 0 | F192: 3342TRANSFER TO OCGAS | J192: 1050 | M192: =J192-M201 -> -19 | Q192: 50 KG | S192: 4564 | V192: MR. LAUNDRY - IBINGAY & CROSSING | AB192: 900 | AC192: 50 | AE192: GIGANTE ROQUE VARGAS | AI192: 70 | AJ192: 15 | AL192: TO FOLLOW | AM192: VILLAMOR MARILOU | AQ192: 70 | AR192: 15
A193: GRACE RANGEL 1.4 | B193: =+'10-22 WED LEX'!E193 -> 8589 | E193: 8589 | V193: MSA - DECS | AB193: 0 | AE193: GONZAGA ANITA | AI193: 70 | AJ193: 15 | AM193: WOW INASAL | AQ193: 70 | AR193: 15
A194: GRACE RANGEL AS | B194: =+'10-22 WED LEX'!E194 -> 17401 | E194: =B194+C194-D194 -> 17401 | F194: 1AS 1 DB PAID 5/29 | J194: ;. | L194: . | Q194: 11 KG | S194: 1069 | V194: NESSAR YBANEZ | AB194: 900 | AC194: 100 | AE194: JODAN EATERY | AI194: 70 | AJ194: 15 | AM194: YKAY FRIED CHICKEN | AQ194: 70 | AR194: 15
A195: LIA SESE | B195: =+'10-22 WED LEX'!E195 -> 8942 | E195: 8942 | F195: KULANG STOVE 4544 | J195: DELIVERY | M195: =+R189+R184+R179 -> 0 | V195: NOEL BAKERY / ANALYN CONRADO | AB195: 300 | AC195: 50 | AE195: LAWODNON | AI195: 70 | AJ195: 15 | AM195: PALMA SHERYL | AQ195: 70 | AR195: 15
A196: OC GAS ALVAREZ | B196: =+'10-22 WED LEX'!E196 -> 7588 | E196: 7588 | F196: =+B194+B193 -> 25990 | Q196: 1.4 KG | S196: 195 | V196: PAN DE MASBATE | AB196: 300 | AC196: 50 | AE196: LOCILLO AILLYN | AI196: 70 | AJ196: 15 | AM196: ROYO BORROW AS REGUL FOR POL TANK TIGBAO 09517207893 JEEP BABY GRACE REYMOND LEGAL
A197: OCHEA FAMILY PANDESAL | B197: =+'10-22 WED LEX'!E197 -> 9401 | E197: 9401 | F197: 1AS REPLACEMENT NO CHRGE FOR RETUN FILLED | J197: DISCOUNT | M197: TOTAL | V197: PINOY SIOPAO | AB197: 300 | AC197: 50 | AE197: MANALO CHITA | AI197: 70 | AJ197: 15
A198: PARK N GO | B198: =+'10-22 WED LEX'!E198 -> 0 | E198: 0 | V198: REMS LAUNDRY / SANDRA MEDINA | AB198: 300 | AC198: 50 | AE198: MARISTELA EMERALD | AI198: 70 | AJ198: 15
A199: THEO PANDESAL | B199: =+'10-22 WED LEX'!E199 -> 5063 | E199: 5063 | F199: REGUL NOT PAID | J199: =+P179+P184+P189 -> 0 | M199: =+N177+N182+N187-J199 -> 1069 | V199: REYJOHN BAKERY / RHEA DELA CRUZ OBOG | AB199: 700 | AC199: 50 | AE199: MIEKOYS PIZZA | AI199: 70 | AJ199: 15
A200: ZANDRA BEACH RESORT | B200: =+'10-22 WED LEX'!E200 -> 12606 | E200: 12606 | Q200: OTHER AMOUNT HERE | V200: ROLLING BUBBLES - DANAO | AB200: 700 | AC200: 50 | AE200: MIGGYS BAKERY | AI200: 70 | AJ200: 15
... 175 more rows

Sheet 10-22 WED LEX
B1: BEGIN | C1: UNPAID | D1: PAYMENT | E1: END | F1: CASH ADVANCE
A2: C.A APRIL ARENDAIN | B2: =+'10-21 TUE LEX'!E2 -> 2050 | E2: =B2+C2-D2 -> 2050 | P2: ENTER NUMER W/POSITIVE SIGN IF increase
A3: TIYO NOY | B3: =+'10-21 TUE LEX'!E3 -> 500 | E3: 500
A4: C.A COCOY | B4: =+'10-21 TUE LEX'!E4 -> 1615 | E4: 1615 | P4: ENTER NUMER W/NEGATIVE SIGN IF decrease
A5: DAVE BONA | B5: =+'10-21 TUE LEX'!E5 -> 4000 | E5: 4000
A6: C.A JOMARI CORTES | B6: =+'10-21 TUE LEX'!E6 -> 40928 | E6: 40928
A7: C.A JUNREL MALIPOT | B7: =+'10-21 TUE LEX'!E7 -> 10469 | E7: 10469
A8: C.A NATHANIEL | B8: =+'10-21 TUE LEX'!E8 -> 600 | E8: 600
A9: C.A MANANGAT CHRISTIAN | B9: =+'10-21 TUE LEX'!E9 -> 3548 | E9: 3548 | S9: =-S11*1 -> 1.300
A10: C.A SINADJAN, RAMIL | B10: =+'10-21 TUE LEX'!E10 -> 1100 | E10: 1100 | R10: 11kilos | S10: 11.000
A11: C.A VESTER | B11: =+'10-21 TUE LEX'!E11 -> 9782 | E11: 9782 | R11: ENTER NUMBER (-/+) | S11: -1.300
A12: IRENE | B12: =+'10-21 TUE LEX'!E12 -> 2000 | E12: 2000 | R12: TOTAL CHANGE | S12: =+S10*S9 -> 14.300
A13: ARTURO PARAGAS | B13: =+'10-21 TUE LEX'!E13 -> 7100 | D13: 100 | E13: 7000 | R13: VAT | S13: =+S12*0.12 -> 1.716
A14: DONNA LUIS | B14: =+'10-21 TUE LEX'!E14 -> 3300 | E14: 3300 | R14: VAT + TOTAL CHANGE | S14: =+S12+S13 -> 16.016
A15: RULEY GREPALDIO | B15: =+'10-21 TUE LEX'!E15 -> 1076 | E15: 1076 | R15: ENTER OLD PRICE | S15: 1,076.000
A16: JULIAN | B16: =+'10-21 TUE LEX'!E16 -> 5400 | D16: 100 | E16: 5300 | F16: JULLIAN DUMALAG | R16: NEW PRICE | S16: =+S15-S14 -> 1,059.984
A17: CA HAZEL 8/21 | B17: =+'10-21 TUE LEX'!E17 -> 1600 | E17: 1600
A18: SABIANO BERAL | B18: =+'10-21 TUE LEX'!E18 -> 5000 | E18: 5000 | S18: =-S20*1 -> 0.000
A19: LABOR ADVANCE | B19: =+'10-21 TUE LEX'!E19 -> 3000 | E19: 3000 | R19: 50KG | S19: 50.000
A20: NATHANIEL | B20: =+'10-21 TUE LEX'!E20 -> 3500 | E20: 3500 | F20: NAT CA 3500 | R20: ENTER NUMBER (-/+) | S20: =+P6 -> 0.000
A21: RJ DUMANGAS | B21: =+'10-21 TUE LEX'!E21 -> 1000 | E21: 1000 | R21: TOTAL CHANGE | S21: =+S19*S18 -> 0.000
A22: REGULAR | B22: =+'10-21 TUE LEX'!E22 -> 0 | E22: 0 | F22: REGULAR | R22: VAT | S22: =+S21*0.12 -> 0.000
A23: ABOYS | B23: =+'10-21 TUE LEX'!E23 -> 769 | E23: 769 | R23: VAT + TOTAL CHANGE | S23: =+S21+S22 -> 0.000
A24: ABSALON LOLITA | B24: =+'10-21 TUE LEX'!E24 -> 1000 | E24: 1000 | R24: ENTER OLD PRICE | S24: 4,719.000
A25: ALBAO, ELMER | B25: =+'10-21 TUE LEX'!E25 -> 834 | E25: 834 | R25: NEW PRICE | S25: =+S24-S23 -> 4,719.000
A26: ALOVERA ROSEMARIE | B26: =+'10-21 TUE LEX'!E26 -> 25 | E26: 25
A27: ANDAYA NELLY | B27: =+'10-21 TUE LEX'!E27 -> 1071 | E27: 1071 | S27: =-S29*1 -> 0.000
A28: AYESHA BAKERY | B28: =+'10-21 TUE LEX'!E28 -> 2105 | E28: 2105 | R28: 1.4KG | S28: 1.400
A29: BANTAYAN MINDA | B29: =+'10-21 TUE LEX'!E29 -> 168 | E29: 168 | R29: ENTER NUMBER (-/+) | S29: =+P6 -> 0.000
A30: BEGGS BAKERY | B30: =+'10-21 TUE LEX'!E30 -> 7936 | E30: 7936 | R30: TOTAL CHANGE | S30: =+S28*S27 -> 0.000
A31: BINOLIRAO, JOY | B31: =+'10-21 TUE LEX'!E31 -> 5432 | E31: 5432 | R31: VAT | S31: =+S30*0.12 -> 0.000
A32: CAFÉ KRISTINA | B32: =+'10-21 TUE LEX'!E32 -> 4226 | E32: 4226 | R32: VAT + TOTAL CHANGE | S32: =+S30+S31 -> 0.000
A33: CANTUBA PORTIA | B33: =+'10-21 TUE LEX'!E33 -> 1076 | E33: 1076 | R33: ENTER OLD PRICE | S33: 199.000
A34: CAPELLAN EMILY | B34: =+'10-21 TUE LEX'!E34 -> 588 | E34: 588 | R34: NEW PRICE | S34: =+S33-S32 -> 199.000
A35: CAPELLAN SONY | B35: =+'10-21 TUE LEX'!E35 -> 500 | E35: 500
A36: CHEPIE/SAMSON JINKY | B36: =+'10-21 TUE LEX'!E36 -> 18660 | E36: 18660
A37: CITY VICE OLD | B37: =+'10-21 TUE LEX'!E37 -> 6121 | E37: 6121
A38: CORTES BABYJANE LESS 200 | B38: =+'10-21 TUE LEX'!E38 -> 2128 | E38: 2128
A39: COSTALES, ERNESTO | B39: =+'10-21 TUE LEX'!E39 -> 25 | E39: 25
A40: DALANON, LUZ | B40: =+'10-21 TUE LEX'!E40 -> 1160 | E40: 1160
A41: DESAMERO JESS | B41: =+'10-21 TUE LEX'!E41 -> 1033 | E41: 1033
A42: DESPE, ARTUR | B42: =+'10-21 TUE LEX'!E42 -> 997 | E42: 997
A43: DIOCADO JOHNWIL ONLOAN | B43: =+'10-21 TUE LEX'!E43 -> 900 | E43: 900
A44: EMR/PANES FREDDIE / | B44: =+'10-21 TUE LEX'!E44 -> 2050 | E44: 2050
A45: EPONG CARENDERIA | B45: =+'10-21 TUE LEX'!E45 -> 1131 | E45: 1131
A46: ESPARZA ANACITA | B46: =+'10-21 TUE LEX'!E46 -> 2165 | E46: 2165
A47: ESPINAS ROLANDO | B47: =+'10-21 TUE LEX'!E47 -> 1056 | E47: 1056
A48: EVANGELISTA, JOHN | B48: =+'10-21 TUE LEX'!E48 -> 1207 | E48: 1207
A49: FLORES HELEN | B49: =+'10-21 TUE LEX'!E49 -> 1647 | E49: 1647
A50: GARBO RADFORD | B50: =+'10-21 TUE LEX'!E50 -> 1624 | E50: 1624
A51: GARBO RAYMUND | B51: =+'10-21 TUE LEX'!E51 -> 1103 | E51: 1103
A52: GONZAGA, ANITA | B52: =+'10-21 TUE LEX'!E52 -> 1191 | E52: 1191 | F52: APRIL
A53: HARLEY CLEOFE | B53: =+'10-21 TUE LEX'!E53 -> 0 | E53: 0
A54: JANZMILE | B54: =+'10-21 TUE LEX'!E54 -> 2331 | E54: 2331
A55: JODAN EATERY | B55: =+'10-21 TUE LEX'!E55 -> 50 | E55: 50
A56: LALAGUNA FAITH | B56: =+'10-21 TUE LEX'!E56 -> 0 | E56: 0
A57: LAURENO SUSIE | B57: =+'10-21 TUE LEX'!E57 -> 2274 | E57: 2274
A58: LAWODNON | B58: =+'10-21 TUE LEX'!E58 -> 4276 | E58: 4276
A59: LIBERTY BAKERY | B59: =+'10-21 TUE LEX'!E59 -> 0 | E59: 0
A60: LOLO JOFAX (2160) UNPAID | B60: =+'10-21 TUE LEX'!E60 -> 500 | E60: 500
A61: MANALO, CHITA | B61: =+'10-21 TUE LEX'!E61 -> 2120 | E61: 2120
A62: MANGUBAT-CAWAYAN | B62: =+'10-21 TUE LEX'!E62 -> 1121 | E62: 1121
A63: MARABE, GUENTER | B63: =+'10-21 TUE LEX'!E63 -> 1014 | E63: 1014
A64: MARISTELA, EMERALD | B64: =+'10-21 TUE LEX'!E64 -> 7907 | E64: 7907
A65: MIEKOYS PIZZA | B65: =+'10-21 TUE LEX'!E65 -> 0 | E65: 0
A66: MIGGYS BAKERY | B66: =+'10-21 TUE LEX'!E66 -> 765 | E66: =B66+C66-D66 -> 765
A67: MORAN ANALY | B67: =+'10-21 TUE LEX'!E67 -> 0 | E67: 0
A68: MORAN JACKILYN | B68: =+'10-21 TUE LEX'!E68 -> 1068 | E68: 1068
A69: NARIDO RAFAEL REG | B69: =+'10-21 TUE LEX'!E69 -> 475 | E69: 475
A70: NARIDO, REYNALDO | B70: =+'10-21 TUE LEX'!E70 -> 475 | E70: 475
A71: NUNEZ, PERPETUA | B71: =+'10-21 TUE LEX'!E71 -> 3831 | E71: 3831
A72: OLIVA, CELSO | B72: =+'10-21 TUE LEX'!E72 -> 168 | E72: 168
A73: OLIVA, DOREEN | B73: =+'10-21 TUE LEX'!E73 -> 474 | E73: 474
A74: ORBISO LIZA/NUNU | B74: =+'10-21 TUE LEX'!E74 -> 2405 | E74: 2405
A75: ORBISO, KEILLI | B75: =+'10-21 TUE LEX'!E75 -> 474 | E75: 474
A76: PASION VENUS | B76: =+'10-21 TUE LEX'!E76 -> 1014 | E76: 1014
A77: PERALTA LYNDON | B77: =+'10-21 TUE LEX'!E77 -> 40 | E77: 40
A78: PHO | B78: =+'10-21 TUE LEX'!E78 -> 0 | E78: 0
A79: RESUENA | B79: =+'10-21 TUE LEX'!E79 -> 4226 | E79: 4226
A80: RUELAN RONALD | B80: =+'10-21 TUE LEX'!E80 -> 1083 | E80: 1083
A81: SALADAS SHERLY | B81: =+'10-21 TUE LEX'!E81 -> 674 | E81: 674 | F81: =2028+8360 -> 10388
A82: BANTAYAN MINDA | B82: =+'10-21 TUE LEX'!E82 -> 0 | E82: 0
A83: SANDRA SAN JUAN | B83: =+'10-21 TUE LEX'!E83 -> 1300 | E83: 1300
A84: TATA/NUEVO MARILOU | B84: =+'10-21 TUE LEX'!E84 -> 20220 | E84: 20220
A85: TENORIA, MARRAH | B85: =+'10-21 TUE LEX'!E85 -> 130 | E85: 130
A86: VILLAMOR, MARILOU (MOM) | B86: =+'10-21 TUE LEX'!E86 -> 0 | E86: 0
A87: VILLAMOR, MARILOU (SON) | B87: =+'10-21 TUE LEX'!E87 -> 2308 | E87: 2308
A88: VILLOCILLO JESUS | B88: =+'10-21 TUE LEX'!E88 -> 0 | E88: 0
A89: YBANEZ ROBERTO (1115) UNPAID | B89: =+'10-21 TUE LEX'!E89 -> 2096 | E89: 2096
A90: YKAY/NUEVO ELENA | B90: =+'10-21 TUE LEX'!E90 -> 50750 | E90: 50750 | F90: 5 receipts 4 missing
A91: TWIN PEAK | B91: =+'10-21 TUE LEX'!E91 -> 1084 | E91: 1084
A92: COLLANTES | B92: =+'10-21 TUE LEX'!E92 -> 0 | E92: 0
A93: MARYJANE CORTES | B93: =+'10-21 TUE LEX'!E93 -> 45 | E93: 45
A94: HAPPY ROASTER | B94: =+'10-21 TUE LEX'!E94 -> 6456 | E94: 6456
A95: JOHNRICK PACHECO | B95: =+'10-21 TUE LEX'!E95 -> 800 | E95: 800
A96: CHARO'S CAFÉ | B96: =+'10-21 TUE LEX'!E96 -> 25 | E96: 25
A97: LOCILLO AILYN | B97: =+'10-21 TUE LEX'!E97 -> 0 | E97: 0
A98: OVERTYM | B98: =+'10-21 TUE LEX'!E98 -> 0 | E98: 0
A99: HARLEY CLEOFE | B99: =+'10-21 TUE LEX'!E99 -> 0 | E99: 0
A100: PAPILLERA M 3000 from lex | B100: =+'10-21 TUE LEX'!E100 -> 3114 | E100: 3114
A101: OVERTYM | B101: =+'10-21 TUE LEX'!E101 -> 999 | D101: 999 | E101: 0
A102: CITY TREASURY | B102: =+'10-21 TUE LEX'!E102 -> 4550 | E102: 4550
A103: AMY DELA PISA | B103: =+'10-21 TUE LEX'!E103 -> 0 | C103: 1,069 | E103: 1069
B104: =+'10-21 TUE LEX'!E104 -> 0 | E104: 0
A105: BERNARD CARPIO | B105: =+'10-21 TUE LEX'!E105 -> 1132 | E105: 1132
A106: CHONA MESA | B106: =+'10-21 TUE LEX'!E106 -> 2298 | E106: 2298
A107: PASTORA VIE | B107: =+'10-21 TUE LEX'!E107 -> 600 | E107: 600
A108: EVELYN CONRADO | B108: =+'10-21 TUE LEX'!E108 -> 400 | E108: 400
B109: =+'10-21 TUE LEX'!E109 -> 0 | E109: 0
A110: NENETH REYES | B110: =+'10-21 TUE LEX'!E110 -> 693 | E110: 693
A111: JUREXEN VERDIDA | B111: =+'10-21 TUE LEX'!E111 -> 3001 | E111: 3001
A112: VILLARANTE RENZEL | B112: =+'10-21 TUE LEX'!E112 -> 646 | E112: 646
A113: ALMARIO MOBO BGACAY | B113: =+'10-21 TUE LEX'!E113 -> 143 | E113: 143
A114: ALFARO | B114: =+'10-21 TUE LEX'!E114 -> 1147 | E114: 1147
A115: JOSE CUELLO 4/24 TRADE IN | B115: =+'10-21 TUE LEX'!E115 -> 1071 | E115: 1071
B116: =+'10-21 TUE LEX'!E116 -> 0 | E116: 0
A117: MANLAPAZ | B117: =+'10-21 TUE LEX'!E117 -> 1084 | E117: 1084
A118: CITY VICE NEW GAZUL | B118: =+'10-21 TUE LEX'!E118 -> 1103 | E118: 1103
A119: EVA VERANO | B119: =+'10-21 TUE LEX'!E119 -> 576 | E119: 576
B120: =+'10-21 TUE LEX'!E120 -> 0 | E120: 0
A121: HAPPY ROASTER | B121: =+'10-21 TUE LEX'!E121 -> 2138 | E121: 2138
B122: =+'10-21 TUE LEX'!E122 -> 0 | E122: 0
B123: =+'10-21 TUE LEX'!E123 -> 0 | E123: 0
A124: CITY VICE | B124: =+'10-21 TUE LEX'!E124 -> 1076 | E124: 1076
A125: JEREMY SAMSON | B125: =+'10-21 TUE LEX'!E125 -> 18800 | E125: 18800
A126: VILLANUEVA GLENDA | B126: =+'10-21 TUE LEX'!E126 -> 1749 | E126: 1749
A127: GALLETO DOREEN | B127: =+'10-21 TUE LEX'!E127 -> 1084 | D127: 1,084 | E127: 0
A128: CITIBUILDER | B128: =+'10-21 TUE LEX'!E128 -> 1114 | E128: 1114
A129: 50kg ACCOUNT | B129: =+'10-21 TUE LEX'!E129 -> 0 | E129: 0 | F129: 50kg ACCOUNT
A130: ABAN, JULIUS | B130: =+'10-21 TUE LEX'!E130 -> 8660 | E130: =B130+C130-D130 -> 8660 | F130: APRIL
A131: AVEGAIL LAUNDRY | B131: =+'10-21 TUE LEX'!E131 -> 6538 | E131: 6538
A132: BACKYARD EDIBLE GARDEN | B132: =+'10-21 TUE LEX'!E132 -> 844 | E132: 844
A133: BESMONTE MARICAR | B133: =+'10-21 TUE LEX'!E133 -> 0 | E133: 0 | R133: ATTENDANCE AND PAYMENT | X133: =+Z155+Z161 -> 4150
A134: TEABOX | B134: =+'10-21 TUE LEX'!E134 -> 0 | E134: 0
A135: CHAROS CAFÉ AND RESTO | B135: =+'10-21 TUE LEX'!E135 -> 0 | E135: 0 | R135: NAMES | S135: AM | U135: PM | W135: AM HOURS | X135: PM HOURS | Y135: TOTAL HOURS | Z135: PAID | AA135: REMARKS
A136: CHERISH RESORT | B136: =+'10-21 TUE LEX'!E136 -> 0 | E136: 0 | P136: DAYOFF | S136: IN | T136: OUT | U136: IN | V136: OUT
A137: CLORES TRESURE ISLAND | B137: =+'10-21 TUE LEX'!E137 -> 7 | E137: 7 | P137: SATURDAY | R137: JOMARI CORTES | W137: =+(T137-S137)*24 -> 0.0 | X137: =+(V137-U137)*24 -> 0.0
A138: CONRADO / NOEL BAKERY | B138: =+'10-21 TUE LEX'!E138 -> 3601 | E138: 3601 | P138: SUNDAY | R138: JUNREL MALIPOT | W138: =+(T138-S138)*24 -> 0.0 | X138: =+(V138-U138)*24 -> 0.0
A139: CRISPY KING CROSSING | B139: =+'10-21 TUE LEX'!E139 -> 60 | E139: 60 | K139: CP# | O139: DRIVER | P139: SUNDAY | R139: APRIL ARENDAIN | S139: 07:45:00 | T139: 11:15:00 | U139: 12:40:00 | V139: 06:00:00 | W139: =+(T139-S139)*24 -> 3.5 | X139: =+(V146-U146)*24 -> 0.0 | Z139: 550
A140: CRISPY KING IBANEZ | B140: =+'10-21 TUE LEX'!E140 -> 0 | E140: 0 | K140: CP# | O140: DRIVER | R140: DIONESITO BLAZO 9301238381 | W140: =+(T141-S140)*24 -> 0.0 | X140: =+(V141-U141)*24 -> 0.0
A141: CRISPY KING MARKET | B141: =+'10-21 TUE LEX'!E141 -> 0 | E141: 0 | P141: SUNDAY | R141: RULEY GREPALDEO | W141: =+(T142-S141)*24 -> 0.0 | X141: =+(V142-U142)*24 -> 0.0
A142: CRISPY KING MOBO | B142: =+'10-21 TUE LEX'!E142 -> 0 | E142: 0 | W142: 0.0 | X142: =+(V142-U142)*24 -> 0.0
A143: CRISPY KING CAWAYAN | B143: =+'10-21 TUE LEX'!E143 -> 0 | E143: 0 | W143: 0.0 | X143: =+(V143-U143)*24 -> 0.0
A144: EZ CAFÉ W/CYLINDER | B144: =+'10-21 TUE LEX'!E144 -> 0 | E144: 0 | W144: 0.0 | X144: =+(V144-U144)*24 -> 0.0
A145: FRANCE LAUNDRY | B145: =+'10-21 TUE LEX'!E145 -> 946 | C145: 3,914 | D145: 2,000 | E145: 2860 | F145: 2892 | W145: =+(T145-S145)*24 -> 0.0 | X145: =+(V145-U145)*24 -> 0.0
A146: JUAN HOUR LAUNDRY | B146: =+'10-21 TUE LEX'!E146 -> 0 | E146: 0 | R146: SHANNAH | W146: =+(T146-S146)*24 -> 0.0 | X146: =+(V146-U146)*24 -> 0.0
A147: KATES LAUNDRY SHOP | B147: =+'10-21 TUE LEX'!E147 -> 0 | E147: 0 | R147: NATHANIEL ALERTA | S147: 07:00:00 | T147: 12:00:00 | U147: 01:00:00 | V147: 06:00:00 | W147: 5.0 | X147: 5.0 | Z147: 500
A148: MARKY RESTAURANT | B148: =+'10-21 TUE LEX'!E148 -> 3914 | E148: 3914 | P148: SATURDAY | R148: ARNOLD PEPITO | S148: 07:00:00 | T148: 12:00:00 | U148: 01:00:00 | V148: 06:00:00 | W148: 5.0 | X148: 5.0 | Z148: 500
A149: MASBATE LAUNDRY SHOP | B149: =+'10-21 TUE LEX'!E149 -> 0 | E149: 0 | K149: CP# | O149: DRIVER | P149: WEDNESDAY | R149: EVANGELISTA ROMULO | S149: 07:00:00 | T149: 12:00:00 | U149: 01:00:00 | V149: 06:00:00 | W149: 5.0 | X149: 5.0 | Z149: 500
A150: DAMPA | B150: =+'10-21 TUE LEX'!E150 -> 0 | E150: 0 | R150: HAZEL | W150: 0.0 | X150: 0.0 | AA150: OFF
A151: PINOY SIOPAO | B151: =+'10-21 TUE LEX'!E151 -> 0 | E151: 0 | P151: SUNDAY | R151: LIZET DANAO | S151: 07:00:00 | T151: 12:00:00 | U151: 01:00:00 | V151: 06:00:00 | W151: 5.0 | X151: 5.0 | Z151: 550
A152: REMS LAUNDRY | B152: =+'10-21 TUE LEX'!E152 -> 6144 | E152: 6144 | K152: CP# | O152: DRIVER | P152: FRIDAY | R152: ARTURO PARAGAS | S152: 07:25:00 | T152: 12:00:00 | U152: 01:00:00 | V152: 06:00:00 | W152: 4.6 | X152: 5.0 | Z152: 550
A153: REYJOHN BAKERY | B153: =+'10-21 TUE LEX'!E153 -> 0 | E153: 0 | P153: SATURDAY | R153: LEO MARCOS | S153: 07:00:00 | T153: 12:00:00 | U153: 01:00:00 | V153: 06:00:00 | W153: 5.0 | X153: 5.0 | Z153: 500
A154: ROBERTO AND ROWE | B154: =+'10-21 TUE LEX'!E154 -> 15813 | E154: 15813 | K154: CP# | O154: DRIVER | P154: THURSDAY | R154: JULIAN DUMALAG | S154: 07:00:00 | T154: 12:00:00 | U154: 01:00:00 | V154: 06:00:00 | W154: 5.0 | X154: 5.0 | Z154: 500
A155: ROLLING BUBBLES | B155: =+'10-21 TUE LEX'!E155 -> 0 | E155: 0 | M155: BNNNNNNNNNNNNNNNNNNNNNNNNNNNNNNNNNNNNNNNNNNNNNNNNNNNNNNN | R155: SALARY TOTAL | Z155: =SUM(Z137:Z154) -> 4150 | AG155: SAKTO
A156: ROSEMARY EVENTS | B156: =+'10-21 TUE LEX'!E156 -> 0 | E156: 0
A157: ROWEES AROROY | B157: =+'10-21 TUE LEX'!E157 -> 0 | E157: 0 | AJ157: 7 | AL157: 87
A158: PALMA SHERYL/avegail laundry | B158: =+'10-21 TUE LEX'!E158 -> 4614 | E158: 4614
A159: WENABETH JOHN BAKERY MALINTA | B159: =+'10-21 TUE LEX'!E159 -> 4369 | E159: 4369
A160: CRISPY KING PIER | B160: =+'10-21 TUE LEX'!E160 -> 3814 | E160: 3814
A161: CRISPY KING OSMENA | B161: =+'10-21 TUE LEX'!E161 -> 0 | E161: 0 | R161: EXTRA EXPENSES TOTAL | Z161: =+SUM(Z156:Z160) -> 0
A162: TUMBAGA SINALONGAN | B162: =+'10-21 TUE LEX'!E162 -> 16896 | E162: 16896 | F162: TUESDAY
A163: OUTLET'S | B163: =+'10-21 TUE LEX'!E163 -> 0 | E163: 0 | F163: OUTLET'S
A164: ABANO, MICHAEL | B164: =+'10-21 TUE LEX'!E164 -> 11380 | E164: 11380 | F164: APRIL | V164: COMMERCIAL ACCOUNT | AE164: REMINDERS
A165: ALVAREZ JENILLYN | B165: =+'10-21 TUE LEX'!E165 -> 18750 | E165: 18750
A166: ALVAREZ, RICO 1.4 | B166: =+'10-21 TUE LEX'!E166 -> 1330 | E166: 1330 | V166: CUSTOMER NAME | AB166: DICS | AC166: DELIVER | AE166: 9499357775 AMERA 50KG Leah Orubla Villaraiz | AM166: ALOVERA ROSEMARIE | AQ166: 20 | AR166: 15
A167: ALVAREZ, RICO A/S | B167: =+'10-21 TUE LEX'!E167 -> 6800 | E167: 6800 | V167: 8 ALL YOU CAN/RIMONTE JOHN AUBREN | AB167: 400 | AC167: 50 | AM167: BANTAYAN MINDA | AQ167: 20 | AR167: 15
A168: BANTAYAN, LENIE | B168: =+'10-21 TUE LEX'!E168 -> 12802 | E168: 12802 | V168: ABAN LAUNDRY / ABAN JULIUS | AB168: 300 | AC168: 50 | AM168: CORTES BABY JEAN | AQ168: 20 | AR168: 15
A169: BULALAQUE, NATHANIEL | B169: =+'10-21 TUE LEX'!E169 -> 0 | E169: 0 | V169: AVEGAIL S LAUNDRY | AB169: 300 | AC169: 50 | AE169: LAWRENCE SESE 0902014314 LAND BANK
A170: CDJ/CHISA BARRUGA | B170: =+'10-21 TUE LEX'!E170 -> 5315 | E170: 5315 | V170: BACKYARD EDIBLE GARDEN | AB170: 300 | AC170: 50
A171: COCOY SOLANE ACCOUNT | B171: =+'10-21 TUE LEX'!E171 -> 6232 | E171: 6232 | V171: CARIS HOTEL | AB171: 300 | AC171: 50 | AM171: ESPARZA ANACITA TWIN PEAK | AQ171: 20 | AR171: 15
A172: ELMA BUNGCARAS | B172: =+'10-21 TUE LEX'!E172 -> 10680 | E172: 10680 | V172: CHAROS CAFÉ AND RESTO (MOBO RIVER SIDE) | AB172: 0 | AC172: 50 | AE172: LAWRENCE SESE 013568000813 BDO | AM172: ESPINAS ROLANDO | AQ172: 20 | AR172: 15
A173: GADER RENATO | B173: =+'10-21 TUE LEX'!E173 -> 16920 | E173: 16920 | J173: SENIOR DISCOUNT | P173: =+J182/0.2 -> 5345 | V173: CHERISH RESORT | AB173: 900 | AC173: 50
A174: LOCMAYON BEGA10 (2) | B174: =+'10-21 TUE LEX'!E174 -> 0 | E174: 0 | V174: CRISPY KING / DJJM FOOD HUB/ IBANEZ/CROSSING | AB174: 800 | AC174: 50 | AM174: FAZENDA MILAGROS | AQ174: 20 | AR174: 15
A175: SOLON VANGIE | B175: =+'10-21 TUE LEX'!E175 -> 8568 | C175: 102 | E175: 8670 | J175: 50KG | M175: QTY | N175: AMOUNT | P175: DISCOUNT | R175: DELIVERY CHARGE | V175: CRISPY KING / DJJM FOOD HUB/ MOBO | AB175: 700 | AC175: 50 | AE175: KUA DUTAY 09307207044
A176: ORBISO PHOEBE | B176: =+'10-21 TUE LEX'!E176 -> 2112 | E176: 2112 | V176: CRYSPY KING / DJA CATERING SERVICES/PATING | AB176: 800 | AC176: 50
A177: ORBISO, EFILDA | B177: =+'10-21 TUE LEX'!E177 -> 0 | E177: 0 | J177: 4564 | N177: =+M177*J177 -> 0 | P177: 400 | V177: CRISPY KING / DJJM FOOD HUB/ OSMENA NOY BIGOL | AB177: 800 | AC177: 50
A178: PAWA VERNA MENDOZA | B178: =+'10-21 TUE LEX'!E178 -> 1250 | E178: 1250 | S178: + | V178: CRISPY KING / DJJM FOOD HUB/ PIER NOY BIGOL | AB178: 800 | AC178: 50 | AE178: GMS ACCOUNT
A179: ELMA BUNCARAS | B179: =+'10-21 TUE LEX'!E179 -> 16630 | E179: 16630 | P179: =+M177*P177 -> 0 | R179: =+M177*R177 -> 0 | V179: / DJJM CRISPY KING NOY BIGOL | AB179: 700 | AC179: 100
A180: SAMPAGA BIDA | B180: =+'10-21 TUE LEX'!E180 -> 3816 | E180: 3816 | J180: 11KG | M180: QTY | N180: AMOUNT | P180: DISCOUNT | R180: DELIVERY CHARGE | V180: DAMPA RESTO BAR /BESMONTE MARICAR | AB180: 300 | AC180: 50
A181: SESE, ROSALIA | B181: =+'10-21 TUE LEX'!E181 -> 34480 | E181: 34480 | V181: DR. CHESTER LEE | AB181: 900 | AC181: P/U
A182: STAR OIL RECEIVABLE | B182: =+'10-21 TUE LEX'!E182 -> 0 | E182: 0 | J182: 1069 | M182: 5 | N182: =+M182*J182 -> 5345 | P182: 50 | V182: EZ CAFÉ | AB182: 300 | AC182: 50
A183: TAYAM IRISH | B183: =+'10-21 TUE LEX'!E183 -> 12857 | E183: 12857 | V183: FRANCE LAUNDRY | AB183: 700 | AC183: 50
A184: YBANEZ, NESSAR | B184: =+'10-21 TUE LEX'!E184 -> 37716 | E184: 37716 | P184: =+M182*P182 -> 250 | R184: =+M182*R182 -> 0 | V184: GACT CONSTRUCTION AND SUPPLY /TAYAM IRISH | AB184: 200 | AC184: 50
A185: ZUNIGA MELCHOR | B185: =+'10-21 TUE LEX'!E185 -> 0 | E185: 0 | J185: 1.4KG | M185: QTY | N185: AMOUNT | P185: DISCOUNT | R185: DELIVERY CHARGE | V185: HIGHN'DRY LAUNDRY SERVCES | AB185: 0 | AC185: 50
A186: JENELIN ALVAREZ | B186: =+'10-21 TUE LEX'!E186 -> 1069 | E186: 1069 | V186: JUAN HOUR LAUNDRY - STAIRWAY & IBANEZ | AB186: 900 | AC186: 50 | AE186: DELA PENA ANALYN/OSTED | AI186: 70 | AJ186: 9 | AM186: rey john | AQ186: 20 | AR186: 15
A187: EJJ EVANGELYN M NUGAS | B187: =+'10-21 TUE LEX'!E187 -> 0 | E187: 0 | J187: 195 | M187: 1 | N187: =+M187*J187 -> 195 | V187: KARAON SA 18TH GRILL AND RESTO | AB187: 300 | AC187: 50 | AI187: 70 | AJ187: 15 | AM187: ROBERTO ROWIE & ROBI FOOD OPC | AQ187: 50 | AR187: 15
A188: VANGIE SOLON | B188: =+'10-21 TUE LEX'!E188 -> 0 | E188: 0 | F188: MAY JULY P N FOR PAYMENT | V188: KATES LAUNDRYSHOP/ GUILLERMO ALINSOOT MANACILLO 11 | AB188: 700 | AC188: 50 | AM188: ROBERTO YBANEZ | AQ188: 70 | AR188: 15
A189: TICAO ACCOUNT | B189: =+'10-21 TUE LEX'!E189 -> 0 | E189: 0 | F189: TICAO ACCOUNT | L189: =+O185*I185 -> 0 | N189: =+Q185*K185 -> 0 | O189: =+R187*M187 -> 0 | P189: =+M187*P187 -> 0 | R189: =+M187*R187 -> 0 | V189: MARKY BICOL RESTAURANT | AB189: 900 | AC189: 50 | AM189: SUCUANO LORETO | AQ189: 70 | AR189: 15
A190: BAMBOO PLACE WITH 3 REGULS | B190: =+'10-21 TUE LEX'!E190 -> 4181 | E190: 4181 | F190: ALL UNPAID | J190: CASH | M190: CHANGE | Q190: SRP FOR OCT | V190: MASBATE LAUNDRY CENTER MEDINA ST. MASBATE | AB190: 700 | AC190: 50 | AM190: TATA FRIED CHICKEN | AQ190: 70 | AR190: 15
A191: BARREDO EDGAR | B191: =+'10-21 TUE LEX'!E191 -> 0 | E191: 0 | V191: MNV FOODHUB (CHIKICHOW) | AB191: 500 | AC191: 50 | AE191: WINWIN FRIED CHICKEN | AI191: 70 | AM191: VENUS PASION | AQ191: 70 | AR191: 15
A192: DRAGAS 6/21 | B192: =+'10-21 TUE LEX'!E192 -> 0 | E192: 0 | F192: 3342TRANSFER TO OCGAS | J192: 1100 | M192: =J192-M201 -> -4190 | Q192: 50 KG | S192: 4564 | V192: MR. LAUNDRY - IBINGAY & CROSSING | AB192: 900 | AC192: 50 | AE192: GIGANTE ROQUE VARGAS | AI192: 70 | AJ192: 15 | AL192: TO FOLLOW | AM192: VILLAMOR MARILOU | AQ192: 70 | AR192: 15
A193: GRACE RANGEL 1.4 | B193: =+'10-21 TUE LEX'!E193 -> 8589 | E193: 8589 | V193: MSA - DECS | AB193: 0 | AE193: GONZAGA ANITA | AI193: 70 | AJ193: 15 | AM193: WOW INASAL | AQ193: 70 | AR193: 15
A194: GRACE RANGEL AS | B194: =+'10-21 TUE LEX'!E194 -> 17401 | E194: =B194+C194-D194 -> 17401 | F194: 1AS 1 DB PAID 5/29 | J194: ;. | L194: . | Q194: 11 KG | S194: 1069 | V194: NESSAR YBANEZ | AB194: 900 | AC194: 100 | AE194: JODAN EATERY | AI194: 70 | AJ194: 15 | AM194: YKAY FRIED CHICKEN | AQ194: 70 | AR194: 15
A195: LIA SESE | B195: =+'10-21 TUE LEX'!E195 -> 8942 | E195: 8942 | F195: KULANG STOVE 4544 | J195: DELIVERY | M195: =+R189+R184+R179 -> 0 | V195: NOEL BAKERY / ANALYN CONRADO | AB195: 300 | AC195: 50 | AE195: LAWODNON | AI195: 70 | AJ195: 15 | AM195: PALMA SHERYL | AQ195: 70 | AR195: 15
A196: OC GAS ALVAREZ | B196: =+'10-21 TUE LEX'!E196 -> 7588 | E196: 7588 | F196: =+B194+B193 -> 25990 | Q196: 1.4 KG | S196: 195 | V196: PAN DE MASBATE | AB196: 300 | AC196: 50 | AE196: LOCILLO AILLYN | AI196: 70 | AJ196: 15 | AM196: ROYO BORROW AS REGUL FOR POL TANK TIGBAO 09517207893 JEEP BABY GRACE REYMOND LEGAL
A197: OCHEA FAMILY PANDESAL | B197: =+'10-21 TUE LEX'!E197 -> 18401 | D197: 9,000 | E197: 9401 | F197: 1AS REPLACEMENT NO CHRGE FOR RETUN FILLED | J197: DISCOUNT | M197: TOTAL | V197: PINOY SIOPAO | AB197: 300 | AC197: 50 | AE197: MANALO CHITA | AI197: 70 | AJ197: 15
A198: PARK N GO | B198: =+'10-21 TUE LEX'!E198 -> 0 | E198: 0 | V198: REMS LAUNDRY / SANDRA MEDINA | AB198: 300 | AC198: 50 | AE198: MARISTELA EMERALD | AI198: 70 | AJ198: 15
A199: THEO PANDESAL | B199: =+'10-21 TUE LEX'!E199 -> 5063 | E199: 5063 | F199: REGUL NOT PAID | J199: =+P179+P184+P189 -> 250 | M199: =+N177+N182+N187-J199 -> 5290 | V199: REYJOHN BAKERY / RHEA DELA CRUZ OBOG | AB199: 700 | AC199: 50 | AE199: MIEKOYS PIZZA | AI199: 70 | AJ199: 15
A200: ZANDRA BEACH RESORT | B200: =+'10-21 TUE LEX'!E200 -> 12606 | E200: 12606 | Q200: OTHER AMOUNT HERE | V200: ROLLING BUBBLES - DANAO | AB200: 700 | AC200: 50 | AE200: MIGGYS BAKERY | AI200: 70 | AJ200: 15
... 175 more rows

Sheet 10-21 TUE LEX
B1: BEGIN | C1: UNPAID | D1: PAYMENT | E1: END | F1: CASH ADVANCE
A2: C.A APRIL ARENDAIN | B2: =+'10-20 MON'!E2 -> 2050 | E2: =B2+C2-D2 -> 2050 | P2: ENTER NUMER W/POSITIVE SIGN IF increase
A3: TIYO NOY | B3: =+'10-20 MON'!E3 -> 500 | E3: 500
A4: C.A COCOY | B4: =+'10-20 MON'!E4 -> 1615 | E4: 1615 | P4: ENTER NUMER W/NEGATIVE SIGN IF decrease
A5: DAVE BONA | B5: =+'10-20 MON'!E5 -> 4000 | E5: 4000
A6: C.A JOMARI CORTES | B6: =+'10-20 MON'!E6 -> 40928 | E6: 40928
A7: C.A JUNREL MALIPOT | B7: =+'10-20 MON'!E7 -> 10469 | E7: 10469
A8: C.A NATHANIEL | B8: =+'10-20 MON'!E8 -> 600 | E8: 600
A9: C.A MANANGAT CHRISTIAN | B9: =+'10-20 MON'!E9 -> 3548 | E9: 3548 | S9: =-S11*1 -> 1.300
A10: C.A SINADJAN, RAMIL | B10: =+'10-20 MON'!E10 -> 1100 | E10: 1100 | R10: 11kilos | S10: 11.000
A11: C.A VESTER | B11: =+'10-20 MON'!E11 -> 9782 | E11: 9782 | R11: ENTER NUMBER (-/+) | S11: -1.300
A12: IRENE | B12: =+'10-20 MON'!E12 -> 2000 | E12: 2000 | R12: TOTAL CHANGE | S12: =+S10*S9 -> 14.300
A13: ARTURO PARAGAS | B13: =+'10-20 MON'!E13 -> 7200 | D13: 100 | E13: 7100 | R13: VAT | S13: =+S12*0.12 -> 1.716
A14: DONNA LUIS | B14: =+'10-20 MON'!E14 -> 3300 | E14: 3300 | R14: VAT + TOTAL CHANGE | S14: =+S12+S13 -> 16.016
A15: RULEY GREPALDIO | B15: =+'10-20 MON'!E15 -> 1076 | E15: 1076 | R15: ENTER OLD PRICE | S15: 1,076.000
A16: JULIAN | B16: =+'10-20 MON'!E16 -> 5500 | D16: 100 | E16: 5400 | F16: JULLIAN DUMALAG | R16: NEW PRICE | S16: =+S15-S14 -> 1,059.984
A17: CA HAZEL 8/21 | B17: =+'10-20 MON'!E17 -> 1600 | E17: 1600
A18: SABIANO BERAL | B18: =+'10-20 MON'!E18 -> 5000 | E18: 5000 | S18: =-S20*1 -> 0.000
A19: LABOR ADVANCE | B19: =+'10-20 MON'!E19 -> 3000 | E19: 3000 | R19: 50KG | S19: 50.000
A20: NATHANIEL | B20: =+'10-20 MON'!E20 -> 3500 | E20: 3500 | F20: NAT CA 3500 | R20: ENTER NUMBER (-/+) | S20: =+P6 -> 0.000
A21: RJ DUMANGAS | B21: =+'10-20 MON'!E21 -> 1000 | E21: 1000 | R21: TOTAL CHANGE | S21: =+S19*S18 -> 0.000
A22: REGULAR | B22: =+'10-20 MON'!E22 -> 0 | E22: 0 | F22: REGULAR | R22: VAT | S22: =+S21*0.12 -> 0.000
A23: ABOYS | B23: =+'10-20 MON'!E23 -> 769 | E23: 769 | R23: VAT + TOTAL CHANGE | S23: =+S21+S22 -> 0.000
A24: ABSALON LOLITA | B24: =+'10-20 MON'!E24 -> 1000 | E24: 1000 | R24: ENTER OLD PRICE | S24: 4,719.000
A25: ALBAO, ELMER | B25: =+'10-20 MON'!E25 -> 834 | E25: 834 | R25: NEW PRICE | S25: =+S24-S23 -> 4,719.000
A26: ALOVERA ROSEMARIE | B26: =+'10-20 MON'!E26 -> 25 | E26: 25
A27: ANDAYA NELLY | B27: =+'10-20 MON'!E27 -> 1071 | E27: 1071 | S27: =-S29*1 -> 0.000
A28: AYESHA BAKERY | B28: =+'10-20 MON'!E28 -> 2105 | E28: 2105 | R28: 1.4KG | S28: 1.400
A29: BANTAYAN MINDA | B29: =+'10-20 MON'!E29 -> 168 | E29: 168 | R29: ENTER NUMBER (-/+) | S29: =+P6 -> 0.000
A30: BEGGS BAKERY | B30: =+'10-20 MON'!E30 -> 7936 | E30: 7936 | R30: TOTAL CHANGE | S30: =+S28*S27 -> 0.000
A31: BINOLIRAO, JOY | B31: =+'10-20 MON'!E31 -> 5432 | E31: 5432 | R31: VAT | S31: =+S30*0.12 -> 0.000
A32: CAFÉ KRISTINA | B32: =+'10-20 MON'!E32 -> 4226 | E32: 4226 | R32: VAT + TOTAL CHANGE | S32: =+S30+S31 -> 0.000
A33: CANTUBA PORTIA | B33: =+'10-20 MON'!E33 -> 1076 | E33: 1076 | R33: ENTER OLD PRICE | S33: 199.000
A34: CAPELLAN EMILY | B34: =+'10-20 MON'!E34 -> 588 | E34: 588 | R34: NEW PRICE | S34: =+S33-S32 -> 199.000
A35: CAPELLAN SONY | B35: =+'10-20 MON'!E35 -> 500 | E35: 500
A36: CHEPIE/SAMSON JINKY | B36: =+'10-20 MON'!E36 -> 41985 | C36: =+W258 -> 18,660 | D36: 41,985 | E36: 18660
A37: CITY VICE OLD | B37: =+'10-20 MON'!E37 -> 6121 | E37: 6121
A38: CORTES BABYJANE LESS 200 | B38: =+'10-20 MON'!E38 -> 2128 | E38: 2128
A39: COSTALES, ERNESTO | B39: =+'10-20 MON'!E39 -> 25 | E39: 25
A40: DALANON, LUZ | B40: =+'10-20 MON'!E40 -> 1160 | E40: 1160
A41: DESAMERO JESS | B41: =+'10-20 MON'!E41 -> 1033 | E41: 1033
A42: DESPE, ARTUR | B42: =+'10-20 MON'!E42 -> 997 | E42: 997
A43: DIOCADO JOHNWIL ONLOAN | B43: =+'10-20 MON'!E43 -> 900 | E43: 900
A44: EMR/PANES FREDDIE / | B44: =+'10-20 MON'!E44 -> 2050 | E44: 2050
A45: EPONG CARENDERIA | B45: =+'10-20 MON'!E45 -> 1131 | E45: 1131
A46: ESPARZA ANACITA | B46: =+'10-20 MON'!E46 -> 1101 | C46: =+W259 -> 1,064 | E46: 2165
A47: ESPINAS ROLANDO | B47: =+'10-20 MON'!E47 -> 1056 | E47: 1056
A48: EVANGELISTA, JOHN | B48: =+'10-20 MON'!E48 -> 1207 | E48: 1207
A49: FLORES HELEN | B49: =+'10-20 MON'!E49 -> 1647 | E49: 1647
A50: GARBO RADFORD | B50: =+'10-20 MON'!E50 -> 1624 | E50: 1624
A51: GARBO RAYMUND | B51: =+'10-20 MON'!E51 -> 1103 | E51: 1103
A52: GONZAGA, ANITA | B52: =+'10-20 MON'!E52 -> 1191 | E52: 1191 | F52: APRIL
A53: HARLEY CLEOFE | B53: =+'10-20 MON'!E53 -> 0 | E53: 0
A54: JANZMILE | B54: =+'10-20 MON'!E54 -> 2331 | E54: 2331
A55: JODAN EATERY | B55: =+'10-20 MON'!E55 -> 50 | E55: 50
A56: LALAGUNA FAITH | B56: =+'10-20 MON'!E56 -> 0 | E56: 0
A57: LAURENO SUSIE | B57: =+'10-20 MON'!E57 -> 2274 | E57: 2274
A58: LAWODNON | B58: =+'10-20 MON'!E58 -> 4276 | E58: 4276
A59: LIBERTY BAKERY | B59: =+'10-20 MON'!E59 -> 0 | E59: 0
A60: LOLO JOFAX (2160) UNPAID | B60: =+'10-20 MON'!E60 -> 500 | E60: 500
A61: MANALO, CHITA | B61: =+'10-20 MON'!E61 -> 2120 | E61: 2120
A62: MANGUBAT-CAWAYAN | B62: =+'10-20 MON'!E62 -> 1121 | E62: 1121
A63: MARABE, GUENTER | B63: =+'10-20 MON'!E63 -> 1014 | E63: 1014
A64: MARISTELA, EMERALD | B64: =+'10-20 MON'!E64 -> 7907 | E64: 7907
A65: MIEKOYS PIZZA | B65: =+'10-20 MON'!E65 -> 0 | E65: 0
A66: MIGGYS BAKERY | B66: =+'10-20 MON'!E66 -> 765 | E66: =B66+C66-D66 -> 765
A67: MORAN ANALY | B67: =+'10-20 MON'!E67 -> 0 | E67: 0
A68: MORAN JACKILYN | B68: =+'10-20 MON'!E68 -> 1068 | E68: 1068
A69: NARIDO RAFAEL REG | B69: =+'10-20 MON'!E69 -> 475 | E69: 475
A70: NARIDO, REYNALDO | B70: =+'10-20 MON'!E70 -> 475 | E70: 475
A71: NUNEZ, PERPETUA | B71: =+'10-20 MON'!E71 -> 3831 | E71: 3831
A72: OLIVA, CELSO | B72: =+'10-20 MON'!E72 -> 168 | E72: 168
A73: OLIVA, DOREEN | B73: =+'10-20 MON'!E73 -> 474 | E73: 474
A74: ORBISO LIZA/NUNU | B74: =+'10-20 MON'!E74 -> 2405 | E74: 2405
A75: ORBISO, KEILLI | B75: =+'10-20 MON'!E75 -> 474 | E75: 474
A76: PASION VENUS | B76: =+'10-20 MON'!E76 -> 1014 | E76: 1014
A77: PERALTA LYNDON | B77: =+'10-20 MON'!E77 -> 40 | E77: 40
A78: PHO | B78: =+'10-20 MON'!E78 -> 0 | E78: 0
A79: RESUENA | B79: =+'10-20 MON'!E79 -> 4226 | E79: 4226
A80: RUELAN RONALD | B80: =+'10-20 MON'!E80 -> 1083 | E80: 1083
A81: SALADAS SHERLY | B81: =+'10-20 MON'!E81 -> 674 | E81: 674 | F81: =2028+8360 -> 10388
A82: BANTAYAN MINDA | B82: =+'10-20 MON'!E82 -> 0 | E82: 0
A83: SANDRA SAN JUAN | B83: =+'10-20 MON'!E83 -> 1300 | E83: 1300
A84: TATA/NUEVO MARILOU | B84: =+'10-20 MON'!E84 -> 10080 | C84: =+W230 -> 10,140 | E84: 20220
A85: TENORIA, MARRAH | B85: =+'10-20 MON'!E85 -> 130 | E85: 130
A86: VILLAMOR, MARILOU (MOM) | B86: =+'10-20 MON'!E86 -> 0 | E86: 0
A87: VILLAMOR, MARILOU (SON) | B87: =+'10-20 MON'!E87 -> 2308 | E87: 2308
A88: VILLOCILLO JESUS | B88: =+'10-20 MON'!E88 -> 0 | E88: 0
A89: YBANEZ ROBERTO (1115) UNPAID | B89: =+'10-20 MON'!E89 -> 2096 | E89: 2096
A90: YKAY/NUEVO ELENA | B90: =+'10-20 MON'!E90 -> 50750 | E90: 50750
A91: TWIN PEAK | B91: =+'10-20 MON'!E91 -> 1084 | E91: 1084
A92: COLLANTES | B92: =+'10-20 MON'!E92 -> 0 | E92: 0
A93: MARYJANE CORTES | B93: =+'10-20 MON'!E93 -> 45 | E93: 45
A94: HAPPY ROASTER | B94: =+'10-20 MON'!E94 -> 6456 | E94: 6456
A95: JOHNRICK PACHECO | B95: =+'10-20 MON'!E95 -> 800 | E95: 800
A96: CHARO'S CAFÉ | B96: =+'10-20 MON'!E96 -> 25 | E96: 25
A97: LOCILLO AILYN | B97: =+'10-20 MON'!E97 -> 0 | E97: 0
A98: OVERTYM | B98: =+'10-20 MON'!E98 -> 0 | E98: 0
A99: HARLEY CLEOFE | B99: =+'10-20 MON'!E99 -> 0 | E99: 0
A100: PAPILLERA M 3000 from lex | B100: =+'10-20 MON'!E100 -> 3114 | E100: 3114
A101: OVERTYM | B101: =+'10-20 MON'!E101 -> 0 | C101: 999 | E101: 999
A102: CITY TREASURY | B102: =+'10-20 MON'!E102 -> 4550 | E102: 4550
B103: =+'10-20 MON'!E103 -> 0 | E103: 0
B104: =+'10-20 MON'!E104 -> 0 | E104: 0
A105: BERNARD CARPIO | B105: =+'10-20 MON'!E105 -> 1132 | E105: 1132
A106: CHONA MESA | B106: =+'10-20 MON'!E106 -> 2298 | E106: 2298
A107: PASTORA VIE | B107: =+'10-20 MON'!E107 -> 600 | E107: 600
A108: EVELYN CONRADO | B108: =+'10-20 MON'!E108 -> 400 | E108: 400
B109: =+'10-20 MON'!E109 -> 0 | E109: 0
A110: NENETH REYES | B110: =+'10-20 MON'!E110 -> 693 | E110: 693
A111: JUREXEN VERDIDA | B111: =+'10-20 MON'!E111 -> 3001 | E111: 3001
A112: VILLARANTE RENZEL | B112: =+'10-20 MON'!E112 -> 646 | E112: 646
A113: ALMARIO MOBO BGACAY | B113: =+'10-20 MON'!E113 -> 143 | E113: 143
A114: ALFARO | B114: =+'10-20 MON'!E114 -> 1147 | E114: 1147
A115: JOSE CUELLO 4/24 TRADE IN | B115: =+'10-20 MON'!E115 -> 1071 | E115: 1071
B116: =+'10-20 MON'!E116 -> 0 | E116: 0
A117: MANLAPAZ | B117: =+'10-20 MON'!E117 -> 1084 | E117: 1084
A118: CITY VICE NEW GAZUL | B118: =+'10-20 MON'!E118 -> 1103 | E118: 1103
A119: EVA VERANO | B119: =+'10-20 MON'!E119 -> 576 | E119: 576
B120: =+'10-20 MON'!E120 -> 0 | E120: 0
A121: HAPPY ROASTER | B121: =+'10-20 MON'!E121 -> 2138 | E121: 2138
B122: =+'10-20 MON'!E122 -> 0 | E122: 0
A123: VALLADORES | B123: =+'10-20 MON'!E123 -> 0 | C123: 1,084 | D123: 1,084 | E123: 0
A124: CITY VICE | B124: =+'10-20 MON'!E124 -> 1076 | E124: 1076
A125: JEREMY SAMSON | B125: =+'10-20 MON'!E125 -> 18800 | E125: 18800
A126: VILLANUEVA GLENDA | B126: =+'10-20 MON'!E126 -> 1749 | E126: 1749
A127: GALLETO DOREEN | B127: =+'10-20 MON'!E127 -> 1084 | E127: 1084
A128: CITIBUILDER | B128: =+'10-20 MON'!E128 -> 1114 | E128: 1114
A129: 50kg ACCOUNT | B129: =+'10-20 MON'!E129 -> 0 | E129: 0 | F129: 50kg ACCOUNT
A130: ABAN, JULIUS | B130: =+'10-20 MON'!E130 -> 8660 | E130: =B130+C130-D130 -> 8660
A131: AVEGAIL LAUNDRY | B131: =+'10-20 MON'!E131 -> 6538 | E131: 6538
A132: BACKYARD EDIBLE GARDEN | B132: =+'10-20 MON'!E132 -> 844 | E132: 844
A133: BESMONTE MARICAR | B133: =+'10-20 MON'!E133 -> 0 | E133: 0 | R133: ATTENDANCE AND PAYMENT | X133: =+Z155+Z161 -> 5450
A134: TEABOX | B134: =+'10-20 MON'!E134 -> 0 | E134: 0
A135: CHAROS CAFÉ AND RESTO | B135: =+'10-20 MON'!E135 -> 0 | E135: 0 | R135: NAMES | S135: AM | U135: PM | W135: AM HOURS | X135: PM HOURS | Y135: TOTAL HOURS | Z135: PAID | AA135: REMARKS
A136: CHERISH RESORT | B136: =+'10-20 MON'!E136 -> 0 | E136: 0 | P136: DAYOFF | S136: IN | T136: OUT | U136: IN | V136: OUT
A137: CLORES TRESURE ISLAND | B137: =+'10-20 MON'!E137 -> 7 | E137: 7 | P137: SATURDAY | R137: JOMARI CORTES | S137: 08:00:00 | T137: 12:00:00 | U137: 01:00:00 | V137: 08:00:00 | W137: =+(T137-S137)*24 -> 4.0 | X137: =+(V137-U137)*24 -> 7.0 | Z137: 550 | AA137: OK
A138: CONRADO / NOEL BAKERY | B138: =+'10-20 MON'!E138 -> 3601 | E138: 3601 | P138: SUNDAY | R138: JUNREL MALIPOT | S138: 07:22:00 | T138: 12:00:00 | U138: 01:00:00 | V138: 06:00:00 | W138: =+(T138-S138)*24 -> 4.6 | X138: =+(V138-U138)*24 -> 5.0 | Z138: 550 | AA138: OK
A139: CRISPY KING CROSSING | B139: =+'10-20 MON'!E139 -> 60 | E139: 60 | K139: CP# | O139: DRIVER | P139: SUNDAY | R139: APRIL ARENDAIN | S139: 07:10:00 | T139: 12:00:00 | U139: 01:00:00 | V139: 08:00:00 | W139: =+(T139-S139)*24 -> 4.8 | X139: =+(V146-U146)*24 -> 0.0 | Z139: 550 | AA139: OK
A140: CRISPY KING IBANEZ | B140: =+'10-20 MON'!E140 -> 0 | E140: 0 | K140: CP# | O140: DRIVER | R140: DIONESITO BLAZO 9301238381 | W140: =+(T141-S140)*24 -> 12.0 | X140: =+(V141-U141)*24 -> 0.0
A141: CRISPY KING MARKET | B141: =+'10-20 MON'!E141 -> 0 | E141: 0 | P141: SUNDAY | R141: RULEY GREPALDEO | S141: 08:00:00 | T141: 12:00:00 | W141: =+(T142-S141)*24 -> -8.0 | X141: =+(V142-U142)*24 -> 0.0 | Z141: 200 | AA141: OK
A142: CRISPY KING MOBO | B142: =+'10-20 MON'!E142 -> 0 | E142: 0 | W142: 0.0 | X142: =+(V142-U142)*24 -> 0.0
A143: CRISPY KING CAWAYAN | B143: =+'10-20 MON'!E143 -> 0 | E143: 0 | W143: 0.0 | X143: =+(V143-U143)*24 -> 0.0
A144: EZ CAFÉ W/CYLINDER | B144: =+'10-20 MON'!E144 -> 0 | E144: 0 | W144: 0.0 | X144: =+(V144-U144)*24 -> 0.0
A145: FRANCE LAUNDRY | B145: =+'10-20 MON'!E145 -> 946 | E145: 946 | W145: =+(T145-S145)*24 -> 0.0 | X145: =+(V145-U145)*24 -> 0.0
A146: JUAN HOUR LAUNDRY | B146: =+'10-20 MON'!E146 -> 0 | E146: 0 | R146: SHANNAH | W146: =+(T146-S146)*24 -> 0.0 | X146: =+(V146-U146)*24 -> 0.0
A147: KATES LAUNDRY SHOP | B147: =+'10-20 MON'!E147 -> 0 | E147: 0 | R147: NATHANIEL ALERTA | S147: 07:00:00 | T147: 12:00:00 | U147: 01:00:00 | V147: 06:00:00 | W147: 5.0 | X147: 5.0 | Z147: 500 | AA147: OK
A148: MARKY RESTAURANT | B148: =+'10-20 MON'!E148 -> 3914 | E148: 3914 | P148: SATURDAY | R148: ARNOLD PEPITO | S148: 07:00:00 | T148: 12:00:00 | U148: 01:00:00 | V148: 06:00:00 | W148: 5.0 | X148: 5.0 | Z148: 500 | AA148: OK
A149: MASBATE LAUNDRY SHOP | B149: =+'10-20 MON'!E149 -> 0 | E149: 0 | K149: CP# | O149: DRIVER | P149: WEDNESDAY | R149: EVANGELISTA ROMULO | S149: 07:00:00 | T149: 12:00:00 | U149: 01:00:00 | V149: 06:00:00 | W149: 5.0 | X149: 5.0 | Z149: 500
A150: DAMPA | B150: =+'10-20 MON'!E150 -> 0 | E150: 0 | R150: HAZEL | W150: 0.0 | X150: 0.0
A151: PINOY SIOPAO | B151: =+'10-20 MON'!E151 -> 0 | E151: 0 | P151: SUNDAY | R151: LIZET DANAO | S151: 07:20:00 | T151: 12:00:00 | U151: 01:00:00 | V151: 06:00:00 | W151: 4.7 | X151: 5.0 | Z151: 550 | AA151: OK
A152: REMS LAUNDRY | B152: =+'10-20 MON'!E152 -> 6144 | E152: 6144 | K152: CP# | O152: DRIVER | P152: FRIDAY | R152: ARTURO PARAGAS | S152: 07:20:00 | T152: 12:00:00 | U152: 01:00:00 | V152: 06:00:00 | W152: 4.7 | X152: 5.0 | Z152: 550 | AA152: OK
A153: REYJOHN BAKERY | B153: =+'10-20 MON'!E153 -> 0 | E153: 0 | P153: SATURDAY | R153: LEO MARCOS | S153: 07:00:00 | T153: 12:00:00 | U153: 01:00:00 | V153: 06:00:00 | W153: 5.0 | X153: 5.0 | Z153: 500
A154: ROBERTO AND ROWE | B154: =+'10-20 MON'!E154 -> 14794 | C154: =+W240 -> 1,019 | E154: 15813 | K154: CP# | O154: DRIVER | P154: THURSDAY | R154: JULIAN DUMALAG | S154: 07:00:00 | T154: 12:00:00 | U154: 01:00:00 | V154: 06:00:00 | W154: 5.0 | X154: 5.0 | Z154: 500
A155: ROLLING BUBBLES | B155: =+'10-20 MON'!E155 -> 0 | E155: 0 | M155: BNNNNNNNNNNNNNNNNNNNNNNNNNNNNNNNNNNNNNNNNNNNNNNNNNNNNNNN | R155: SALARY TOTAL | Z155: =SUM(Z137:Z154) -> 5450 | AG155: SAKTO
A156: ROSEMARY EVENTS | B156: =+'10-20 MON'!E156 -> 0 | E156: 0
A157: ROWEES AROROY | B157: =+'10-20 MON'!E157 -> 0 | E157: 0 | AJ157: 7 | AL157: 87
A158: PALMA SHERYL/avegail laundry | B158: =+'10-20 MON'!E158 -> 4614 | E158: 4614
A159: WENABETH JOHN BAKERY MALINTA | B159: =+'10-20 MON'!E159 -> 4369 | E159: 4369
A160: CRISPY KING PIER | B160: =+'10-20 MON'!E160 -> 3814 | E160: 3814
A161: CRISPY KING OSMENA | B161: =+'10-20 MON'!E161 -> 0 | E161: 0 | R161: EXTRA EXPENSES TOTAL | Z161: =+SUM(Z156:Z160) -> 0
A162: TUMBAGA SINALONGAN | B162: =+'10-20 MON'!E162 -> 27624 | D162: 10,728 | E162: 16896 | F162: TUESDAY
A163: OUTLET'S | B163: =+'10-20 MON'!E163 -> 0 | E163: 0 | F163: OUTLET'S
A164: ABANO, MICHAEL | B164: =+'10-20 MON'!E164 -> 11380 | E164: 11380 | F164: APRIL | V164: COMMERCIAL ACCOUNT | AE164: REMINDERS
A165: ALVAREZ JENILLYN | B165: =+'10-20 MON'!E165 -> 18750 | E165: 18750
A166: ALVAREZ, RICO 1.4 | B166: =+'10-20 MON'!E166 -> 1330 | E166: 1330 | V166: CUSTOMER NAME | AB166: DICS | AC166: DELIVER | AE166: 9499357775 AMERA 50KG Leah Orubla Villaraiz | AM166: ALOVERA ROSEMARIE | AQ166: 20 | AR166: 15
A167: ALVAREZ, RICO A/S | B167: =+'10-20 MON'!E167 -> 6800 | E167: 6800 | V167: 8 ALL YOU CAN/RIMONTE JOHN AUBREN | AB167: 400 | AC167: 50 | AM167: BANTAYAN MINDA | AQ167: 20 | AR167: 15
A168: BANTAYAN, LENIE | B168: =+'10-20 MON'!E168 -> 12802 | E168: 12802 | V168: ABAN LAUNDRY / ABAN JULIUS | AB168: 300 | AC168: 50 | AM168: CORTES BABY JEAN | AQ168: 20 | AR168: 15
A169: BULALAQUE, NATHANIEL | B169: =+'10-20 MON'!E169 -> 5095 | D169: 5,095 | E169: 0 | V169: AVEGAIL S LAUNDRY | AB169: 300 | AC169: 50 | AE169: LAWRENCE SESE 0902014314 LAND BANK
A170: CDJ/CHISA BARRUGA | B170: =+'10-20 MON'!E170 -> 5315 | E170: 5315 | V170: BACKYARD EDIBLE GARDEN | AB170: 300 | AC170: 50
A171: COCOY SOLANE ACCOUNT | B171: =+'10-20 MON'!E171 -> 6232 | E171: 6232 | V171: CARIS HOTEL | AB171: 300 | AC171: 50 | AM171: ESPARZA ANACITA TWIN PEAK | AQ171: 20 | AR171: 15
A172: ELMA BUNGCARAS | B172: =+'10-20 MON'!E172 -> 10680 | E172: 10680 | V172: CHAROS CAFÉ AND RESTO (MOBO RIVER SIDE) | AB172: 0 | AC172: 50 | AE172: LAWRENCE SESE 013568000813 BDO | AM172: ESPINAS ROLANDO | AQ172: 20 | AR172: 15
A173: GADER RENATO | B173: =+'10-20 MON'!E173 -> 16920 | E173: 16920 | J173: SENIOR DISCOUNT | P173: =+J182/0.2 -> 5345 | V173: CHERISH RESORT | AB173: 900 | AC173: 50
A174: LOCMAYON BEGA10 (2) | B174: =+'10-20 MON'!E174 -> 0 | E174: 0 | V174: CRISPY KING / DJJM FOOD HUB/ IBANEZ/CROSSING | AB174: 800 | AC174: 50 | AM174: FAZENDA MILAGROS | AQ174: 20 | AR174: 15
A175: SOLON VANGIE | B175: =+'10-20 MON'!E175 -> 8568 | E175: 8568 | J175: 50KG | M175: QTY | N175: AMOUNT | P175: DISCOUNT | R175: DELIVERY CHARGE | V175: CRISPY KING / DJJM FOOD HUB/ MOBO | AB175: 700 | AC175: 50 | AE175: KUA DUTAY 09307207044
A176: ORBISO PHOEBE | B176: =+'10-20 MON'!E176 -> 2112 | E176: 2112 | V176: CRYSPY KING / DJA CATERING SERVICES/PATING | AB176: 800 | AC176: 50
A177: ORBISO, EFILDA | B177: =+'10-20 MON'!E177 -> 0 | E177: 0 | J177: 4564 | N177: =+M177*J177 -> 0 | P177: 400 | V177: CRISPY KING / DJJM FOOD HUB/ OSMENA NOY BIGOL | AB177: 800 | AC177: 50
A178: PAWA VERNA MENDOZA | B178: =+'10-20 MON'!E178 -> 1250 | E178: 1250 | S178: + | V178: CRISPY KING / DJJM FOOD HUB/ PIER NOY BIGOL | AB178: 800 | AC178: 50 | AE178: GMS ACCOUNT
A179: ELMA BUNCARAS | B179: =+'10-20 MON'!E179 -> 16630 | E179: 16630 | P179: =+M177*P177 -> 0 | R179: =+M177*R177 -> 0 | V179: / DJJM CRISPY KING NOY BIGOL | AB179: 700 | AC179: 100
A180: SAMPAGA BIDA | B180: =+'10-20 MON'!E180 -> 3816 | E180: 3816 | J180: 11KG | M180: QTY | N180: AMOUNT | P180: DISCOUNT | R180: DELIVERY CHARGE | V180: DAMPA RESTO BAR /BESMONTE MARICAR | AB180: 300 | AC180: 50
A181: SESE, ROSALIA | B181: =+'10-20 MON'!E181 -> 34480 | E181: 34480 | V181: DR. CHESTER LEE | AB181: 900 | AC181: P/U
A182: STAR OIL RECEIVABLE | B182: =+'10-20 MON'!E182 -> 0 | E182: 0 | J182: 1069 | M182: 2 | N182: =+M182*J182 -> 2138 | P182: 70 | R182: 25 | V182: EZ CAFÉ | AB182: 300 | AC182: 50
A183: TAYAM IRISH | B183: =+'10-20 MON'!E183 -> 12857 | E183: 12857 | V183: FRANCE LAUNDRY | AB183: 700 | AC183: 50
A184: YBANEZ, NESSAR | B184: =+'10-20 MON'!E184 -> 37716 | E184: 37716 | P184: =+M182*P182 -> 140 | R184: =+M182*R182 -> 50 | V184: GACT CONSTRUCTION AND SUPPLY /TAYAM IRISH | AB184: 200 | AC184: 50
A185: ZUNIGA MELCHOR | B185: =+'10-20 MON'!E185 -> 0 | E185: 0 | J185: 1.4KG | M185: QTY | N185: AMOUNT | P185: DISCOUNT | R185: DELIVERY CHARGE | V185: HIGHN'DRY LAUNDRY SERVCES | AB185: 0 | AC185: 50
A186: JENELIN ALVAREZ | B186: =+'10-20 MON'!E186 -> 1069 | E186: 1069 | V186: JUAN HOUR LAUNDRY - STAIRWAY & IBANEZ | AB186: 900 | AC186: 50 | AE186: DELA PENA ANALYN/OSTED | AI186: 70 | AJ186: 9 | AM186: rey john | AQ186: 20 | AR186: 15
A187: EJJ EVANGELYN M NUGAS | B187: =+'10-20 MON'!E187 -> 0 | E187: 0 | J187: 195 | N187: =+M187*J187 -> 0 | V187: KARAON SA 18TH GRILL AND RESTO | AB187: 300 | AC187: 50 | AI187: 70 | AJ187: 15 | AM187: ROBERTO ROWIE & ROBI FOOD OPC | AQ187: 50 | AR187: 15
A188: VANGIE SOLON | B188: =+'10-20 MON'!E188 -> 0 | E188: 0 | F188: MAY JULY P N FOR PAYMENT | V188: KATES LAUNDRYSHOP/ GUILLERMO ALINSOOT MANACILLO 11 | AB188: 700 | AC188: 50 | AM188: ROBERTO YBANEZ | AQ188: 70 | AR188: 15
A189: TICAO ACCOUNT | B189: =+'10-20 MON'!E189 -> 0 | E189: 0 | F189: TICAO ACCOUNT | L189: =+O185*I185 -> 0 | N189: =+Q185*K185 -> 0 | O189: =+R187*M187 -> 0 | P189: =+M187*P187 -> 0 | R189: =+M187*R187 -> 0 | V189: MARKY BICOL RESTAURANT | AB189: 900 | AC189: 50 | AM189: SUCUANO LORETO | AQ189: 70 | AR189: 15
A190: BAMBOO PLACE WITH 3 REGULS | B190: =+'10-20 MON'!E190 -> 4181 | E190: 4181 | F190: ALL UNPAID | J190: CASH | M190: CHANGE | Q190: SRP FOR OCT | V190: MASBATE LAUNDRY CENTER MEDINA ST. MASBATE | AB190: 700 | AC190: 50 | AM190: TATA FRIED CHICKEN | AQ190: 70 | AR190: 15
A191: BARREDO EDGAR | B191: =+'10-20 MON'!E191 -> 0 | E191: 0 | V191: MNV FOODHUB (CHIKICHOW) | AB191: 500 | AC191: 50 | AE191: WINWIN FRIED CHICKEN | AI191: 70 | AM191: VENUS PASION | AQ191: 70 | AR191: 15
A192: DRAGAS 6/21 | B192: =+'10-20 MON'!E192 -> 0 | E192: 0 | F192: 3342TRANSFER TO OCGAS | J192: 13000 | M192: =J192-M201 -> 10952 | Q192: 50 KG | S192: 4564 | V192: MR. LAUNDRY - IBINGAY & CROSSING | AB192: 900 | AC192: 50 | AE192: GIGANTE ROQUE VARGAS | AI192: 70 | AJ192: 15 | AL192: TO FOLLOW | AM192: VILLAMOR MARILOU | AQ192: 70 | AR192: 15
A193: GRACE RANGEL 1.4 | B193: =+'10-20 MON'!E193 -> 8589 | E193: 8589 | V193: MSA - DECS | AB193: 0 | AE193: GONZAGA ANITA | AI193: 70 | AJ193: 15 | AM193: WOW INASAL | AQ193: 70 | AR193: 15
A194: GRACE RANGEL AS | B194: =+'10-20 MON'!E194 -> 17401 | E194: =B194+C194-D194 -> 17401 | F194: 1AS 1 DB PAID 5/29 | J194: ;. | L194: . | Q194: 11 KG | S194: 1069 | V194: NESSAR YBANEZ | AB194: 900 | AC194: 100 | AE194: JODAN EATERY | AI194: 70 | AJ194: 15 | AM194: YKAY FRIED CHICKEN | AQ194: 70 | AR194: 15
A195: LIA SESE | B195: =+'10-20 MON'!E195 -> 8942 | E195: 8942 | F195: KULANG STOVE 4544 | J195: DELIVERY | M195: =+R189+R184+R179 -> 50 | V195: NOEL BAKERY / ANALYN CONRADO | AB195: 300 | AC195: 50 | AE195: LAWODNON | AI195: 70 | AJ195: 15 | AM195: PALMA SHERYL | AQ195: 70 | AR195: 15
A196: OC GAS ALVAREZ | B196: =+'10-20 MON'!E196 -> 7588 | E196: 7588 | F196: 1CYLINDER AS | Q196: 1.4 KG | S196: 195 | V196: PAN DE MASBATE | AB196: 300 | AC196: 50 | AE196: LOCILLO AILLYN | AI196: 70 | AJ196: 15 | AM196: ROYO BORROW AS REGUL FOR POL TANK TIGBAO 09517207893 JEEP BABY GRACE REYMOND LEGAL
A197: OCHEA FAMILY PANDESAL | B197: =+'10-20 MON'!E197 -> 9849 | C197: 8,552 | E197: 18401 | F197: 1AS REPLACEMENT NO CHRGE FOR RETUN FILLED | J197: DISCOUNT | M197: TOTAL | V197: PINOY SIOPAO | AB197: 300 | AC197: 50 | AE197: MANALO CHITA | AI197: 70 | AJ197: 15
A198: PARK N GO | B198: =+'10-20 MON'!E198 -> 0 | E198: 0 | V198: REMS LAUNDRY / SANDRA MEDINA | AB198: 300 | AC198: 50 | AE198: MARISTELA EMERALD | AI198: 70 | AJ198: 15
A199: THEO PANDESAL | B199: =+'10-20 MON'!E199 -> 5063 | E199: 5063 | F199: REGUL NOT PAID | J199: =+P179+P184+P189 -> 140 | M199: =+N177+N182+N187-J199 -> 1998 | V199: REYJOHN BAKERY / RHEA DELA CRUZ OBOG | AB199: 700 | AC199: 50 | AE199: MIEKOYS PIZZA | AI199: 70 | AJ199: 15
A200: ZANDRA BEACH RESORT | B200: =+'10-20 MON'!E200 -> 12606 | E200: 12606 | Q200: OTHER AMOUNT HERE | V200: ROLLING BUBBLES - DANAO | AB200: 700 | AC200: 50 | AE200: MIGGYS BAKERY | AI200: 70 | AJ200: 15
... 175 more rows

Sheet 10-20 MON
B1: BEGIN | C1: UNPAID | D1: PAYMENT | E1: END | F1: CASH ADVANCE
A2: C.A APRIL ARENDAIN | B2: =+'10-19 SUN'!E2 -> 2050 | E2: =B2+C2-D2 -> 2050 | P2: ENTER NUMER W/POSITIVE SIGN IF increase
A3: TIYO NOY | B3: =+'10-19 SUN'!E3 -> 500 | E3: 500
A4: C.A COCOY | B4: =+'10-19 SUN'!E4 -> 1615 | E4: 1615 | P4: ENTER NUMER W/NEGATIVE SIGN IF decrease
A5: DAVE BONA | B5: =+'10-19 SUN'!E5 -> 4000 | E5: 4000
A6: C.A JOMARI CORTES | B6: =+'10-19 SUN'!E6 -> 40928 | E6: 40928
A7: C.A JUNREL MALIPOT | B7: =+'10-19 SUN'!E7 -> 10469 | E7: 10469
A8: C.A NATHANIEL | B8: =+'10-19 SUN'!E8 -> 600 | E8: 600
A9: C.A MANANGAT CHRISTIAN | B9: =+'10-19 SUN'!E9 -> 3548 | E9: 3548 | S9: =-S11*1 -> 1.300
A10: C.A SINADJAN, RAMIL | B10: =+'10-19 SUN'!E10 -> 1100 | E10: 1100 | R10: 11kilos | S10: 11.000
A11: C.A VESTER | B11: =+'10-19 SUN'!E11 -> 9782 | E11: 9782 | R11: ENTER NUMBER (-/+) | S11: -1.300
A12: IRENE | B12: =+'10-19 SUN'!E12 -> 2000 | E12: 2000 | R12: TOTAL CHANGE | S12: =+S10*S9 -> 14.300
A13: ARTURO PARAGAS | B13: =+'10-19 SUN'!E13 -> 7300 | D13: 100 | E13: 7200 | R13: VAT | S13: =+S12*0.12 -> 1.716
A14: DONNA LUIS | B14: =+'10-19 SUN'!E14 -> 3300 | E14: 3300 | R14: VAT + TOTAL CHANGE | S14: =+S12+S13 -> 16.016
A15: RULEY GREPALDIO | B15: =+'10-19 SUN'!E15 -> 1076 | E15: 1076 | R15: ENTER OLD PRICE | S15: 1,076.000
A16: JULIAN | B16: =+'10-19 SUN'!E16 -> 5600 | D16: 100 | E16: 5500 | F16: JULLIAN DUMALAG | R16: NEW PRICE | S16: =+S15-S14 -> 1,059.984
A17: CA HAZEL 8/21 | B17: =+'10-19 SUN'!E17 -> 1600 | E17: 1600
A18: SABIANO BERAL | B18: =+'10-19 SUN'!E18 -> 5000 | E18: 5000 | S18: =-S20*1 -> 0.000
A19: LABOR ADVANCE | B19: =+'10-19 SUN'!E19 -> 3000 | E19: 3000 | R19: 50KG | S19: 50.000
A20: NATHANIEL | B20: =+'10-19 SUN'!E20 -> 3500 | E20: 3500 | F20: NAT CA 3500 | R20: ENTER NUMBER (-/+) | S20: =+P6 -> 0.000
A21: RJ DUMANGAS | B21: =+'10-19 SUN'!E21 -> 1000 | E21: 1000 | R21: TOTAL CHANGE | S21: =+S19*S18 -> 0.000
A22: REGULAR | B22: =+'10-19 SUN'!E22 -> 0 | E22: 0 | F22: REGULAR | R22: VAT | S22: =+S21*0.12 -> 0.000
A23: ABOYS | B23: =+'10-19 SUN'!E23 -> 769 | E23: 769 | R23: VAT + TOTAL CHANGE | S23: =+S21+S22 -> 0.000
A24: ABSALON LOLITA | B24: =+'10-19 SUN'!E24 -> 1000 | E24: 1000 | R24: ENTER OLD PRICE | S24: 4,719.000
A25: ALBAO, ELMER | B25: =+'10-19 SUN'!E25 -> 834 | E25: 834 | R25: NEW PRICE | S25: =+S24-S23 -> 4,719.000
A26: ALOVERA ROSEMARIE | B26: =+'10-19 SUN'!E26 -> 25 | E26: 25
A27: ANDAYA NELLY | B27: =+'10-19 SUN'!E27 -> 1071 | E27: 1071 | S27: =-S29*1 -> 0.000
A28: AYESHA BAKERY | B28: =+'10-19 SUN'!E28 -> 2105 | E28: 2105 | R28: 1.4KG | S28: 1.400
A29: BANTAYAN MINDA | B29: =+'10-19 SUN'!E29 -> 168 | E29: 168 | R29: ENTER NUMBER (-/+) | S29: =+P6 -> 0.000
A30: BEGGS BAKERY | B30: =+'10-19 SUN'!E30 -> 7936 | E30: 7936 | R30: TOTAL CHANGE | S30: =+S28*S27 -> 0.000
A31: BINOLIRAO, JOY | B31: =+'10-19 SUN'!E31 -> 5432 | E31: 5432 | R31: VAT | S31: =+S30*0.12 -> 0.000
A32: CAFÉ KRISTINA | B32: =+'10-19 SUN'!E32 -> 4226 | E32: 4226 | R32: VAT + TOTAL CHANGE | S32: =+S30+S31 -> 0.000
A33: CANTUBA PORTIA | B33: =+'10-19 SUN'!E33 -> 1076 | E33: 1076 | R33: ENTER OLD PRICE | S33: 199.000
A34: CAPELLAN EMILY | B34: =+'10-19 SUN'!E34 -> 588 | E34: 588 | R34: NEW PRICE | S34: =+S33-S32 -> 199.000
A35: CAPELLAN SONY | B35: =+'10-19 SUN'!E35 -> 500 | E35: 500
A36: CHEPIE/SAMSON JINKY | B36: =+'10-19 SUN'!E36 -> 41985 | E36: 41985
A37: CITY VICE OLD | B37: =+'10-19 SUN'!E37 -> 6121 | E37: 6121
A38: CORTES BABYJANE LESS 200 | B38: =+'10-19 SUN'!E38 -> 2128 | E38: 2128
A39: COSTALES, ERNESTO | B39: =+'10-19 SUN'!E39 -> 25 | E39: 25
A40: DALANON, LUZ | B40: =+'10-19 SUN'!E40 -> 1160 | E40: 1160
A41: DESAMERO JESS | B41: =+'10-19 SUN'!E41 -> 1033 | E41: 1033
A42: DESPE, ARTUR | B42: =+'10-19 SUN'!E42 -> 997 | E42: 997
A43: DIOCADO JOHNWIL ONLOAN | B43: =+'10-19 SUN'!E43 -> 900 | E43: 900
A44: EMR/PANES FREDDIE / | B44: =+'10-19 SUN'!E44 -> 2050 | E44: 2050
A45: EPONG CARENDERIA | B45: =+'10-19 SUN'!E45 -> 1131 | E45: 1131
A46: ESPARZA ANACITA | B46: =+'10-19 SUN'!E46 -> 1101 | E46: 1101
A47: ESPINAS ROLANDO | B47: =+'10-19 SUN'!E47 -> 1056 | E47: 1056
A48: EVANGELISTA, JOHN | B48: =+'10-19 SUN'!E48 -> 1207 | E48: 1207
A49: FLORES HELEN | B49: =+'10-19 SUN'!E49 -> 1647 | E49: 1647
A50: GARBO RADFORD | B50: =+'10-19 SUN'!E50 -> 1624 | E50: 1624
A51: GARBO RAYMUND | B51: =+'10-19 SUN'!E51 -> 1103 | E51: 1103
A52: GONZAGA, ANITA | B52: =+'10-19 SUN'!E52 -> 1191 | E52: 1191 | F52: APRIL
A53: HARLEY CLEOFE | B53: =+'10-19 SUN'!E53 -> 0 | E53: 0
A54: JANZMILE | B54: =+'10-19 SUN'!E54 -> 2331 | E54: 2331
A55: JODAN EATERY | B55: =+'10-19 SUN'!E55 -> 50 | E55: 50
A56: LALAGUNA FAITH | B56: =+'10-19 SUN'!E56 -> 0 | E56: 0
A57: LAURENO SUSIE | B57: =+'10-19 SUN'!E57 -> 2274 | E57: 2274
A58: LAWODNON | B58: =+'10-19 SUN'!E58 -> 6304 | C58: =+W226 -> 2,028 | D58: 4,056 | E58: 4276
A59: LIBERTY BAKERY | B59: =+'10-19 SUN'!E59 -> 0 | E59: 0
A60: LOLO JOFAX (2160) UNPAID | B60: =+'10-19 SUN'!E60 -> 500 | E60: 500
A61: MANALO, CHITA | B61: =+'10-19 SUN'!E61 -> 2120 | E61: 2120
A62: MANGUBAT-CAWAYAN | B62: =+'10-19 SUN'!E62 -> 1121 | E62: 1121
A63: MARABE, GUENTER | B63: =+'10-19 SUN'!E63 -> 1014 | E63: 1014
A64: MARISTELA, EMERALD | B64: =+'10-19 SUN'!E64 -> 7907 | E64: 7907
A65: MIEKOYS PIZZA | B65: =+'10-19 SUN'!E65 -> 0 | E65: 0
A66: MIGGYS BAKERY | B66: =+'10-19 SUN'!E66 -> 765 | E66: =B66+C66-D66 -> 765
A67: MORAN ANALY | B67: =+'10-19 SUN'!E67 -> 0 | E67: 0
A68: MORAN JACKILYN | B68: =+'10-19 SUN'!E68 -> 1068 | E68: 1068
A69: NARIDO RAFAEL REG | B69: =+'10-19 SUN'!E69 -> 475 | E69: 475
A70: NARIDO, REYNALDO | B70: =+'10-19 SUN'!E70 -> 475 | E70: 475
A71: NUNEZ, PERPETUA | B71: =+'10-19 SUN'!E71 -> 3831 | E71: 3831
A72: OLIVA, CELSO | B72: =+'10-19 SUN'!E72 -> 168 | E72: 168
A73: OLIVA, DOREEN | B73: =+'10-19 SUN'!E73 -> 474 | E73: 474
A74: ORBISO LIZA/NUNU | B74: =+'10-19 SUN'!E74 -> 2405 | E74: 2405
A75: ORBISO, KEILLI | B75: =+'10-19 SUN'!E75 -> 474 | E75: 474
A76: PASION VENUS | B76: =+'10-19 SUN'!E76 -> 1014 | E76: 1014
A77: PERALTA LYNDON | B77: =+'10-19 SUN'!E77 -> 40 | E77: 40
A78: PHO | B78: =+'10-19 SUN'!E78 -> 0 | E78: 0
A79: RESUENA | B79: =+'10-19 SUN'!E79 -> 4226 | E79: 4226
A80: RUELAN RONALD | B80: =+'10-19 SUN'!E80 -> 1083 | E80: 1083
A81: SALADAS SHERLY | B81: =+'10-19 SUN'!E81 -> 674 | E81: 674 | F81: =2028+8360 -> 10388
A82: BANTAYAN MINDA | B82: =+'10-19 SUN'!E82 -> 0 | E82: 0
A83: SANDRA SAN JUAN | B83: =+'10-19 SUN'!E83 -> 1300 | E83: 1300
A84: TATA/NUEVO MARILOU | B84: =+'10-19 SUN'!E84 -> 10080 | E84: 10080
A85: TENORIA, MARRAH | B85: =+'10-19 SUN'!E85 -> 130 | E85: 130
A86: VILLAMOR, MARILOU (MOM) | B86: =+'10-19 SUN'!E86 -> 0 | E86: 0
A87: VILLAMOR, MARILOU (SON) | B87: =+'10-19 SUN'!E87 -> 2308 | E87: 2308
A88: VILLOCILLO JESUS | B88: =+'10-19 SUN'!E88 -> 0 | E88: 0
A89: YBANEZ ROBERTO (1115) UNPAID | B89: =+'10-19 SUN'!E89 -> 2096 | E89: 2096
A90: H | B90: =+'10-19 SUN'!E90 -> 50750 | E90: 50750
A91: TWIN PEAK | B91: =+'10-19 SUN'!E91 -> 1084 | E91: 1084
A92: COLLANTES | B92: =+'10-19 SUN'!E92 -> 0 | E92: 0
A93: MARYJANE CORTES | B93: =+'10-19 SUN'!E93 -> 45 | E93: 45
A94: HAPPY ROASTER | B94: =+'10-19 SUN'!E94 -> 6456 | E94: 6456
A95: JOHNRICK PACHECO | B95: =+'10-19 SUN'!E95 -> 800 | E95: 800
A96: CHARO'S CAFÉ | B96: =+'10-19 SUN'!E96 -> 25 | E96: 25
A97: LOCILLO AILYN | B97: =+'10-19 SUN'!E97 -> 0 | E97: 0
A98: OVERTYM | B98: =+'10-19 SUN'!E98 -> 0 | E98: 0
A99: HARLEY CLEOFE | B99: =+'10-19 SUN'!E99 -> 0 | E99: 0
A100: PAPILLERA M 3000 from lex | B100: =+'10-19 SUN'!E100 -> 3114 | E100: 3114
B101: =+'10-19 SUN'!E101 -> 0 | E101: 0
A102: CITY TREASURY | B102: =+'10-19 SUN'!E102 -> 4550 | E102: 4550
B103: =+'10-19 SUN'!E103 -> 0 | E103: 0 | F103: APRIL hain an resibo
B104: =+'10-19 SUN'!E104 -> 0 | E104: 0 | F104: 9-18-25
A105: BERNARD CARPIO | B105: =+'10-19 SUN'!E105 -> 1132 | E105: 1132
A106: CHONA MESA | B106: =+'10-19 SUN'!E106 -> 2298 | E106: 2298
A107: PASTORA VIE | B107: =+'10-19 SUN'!E107 -> 600 | E107: 600
A108: EVELYN CONRADO | B108: =+'10-19 SUN'!E108 -> 400 | E108: 400
B109: =+'10-19 SUN'!E109 -> 0 | E109: 0
A110: NENETH REYES | B110: =+'10-19 SUN'!E110 -> 693 | E110: 693
A111: JUREXEN VERDIDA | B111: =+'10-19 SUN'!E111 -> 3001 | E111: 3001
A112: VILLARANTE RENZEL | B112: =+'10-19 SUN'!E112 -> 646 | E112: 646
A113: ALMARIO MOBO BGACAY | B113: =+'10-19 SUN'!E113 -> 143 | E113: 143
A114: ALFARO | B114: =+'10-19 SUN'!E114 -> 1147 | E114: 1147
A115: JOSE CUELLO 4/24 TRADE IN | B115: =+'10-19 SUN'!E115 -> 1071 | E115: 1071
B116: =+'10-19 SUN'!E116 -> 0 | E116: 0
A117: MANLAPAZ | B117: =+'10-19 SUN'!E117 -> 1084 | E117: 1084
A118: CITY VICE NEW GAZUL | B118: =+'10-19 SUN'!E118 -> 1103 | E118: 1103
A119: EVA VERANO | B119: =+'10-19 SUN'!E119 -> 576 | E119: 576
B120: =+'10-19 SUN'!E120 -> 0 | E120: 0
A121: HAPPY ROASTER | B121: =+'10-19 SUN'!E121 -> 2138 | E121: 2138
B122: =+'10-19 SUN'!E122 -> 0 | E122: 0
B123: =+'10-19 SUN'!E123 -> 0 | E123: 0
A124: CITY VICE | B124: =+'10-19 SUN'!E124 -> 1076 | E124: 1076
A125: JEREMY SAMSON | B125: =+'10-19 SUN'!E125 -> 18800 | E125: 18800
A126: VILLANUEVA GLENDA | B126: =+'10-19 SUN'!E126 -> 0 | C126: =+W261 -> 1,749 | E126: 1749
A127: GALLETO DOREEN | B127: =+'10-19 SUN'!E127 -> 0 | C127: =+W247 -> 1,084 | E127: 1084
A128: CITIBUILDER | B128: =+'10-19 SUN'!E128 -> 1114 | E128: 1114
A129: 50kg ACCOUNT | B129: =+'10-19 SUN'!E129 -> 0 | E129: 0 | F129: 50kg ACCOUNT
A130: ABAN, JULIUS | B130: =+'10-19 SUN'!E130 -> 8660 | E130: =B130+C130-D130 -> 8660
A131: AVEGAIL LAUNDRY | B131: =+'10-19 SUN'!E131 -> 6538 | E131: 6538
A132: BACKYARD EDIBLE GARDEN | B132: =+'10-19 SUN'!E132 -> 844 | E132: 844
A133: BESMONTE MARICAR | B133: =+'10-19 SUN'!E133 -> 0 | E133: 0 | R133: ATTENDANCE AND PAYMENT | X133: =+Z155+Z161 -> 4750
A134: TEABOX | B134: =+'10-19 SUN'!E134 -> 0 | E134: 0
A135: CHAROS CAFÉ AND RESTO | B135: =+'10-19 SUN'!E135 -> 0 | E135: 0 | R135: NAMES | S135: AM | U135: PM | W135: AM HOURS | X135: PM HOURS | Y135: TOTAL HOURS | Z135: PAID | AA135: REMARKS
A136: CHERISH RESORT | B136: =+'10-19 SUN'!E136 -> 3681 | D136: 3,681 | E136: 0 | P136: DAYOFF | S136: IN | T136: OUT | U136: IN | V136: OUT
A137: CLORES TRESURE ISLAND | B137: =+'10-19 SUN'!E137 -> 7 | E137: 7 | P137: SATURDAY | R137: JOMARI CORTES | S137: 07:50:00 | T137: 12:00:00 | U137: 01:00:00 | V137: 06:00:00 | W137: =+(T137-S137)*24 -> 4.2 | X137: =+(V137-U137)*24 -> 5.0 | Z137: 550 | AA137: OK
A138: CONRADO / NOEL BAKERY | B138: =+'10-19 SUN'!E138 -> 3601 | E138: 3601 | P138: SUNDAY | R138: JUNREL MALIPOT | S138: 07:10:00 | T138: 12:00:00 | U138: 01:00:00 | V138: 06:00:00 | W138: =+(T138-S138)*24 -> 4.8 | X138: =+(V138-U138)*24 -> 5.0 | Z138: 550 | AA138: OK
A139: CRISPY KING CROSSING | B139: =+'10-19 SUN'!E139 -> 60 | E139: 60 | K139: CP# | O139: DRIVER | P139: SUNDAY | R139: APRIL ARENDAIN | S139: 07:00:00 | T139: 12:00:00 | U139: 01:00:00 | V139: 06:00:00 | W139: =+(T139-S139)*24 -> 5.0 | X139: =+(V146-U146)*24 -> 5.0 | Z139: 550 | AA139: OK
A140: CRISPY KING IBANEZ | B140: =+'10-19 SUN'!E140 -> 0 | E140: 0 | K140: CP# | O140: DRIVER | R140: DIONESITO BLAZO 9301238381 | W140: =+(T141-S140)*24 -> 0.0 | X140: =+(V141-U141)*24 -> 0.0
A141: CRISPY KING MARKET | B141: =+'10-19 SUN'!E141 -> 0 | E141: 0 | P141: SUNDAY | R141: RULEY GREPALDEO | W141: =+(T142-S141)*24 -> 0.0 | X141: =+(V142-U142)*24 -> 0.0
A142: CRISPY KING MOBO | B142: =+'10-19 SUN'!E142 -> 0 | E142: 0 | W142: 0.0 | X142: =+(V142-U142)*24 -> 0.0
A143: CRISPY KING CAWAYAN | B143: =+'10-19 SUN'!E143 -> 0 | E143: 0 | W143: 0.0 | X143: =+(V143-U143)*24 -> 0.0
A144: EZ CAFÉ W/CYLINDER | B144: =+'10-19 SUN'!E144 -> 0 | E144: 0 | W144: 0.0 | X144: =+(V144-U144)*24 -> 0.0
A145: FRANCE LAUNDRY | B145: =+'10-19 SUN'!E145 -> 946 | E145: 946 | W145: =+(T145-S145)*24 -> 0.0 | X145: =+(V145-U145)*24 -> 0.0
A146: JUAN HOUR LAUNDRY | B146: =+'10-19 SUN'!E146 -> 0 | E146: 0 | R146: SHANNAH | S146: 07:30:00 | T146: 12:00:00 | U146: 01:00:00 | V146: 06:00:00 | W146: =+(T146-S146)*24 -> 4.5 | X146: =+(V146-U146)*24 -> 5.0
A147: KATES LAUNDRY SHOP | B147: =+'10-19 SUN'!E147 -> 0 | E147: 0 | R147: NATHANIEL ALERTA | S147: 07:00:00 | T147: 12:00:00 | U147: 01:00:00 | V147: 06:00:00 | W147: 5.0 | X147: 5.0 | Z147: 500
A148: MARKY RESTAURANT | B148: =+'10-19 SUN'!E148 -> 3914 | E148: 3914 | P148: SATURDAY | R148: ARNOLD PEPITO | W148: 0.0 | X148: 0.0
A149: MASBATE LAUNDRY SHOP | B149: =+'10-19 SUN'!E149 -> 0 | E149: 0 | K149: CP# | O149: DRIVER | P149: WEDNESDAY | R149: EVANGELISTA ROMULO | S149: 07:00:00 | T149: 12:00:00 | U149: 01:00:00 | V149: 06:00:00 | W149: 5.0 | X149: 5.0 | Z149: 500
A150: DAMPA | B150: =+'10-19 SUN'!E150 -> 0 | E150: 0 | R150: HAZEL | W150: 0.0 | X150: 0.0
